Workbook

Sheet Introduction
C4: Joint Monitoring Programme for Water Supply, Sanitation and Hygiene
C6: Estimates on household water, sanitation and hygiene by wealth quintile and sub-national region in
C7: =+Water!B5 -> Bangladesh
C9: Updated April 2021
C11: Follow the links below to find the following information:
C13: JMP Estimates
C14: WASH status and trends by wealth quintile (customized quintiles made without water and sanitation assets)
C15: Water
C16: Sanitation
C17: Hygiene
C19: Data inputs
C20: customized wealth quintiles and subnational data:
C21: =IF(INDIRECT(CONCATENATE("Water","!B105"))=0,"",INDIRECT(CONCATENATE("Water","!B105"))) -> DHS04
C22: =IF(INDIRECT(CONCATENATE("Water","!B106"))=0,"",INDIRECT(CONCATENATE("Water","!B106"))) -> MICS06
C23: =IF(INDIRECT(CONCATENATE("Water","!B107"))=0,"",INDIRECT(CONCATENATE("Water","!B107"))) -> DHS07
C24: =IF(INDIRECT(CONCATENATE("Water","!B108"))=0,"",INDIRECT(CONCATENATE("Water","!B108"))) -> DHS11
C25: =IF(INDIRECT(CONCATENATE("Water","!B109"))=0,"",INDIRECT(CONCATENATE("Water","!B109"))) -> MICS13
C26: =IF(INDIRECT(CONCATENATE("Water","!B110"))=0,"",INDIRECT(CONCATENATE("Water","!B110"))) -> DHS14
C27: =IF(INDIRECT(CONCATENATE("Water","!B111"))=0,"",INDIRECT(CONCATENATE("Water","!B111"))) -> DHS18
C28: =IF(INDIRECT(CONCATENATE("Water","!B112"))=0,"",INDIRECT(CONCATENATE("Water","!B112"))) -> MICS19
C29: =IF(INDIRECT(CONCATENATE("Water","!B113"))=0,"",INDIRECT(CONCATENATE("Water","!B113"))) -> 
C30: =IF(INDIRECT(CONCATENATE("Water","!B114"))=0,"",INDIRECT(CONCATENATE("Water","!B114"))) -> 
C31: =IF(INDIRECT(CONCATENATE("Water","!B115"))=0,"",INDIRECT(CONCATENATE("Water","!B115"))) -> 
C32: =IF(INDIRECT(CONCATENATE("Water","!B116"))=0,"",INDIRECT(CONCATENATE("Water","!B116"))) -> 
L55: =+IF(ISNUMBER(M48), "", "Insufficient data to estimate safely managed sanitation services at national level") -> Insufficient data to estimate safely managed sanitation services at national level

Sheet Water
A1: BGD
B4: Summary of trends in use of drinking water by wealth quintile (%)
B5: =IF(ISERROR(INDIRECT(CONCATENATE($B105,"!A2"))),"",INDIRECT(CONCATENATE($B105,"!A2"))) -> Bangladesh
B7: =B118 -> National use of drinking water sources, 2000–2020 | J7: =B218 -> Urban use of drinking water sources, 2000–2020 | R7: =B318 -> Rural use of drinking water sources, 2000–2020
B31: =IF(ISERROR(INDIRECT(CONCATENATE($B105,"!A2"))),"",INDIRECT(CONCATENATE($B105,"!A2"))) -> Bangladesh | F31: Poorest | J31: Poor | N31: Middle | R31: Rich | V31: Richest
F32: Basic | G32: Limited | H32: Unimproved | I32: Surface water | J32: Basic | K32: Limited | L32: Unimproved | M32: Surface water | N32: Basic | O32: Limited | P32: Unimproved | Q32: Surface water | R32: Basic | S32: Limited | T32: Unimproved | U32: Surface water | V32: Basic | W32: Limited | X32: Unimproved | Y32: Surface water
B33: NATIONAL | D33: Estimate | E33: =C99 -> 2000 | F33: =E99 -> 94.4184429 | G33: =F99 -> 1.954478955 | H33: 0.508788823 | I33: 3.118289326 | J33: =J99 -> 94.94088842 | K33: =K99 -> 1.218326792 | L33: 1.059628964 | M33: 2.78115582 | N33: =O99 -> 96.60255227 | O33: =P99 -> 0.7015136647 | P33: 0.4327426643 | Q33: 2.263191403 | R33: =T99 -> 97.14684627 | S33: =U99 -> 0.4231612541 | T33: 0.5599031544 | U33: 1.870089318 | V33: =Y99 -> 98.49573743 | W33: =Z99 -> 0.454923407 | X33: 0.2834377498 | Y33: 0.7659014146
E34: =C100 -> 2020 | F34: =E100 -> 94.5495541 | G34: 1.957192981 | H34: 1.846957774 | I34: 1.646295143 | J34: =J100 -> 96.57106321 | K34: 1.239245973 | L34: 0.831096837 | M34: 1.358593977 | N34: =O100 -> 98.03109762 | O34: 0.711887553 | P34: 0.2311260298 | Q34: 1.025888801 | R34: =T100 -> 99.08944968 | S34: 0.4316230264 | T34: 0.1215164597 | U34: 0.3574108364 | V34: =Y100 -> 99.42901413 | W34: 0.4592339429 | X34: 0.04483202214 | Y34: 0.066919902
B36: URBAN | D36: Estimate | E36: =C199 -> 2000 | F36: =E199 -> 97.01440009 | G36: =F199 -> 1.158814109 | H36: 0 | I36: 1.826785799 | J36: =J199 -> 98.52996889 | K36: =K199 -> 0.5608691423 | L36: 0.08659926532 | M36: 0.8225627054 | N36: =O199 -> 98.69239792 | O36: =P199 -> 0.5743556304 | P36: 0.2055720106 | Q36: 0.5276744369 | R36: =T199 -> 99.13127018 | S36: =U199 -> 0.6172081304 | T36: 0.07618084393 | U36: 0.1753408456 | V36: =Y199 -> 99.64867329 | W36: =Z199 -> 0.2950631574 | X36: 0.05626354909 | Y36: 0
E37: =C200 -> 2020 | F37: =E200 -> 96.89550293 | G37: 1.15739391 | H37: 1.200844858 | I37: 0.7462582989 | J37: =J200 -> 99.00980561 | K37: 0.563600551 | L37: 0.3088783199 | M37: 0.1177155158 | N37: =O200 -> 99.29376119 | O37: 0.5778553566 | P37: 0.06596645282 | Q37: 0.06241700094 | R37: =T200 -> 99.25114059 | S37: 0.617954464 | T37: 0.06819819207 | U37: 0.06270674906 | V37: =Y200 -> 99.69996609 | W37: 0.2952150371 | X37: 0.004818871293 | Y37: 0
B39: RURAL | D39: Estimate | E39: =C299 -> 2000 | F39: =E299 -> 94.00629298 | G39: =F299 -> 2.06771072 | H39: 0.5529592523 | I39: 3.373037045 | J39: =J299 -> 94.26511341 | K39: =K299 -> 1.483761682 | L39: 1.195359852 | M39: 3.055765059 | N39: =O299 -> 96.09091542 | O39: =P299 -> 0.8685471862 | P39: 0.601025029 | Q39: 2.439512365 | R39: =T299 -> 96.48709109 | S39: =U299 -> 0.4674604397 | T39: 0.7009883055 | U39: 2.344460165 | V39: =Y299 -> 97.1026262 | W39: =Z299 -> 0.354815331 | X39: 0.6557438108 | Y39: 1.886814657
E40: =C300 -> 2020 | F40: =E300 -> 94.31391547 | G40: 2.074477015 | H40: 1.911433794 | I40: 1.700173716 | J40: =J300 -> 96.08520846 | K40: 1.512410534 | L40: 0.9628196297 | M40: 1.439561373 | N40: =O300 -> 97.29569194 | O40: 0.879436928 | P40: 0.4160848888 | Q40: 1.408786245 | R40: =T300 -> 98.47633434 | S40: 0.4770979209 | T40: 0.227671002 | U40: 0.8188967361 | V40: =Y300 -> 99.35138128 | W40: 0.3630323361 | X40: 0 | Y40: 0.285586384
A97: NATIONAL | D97: Poorest | I97: Poor | N97: Middle | S97: Rich | X97: Richest
D98: Improved | E98: Basic | F98: Limited | G98: Unimproved | H98: Surface water | I98: Improved | J98: Basic | K98: Limited | L98: Unimproved | M98: Surface water | N98: Improved | O98: Basic | P98: Limited | Q98: Unimproved | R98: Surface water | S98: Improved | T98: Basic | U98: Limited | V98: Unimproved | W98: Surface water | X98: Improved | Y98: Basic | Z98: Limited | AA98: Unimproved | AB98: Surface water
A99: Forecast period: | C99: 2000 | D99: =IF((D101+H101)>100,D101*100/(D101+H101),D101) -> 96.37292185 | E99: =D99*AVERAGEIF(E105:E116,">0")/100 -> 94.4184429 | F99: =D99*(100-AVERAGEIF(E105:E116,">0"))/100 -> 1.954478955 | G99: =100-(E99+F99+H99) -> 0.508788823 | H99: =IF((D101+H101)>100,H101*100/(D101+H101),H101) -> 3.118289326 | I99: =IF((I101+M101)>100,I101*100/(I101+M101),I101) -> 96.15921522 | J99: =I99*AVERAGEIF(J105:J116,">0")/100 -> 94.94088842 | K99: =I99*(100-AVERAGEIF(J105:J116,">0"))/100 -> 1.218326792 | L99: =100-(J99+K99+M99) -> 1.059628964 | M99: =IF((I101+M101)>100,M101*100/(I101+M101),M101) -> 2.78115582 | N99: =IF((N101+R101)>100,N101*100/(N101+R101),N101) -> 97.30406593 | O99: =N99*AVERAGEIF(O105:O116,">0")/100 -> 96.60255227 | P99: =N99*(100-AVERAGEIF(O105:O116,">0"))/100 -> 0.7015136647 | Q99: =100-(O99+P99+R99) -> 0.4327426643 | R99: =IF((N101+R101)>100,R101*100/(N101+R101),R101) -> 2.263191403 | S99: =IF((S101+W101)>100,S101*100/(S101+W101),S101) -> 97.57000753 | T99: =S99*AVERAGEIF(T105:T116,">0")/100 -> 97.14684627 | U99: =S99*(100-AVERAGEIF(T105:T116,">0"))/100 -> 0.4231612541 | V99: =100-(T99+U99+W99) -> 0.5599031544 | W99: =IF((S101+W101)>100,W101*100/(S101+W101),W101) -> 1.870089318 | X99: =IF((X101+AB101)>100,X101*100/(X101+AB101),X101) -> 98.95066084 | Y99: =X99*AVERAGEIF(Y105:Y116,">0")/100 -> 98.49573743 | Z99: =X99*(100-AVERAGEIF(Y105:Y116,">0"))/100 -> 0.454923407 | AA99: =100-(Y99+Z99+AB99) -> 0.2834377498 | AB99: =IF((X101+AB101)>100,AB101*100/(X101+AB101),AB101) -> 0.7659014146
C100: 2020 | D100: =IF((D102+H102)>100,D102*100/(D102+H102),D102) -> 96.50674708 | E100: =D100*AVERAGEIF(E105:E116,">0")/100 -> 94.5495541 | F100: =D100*(100-AVERAGEIF(E105:E116,">0"))/100 -> 1.957192981 | G100: =100-(E100+F100+H100) -> 1.846957774 | H100: =IF((D102+H102)>100,H102*100/(D102+H102),H102) -> 1.646295143 | I100: =IF((I102+M102)>100,I102*100/(I102+M102),I102) -> 97.81030919 | J100: =I100*AVERAGEIF(J105:J116,">0")/100 -> 96.57106321 | K100: =I100*(100-AVERAGEIF(J105:J116,">0"))/100 -> 1.239245973 | L100: =100-(J100+K100+M100) -> 0.831096837 | M100: =IF((I102+M102)>100,M102*100/(I102+M102),M102) -> 1.358593977 | N100: =IF((N102+R102)>100,N102*100/(N102+R102),N102) -> 98.74298517 | O100: =N100*AVERAGEIF(O105:O116,">0")/100 -> 98.03109762 | P100: =N100*(100-AVERAGEIF(O105:O116,">0"))/100 -> 0.711887553 | Q100: =100-(O100+P100+R100) -> 0.2311260298 | R100: =IF((N102+R102)>100,R102*100/(N102+R102),R102) -> 1.025888801 | S100: =IF((S102+W102)>100,S102*100/(S102+W102),S102) -> 99.5210727 | T100: =S100*AVERAGEIF(T105:T116,">0")/100 -> 99.08944968 | U100: =S100*(100-AVERAGEIF(T105:T116,">0"))/100 -> 0.4316230264 | V100: =100-(T100+U100+W100) -> 0.1215164597 | W100: =IF((S102+W102)>100,W102*100/(S102+W102),W102) -> 0.3574108364 | X100: =IF((X102+AB102)>100,X102*100/(X102+AB102),X102) -> 99.88824808 | Y100: =X100*AVERAGEIF(Y105:Y116,">0")/100 -> 99.42901413 | Z100: =X100*(100-AVERAGEIF(Y105:Y116,">0"))/100 -> 0.4592339429 | AA100: =100-(Y100+Z100+AB100) -> 0.04483202214 | AB100: =IF((X102+AB102)>100,AB102*100/(X102+AB102),AB102) -> 0.066919902
A101: Regression period: | C101: =MinRegYear(C99,C105:C116) -> 2002 | D101: =IF(MAX(C105:C116)-MIN(C105:C116)<5,AVERAGEIF(C105:C116,">0",D105:D116), IF(FORECAST($C101,D$105:D$116,$C$105:$C$116)<0,0, IF(FORECAST($C101,D$105:D$116,$C$105:$C$116)>100,100, FORECAST($C101,D$105:D$116,$C$105:$C$116)))) -> 96.37292185 | H101: =IF(MAX(C105:C116)-MIN(C105:C116)<5,AVERAGEIF(C105:C116,">0",H105:H116), IF(FORECAST($C101,H$105:H$116,$C$105:$C$116)<0,0, IF(FORECAST($C101,H$105:H$116,$C$105:$C$116)>100,100, FORECAST($C101,H$105:H$116,$C$105:$C$116)))) -> 3.118289326 | I101: =IF(MAX(C105:C116)-MIN(C105:C116)<5,AVERAGEIF(C105:C116,">0",I105:I116), IF(FORECAST($C101,I$105:I$116,$C$105:$C$116)<0,0, IF(FORECAST($C101,I$105:I$116,$C$105:$C$116)>100,100, FORECAST($C101,I$105:I$116,$C$105:$C$116)))) -> 96.15921522 | M101: =IF(MAX(C105:C116)-MIN(C105:C116)<5,AVERAGEIF(C105:C116,">0",M105:M116), IF(FORECAST($C101,M$105:M$116,$C$105:$C$116)<0,0, IF(FORECAST($C101,M$105:M$116,$C$105:$C$116)>100,100, FORECAST($C101,M$105:M$116,$C$105:$C$116)))) -> 2.78115582 | N101: =IF(MAX(C105:C116)-MIN(C105:C116)<5,AVERAGEIF(C105:C116,">0",N105:N116), IF(FORECAST($C101,N$105:N$116,$C$105:$C$116)<0,0, IF(FORECAST($C101,N$105:N$116,$C$105:$C$116)>100,100, FORECAST($C101,N$105:N$116,$C$105:$C$116)))) -> 97.30406593 | R101: =IF(MAX(C105:C116)-MIN(C105:C116)<5,AVERAGEIF(C105:C116,">0",R105:R116), IF(FORECAST($C101,R$105:R$116,$C$105:$C$116)<0,0, IF(FORECAST($C101,R$105:R$116,$C$105:$C$116)>100,100, FORECAST($C101,R$105:R$116,$C$105:$C$116)))) -> 2.263191403 | S101: =IF(MAX(C105:C116)-MIN(C105:C116)<5,AVERAGEIF(C105:C116,">0",S105:S116), IF(FORECAST($C101,S$105:S$116,$C$105:$C$116)<0,0, IF(FORECAST($C101,S$105:S$116,$C$105:$C$116)>100,100, FORECAST($C101,S$105:S$116,$C$105:$C$116)))) -> 97.57000753 | W101: =IF(MAX(C105:C116)-MIN(C105:C116)<5,AVERAGEIF(C105:C116,">0",W105:W116), IF(FORECAST($C101,W$105:W$116,$C$105:$C$116)<0,0, IF(FORECAST($C101,W$105:W$116,$C$105:$C$116)>100,100, FORECAST($C101,W$105:W$116,$C$105:$C$116)))) -> 1.870089318 | X101: =IF(MAX(C105:C116)-MIN(C105:C116)<5,AVERAGEIF(C105:C116,">0",X105:X116), IF(FORECAST($C101,X$105:X$116,$C$105:$C$116)<0,0, IF(FORECAST($C101,X$105:X$116,$C$105:$C$116)>100,100, FORECAST($C101,X$105:X$116,$C$105:$C$116)))) -> 98.95066084 | AB101: =IF(MAX(C105:C116)-MIN(C105:C116)<5,AVERAGEIF(C105:C116,">0",AB105:AB116), IF(FORECAST($C101,AB$105:AB$116,$C$105:$C$116)<0,0, IF(FORECAST($C101,AB$105:AB$116,$C$105:$C$116)>100,100, FORECAST($C101,AB$105:AB$116,$C$105:$C$116)))) -> 0.7659014146
C102: =MaxRegYear(C100,C105:C116) -> 2020 | D102: =IF(MAX(C105:C116)-MIN(C105:C116)<5,AVERAGEIF(C105:C116,">0",D105:D116), IF(FORECAST($C102,D$105:D$116,$C$105:$C$116)<0,0, IF(FORECAST($C102,D$105:D$116,$C$105:$C$116)>100,100, FORECAST($C102,D$105:D$116,$C$105:$C$116)))) -> 96.50674708 | H102: =IF(MAX(C105:C116)-MIN(C105:C116)<5,AVERAGEIF(C105:C116,">0",H105:H116), IF(FORECAST($C102,H$105:H$116,$C$105:$C$116)<0,0, IF(FORECAST($C102,H$105:H$116,$C$105:$C$116)>100,100, FORECAST($C102,H$105:H$116,$C$105:$C$116)))) -> 1.646295143 | I102: =IF(MAX(C105:C116)-MIN(C105:C116)<5,AVERAGEIF(C105:C116,">0",I105:I116), IF(FORECAST($C102,I$105:I$116,$C$105:$C$116)<0,0, IF(FORECAST($C102,I$105:I$116,$C$105:$C$116)>100,100, FORECAST($C102,I$105:I$116,$C$105:$C$116)))) -> 97.81030919 | M102: =IF(MAX(C105:C116)-MIN(C105:C116)<5,AVERAGEIF(C105:C116,">0",M105:M116), IF(FORECAST($C102,M$105:M$116,$C$105:$C$116)<0,0, IF(FORECAST($C102,M$105:M$116,$C$105:$C$116)>100,100, FORECAST($C102,M$105:M$116,$C$105:$C$116)))) -> 1.358593977 | N102: =IF(MAX(C105:C116)-MIN(C105:C116)<5,AVERAGEIF(C105:C116,">0",N105:N116), IF(FORECAST($C102,N$105:N$116,$C$105:$C$116)<0,0, IF(FORECAST($C102,N$105:N$116,$C$105:$C$116)>100,100, FORECAST($C102,N$105:N$116,$C$105:$C$116)))) -> 98.74298517 | R102: =IF(MAX(C105:C116)-MIN(C105:C116)<5,AVERAGEIF(C105:C116,">0",R105:R116), IF(FORECAST($C102,R$105:R$116,$C$105:$C$116)<0,0, IF(FORECAST($C102,R$105:R$116,$C$105:$C$116)>100,100, FORECAST($C102,R$105:R$116,$C$105:$C$116)))) -> 1.025888801 | S102: =IF(MAX(C105:C116)-MIN(C105:C116)<5,AVERAGEIF(C105:C116,">0",S105:S116), IF(FORECAST($C102,S$105:S$116,$C$105:$C$116)<0,0, IF(FORECAST($C102,S$105:S$116,$C$105:$C$116)>100,100, FORECAST($C102,S$105:S$116,$C$105:$C$116)))) -> 99.5210727 | W102: =IF(MAX(C105:C116)-MIN(C105:C116)<5,AVERAGEIF(C105:C116,">0",W105:W116), IF(FORECAST($C102,W$105:W$116,$C$105:$C$116)<0,0, IF(FORECAST($C102,W$105:W$116,$C$105:$C$116)>100,100, FORECAST($C102,W$105:W$116,$C$105:$C$116)))) -> 0.3574108364 | X102: =IF(MAX(C105:C116)-MIN(C105:C116)<5,AVERAGEIF(C105:C116,">0",X105:X116), IF(FORECAST($C102,X$105:X$116,$C$105:$C$116)<0,0, IF(FORECAST($C102,X$105:X$116,$C$105:$C$116)>100,100, FORECAST($C102,X$105:X$116,$C$105:$C$116)))) -> 99.88824808 | AB102: =IF(MAX(C105:C116)-MIN(C105:C116)<5,AVERAGEIF(C105:C116,">0",AB105:AB116), IF(FORECAST($C102,AB$105:AB$116,$C$105:$C$116)<0,0, IF(FORECAST($C102,AB$105:AB$116,$C$105:$C$116)>100,100, FORECAST($C102,AB$105:AB$116,$C$105:$C$116)))) -> 0.066919902
B104: Survey | C104: Year | D104: Improved | E104: % Improved < = 30min | H104: Surface water | I104: Improved | J104: % Improved < = 30min | M104: Surface water | N104: Improved | O104: % Improved < = 30min | R104: Surface water | S104: Improved | T104: % Improved < = 30min | W104: Surface water | X104: Improved | Y104: % Improved < = 30min | AB104: Surface water
B105: DHS04 | C105: 2004 | D105: =IF(ISERROR(INDIRECT(CONCATENATE($B105,"!C16"))),"",INDIRECT(CONCATENATE($B105,"!C16"))) -> 95.61232025 | E105: =IF(ISERROR(INDIRECT(CONCATENATE($B105,"!C23"))),"",INDIRECT(CONCATENATE($B105,"!C23"))) -> N/A | H105: =IF(ISERROR(INDIRECT(CONCATENATE($B105,"!C21"))),"",INDIRECT(CONCATENATE($B105,"!C21"))) -> 3.620034256 | I105: =IF(ISERROR(INDIRECT(CONCATENATE($B105,"!D16"))),"",INDIRECT(CONCATENATE($B105,"!D16"))) -> 96.81153903 | J105: =IF(ISERROR(INDIRECT(CONCATENATE($B105,"!D23"))),"",INDIRECT(CONCATENATE($B105,"!D23"))) -> N/A | M105: =IF(ISERROR(INDIRECT(CONCATENATE($B105,"!D21"))),"",INDIRECT(CONCATENATE($B105,"!D21"))) -> 2.5183451 | N105: =IF(ISERROR(INDIRECT(CONCATENATE($B105,"!E16"))),"",INDIRECT(CONCATENATE($B105,"!E16"))) -> 98.35623625 | O105: =IF(ISERROR(INDIRECT(CONCATENATE($B105,"!E23"))),"",INDIRECT(CONCATENATE($B105,"!E23"))) -> N/A | R105: =IF(ISERROR(INDIRECT(CONCATENATE($B105,"!E21"))),"",INDIRECT(CONCATENATE($B105,"!E21"))) -> 1.445848252 | S105: =IF(ISERROR(INDIRECT(CONCATENATE($B105,"!F16"))),"",INDIRECT(CONCATENATE($B105,"!F16"))) -> 98.11332719 | T105: =IF(ISERROR(INDIRECT(CONCATENATE($B105,"!F23"))),"",INDIRECT(CONCATENATE($B105,"!F23"))) -> N/A | W105: =IF(ISERROR(INDIRECT(CONCATENATE($B105,"!F21"))),"",INDIRECT(CONCATENATE($B105,"!F21"))) -> 1.588251682 | X105: =IF(ISERROR(INDIRECT(CONCATENATE($B105,"!G16"))),"",INDIRECT(CONCATENATE($B105,"!G16"))) -> 98.88739839 | Y105: =IF(ISERROR(INDIRECT(CONCATENATE($B105,"!G23"))),"",INDIRECT(CONCATENATE($B105,"!G23"))) -> N/A | AB105: =IF(ISERROR(INDIRECT(CONCATENATE($B105,"!G221"))),"",INDIRECT(CONCATENATE($B105,"!G21"))) -> 0.8498702415
B106: MICS06 | C106: 2006 | D106: 95.80716887 | E106: 98.30134131 | H106: 2.769485135 | I106: 96.68712505 | J106: 99.0135473 | M106: 2.310098656 | N106: 97.56392331 | O106: 99.34061817 | R106: 2.045216612 | S106: 98.35198294 | T106: 99.66343468 | W106: 1.140648415 | X106: 99.38760295 | Y106: 99.90060931 | AB106: 0.3464734203
B107: DHS07 | C107: 2007 | D107: 96.64846016 | E107: N/A | H107: 2.596399618 | I107: 96.23628447 | J107: N/A | M107: 2.813800106 | N107: 96.39972062 | O107: N/A | R107: 2.944902522 | S107: 96.9137249 | T107: N/A | W107: 2.414206568 | X107: 99.20369433 | Y107: N/A | AB107: 0.6427431677
B108: DHS11 | C108: 2011 | D108: 97.81360833 | E108: 97.9180965 | H108: 1.761683699 | I108: 98.3205593 | J108: 98.8241701 | M108: 1.355876709 | N108: 98.38886182 | O108: 99.19396237 | R108: 1.476405971 | S108: 98.8379834 | T108: 99.6057175 | W108: 0.9341098855 | X108: 99.49105335 | Y108: 99.61554545 | AB108: 0.3846696658
B109: MICS13 | C109: 2013 | D109: 96.53106752 | E109: 96.55769162 | H109: 2.342723477 | I109: 96.91664521 | J109: 98.24586346 | M109: 1.949429765 | N109: 98.01747052 | O109: 99.21006236 | R109: 1.369978985 | S109: 99.0204357 | T109: 99.54196161 | W109: 0.6312810048 | X109: 99.24826171 | Y109: 99.6605427 | AB109: 0.5656561812
B110: DHS14 | C110: 2014 | D110: 97.43107417 | E110: 97.93465945 | H110: 1.324921665 | I110: 94.43718312 | J110: 97.99419143 | M110: 2.574379007 | N110: 98.55399161 | O110: 99.06272544 | R110: 1.210732747 | S110: 99.16769094 | T110: 99.42814186 | W110: 0.4708000058 | X110: 99.7158107 | Y110: 98.82905222 | AB110: 0.1003373078
B111: DHS18 | C111: 2018 | D111: =IF(ISERROR(INDIRECT(CONCATENATE($B111,"!C16"))),"",INDIRECT(CONCATENATE($B111,"!C16"))) -> 96.71191325 | E111: =IF(ISERROR(INDIRECT(CONCATENATE($B111,"!C23"))),"",INDIRECT(CONCATENATE($B111,"!C23"))) -> N/A | H111: =IF(ISERROR(INDIRECT(CONCATENATE($B111,"!C21"))),"",INDIRECT(CONCATENATE($B111,"!C21"))) -> 1.749550954 | I111: =IF(ISERROR(INDIRECT(CONCATENATE($B111,"!D16"))),"",INDIRECT(CONCATENATE($B111,"!D16"))) -> 98.01649667 | J111: =IF(ISERROR(INDIRECT(CONCATENATE($B111,"!D23"))),"",INDIRECT(CONCATENATE($B111,"!D23"))) -> N/A | M111: =IF(ISERROR(INDIRECT(CONCATENATE($B111,"!D21"))),"",INDIRECT(CONCATENATE($B111,"!D21"))) -> 1.746689578 | N111: =IF(ISERROR(INDIRECT(CONCATENATE($B111,"!E16"))),"",INDIRECT(CONCATENATE($B111,"!E16"))) -> 98.24571094 | O111: =IF(ISERROR(INDIRECT(CONCATENATE($B111,"!E23"))),"",INDIRECT(CONCATENATE($B111,"!E23"))) -> N/A | R111: =IF(ISERROR(INDIRECT(CONCATENATE($B111,"!E21"))),"",INDIRECT(CONCATENATE($B111,"!E21"))) -> 1.621232864 | S111: =IF(ISERROR(INDIRECT(CONCATENATE($B111,"!F16"))),"",INDIRECT(CONCATENATE($B111,"!F16"))) -> 98.88286416 | T111: =IF(ISERROR(INDIRECT(CONCATENATE($B111,"!F23"))),"",INDIRECT(CONCATENATE($B111,"!F23"))) -> N/A | W111: =IF(ISERROR(INDIRECT(CONCATENATE($B111,"!F21"))),"",INDIRECT(CONCATENATE($B111,"!F21"))) -> 1.050691627 | X111: =IF(ISERROR(INDIRECT(CONCATENATE($B111,"!G16"))),"",INDIRECT(CONCATENATE($B111,"!G16"))) -> 99.79184546 | Y111: =IF(ISERROR(INDIRECT(CONCATENATE($B111,"!G23"))),"",INDIRECT(CONCATENATE($B111,"!G23"))) -> N/A | AB111: =IF(ISERROR(INDIRECT(CONCATENATE($B111,"!G221"))),"",INDIRECT(CONCATENATE($B111,"!G21"))) -> 0.1916767959
B112: MICS19 | C112: 2019 | D112: =IF(ISERROR(INDIRECT(CONCATENATE($B112,"!C16"))),"",INDIRECT(CONCATENATE($B112,"!C16"))) -> 94.99280214 | E112: =IF(ISERROR(INDIRECT(CONCATENATE($B112,"!C23"))),"",INDIRECT(CONCATENATE($B112,"!C23"))) -> 99.14802383 | H112: =IF(ISERROR(INDIRECT(CONCATENATE($B112,"!C21"))),"",INDIRECT(CONCATENATE($B112,"!C21"))) -> 2.566429257 | I112: =IF(ISERROR(INDIRECT(CONCATENATE($B112,"!D16"))),"",INDIRECT(CONCATENATE($B112,"!D16"))) -> 98.81917453 | J112: =IF(ISERROR(INDIRECT(CONCATENATE($B112,"!D23"))),"",INDIRECT(CONCATENATE($B112,"!D23"))) -> 99.58728212 | M112: =IF(ISERROR(INDIRECT(CONCATENATE($B112,"!D21"))),"",INDIRECT(CONCATENATE($B112,"!D21"))) -> 0.974255411 | N112: =IF(ISERROR(INDIRECT(CONCATENATE($B112,"!E16"))),"",INDIRECT(CONCATENATE($B112,"!E16"))) -> 98.98204917 | O112: =IF(ISERROR(INDIRECT(CONCATENATE($B112,"!E23"))),"",INDIRECT(CONCATENATE($B112,"!E23"))) -> 99.58788166 | R112: =IF(ISERROR(INDIRECT(CONCATENATE($B112,"!E21"))),"",INDIRECT(CONCATENATE($B112,"!E21"))) -> 0.767046731 | S112: =IF(ISERROR(INDIRECT(CONCATENATE($B112,"!F16"))),"",INDIRECT(CONCATENATE($B112,"!F16"))) -> 99.50988173 | T112: =IF(ISERROR(INDIRECT(CONCATENATE($B112,"!F23"))),"",INDIRECT(CONCATENATE($B112,"!F23"))) -> 99.59224368 | W112: =IF(ISERROR(INDIRECT(CONCATENATE($B112,"!F21"))),"",INDIRECT(CONCATENATE($B112,"!F21"))) -> 0.3438606542 | X112: =IF(ISERROR(INDIRECT(CONCATENATE($B112,"!G16"))),"",INDIRECT(CONCATENATE($B112,"!G16"))) -> 99.83832147 | Y112: =IF(ISERROR(INDIRECT(CONCATENATE($B112,"!G23"))),"",INDIRECT(CONCATENATE($B112,"!G23"))) -> 99.69551173 | AB112: =IF(ISERROR(INDIRECT(CONCATENATE($B112,"!G221"))),"",INDIRECT(CONCATENATE($B112,"!G21"))) -> 0.09452926101
B118: =CONCATENATE("National use of drinking water sources, ",C99,"–",C100) -> National use of drinking water sources, 2000–2020 | S118: Data points used for regression
E153: =IF(ISERROR(INDIRECT(CONCATENATE($B153,"!M18"))),"",INDIRECT(CONCATENATE($B153,"!M18"))) ->  | F153: =IF(ISERROR(INDIRECT(CONCATENATE($B153,"!M19"))),"",INDIRECT(CONCATENATE($B153,"!M19"))) ->  | G153: =IF(ISERROR(INDIRECT(CONCATENATE($B153,"!M20"))),"",INDIRECT(CONCATENATE($B153,"!M20"))) ->  | H153: =IF(ISERROR(INDIRECT(CONCATENATE($B153,"!M21"))),"",INDIRECT(CONCATENATE($B153,"!M21"))) ->  | J153: =IF(ISERROR(INDIRECT(CONCATENATE($B153,"!N18"))),"",INDIRECT(CONCATENATE($B153,"!N18"))) ->  | K153: =IF(ISERROR(INDIRECT(CONCATENATE($B153,"!N19"))),"",INDIRECT(CONCATENATE($B153,"!N19"))) ->  | L153: =IF(ISERROR(INDIRECT(CONCATENATE($B153,"!N20"))),"",INDIRECT(CONCATENATE($B153,"!N20"))) ->  | M153: =IF(ISERROR(INDIRECT(CONCATENATE($B153,"!N21"))),"",INDIRECT(CONCATENATE($B153,"!N21"))) ->  | O153: =IF(ISERROR(INDIRECT(CONCATENATE($B153,"!O18"))),"",INDIRECT(CONCATENATE($B153,"!O18"))) ->  | P153: =IF(ISERROR(INDIRECT(CONCATENATE($B153,"!O19"))),"",INDIRECT(CONCATENATE($B153,"!O19"))) ->  | Q153: =IF(ISERROR(INDIRECT(CONCATENATE($B153,"!O20"))),"",INDIRECT(CONCATENATE($B153,"!O20"))) ->  | R153: =IF(ISERROR(INDIRECT(CONCATENATE($B153,"!O21"))),"",INDIRECT(CONCATENATE($B153,"!O21"))) ->  | T153: =IF(ISERROR(INDIRECT(CONCATENATE($B153,"!P18"))),"",INDIRECT(CONCATENATE($B153,"!P18"))) ->  | U153: =IF(ISERROR(INDIRECT(CONCATENATE($B153,"!P19"))),"",INDIRECT(CONCATENATE($B153,"!P19"))) ->  | V153: =IF(ISERROR(INDIRECT(CONCATENATE($B153,"!P20"))),"",INDIRECT(CONCATENATE($B153,"!P20"))) ->  | W153: =IF(ISERROR(INDIRECT(CONCATENATE($B153,"!P21"))),"",INDIRECT(CONCATENATE($B153,"!P21"))) ->  | Y153: =IF(ISERROR(INDIRECT(CONCATENATE($B153,"!Q18"))),"",INDIRECT(CONCATENATE($B153,"!Q18"))) ->  | Z153: =IF(ISERROR(INDIRECT(CONCATENATE($B153,"!Q19"))),"",INDIRECT(CONCATENATE($B153,"!Q19"))) ->  | AA153: =IF(ISERROR(INDIRECT(CONCATENATE($B153,"!Q20"))),"",INDIRECT(CONCATENATE($B153,"!Q20"))) ->  | AB153: =IF(ISERROR(INDIRECT(CONCATENATE($B153,"!Q21"))),"",INDIRECT(CONCATENATE($B153,"!Q1"))) -> 
A197: URBAN | D197: Poorest | I197: Poor | N197: Middle | S197: Rich | X197: Richest
D198: Improved | E198: Basic | F198: Limited | G198: Unimproved | H198: Surface water | I198: Improved | J198: Basic | K198: Limited | L198: Unimproved | M198: Surface water | N198: Improved | O198: Basic | P198: Limited | Q198: Unimproved | R198: Surface water | S198: Improved | T198: Basic | U198: Limited | V198: Unimproved | W198: Surface water | X198: Improved | Y198: Basic | Z198: Limited | AA198: Unimproved | AB198: Surface water
A199: Forecast period: | C199: 2000 | D199: =IF((D201+H201)>100,D201*100/(D201+H201),D201) -> 98.1732142 | E199: =D199*AVERAGEIF(E205:E216,">0")/100 -> 97.01440009 | F199: =D199*(100-AVERAGEIF(E205:E216,">0"))/100 -> 1.158814109 | G199: =100-(E199+F199+H199) -> 0 | H199: =IF((D201+H201)>100,H201*100/(D201+H201),H201) -> 1.826785799 | I199: =IF((I201+M201)>100,I201*100/(I201+M201),I201) -> 99.09083803 | J199: =I199*AVERAGEIF(J205:J216,">0")/100 -> 98.52996889 | K199: =I199*(100-AVERAGEIF(J205:J216,">0"))/100 -> 0.5608691423 | L199: =100-(J199+K199+M199) -> 0.08659926532 | M199: =IF((I201+M201)>100,M201*100/(I201+M201),M201) -> 0.8225627054 | N199: =IF((N201+R201)>100,N201*100/(N201+R201),N201) -> 99.26675355 | O199: =N199*AVERAGEIF(O205:O216,">0")/100 -> 98.69239792 | P199: =N199*(100-AVERAGEIF(O205:O216,">0"))/100 -> 0.5743556304 | Q199: =100-(O199+P199+R199) -> 0.2055720106 | R199: =IF((N201+R201)>100,R201*100/(N201+R201),R201) -> 0.5276744369 | S199: =IF((S201+W201)>100,S201*100/(S201+W201),S201) -> 99.74847831 | T199: =S199*AVERAGEIF(T205:T216,">0")/100 -> 99.13127018 | U199: =S199*(100-AVERAGEIF(T205:T216,">0"))/100 -> 0.6172081304 | V199: =100-(T199+U199+W199) -> 0.07618084393 | W199: =IF((S201+W201)>100,W201*100/(S201+W201),W201) -> 0.1753408456 | X199: =IF((X201+AB201)>100,X201*100/(X201+AB201),X201) -> 99.94373645 | Y199: =X199*AVERAGEIF(Y205:Y216,">0")/100 -> 99.64867329 | Z199: =X199*(100-AVERAGEIF(Y205:Y216,">0"))/100 -> 0.2950631574 | AA199: =100-(Y199+Z199+AB199) -> 0.05626354909 | AB199: =IF((X201+AB201)>100,AB201*100/(X201+AB201),AB201) -> 0
C200: 2020 | D200: =IF((D202+H202)>100,D202*100/(D202+H202),D202) -> 98.05289684 | E200: =D200*AVERAGEIF(E205:E216,">0")/100 -> 96.89550293 | F200: =D200*(100-AVERAGEIF(E205:E216,">0"))/100 -> 1.15739391 | G200: =100-(E200+F200+H200) -> 1.200844858 | H200: =IF((D202+H202)>100,H202*100/(D202+H202),H202) -> 0.7462582989 | I200: =IF((I202+M202)>100,I202*100/(I202+M202),I202) -> 99.57340616 | J200: =I200*AVERAGEIF(J205:J216,">0")/100 -> 99.00980561 | K200: =I200*(100-AVERAGEIF(J205:J216,">0"))/100 -> 0.563600551 | L200: =100-(J200+K200+M200) -> 0.3088783199 | M200: =IF((I202+M202)>100,M202*100/(I202+M202),M202) -> 0.1177155158 | N200: =IF((N202+R202)>100,N202*100/(N202+R202),N202) -> 99.87161655 | O200: =N200*AVERAGEIF(O205:O216,">0")/100 -> 99.29376119 | P200: =N200*(100-AVERAGEIF(O205:O216,">0"))/100 -> 0.5778553566 | Q200: =100-(O200+P200+R200) -> 0.06596645282 | R200: =IF((N202+R202)>100,R202*100/(N202+R202),R202) -> 0.06241700094 | S200: =IF((S202+W202)>100,S202*100/(S202+W202),S202) -> 99.86909506 | T200: =S200*AVERAGEIF(T205:T216,">0")/100 -> 99.25114059 | U200: =S200*(100-AVERAGEIF(T205:T216,">0"))/100 -> 0.617954464 | V200: =100-(T200+U200+W200) -> 0.06819819207 | W200: =IF((S202+W202)>100,W202*100/(S202+W202),W202) -> 0.06270674906 | X200: =IF((X202+AB202)>100,X202*100/(X202+AB202),X202) -> 99.99518113 | Y200: =X200*AVERAGEIF(Y205:Y216,">0")/100 -> 99.69996609 | Z200: =X200*(100-AVERAGEIF(Y205:Y216,">0"))/100 -> 0.2952150371 | AA200: =100-(Y200+Z200+AB200) -> 0.004818871293 | AB200: =IF((X202+AB202)>100,AB202*100/(X202+AB202),AB202) -> 0
A201: Regression period: | C201: =MinRegYear(C199,C205:C216) -> 2002 | D201: =IF(MAX(C205:C216)-MIN(C205:C216)<5,AVERAGEIF(C205:C216,">0",D205:D216), IF(FORECAST($C201,D$205:D$216,$C$205:$C$216)<0,0, IF(FORECAST($C201,D$205:D$216,$C$205:$C$216)>100,100, FORECAST($C201,D$205:D$216,$C$205:$C$216)))) -> 98.33160657 | H201: =IF(MAX(C205:C216)-MIN(C205:C216)<5,AVERAGEIF(C205:C216,">0",H205:H216), IF(FORECAST($C201,H$205:H$216,$C$205:$C$216)<0,0, IF(FORECAST($C201,H$205:H$216,$C$205:$C$216)>100,100, FORECAST($C201,H$205:H$216,$C$205:$C$216)))) -> 1.829733129 | I201: =IF(MAX(C205:C216)-MIN(C205:C216)<5,AVERAGEIF(C205:C216,">0",I205:I216), IF(FORECAST($C201,I$205:I$216,$C$205:$C$216)<0,0, IF(FORECAST($C201,I$205:I$216,$C$205:$C$216)>100,100, FORECAST($C201,I$205:I$216,$C$205:$C$216)))) -> 99.09083803 | M201: =IF(MAX(C205:C216)-MIN(C205:C216)<5,AVERAGEIF(C205:C216,">0",M205:M216), IF(FORECAST($C201,M$205:M$216,$C$205:$C$216)<0,0, IF(FORECAST($C201,M$205:M$216,$C$205:$C$216)>100,100, FORECAST($C201,M$205:M$216,$C$205:$C$216)))) -> 0.8225627054 | N201: =IF(MAX(C205:C216)-MIN(C205:C216)<5,AVERAGEIF(C205:C216,">0",N205:N216), IF(FORECAST($C201,N$205:N$216,$C$205:$C$216)<0,0, IF(FORECAST($C201,N$205:N$216,$C$205:$C$216)>100,100, FORECAST($C201,N$205:N$216,$C$205:$C$216)))) -> 99.26675355 | R201: =IF(MAX(C205:C216)-MIN(C205:C216)<5,AVERAGEIF(C205:C216,">0",R205:R216), IF(FORECAST($C201,R$205:R$216,$C$205:$C$216)<0,0, IF(FORECAST($C201,R$205:R$216,$C$205:$C$216)>100,100, FORECAST($C201,R$205:R$216,$C$205:$C$216)))) -> 0.5276744369 | S201: =IF(MAX(C205:C216)-MIN(C205:C216)<5,AVERAGEIF(C205:C216,">0",S205:S216), IF(FORECAST($C201,S$205:S$216,$C$205:$C$216)<0,0, IF(FORECAST($C201,S$205:S$216,$C$205:$C$216)>100,100, FORECAST($C201,S$205:S$216,$C$205:$C$216)))) -> 99.74847831 | W201: =IF(MAX(C205:C216)-MIN(C205:C216)<5,AVERAGEIF(C205:C216,">0",W205:W216), IF(FORECAST($C201,W$205:W$216,$C$205:$C$216)<0,0, IF(FORECAST($C201,W$205:W$216,$C$205:$C$216)>100,100, FORECAST($C201,W$205:W$216,$C$205:$C$216)))) -> 0.1753408456 | X201: =IF(MAX(C205:C216)-MIN(C205:C216)<5,AVERAGEIF(C205:C216,">0",X205:X216), IF(FORECAST($C201,X$205:X$216,$C$205:$C$216)<0,0, IF(FORECAST($C201,X$205:X$216,$C$205:$C$216)>100,100, FORECAST($C201,X$205:X$216,$C$205:$C$216)))) -> 99.94373645 | AB201: =IF(MAX(C205:C216)-MIN(C205:C216)<5,AVERAGEIF(C205:C216,">0",AB205:AB216), IF(FORECAST($C201,AB$205:AB$216,$C$205:$C$216)<0,0, IF(FORECAST($C201,AB$205:AB$216,$C$205:$C$216)>100,100, FORECAST($C201,AB$205:AB$216,$C$205:$C$216)))) -> 0
C202: =MaxRegYear(C200,C205:C216) -> 2020 | D202: =IF(MAX(C205:C216)-MIN(C205:C216)<5,AVERAGEIF(C205:C216,">0",D205:D216), IF(FORECAST($C202,D$205:D$216,$C$205:$C$216)<0,0, IF(FORECAST($C202,D$205:D$216,$C$205:$C$216)>100,100, FORECAST($C202,D$205:D$216,$C$205:$C$216)))) -> 98.05289684 | H202: =IF(MAX(C205:C216)-MIN(C205:C216)<5,AVERAGEIF(C205:C216,">0",H205:H216), IF(FORECAST($C202,H$205:H$216,$C$205:$C$216)<0,0, IF(FORECAST($C202,H$205:H$216,$C$205:$C$216)>100,100, FORECAST($C202,H$205:H$216,$C$205:$C$216)))) -> 0.7462582989 | I202: =IF(MAX(C205:C216)-MIN(C205:C216)<5,AVERAGEIF(C205:C216,">0",I205:I216), IF(FORECAST($C202,I$205:I$216,$C$205:$C$216)<0,0, IF(FORECAST($C202,I$205:I$216,$C$205:$C$216)>100,100, FORECAST($C202,I$205:I$216,$C$205:$C$216)))) -> 99.57340616 | M202: =IF(MAX(C205:C216)-MIN(C205:C216)<5,AVERAGEIF(C205:C216,">0",M205:M216), IF(FORECAST($C202,M$205:M$216,$C$205:$C$216)<0,0, IF(FORECAST($C202,M$205:M$216,$C$205:$C$216)>100,100, FORECAST($C202,M$205:M$216,$C$205:$C$216)))) -> 0.1177155158 | N202: =IF(MAX(C205:C216)-MIN(C205:C216)<5,AVERAGEIF(C205:C216,">0",N205:N216), IF(FORECAST($C202,N$205:N$216,$C$205:$C$216)<0,0, IF(FORECAST($C202,N$205:N$216,$C$205:$C$216)>100,100, FORECAST($C202,N$205:N$216,$C$205:$C$216)))) -> 99.87161655 | R202: =IF(MAX(C205:C216)-MIN(C205:C216)<5,AVERAGEIF(C205:C216,">0",R205:R216), IF(FORECAST($C202,R$205:R$216,$C$205:$C$216)<0,0, IF(FORECAST($C202,R$205:R$216,$C$205:$C$216)>100,100, FORECAST($C202,R$205:R$216,$C$205:$C$216)))) -> 0.06241700094 | S202: =IF(MAX(C205:C216)-MIN(C205:C216)<5,AVERAGEIF(C205:C216,">0",S205:S216), IF(FORECAST($C202,S$205:S$216,$C$205:$C$216)<0,0, IF(FORECAST($C202,S$205:S$216,$C$205:$C$216)>100,100, FORECAST($C202,S$205:S$216,$C$205:$C$216)))) -> 99.86909506 | W202: =IF(MAX(C205:C216)-MIN(C205:C216)<5,AVERAGEIF(C205:C216,">0",W205:W216), IF(FORECAST($C202,W$205:W$216,$C$205:$C$216)<0,0, IF(FORECAST($C202,W$205:W$216,$C$205:$C$216)>100,100, FORECAST($C202,W$205:W$216,$C$205:$C$216)))) -> 0.06270674906 | X202: =IF(MAX(C205:C216)-MIN(C205:C216)<5,AVERAGEIF(C205:C216,">0",X205:X216), IF(FORECAST($C202,X$205:X$216,$C$205:$C$216)<0,0, IF(FORECAST($C202,X$205:X$216,$C$205:$C$216)>100,100, FORECAST($C202,X$205:X$216,$C$205:$C$216)))) -> 99.99518113 | AB202: =IF(MAX(C205:C216)-MIN(C205:C216)<5,AVERAGEIF(C205:C216,">0",AB205:AB216), IF(FORECAST($C202,AB$205:AB$216,$C$205:$C$216)<0,0, IF(FORECAST($C202,AB$205:AB$216,$C$205:$C$216)>100,100, FORECAST($C202,AB$205:AB$216,$C$205:$C$216)))) -> 0
B204: Survey | C204: Year | D204: Improved | E204: % Improved < = 30min | H204: Surface water | I204: Improved | J204: % Improved < = 30min | M204: Surface water | N204: Improved | O204: % Improved < = 30min | R204: Surface water | S204: Improved | T204: % Improved < = 30min | W204: Surface water | X204: Improved | Y204: % Improved < = 30min | AB204: Surface water
B205: DHS04 | C205: 2004 | D205: =IF(ISERROR(INDIRECT(CONCATENATE($B205,"!H16"))),"",INDIRECT(CONCATENATE($B205,"!H16"))) -> 97.46869898 | E205: =IF(ISERROR(INDIRECT(CONCATENATE($B205,"!H23"))),"",INDIRECT(CONCATENATE($B205,"!H23"))) -> N/A | H205: =IF(ISERROR(INDIRECT(CONCATENATE($B205,"!H21"))),"",INDIRECT(CONCATENATE($B205,"!H21"))) -> 2.504617357 | I205: =IF(ISERROR(INDIRECT(CONCATENATE($B205,"!I16"))),"",INDIRECT(CONCATENATE($B205,"!I16"))) -> 99.10113698 | J205: =IF(ISERROR(INDIRECT(CONCATENATE($B205,"!I23"))),"",INDIRECT(CONCATENATE($B205,"!I23"))) -> N/A | M205: =IF(ISERROR(INDIRECT(CONCATENATE($B205,"!I21"))),"",INDIRECT(CONCATENATE($B205,"!I21"))) -> 0.898863022 | N205: =IF(ISERROR(INDIRECT(CONCATENATE($B205,"!J16"))),"",INDIRECT(CONCATENATE($B205,"!J16"))) -> 99.49284406 | O205: =IF(ISERROR(INDIRECT(CONCATENATE($B205,"!J23"))),"",INDIRECT(CONCATENATE($B205,"!J23"))) -> N/A | R205: =IF(ISERROR(INDIRECT(CONCATENATE($B205,"!J21"))),"",INDIRECT(CONCATENATE($B205,"!J21"))) -> 0.5071559397 | S205: =IF(ISERROR(INDIRECT(CONCATENATE($B205,"!K16"))),"",INDIRECT(CONCATENATE($B205,"!K16"))) -> 99.77646677 | T205: =IF(ISERROR(INDIRECT(CONCATENATE($B205,"!K23"))),"",INDIRECT(CONCATENATE($B205,"!K23"))) -> N/A | W205: =IF(ISERROR(INDIRECT(CONCATENATE($B205,"!K21"))),"",INDIRECT(CONCATENATE($B205,"!K21"))) -> 0.1938574542 | X205: =IF(ISERROR(INDIRECT(CONCATENATE($B205,"!L16"))),"",INDIRECT(CONCATENATE($B205,"!L16"))) -> 99.88780198 | Y205: =IF(ISERROR(INDIRECT(CONCATENATE($B205,"!L23"))),"",INDIRECT(CONCATENATE($B205,"!L23"))) -> N/A | AB205: =IF(ISERROR(INDIRECT(CONCATENATE($B205,"!L221"))),"",INDIRECT(CONCATENATE($B205,"!L21"))) -> 0
B206: MICS06 | C206: 2006 | D206: 98.6914219 | E206: 99.3400849 | H206: 1.043994792 | I206: 98.8121203 | J206: 99.4743638 | M206: 0.8621717675 | N206: 98.75531786 | O206: 99.70277678 | R206: 0.6326048859 | S206: 99.63186618 | T206: 99.95703547 | W206: 0.1688674621 | X206: 99.98889793 | Y206: 100 | AB206: 0
B207: DHS07 | C207: 2007 | D207: 98.60352076 | E207: N/A | H207: 0.8263787226 | I207: 99.66784455 | J207: N/A | M207: 0.2299247903 | N207: 99.7859015 | O207: N/A | R207: 0.2140984974 | S207: 100 | T207: N/A | W207: 0 | X207: 100 | Y207: N/A | AB207: 0
B208: DHS11 | C208: 2011 | D208: 98.67266883 | E208: 98.78840831 | H208: 1.282332551 | I208: 99.28340436 | J208: 99.5099593 | M208: 0.5486572323 | N208: 99.85503116 | O208: 99.66820161 | R208: 0.1450095238 | S208: 99.81967154 | T208: 99.57530934 | W208: 0.1803284631 | X208: 100 | Y208: 99.64036 | AB208: 0
B209: MICS13 | C209: 2013 | D209: 97.39842896 | E209: 98.18036049 | H209: 1.911784737 | I209: 99.26689747 | J209: 99.34033805 | M209: 0.4475839324 | N209: 99.45685104 | O209: 99.7515146 | R209: 0.2735566262 | S209: 99.7279518 | T209: 99.85792025 | W209: 0.2725849758 | X209: 99.94337914 | Y209: 99.90814884 | AB209: 0
B210: DHS14 | C210: 2014 | D210: 98.9611834 | E210: 98.22107261 | H210: 1.039974113 | I210: 99.71360694 | J210: 99.44808516 | M210: 0.1347962133 | N210: 99.80017016 | O210: 98.43204751 | R210: 0.2000298264 | S210: 99.73585304 | T210: 98.01572558 | W210: 0 | X210: 99.96173418 | Y210: 99.11353593 | AB210: 0
B211: DHS18 | C211: 2018 | D211: 97.54507529 | E211: N/A | H211: 0.3682866293 | I211: 99.46899951 | J211: N/A | M211: 0.2144329316 | N211: 99.74324163 | O211: N/A | R211: 0.2567583737 | S211: 99.82861977 | T211: N/A | W211: 0.1115222242 | X211: 100 | Y211: N/A | AB211: 0
B212: MICS19 | C212: 2019 | D212: 98.13508005 | E212: 99.56818834 | H212: 1.085824628 | I212: 99.45020402 | J212: 99.39717801 | M212: 0.2680502868 | N212: 99.79853699 | O212: 99.55246858 | R212: 0.02776153678 | S212: 99.97666811 | T212: 99.50018708 | W212: 0 | X212: 99.98528925 | Y212: 99.86180891 | AB212: 0
B218: =CONCATENATE("Urban use of drinking water sources, ",C199,"–",C200) -> Urban use of drinking water sources, 2000–2020 | S218: Data points used for regression
E253: =IF(ISERROR(INDIRECT(CONCATENATE($B253,"!M18"))),"",INDIRECT(CONCATENATE($B253,"!M18"))) ->  | F253: =IF(ISERROR(INDIRECT(CONCATENATE($B253,"!M19"))),"",INDIRECT(CONCATENATE($B253,"!M19"))) ->  | G253: =IF(ISERROR(INDIRECT(CONCATENATE($B253,"!M20"))),"",INDIRECT(CONCATENATE($B253,"!M20"))) ->  | H253: =IF(ISERROR(INDIRECT(CONCATENATE($B253,"!M21"))),"",INDIRECT(CONCATENATE($B253,"!M21"))) ->  | J253: =IF(ISERROR(INDIRECT(CONCATENATE($B253,"!N18"))),"",INDIRECT(CONCATENATE($B253,"!N18"))) ->  | K253: =IF(ISERROR(INDIRECT(CONCATENATE($B253,"!N19"))),"",INDIRECT(CONCATENATE($B253,"!N19"))) ->  | L253: =IF(ISERROR(INDIRECT(CONCATENATE($B253,"!N20"))),"",INDIRECT(CONCATENATE($B253,"!N20"))) ->  | M253: =IF(ISERROR(INDIRECT(CONCATENATE($B253,"!N21"))),"",INDIRECT(CONCATENATE($B253,"!N21"))) ->  | O253: =IF(ISERROR(INDIRECT(CONCATENATE($B253,"!O18"))),"",INDIRECT(CONCATENATE($B253,"!O18"))) ->  | P253: =IF(ISERROR(INDIRECT(CONCATENATE($B253,"!O19"))),"",INDIRECT(CONCATENATE($B253,"!O19"))) ->  | Q253: =IF(ISERROR(INDIRECT(CONCATENATE($B253,"!O20"))),"",INDIRECT(CONCATENATE($B253,"!O20"))) ->  | R253: =IF(ISERROR(INDIRECT(CONCATENATE($B253,"!O21"))),"",INDIRECT(CONCATENATE($B253,"!O21"))) ->  | T253: =IF(ISERROR(INDIRECT(CONCATENATE($B253,"!P18"))),"",INDIRECT(CONCATENATE($B253,"!P18"))) ->  | U253: =IF(ISERROR(INDIRECT(CONCATENATE($B253,"!P19"))),"",INDIRECT(CONCATENATE($B253,"!P19"))) ->  | V253: =IF(ISERROR(INDIRECT(CONCATENATE($B253,"!P20"))),"",INDIRECT(CONCATENATE($B253,"!P20"))) ->  | W253: =IF(ISERROR(INDIRECT(CONCATENATE($B253,"!P21"))),"",INDIRECT(CONCATENATE($B253,"!P21"))) ->  | Y253: =IF(ISERROR(INDIRECT(CONCATENATE($B253,"!Q18"))),"",INDIRECT(CONCATENATE($B253,"!Q18"))) ->  | Z253: =IF(ISERROR(INDIRECT(CONCATENATE($B253,"!Q19"))),"",INDIRECT(CONCATENATE($B253,"!Q19"))) ->  | AA253: =IF(ISERROR(INDIRECT(CONCATENATE($B253,"!Q20"))),"",INDIRECT(CONCATENATE($B253,"!Q20"))) ->  | AB253: =IF(ISERROR(INDIRECT(CONCATENATE($B253,"!Q21"))),"",INDIRECT(CONCATENATE($B253,"!Q1"))) -> 
E254: =IF(ISERROR(INDIRECT(CONCATENATE($B254,"!M18"))),"",INDIRECT(CONCATENATE($B254,"!M18"))) ->  | F254: =IF(ISERROR(INDIRECT(CONCATENATE($B254,"!M19"))),"",INDIRECT(CONCATENATE($B254,"!M19"))) ->  | G254: =IF(ISERROR(INDIRECT(CONCATENATE($B254,"!M20"))),"",INDIRECT(CONCATENATE($B254,"!M20"))) ->  | H254: =IF(ISERROR(INDIRECT(CONCATENATE($B254,"!M21"))),"",INDIRECT(CONCATENATE($B254,"!M21"))) ->  | J254: =IF(ISERROR(INDIRECT(CONCATENATE($B254,"!N18"))),"",INDIRECT(CONCATENATE($B254,"!N18"))) ->  | K254: =IF(ISERROR(INDIRECT(CONCATENATE($B254,"!N19"))),"",INDIRECT(CONCATENATE($B254,"!N19"))) ->  | L254: =IF(ISERROR(INDIRECT(CONCATENATE($B254,"!N20"))),"",INDIRECT(CONCATENATE($B254,"!N20"))) ->  | M254: =IF(ISERROR(INDIRECT(CONCATENATE($B254,"!N21"))),"",INDIRECT(CONCATENATE($B254,"!N21"))) ->  | O254: =IF(ISERROR(INDIRECT(CONCATENATE($B254,"!O18"))),"",INDIRECT(CONCATENATE($B254,"!O18"))) ->  | P254: =IF(ISERROR(INDIRECT(CONCATENATE($B254,"!O19"))),"",INDIRECT(CONCATENATE($B254,"!O19"))) ->  | Q254: =IF(ISERROR(INDIRECT(CONCATENATE($B254,"!O20"))),"",INDIRECT(CONCATENATE($B254,"!O20"))) ->  | R254: =IF(ISERROR(INDIRECT(CONCATENATE($B254,"!O21"))),"",INDIRECT(CONCATENATE($B254,"!O21"))) ->  | T254: =IF(ISERROR(INDIRECT(CONCATENATE($B254,"!P18"))),"",INDIRECT(CONCATENATE($B254,"!P18"))) ->  | U254: =IF(ISERROR(INDIRECT(CONCATENATE($B254,"!P19"))),"",INDIRECT(CONCATENATE($B254,"!P19"))) ->  | V254: =IF(ISERROR(INDIRECT(CONCATENATE($B254,"!P20"))),"",INDIRECT(CONCATENATE($B254,"!P20"))) ->  | W254: =IF(ISERROR(INDIRECT(CONCATENATE($B254,"!P21"))),"",INDIRECT(CONCATENATE($B254,"!P21"))) ->  | Y254: =IF(ISERROR(INDIRECT(CONCATENATE($B254,"!Q18"))),"",INDIRECT(CONCATENATE($B254,"!Q18"))) ->  | Z254: =IF(ISERROR(INDIRECT(CONCATENATE($B254,"!Q19"))),"",INDIRECT(CONCATENATE($B254,"!Q19"))) ->  | AA254: =IF(ISERROR(INDIRECT(CONCATENATE($B254,"!Q20"))),"",INDIRECT(CONCATENATE($B254,"!Q20"))) ->  | AB254: =IF(ISERROR(INDIRECT(CONCATENATE($B254,"!Q21"))),"",INDIRECT(CONCATENATE($B254,"!Q1"))) -> 
E255: =IF(ISERROR(INDIRECT(CONCATENATE($B255,"!M18"))),"",INDIRECT(CONCATENATE($B255,"!M18"))) ->  | F255: =IF(ISERROR(INDIRECT(CONCATENATE($B255,"!M19"))),"",INDIRECT(CONCATENATE($B255,"!M19"))) ->  | G255: =IF(ISERROR(INDIRECT(CONCATENATE($B255,"!M20"))),"",INDIRECT(CONCATENATE($B255,"!M20"))) ->  | H255: =IF(ISERROR(INDIRECT(CONCATENATE($B255,"!M21"))),"",INDIRECT(CONCATENATE($B255,"!M21"))) ->  | J255: =IF(ISERROR(INDIRECT(CONCATENATE($B255,"!N18"))),"",INDIRECT(CONCATENATE($B255,"!N18"))) ->  | K255: =IF(ISERROR(INDIRECT(CONCATENATE($B255,"!N19"))),"",INDIRECT(CONCATENATE($B255,"!N19"))) ->  | L255: =IF(ISERROR(INDIRECT(CONCATENATE($B255,"!N20"))),"",INDIRECT(CONCATENATE($B255,"!N20"))) ->  | M255: =IF(ISERROR(INDIRECT(CONCATENATE($B255,"!N21"))),"",INDIRECT(CONCATENATE($B255,"!N21"))) ->  | O255: =IF(ISERROR(INDIRECT(CONCATENATE($B255,"!O18"))),"",INDIRECT(CONCATENATE($B255,"!O18"))) ->  | P255: =IF(ISERROR(INDIRECT(CONCATENATE($B255,"!O19"))),"",INDIRECT(CONCATENATE($B255,"!O19"))) ->  | Q255: =IF(ISERROR(INDIRECT(CONCATENATE($B255,"!O20"))),"",INDIRECT(CONCATENATE($B255,"!O20"))) ->  | R255: =IF(ISERROR(INDIRECT(CONCATENATE($B255,"!O21"))),"",INDIRECT(CONCATENATE($B255,"!O21"))) ->  | T255: =IF(ISERROR(INDIRECT(CONCATENATE($B255,"!P18"))),"",INDIRECT(CONCATENATE($B255,"!P18"))) ->  | U255: =IF(ISERROR(INDIRECT(CONCATENATE($B255,"!P19"))),"",INDIRECT(CONCATENATE($B255,"!P19"))) ->  | V255: =IF(ISERROR(INDIRECT(CONCATENATE($B255,"!P20"))),"",INDIRECT(CONCATENATE($B255,"!P20"))) ->  | W255: =IF(ISERROR(INDIRECT(CONCATENATE($B255,"!P21"))),"",INDIRECT(CONCATENATE($B255,"!P21"))) ->  | Y255: =IF(ISERROR(INDIRECT(CONCATENATE($B255,"!Q18"))),"",INDIRECT(CONCATENATE($B255,"!Q18"))) ->  | Z255: =IF(ISERROR(INDIRECT(CONCATENATE($B255,"!Q19"))),"",INDIRECT(CONCATENATE($B255,"!Q19"))) ->  | AA255: =IF(ISERROR(INDIRECT(CONCATENATE($B255,"!Q20"))),"",INDIRECT(CONCATENATE($B255,"!Q20"))) ->  | AB255: =IF(ISERROR(INDIRECT(CONCATENATE($B255,"!Q21"))),"",INDIRECT(CONCATENATE($B255,"!Q1"))) -> 
E256: =IF(ISERROR(INDIRECT(CONCATENATE($B256,"!M18"))),"",INDIRECT(CONCATENATE($B256,"!M18"))) ->  | F256: =IF(ISERROR(INDIRECT(CONCATENATE($B256,"!M19"))),"",INDIRECT(CONCATENATE($B256,"!M19"))) ->  | G256: =IF(ISERROR(INDIRECT(CONCATENATE($B256,"!M20"))),"",INDIRECT(CONCATENATE($B256,"!M20"))) ->  | H256: =IF(ISERROR(INDIRECT(CONCATENATE($B256,"!M21"))),"",INDIRECT(CONCATENATE($B256,"!M21"))) ->  | J256: =IF(ISERROR(INDIRECT(CONCATENATE($B256,"!N18"))),"",INDIRECT(CONCATENATE($B256,"!N18"))) ->  | K256: =IF(ISERROR(INDIRECT(CONCATENATE($B256,"!N19"))),"",INDIRECT(CONCATENATE($B256,"!N19"))) ->  | L256: =IF(ISERROR(INDIRECT(CONCATENATE($B256,"!N20"))),"",INDIRECT(CONCATENATE($B256,"!N20"))) ->  | M256: =IF(ISERROR(INDIRECT(CONCATENATE($B256,"!N21"))),"",INDIRECT(CONCATENATE($B256,"!N21"))) ->  | O256: =IF(ISERROR(INDIRECT(CONCATENATE($B256,"!O18"))),"",INDIRECT(CONCATENATE($B256,"!O18"))) ->  | P256: =IF(ISERROR(INDIRECT(CONCATENATE($B256,"!O19"))),"",INDIRECT(CONCATENATE($B256,"!O19"))) ->  | Q256: =IF(ISERROR(INDIRECT(CONCATENATE($B256,"!O20"))),"",INDIRECT(CONCATENATE($B256,"!O20"))) ->  | R256: =IF(ISERROR(INDIRECT(CONCATENATE($B256,"!O21"))),"",INDIRECT(CONCATENATE($B256,"!O21"))) ->  | T256: =IF(ISERROR(INDIRECT(CONCATENATE($B256,"!P18"))),"",INDIRECT(CONCATENATE($B256,"!P18"))) ->  | U256: =IF(ISERROR(INDIRECT(CONCATENATE($B256,"!P19"))),"",INDIRECT(CONCATENATE($B256,"!P19"))) ->  | V256: =IF(ISERROR(INDIRECT(CONCATENATE($B256,"!P20"))),"",INDIRECT(CONCATENATE($B256,"!P20"))) ->  | W256: =IF(ISERROR(INDIRECT(CONCATENATE($B256,"!P21"))),"",INDIRECT(CONCATENATE($B256,"!P21"))) ->  | Y256: =IF(ISERROR(INDIRECT(CONCATENATE($B256,"!Q18"))),"",INDIRECT(CONCATENATE($B256,"!Q18"))) ->  | Z256: =IF(ISERROR(INDIRECT(CONCATENATE($B256,"!Q19"))),"",INDIRECT(CONCATENATE($B256,"!Q19"))) ->  | AA256: =IF(ISERROR(INDIRECT(CONCATENATE($B256,"!Q20"))),"",INDIRECT(CONCATENATE($B256,"!Q20"))) ->  | AB256: =IF(ISERROR(INDIRECT(CONCATENATE($B256,"!Q21"))),"",INDIRECT(CONCATENATE($B256,"!Q1"))) -> 
E257: =IF(ISERROR(INDIRECT(CONCATENATE($B257,"!M18"))),"",INDIRECT(CONCATENATE($B257,"!M18"))) ->  | F257: =IF(ISERROR(INDIRECT(CONCATENATE($B257,"!M19"))),"",INDIRECT(CONCATENATE($B257,"!M19"))) ->  | G257: =IF(ISERROR(INDIRECT(CONCATENATE($B257,"!M20"))),"",INDIRECT(CONCATENATE($B257,"!M20"))) ->  | H257: =IF(ISERROR(INDIRECT(CONCATENATE($B257,"!M21"))),"",INDIRECT(CONCATENATE($B257,"!M21"))) ->  | J257: =IF(ISERROR(INDIRECT(CONCATENATE($B257,"!N18"))),"",INDIRECT(CONCATENATE($B257,"!N18"))) ->  | K257: =IF(ISERROR(INDIRECT(CONCATENATE($B257,"!N19"))),"",INDIRECT(CONCATENATE($B257,"!N19"))) ->  | L257: =IF(ISERROR(INDIRECT(CONCATENATE($B257,"!N20"))),"",INDIRECT(CONCATENATE($B257,"!N20"))) ->  | M257: =IF(ISERROR(INDIRECT(CONCATENATE($B257,"!N21"))),"",INDIRECT(CONCATENATE($B257,"!N21"))) ->  | O257: =IF(ISERROR(INDIRECT(CONCATENATE($B257,"!O18"))),"",INDIRECT(CONCATENATE($B257,"!O18"))) ->  | P257: =IF(ISERROR(INDIRECT(CONCATENATE($B257,"!O19"))),"",INDIRECT(CONCATENATE($B257,"!O19"))) ->  | Q257: =IF(ISERROR(INDIRECT(CONCATENATE($B257,"!O20"))),"",INDIRECT(CONCATENATE($B257,"!O20"))) ->  | R257: =IF(ISERROR(INDIRECT(CONCATENATE($B257,"!O21"))),"",INDIRECT(CONCATENATE($B257,"!O21"))) ->  | T257: =IF(ISERROR(INDIRECT(CONCATENATE($B257,"!P18"))),"",INDIRECT(CONCATENATE($B257,"!P18"))) ->  | U257: =IF(ISERROR(INDIRECT(CONCATENATE($B257,"!P19"))),"",INDIRECT(CONCATENATE($B257,"!P19"))) ->  | V257: =IF(ISERROR(INDIRECT(CONCATENATE($B257,"!P20"))),"",INDIRECT(CONCATENATE($B257,"!P20"))) ->  | W257: =IF(ISERROR(INDIRECT(CONCATENATE($B257,"!P21"))),"",INDIRECT(CONCATENATE($B257,"!P21"))) ->  | Y257: =IF(ISERROR(INDIRECT(CONCATENATE($B257,"!Q18"))),"",INDIRECT(CONCATENATE($B257,"!Q18"))) ->  | Z257: =IF(ISERROR(INDIRECT(CONCATENATE($B257,"!Q19"))),"",INDIRECT(CONCATENATE($B257,"!Q19"))) ->  | AA257: =IF(ISERROR(INDIRECT(CONCATENATE($B257,"!Q20"))),"",INDIRECT(CONCATENATE($B257,"!Q20"))) ->  | AB257: =IF(ISERROR(INDIRECT(CONCATENATE($B257,"!Q21"))),"",INDIRECT(CONCATENATE($B257,"!Q1"))) -> 
A297: RURAL | D297: Poorest | I297: Poor | N297: Middle | S297: Rich | X297: Richest
D298: Improved | E298: Basic | F298: Limited | G298: Unimproved | H298: Surface water | I298: Improved | J298: Basic | K298: Limited | L298: Unimproved | M298: Surface water | N298: Improved | O298: Basic | P298: Limited | Q298: Unimproved | R298: Surface water | S298: Improved | T298: Basic | U298: Limited | V298: Unimproved | W298: Surface water | X298: Improved | Y298: Basic | Z298: Limited | AA298: Unimproved | AB298: Surface water
A299: Forecast period: | C299: 2000 | D299: =IF((D301+H301)>100,D301*100/(D301+H301),D301) -> 96.0740037 | E299: =D299*AVERAGEIF(E305:E316,">0")/100 -> 94.00629298 | F299: =D299*(100-AVERAGEIF(E305:E316,">0"))/100 -> 2.06771072 | G299: =100-(E299+F299+H299) -> 0.5529592523 | H299: =IF((D301+H301)>100,H301*100/(D301+H301),H301) -> 3.373037045 | I299: =IF((I301+M301)>100,I301*100/(I301+M301),I301) -> 95.74887509 | J299: =I299*AVERAGEIF(J305:J316,">0")/100 -> 94.26511341 | K299: =I299*(100-AVERAGEIF(J305:J316,">0"))/100 -> 1.483761682 | L299: =100-(J299+K299+M299) -> 1.195359852 | M299: =IF((I301+M301)>100,M301*100/(I301+M301),M301) -> 3.055765059 | N299: =IF((N301+R301)>100,N301*100/(N301+R301),N301) -> 96.95946261 | O299: =N299*AVERAGEIF(O305:O316,">0")/100 -> 96.09091542 | P299: =N299*(100-AVERAGEIF(O305:O316,">0"))/100 -> 0.8685471862 | Q299: =100-(O299+P299+R299) -> 0.601025029 | R299: =IF((N301+R301)>100,R301*100/(N301+R301),R301) -> 2.439512365 | S299: =IF((S301+W301)>100,S301*100/(S301+W301),S301) -> 96.95455153 | T299: =S299*AVERAGEIF(T305:T316,">0")/100 -> 96.48709109 | U299: =S299*(100-AVERAGEIF(T305:T316,">0"))/100 -> 0.4674604397 | V299: =100-(T299+U299+W299) -> 0.7009883055 | W299: =IF((S301+W301)>100,W301*100/(S301+W301),W301) -> 2.344460165 | X299: =IF((X301+AB301)>100,X301*100/(X301+AB301),X301) -> 97.45744153 | Y299: =X299*AVERAGEIF(Y305:Y316,">0")/100 -> 97.1026262 | Z299: =X299*(100-AVERAGEIF(Y305:Y316,">0"))/100 -> 0.354815331 | AA299: =100-(Y299+Z299+AB299) -> 0.6557438108 | AB299: =IF((X301+AB301)>100,AB301*100/(X301+AB301),AB301) -> 1.886814657
C300: 2020 | D300: =IF((D302+H302)>100,D302*100/(D302+H302),D302) -> 96.38839249 | E300: =D300*AVERAGEIF(E305:E316,">0")/100 -> 94.31391547 | F300: =D300*(100-AVERAGEIF(E305:E316,">0"))/100 -> 2.074477015 | G300: =100-(E300+F300+H300) -> 1.911433794 | H300: =IF((D302+H302)>100,H302*100/(D302+H302),H302) -> 1.700173716 | I300: =IF((I302+M302)>100,I302*100/(I302+M302),I302) -> 97.597619 | J300: =I300*AVERAGEIF(J305:J316,">0")/100 -> 96.08520846 | K300: =I300*(100-AVERAGEIF(J305:J316,">0"))/100 -> 1.512410534 | L300: =100-(J300+K300+M300) -> 0.9628196297 | M300: =IF((I302+M302)>100,M302*100/(I302+M302),M302) -> 1.439561373 | N300: =IF((N302+R302)>100,N302*100/(N302+R302),N302) -> 98.17512887 | O300: =N300*AVERAGEIF(O305:O316,">0")/100 -> 97.29569194 | P300: =N300*(100-AVERAGEIF(O305:O316,">0"))/100 -> 0.879436928 | Q300: =100-(O300+P300+R300) -> 0.4160848888 | R300: =IF((N302+R302)>100,R302*100/(N302+R302),R302) -> 1.408786245 | S300: =IF((S302+W302)>100,S302*100/(S302+W302),S302) -> 98.95343226 | T300: =S300*AVERAGEIF(T305:T316,">0")/100 -> 98.47633434 | U300: =S300*(100-AVERAGEIF(T305:T316,">0"))/100 -> 0.4770979209 | V300: =100-(T300+U300+W300) -> 0.227671002 | W300: =IF((S302+W302)>100,W302*100/(S302+W302),W302) -> 0.8188967361 | X300: =IF((X302+AB302)>100,X302*100/(X302+AB302),X302) -> 99.71441362 | Y300: =X300*AVERAGEIF(Y305:Y316,">0")/100 -> 99.35138128 | Z300: =X300*(100-AVERAGEIF(Y305:Y316,">0"))/100 -> 0.3630323361 | AA300: =100-(Y300+Z300+AB300) -> 0 | AB300: =IF((X302+AB302)>100,AB302*100/(X302+AB302),AB302) -> 0.285586384
A301: Regression period: | C301: =MinRegYear(C299,C305:C316) -> 2002 | D301: =IF(MAX(C305:C316)-MIN(C305:C316)<5,AVERAGEIF(C305:C316,">0",D305:D316), IF(FORECAST($C301,D$305:D$316,$C$305:$C$316)<0,0, IF(FORECAST($C301,D$305:D$316,$C$305:$C$316)>100,100, FORECAST($C301,D$305:D$316,$C$305:$C$316)))) -> 96.0740037 | H301: =IF(MAX(C305:C316)-MIN(C305:C316)<5,AVERAGEIF(C305:C316,">0",H305:H316), IF(FORECAST($C301,H$305:H$316,$C$305:$C$316)<0,0, IF(FORECAST($C301,H$305:H$316,$C$305:$C$316)>100,100, FORECAST($C301,H$305:H$316,$C$305:$C$316)))) -> 3.373037045 | I301: =IF(MAX(C305:C316)-MIN(C305:C316)<5,AVERAGEIF(C305:C316,">0",I305:I316), IF(FORECAST($C301,I$305:I$316,$C$305:$C$316)<0,0, IF(FORECAST($C301,I$305:I$316,$C$305:$C$316)>100,100, FORECAST($C301,I$305:I$316,$C$305:$C$316)))) -> 95.74887509 | M301: =IF(MAX(C305:C316)-MIN(C305:C316)<5,AVERAGEIF(C305:C316,">0",M305:M316), IF(FORECAST($C301,M$305:M$316,$C$305:$C$316)<0,0, IF(FORECAST($C301,M$305:M$316,$C$305:$C$316)>100,100, FORECAST($C301,M$305:M$316,$C$305:$C$316)))) -> 3.055765059 | N301: =IF(MAX(C305:C316)-MIN(C305:C316)<5,AVERAGEIF(C305:C316,">0",N305:N316), IF(FORECAST($C301,N$305:N$316,$C$305:$C$316)<0,0, IF(FORECAST($C301,N$305:N$316,$C$305:$C$316)>100,100, FORECAST($C301,N$305:N$316,$C$305:$C$316)))) -> 96.95946261 | R301: =IF(MAX(C305:C316)-MIN(C305:C316)<5,AVERAGEIF(C305:C316,">0",R305:R316), IF(FORECAST($C301,R$305:R$316,$C$305:$C$316)<0,0, IF(FORECAST($C301,R$305:R$316,$C$305:$C$316)>100,100, FORECAST($C301,R$305:R$316,$C$305:$C$316)))) -> 2.439512365 | S301: =IF(MAX(C305:C316)-MIN(C305:C316)<5,AVERAGEIF(C305:C316,">0",S305:S316), IF(FORECAST($C301,S$305:S$316,$C$305:$C$316)<0,0, IF(FORECAST($C301,S$305:S$316,$C$305:$C$316)>100,100, FORECAST($C301,S$305:S$316,$C$305:$C$316)))) -> 96.95455153 | W301: =IF(MAX(C305:C316)-MIN(C305:C316)<5,AVERAGEIF(C305:C316,">0",W305:W316), IF(FORECAST($C301,W$305:W$316,$C$305:$C$316)<0,0, IF(FORECAST($C301,W$305:W$316,$C$305:$C$316)>100,100, FORECAST($C301,W$305:W$316,$C$305:$C$316)))) -> 2.344460165 | X301: =IF(MAX(C305:C316)-MIN(C305:C316)<5,AVERAGEIF(C305:C316,">0",X305:X316), IF(FORECAST($C301,X$305:X$316,$C$305:$C$316)<0,0, IF(FORECAST($C301,X$305:X$316,$C$305:$C$316)>100,100, FORECAST($C301,X$305:X$316,$C$305:$C$316)))) -> 97.45744153 | AB301: =IF(MAX(C305:C316)-MIN(C305:C316)<5,AVERAGEIF(C305:C316,">0",AB305:AB316), IF(FORECAST($C301,AB$305:AB$316,$C$305:$C$316)<0,0, IF(FORECAST($C301,AB$305:AB$316,$C$305:$C$316)>100,100, FORECAST($C301,AB$305:AB$316,$C$305:$C$316)))) -> 1.886814657
C302: =MaxRegYear(C300,C305:C316) -> 2020 | D302: =IF(MAX(C305:C316)-MIN(C305:C316)<5,AVERAGEIF(C305:C316,">0",D305:D316), IF(FORECAST($C302,D$305:D$316,$C$305:$C$316)<0,0, IF(FORECAST($C302,D$305:D$316,$C$305:$C$316)>100,100, FORECAST($C302,D$305:D$316,$C$305:$C$316)))) -> 96.38839249 | H302: =IF(MAX(C305:C316)-MIN(C305:C316)<5,AVERAGEIF(C305:C316,">0",H305:H316), IF(FORECAST($C302,H$305:H$316,$C$305:$C$316)<0,0, IF(FORECAST($C302,H$305:H$316,$C$305:$C$316)>100,100, FORECAST($C302,H$305:H$316,$C$305:$C$316)))) -> 1.700173716 | I302: =IF(MAX(C305:C316)-MIN(C305:C316)<5,AVERAGEIF(C305:C316,">0",I305:I316), IF(FORECAST($C302,I$305:I$316,$C$305:$C$316)<0,0, IF(FORECAST($C302,I$305:I$316,$C$305:$C$316)>100,100, FORECAST($C302,I$305:I$316,$C$305:$C$316)))) -> 97.597619 | M302: =IF(MAX(C305:C316)-MIN(C305:C316)<5,AVERAGEIF(C305:C316,">0",M305:M316), IF(FORECAST($C302,M$305:M$316,$C$305:$C$316)<0,0, IF(FORECAST($C302,M$305:M$316,$C$305:$C$316)>100,100, FORECAST($C302,M$305:M$316,$C$305:$C$316)))) -> 1.439561373 | N302: =IF(MAX(C305:C316)-MIN(C305:C316)<5,AVERAGEIF(C305:C316,">0",N305:N316), IF(FORECAST($C302,N$305:N$316,$C$305:$C$316)<0,0, IF(FORECAST($C302,N$305:N$316,$C$305:$C$316)>100,100, FORECAST($C302,N$305:N$316,$C$305:$C$316)))) -> 98.17512887 | R302: =IF(MAX(C305:C316)-MIN(C305:C316)<5,AVERAGEIF(C305:C316,">0",R305:R316), IF(FORECAST($C302,R$305:R$316,$C$305:$C$316)<0,0, IF(FORECAST($C302,R$305:R$316,$C$305:$C$316)>100,100, FORECAST($C302,R$305:R$316,$C$305:$C$316)))) -> 1.408786245 | S302: =IF(MAX(C305:C316)-MIN(C305:C316)<5,AVERAGEIF(C305:C316,">0",S305:S316), IF(FORECAST($C302,S$305:S$316,$C$305:$C$316)<0,0, IF(FORECAST($C302,S$305:S$316,$C$305:$C$316)>100,100, FORECAST($C302,S$305:S$316,$C$305:$C$316)))) -> 98.95343226 | W302: =IF(MAX(C305:C316)-MIN(C305:C316)<5,AVERAGEIF(C305:C316,">0",W305:W316), IF(FORECAST($C302,W$305:W$316,$C$305:$C$316)<0,0, IF(FORECAST($C302,W$305:W$316,$C$305:$C$316)>100,100, FORECAST($C302,W$305:W$316,$C$305:$C$316)))) -> 0.8188967361 | X302: =IF(MAX(C305:C316)-MIN(C305:C316)<5,AVERAGEIF(C305:C316,">0",X305:X316), IF(FORECAST($C302,X$305:X$316,$C$305:$C$316)<0,0, IF(FORECAST($C302,X$305:X$316,$C$305:$C$316)>100,100, FORECAST($C302,X$305:X$316,$C$305:$C$316)))) -> 99.71509434 | AB302: =IF(MAX(C305:C316)-MIN(C305:C316)<5,AVERAGEIF(C305:C316,">0",AB305:AB316), IF(FORECAST($C302,AB$305:AB$316,$C$305:$C$316)<0,0, IF(FORECAST($C302,AB$305:AB$316,$C$305:$C$316)>100,100, FORECAST($C302,AB$305:AB$316,$C$305:$C$316)))) -> 0.2855883336
B304: Survey | C304: Year | D304: Improved | E304: % Improved < = 30min | H304: Surface water | I304: Improved | J304: % Improved < = 30min | M304: Surface water | N304: Improved | O304: % Improved < = 30min | R304: Surface water | S304: Improved | T304: % Improved < = 30min | W304: Surface water | X304: Improved | Y304: % Improved < = 30min | AB304: Surface water
B305: DHS04 | C305: 2004 | D305: =IF(ISERROR(INDIRECT(CONCATENATE($B305,"!M16"))),"",INDIRECT(CONCATENATE($B305,"!M16"))) -> 95.04349834 | E305: =IF(ISERROR(INDIRECT(CONCATENATE($B305,"!M23"))),"",INDIRECT(CONCATENATE($B305,"!M23"))) -> N/A | H305: =IF(ISERROR(INDIRECT(CONCATENATE($B305,"!M21"))),"",INDIRECT(CONCATENATE($B305,"!M21"))) -> 3.959585289 | I305: =IF(ISERROR(INDIRECT(CONCATENATE($B305,"!N16"))),"",INDIRECT(CONCATENATE($B305,"!N16"))) -> 96.63925068 | J305: =IF(ISERROR(INDIRECT(CONCATENATE($B305,"!N23"))),"",INDIRECT(CONCATENATE($B305,"!N23"))) -> N/A | M305: =IF(ISERROR(INDIRECT(CONCATENATE($B305,"!N21"))),"",INDIRECT(CONCATENATE($B305,"!N21"))) -> 2.653643527 | N305: =IF(ISERROR(INDIRECT(CONCATENATE($B305,"!O16"))),"",INDIRECT(CONCATENATE($B305,"!O16"))) -> 98.09949422 | O305: =IF(ISERROR(INDIRECT(CONCATENATE($B305,"!O23"))),"",INDIRECT(CONCATENATE($B305,"!O23"))) -> N/A | R305: =IF(ISERROR(INDIRECT(CONCATENATE($B305,"!O21"))),"",INDIRECT(CONCATENATE($B305,"!O21"))) -> 1.670629282 | S305: =IF(ISERROR(INDIRECT(CONCATENATE($B305,"!P16"))),"",INDIRECT(CONCATENATE($B305,"!P16"))) -> 98.01528752 | T305: =IF(ISERROR(INDIRECT(CONCATENATE($B305,"!P23"))),"",INDIRECT(CONCATENATE($B305,"!P23"))) -> N/A | W305: =IF(ISERROR(INDIRECT(CONCATENATE($B305,"!P21"))),"",INDIRECT(CONCATENATE($B305,"!P21"))) -> 1.624522903 | X305: =IF(ISERROR(INDIRECT(CONCATENATE($B305,"!Q16"))),"",INDIRECT(CONCATENATE($B305,"!Q16"))) -> 97.73302951 | Y305: =IF(ISERROR(INDIRECT(CONCATENATE($B305,"!Q23"))),"",INDIRECT(CONCATENATE($B305,"!Q23"))) -> N/A | AB305: =IF(ISERROR(INDIRECT(CONCATENATE($B305,"!Q221"))),"",INDIRECT(CONCATENATE($B305,"!Q21"))) -> 1.758820437
B306: MICS06 | C306: 2006 | D306: 95.2529238 | E306: 97.95825046 | H306: 2.978649719 | I306: 96.32443126 | J306: 98.86444698 | M306: 2.578034819 | N306: 96.76186207 | O306: 99.11228003 | R306: 2.599364011 | S306: 97.89350173 | T306: 99.62612417 | W306: 1.689189452 | X306: 98.30368982 | Y306: 99.73787708 | AB306: 1.149416621
B307: DHS07 | C307: 2007 | D307: 96.79782919 | E307: N/A | H307: 2.82922134 | I307: 95.68292024 | J307: N/A | M307: 3.109785148 | N307: 96.04356544 | O307: N/A | R307: 3.238895258 | S307: 95.68930145 | T307: N/A | W307: 3.22712873 | X307: 97.58517517 | Y307: N/A | AB307: 1.894829532
B308: DHS11 | C308: 2011 | D308: 97.47704651 | E308: 97.5833748 | H308: 2.038423058 | I308: 98.32962823 | J308: 98.66240416 | M308: 1.344541437 | N308: 98.8284636 | O308: 99.22609263 | R308: 0.947838777 | S308: 98.17842312 | T308: 99.43817881 | W308: 1.598165707 | X308: 98.50631842 | Y308: 99.59576861 | AB308: 1.186711107
B309: MICS13 | C309: 2013 | D309: 96.44691963 | E309: 96.43926439 | H309: 2.421119553 | I309: 96.72252914 | J309: 97.77948424 | M309: 2.075579965 | N309: 97.58402896 | O309: 98.9442005 | R309: 1.690390617 | S309: 98.6270679 | T309: 99.45015705 | W309: 0.7712605422 | X309: 98.76709949 | Y309: 99.60017245 | AB309: 0.9343413624
B310: DHS14 | C310: 2014 | D310: 97.97551416 | E310: 98.28031512 | H310: 0.9065626533 | I310: 93.30702396 | J310: 97.31234186 | M310: 3.163479624 | N310: 97.22022817 | O310: 98.67395323 | R310: 1.61216233 | S310: 98.02713106 | T310: 99.43855148 | W310: 1.296682407 | X310: 99.45662321 | Y310: 99.52835711 | AB310: 0.3147683489
B311: DHS18 | C311: 2018 | D311: 96.76823834 | E311: N/A | H311: 1.862906698 | I311: 97.98782173 | J311: N/A | M311: 1.717249466 | N311: 97.45850465 | O311: N/A | R311: 2.481489719 | S311: 98.36461039 | T311: N/A | W311: 1.546203298 | X311: 99.19607475 | Y311: N/A | AB311: 0.8039252503
B312: MICS19 | C312: 2019 | D312: 94.15747898 | E312: 98.97776394 | H312: 2.924627325 | I312: 98.8032031 | J312: 99.63312895 | M312: 0.9798353675 | N312: 98.81236684 | O312: 99.56455446 | R312: 0.9233741979 | S312: 99.28080772 | T312: 99.63626908 | W312: 0.5612604706 | X312: 99.64383375 | Y312: 99.71746437 | AB312: 0.2909712333
B318: =CONCATENATE("Rural use of drinking water sources, ",C299,"–",C300) -> Rural use of drinking water sources, 2000–2020 | S318: Data points used for regression

Sheet Sanitation
B4: Summary of trends in use of sanitation facilities by wealth quintile (%)
B5: =IF(ISERROR(INDIRECT(CONCATENATE($B105,"!A2"))),"",INDIRECT(CONCATENATE($B105,"!A2"))) -> Bangladesh
B7: =B118 -> National use of sanitation facilities, 2000–2020 | J7: =B218 -> Urban use of sanitation facilities, 2000–2020 | R7: =B318 -> Rural use of sanitation facilities, 2000–2020
B31: =IF(ISERROR(INDIRECT(CONCATENATE($B105,"!A2"))),"",INDIRECT(CONCATENATE($B105,"!A2"))) -> Bangladesh | F31: Poorest | J31: Poor | N31: Middle | R31: Rich | V31: Richest
F32: Basic | G32: Limited | H32: Unimproved | I32: Open defecation | J32: Basic | K32: Limited | L32: Unimproved | M32: Open defecation | N32: Basic | O32: Limited | P32: Unimproved | Q32: Open defecation | R32: Basic | S32: Limited | T32: Unimproved | U32: Open defecation | V32: Basic | W32: Limited | X32: Unimproved | Y32: Open defecation
B33: NATIONAL | D33: Estimate | E33: =C99 -> 2000 | F33: =E99 -> 5.466216519 | G33: =F99 -> 3.992098127 | H33: 63.56538885 | I33: 26.9762965 | J33: =J99 -> 10.23626868 | K33: =K99 -> 5.563519491 | L33: 68.17976815 | M33: 16.02044368 | N33: =O99 -> 18.53456944 | O33: =P99 -> 8.089766404 | P33: 64.78849163 | Q33: 8.58717253 | R33: =T99 -> 30.45133708 | S33: =U99 -> 13.70343553 | T33: 52.71182985 | U33: 3.133397538 | V33: =Y99 -> 64.76659035 | W33: =Z99 -> 14.7732862 | X33: 20.20321214 | Y33: 0.2569112979
E34: =C100 -> 2020 | F34: =E100 -> 34.34553104 | G34: 25.08329658 | H34: 38.88027965 | I34: 1.690892736 | J34: =J100 -> 47.63122425 | K34: 25.88807043 | L34: 26.48070533 | M34: 0 | N34: =O100 -> 60.69391648 | O34: 26.49101767 | P34: 12.81506585 | Q34: 0 | R34: =T100 -> 66.70150243 | S34: 30.01640735 | T34: 3.282090219 | U34: 0 | V34: =Y100 -> 78.02009019 | W34: 17.79641503 | X34: 4.183494778 | Y34: 0
B36: URBAN | D36: Estimate | E36: =C199 -> 2000 | F36: =E199 -> 13.0618884 | G36: =F199 -> 10.99193734 | H36: 63.08310145 | I36: 12.86307281 | J36: =J199 -> 20.07045543 | K36: =K199 -> 19.22398338 | L36: 56.88307869 | M36: 3.822482494 | N36: =O199 -> 29.41164848 | O36: =P199 -> 30.33991888 | P36: 39.43107659 | Q36: 0.8173560588 | R36: =T199 -> 57.33126021 | S36: =U199 -> 22.07526189 | T36: 20.51384597 | U36: 0.07963192949 | V36: =Y199 -> 90.81851669 | W36: =Z199 -> 4.419967688 | X36: 4.761515627 | Y36: 0
E37: =C200 -> 2020 | F37: =E200 -> 40.30663624 | G37: 33.91913988 | H37: 25.77422388 | I37: 0 | J37: =J200 -> 46.21897358 | K37: 44.26968702 | L37: 9.511339402 | M37: 0 | N37: =O200 -> 46.22530965 | O37: 47.68424136 | P37: 6.090448995 | Q37: 0 | R37: =T200 -> 67.20335096 | S37: 25.87648635 | T37: 6.920162695 | U37: 0 | V37: =Y200 -> 87.24506238 | W37: 4.246054337 | X37: 8.508883279 | Y37: 0
B39: RURAL | D39: Estimate | E39: =C299 -> 2000 | F39: =E299 -> 4.412378282 | G39: =F299 -> 3.205139248 | H39: 63.16589103 | I39: 29.21659144 | J39: =J299 -> 8.459622137 | K39: =K299 -> 4.884889076 | L39: 67.64190967 | M39: 19.01357911 | N39: =O299 -> 15.60278002 | O39: =P299 -> 6.707584782 | P39: 66.66131351 | Q39: 11.02832168 | R39: =T299 -> 23.43505415 | S39: =U299 -> 8.21041959 | T39: 62.22932249 | U39: 6.125203767 | V39: =Y299 -> 51.64509997 | W39: =Z299 -> 10.43181835 | X39: 36.73720584 | Y39: 1.185875843
E40: =C300 -> 2020 | F40: =E300 -> 33.56577496 | G40: 24.3820851 | H40: 40.1096972 | I40: 1.942442739 | J40: =J300 -> 43.78975267 | K40: 25.28577293 | L40: 30.9192119 | M40: 0.005262500389 | N40: =O300 -> 56.58734051 | O40: 24.32671508 | P40: 19.08594441 | Q40: 0 | R40: =T300 -> 69.0075669 | S40: 24.17664902 | T40: 6.815784076 | U40: 0 | V40: =Y300 -> 83.19533471 | W40: 16.80466529 | X40: 0 | Y40: 0
A97: NATIONAL | D97: Poorest | I97: Poor | N97: Middle | S97: Rich | X97: Richest
D98: Improved | E98: Basic | F98: Limited | G98: Unimproved | H98: Open defecation | I98: Improved | J98: Basic | K98: Limited | L98: Unimproved | M98: Open defecation | N98: Improved | O98: Basic | P98: Limited | Q98: Unimproved | R98: Open defecation | S98: Improved | T98: Basic | U98: Limited | V98: Unimproved | W98: Open defecation | X98: Improved | Y98: Basic | Z98: Limited | AA98: Unimproved | AB98: Open defecation
A99: Forecast period: | C99: =MinBase(C105:C116) -> 2000 | D99: =IF((D101+H101)>100,D101*100/(D101+H101),D101) -> 9.458314646 | E99: =D99*AVERAGEIF(E105:E116,">0")/100 -> 5.466216519 | F99: =D99*(100-AVERAGEIF(E105:E116,">0"))/100 -> 3.992098127 | G99: =100-(E99+F99+H99) -> 63.56538885 | H99: =IF((D101+H101)>100,H101*100/(D101+H101),H101) -> 26.9762965 | I99: =IF((I101+M101)>100,I101*100/(I101+M101),I101) -> 15.79978817 | J99: =I99*AVERAGEIF(J105:J116,">0")/100 -> 10.23626868 | K99: =I99*(100-AVERAGEIF(J105:J116,">0"))/100 -> 5.563519491 | L99: =100-(J99+K99+M99) -> 68.17976815 | M99: =IF((I101+M101)>100,M101*100/(I101+M101),M101) -> 16.02044368 | N99: =IF((N101+R101)>100,N101*100/(N101+R101),N101) -> 26.62433584 | O99: =N99*AVERAGEIF(O105:O116,">0")/100 -> 18.53456944 | P99: =N99*(100-AVERAGEIF(O105:O116,">0"))/100 -> 8.089766404 | Q99: =100-(O99+P99+R99) -> 64.78849163 | R99: =IF((N101+R101)>100,R101*100/(N101+R101),R101) -> 8.58717253 | S99: =IF((S101+W101)>100,S101*100/(S101+W101),S101) -> 44.15477261 | T99: =S99*AVERAGEIF(T105:T116,">0")/100 -> 30.45133708 | U99: =S99*(100-AVERAGEIF(T105:T116,">0"))/100 -> 13.70343553 | V99: =100-(T99+U99+W99) -> 52.71182985 | W99: =IF((S101+W101)>100,W101*100/(S101+W101),W101) -> 3.133397538 | X99: =IF((X101+AB101)>100,X101*100/(X101+AB101),X101) -> 79.53987656 | Y99: =X99*AVERAGEIF(Y105:Y116,">0")/100 -> 64.76659035 | Z99: =X99*(100-AVERAGEIF(Y105:Y116,">0"))/100 -> 14.7732862 | AA99: =100-(Y99+Z99+AB99) -> 20.20321214 | AB99: =IF((X101+AB101)>100,AB101*100/(X101+AB101),AB101) -> 0.2569112979
C100: =MaxTarget(C105:C116) -> 2020 | D100: =IF((D102+H102)>100,D102*100/(D102+H102),D102) -> 59.42882762 | E100: =D100*AVERAGEIF(E105:E116,">0")/100 -> 34.34553104 | F100: =D100*(100-AVERAGEIF(E105:E116,">0"))/100 -> 25.08329658 | G100: =100-(E100+F100+H100) -> 38.88027965 | H100: =IF((D102+H102)>100,H102*100/(D102+H102),H102) -> 1.690892736 | I100: =IF((I102+M102)>100,I102*100/(I102+M102),I102) -> 73.51929467 | J100: =I100*AVERAGEIF(J105:J116,">0")/100 -> 47.63122425 | K100: =I100*(100-AVERAGEIF(J105:J116,">0"))/100 -> 25.88807043 | L100: =100-(J100+K100+M100) -> 26.48070533 | M100: =IF((I102+M102)>100,M102*100/(I102+M102),M102) -> 0 | N100: =IF((N102+R102)>100,N102*100/(N102+R102),N102) -> 87.18493415 | O100: =N100*AVERAGEIF(O105:O116,">0")/100 -> 60.69391648 | P100: =N100*(100-AVERAGEIF(O105:O116,">0"))/100 -> 26.49101767 | Q100: =100-(O100+P100+R100) -> 12.81506585 | R100: =IF((N102+R102)>100,R102*100/(N102+R102),R102) -> 0 | S100: =IF((S102+W102)>100,S102*100/(S102+W102),S102) -> 96.71790978 | T100: =S100*AVERAGEIF(T105:T116,">0")/100 -> 66.70150243 | U100: =S100*(100-AVERAGEIF(T105:T116,">0"))/100 -> 30.01640735 | V100: =100-(T100+U100+W100) -> 3.282090219 | W100: =IF((S102+W102)>100,W102*100/(S102+W102),W102) -> 0 | X100: =IF((X102+AB102)>100,X102*100/(X102+AB102),X102) -> 95.81650522 | Y100: =X100*AVERAGEIF(Y105:Y116,">0")/100 -> 78.02009019 | Z100: =X100*(100-AVERAGEIF(Y105:Y116,">0"))/100 -> 17.79641503 | AA100: =100-(Y100+Z100+AB100) -> 4.183494778 | AB100: =IF((X102+AB102)>100,AB102*100/(X102+AB102),AB102) -> 0
A101: Regression period: | C101: =MinRegYear(C99,C105:C116) -> 2002 | D101: =IF(MAX(C105:C116)-MIN(C105:C116)<5,AVERAGEIF(C105:C116,">0",D105:D116), IF(FORECAST($C101,D$105:D$116,$C$105:$C$116)<0,0, IF(FORECAST($C101,D$105:D$116,$C$105:$C$116)>100,100, FORECAST($C101,D$105:D$116,$C$105:$C$116)))) -> 9.458314646 | H101: =IF(MAX(C105:C116)-MIN(C105:C116)<5,AVERAGEIF(C105:C116,">0",H105:H116), IF(FORECAST($C101,H$105:H$116,$C$105:$C$116)<0,0, IF(FORECAST($C101,H$105:H$116,$C$105:$C$116)>100,100, FORECAST($C101,H$105:H$116,$C$105:$C$116)))) -> 26.9762965 | I101: =IF(MAX(C105:C116)-MIN(C105:C116)<5,AVERAGEIF(C105:C116,">0",I105:I116), IF(FORECAST($C101,I$105:I$116,$C$105:$C$116)<0,0, IF(FORECAST($C101,I$105:I$116,$C$105:$C$116)>100,100, FORECAST($C101,I$105:I$116,$C$105:$C$116)))) -> 15.79978817 | M101: =IF(MAX(C105:C116)-MIN(C105:C116)<5,AVERAGEIF(C105:C116,">0",M105:M116), IF(FORECAST($C101,M$105:M$116,$C$105:$C$116)<0,0, IF(FORECAST($C101,M$105:M$116,$C$105:$C$116)>100,100, FORECAST($C101,M$105:M$116,$C$105:$C$116)))) -> 16.02044368 | N101: =IF(MAX(C105:C116)-MIN(C105:C116)<5,AVERAGEIF(C105:C116,">0",N105:N116), IF(FORECAST($C101,N$105:N$116,$C$105:$C$116)<0,0, IF(FORECAST($C101,N$105:N$116,$C$105:$C$116)>100,100, FORECAST($C101,N$105:N$116,$C$105:$C$116)))) -> 26.62433584 | R101: =IF(MAX(C105:C116)-MIN(C105:C116)<5,AVERAGEIF(C105:C116,">0",R105:R116), IF(FORECAST($C101,R$105:R$116,$C$105:$C$116)<0,0, IF(FORECAST($C101,R$105:R$116,$C$105:$C$116)>100,100, FORECAST($C101,R$105:R$116,$C$105:$C$116)))) -> 8.58717253 | S101: =IF(MAX(C105:C116)-MIN(C105:C116)<5,AVERAGEIF(C105:C116,">0",S105:S116), IF(FORECAST($C101,S$105:S$116,$C$105:$C$116)<0,0, IF(FORECAST($C101,S$105:S$116,$C$105:$C$116)>100,100, FORECAST($C101,S$105:S$116,$C$105:$C$116)))) -> 44.15477261 | W101: =IF(MAX(C105:C116)-MIN(C105:C116)<5,AVERAGEIF(C105:C116,">0",W105:W116), IF(FORECAST($C101,W$105:W$116,$C$105:$C$116)<0,0, IF(FORECAST($C101,W$105:W$116,$C$105:$C$116)>100,100, FORECAST($C101,W$105:W$116,$C$105:$C$116)))) -> 3.133397538 | X101: =IF(MAX(C105:C116)-MIN(C105:C116)<5,AVERAGEIF(C105:C116,">0",X105:X116), IF(FORECAST($C101,X$105:X$116,$C$105:$C$116)<0,0, IF(FORECAST($C101,X$105:X$116,$C$105:$C$116)>100,100, FORECAST($C101,X$105:X$116,$C$105:$C$116)))) -> 79.53987656 | AB101: =IF(MAX(C105:C116)-MIN(C105:C116)<5,AVERAGEIF(C105:C116,">0",AB105:AB116), IF(FORECAST($C101,AB$105:AB$116,$C$105:$C$116)<0,0, IF(FORECAST($C101,AB$105:AB$116,$C$105:$C$116)>100,100, FORECAST($C101,AB$105:AB$116,$C$105:$C$116)))) -> 0.2569112979
C102: =MaxRegYear(C100,C105:C116) -> 2020 | D102: =IF(MAX(C105:C116)-MIN(C105:C116)<5,AVERAGEIF(C105:C116,">0",D105:D116), IF(FORECAST($C102,D$105:D$116,$C$105:$C$116)<0,0, IF(FORECAST($C102,D$105:D$116,$C$105:$C$116)>100,100, FORECAST($C102,D$105:D$116,$C$105:$C$116)))) -> 59.42882762 | H102: =IF(MAX(C105:C116)-MIN(C105:C116)<5,AVERAGEIF(C105:C116,">0",H105:H116), IF(FORECAST($C102,H$105:H$116,$C$105:$C$116)<0,0, IF(FORECAST($C102,H$105:H$116,$C$105:$C$116)>100,100, FORECAST($C102,H$105:H$116,$C$105:$C$116)))) -> 1.690892736 | I102: =IF(MAX(C105:C116)-MIN(C105:C116)<5,AVERAGEIF(C105:C116,">0",I105:I116), IF(FORECAST($C102,I$105:I$116,$C$105:$C$116)<0,0, IF(FORECAST($C102,I$105:I$116,$C$105:$C$116)>100,100, FORECAST($C102,I$105:I$116,$C$105:$C$116)))) -> 73.51929467 | M102: =IF(MAX(C105:C116)-MIN(C105:C116)<5,AVERAGEIF(C105:C116,">0",M105:M116), IF(FORECAST($C102,M$105:M$116,$C$105:$C$116)<0,0, IF(FORECAST($C102,M$105:M$116,$C$105:$C$116)>100,100, FORECAST($C102,M$105:M$116,$C$105:$C$116)))) -> 0 | N102: =IF(MAX(C105:C116)-MIN(C105:C116)<5,AVERAGEIF(C105:C116,">0",N105:N116), IF(FORECAST($C102,N$105:N$116,$C$105:$C$116)<0,0, IF(FORECAST($C102,N$105:N$116,$C$105:$C$116)>100,100, FORECAST($C102,N$105:N$116,$C$105:$C$116)))) -> 87.18493415 | R102: =IF(MAX(C105:C116)-MIN(C105:C116)<5,AVERAGEIF(C105:C116,">0",R105:R116), IF(FORECAST($C102,R$105:R$116,$C$105:$C$116)<0,0, IF(FORECAST($C102,R$105:R$116,$C$105:$C$116)>100,100, FORECAST($C102,R$105:R$116,$C$105:$C$116)))) -> 0 | S102: =IF(MAX(C105:C116)-MIN(C105:C116)<5,AVERAGEIF(C105:C116,">0",S105:S116), IF(FORECAST($C102,S$105:S$116,$C$105:$C$116)<0,0, IF(FORECAST($C102,S$105:S$116,$C$105:$C$116)>100,100, FORECAST($C102,S$105:S$116,$C$105:$C$116)))) -> 96.71790978 | W102: =IF(MAX(C105:C116)-MIN(C105:C116)<5,AVERAGEIF(C105:C116,">0",W105:W116), IF(FORECAST($C102,W$105:W$116,$C$105:$C$116)<0,0, IF(FORECAST($C102,W$105:W$116,$C$105:$C$116)>100,100, FORECAST($C102,W$105:W$116,$C$105:$C$116)))) -> 0 | X102: =IF(MAX(C105:C116)-MIN(C105:C116)<5,AVERAGEIF(C105:C116,">0",X105:X116), IF(FORECAST($C102,X$105:X$116,$C$105:$C$116)<0,0, IF(FORECAST($C102,X$105:X$116,$C$105:$C$116)>100,100, FORECAST($C102,X$105:X$116,$C$105:$C$116)))) -> 95.81650522 | AB102: =IF(MAX(C105:C116)-MIN(C105:C116)<5,AVERAGEIF(C105:C116,">0",AB105:AB116), IF(FORECAST($C102,AB$105:AB$116,$C$105:$C$116)<0,0, IF(FORECAST($C102,AB$105:AB$116,$C$105:$C$116)>100,100, FORECAST($C102,AB$105:AB$116,$C$105:$C$116)))) -> 0
B104: Survey | C104: Year | D104: Improved | E104: Not shared | H104: Open defecation | I104: Improved | J104: Not shared | M104: Open defecation | N104: Improved | O104: Not shared | R104: Open defecation | S104: Improved | T104: Not shared | W104: Open defecation | X104: Improved | Y104: Not shared | AB104: Open defecation
B105: DHS04 | C105: 2004 | D105: =IF(ISERROR(INDIRECT(CONCATENATE($B105,"!C122"))),"",INDIRECT(CONCATENATE($B105,"!C122"))) -> 23.35798062 | E105: =IF(ISERROR(INDIRECT(CONCATENATE($B105,"!C129"))),"",INDIRECT(CONCATENATE($B105,"!C129"))) -> N/A | H105: =IF(ISERROR(INDIRECT(CONCATENATE($B105,"!C127"))),"",INDIRECT(CONCATENATE($B105,"!C127"))) -> 27.08930387 | I105: =IF(ISERROR(INDIRECT(CONCATENATE($B105,"!D122"))),"",INDIRECT(CONCATENATE($B105,"!D122"))) -> 29.3653752 | J105: =IF(ISERROR(INDIRECT(CONCATENATE($B105,"!D129"))),"",INDIRECT(CONCATENATE($B105,"!D129"))) -> N/A | M105: =IF(ISERROR(INDIRECT(CONCATENATE($B105,"!D127"))),"",INDIRECT(CONCATENATE($B105,"!D127"))) -> 17.49373502 | N105: =IF(ISERROR(INDIRECT(CONCATENATE($B105,"!E122"))),"",INDIRECT(CONCATENATE($B105,"!E122"))) -> 40.29486264 | O105: =IF(ISERROR(INDIRECT(CONCATENATE($B105,"!E129"))),"",INDIRECT(CONCATENATE($B105,"!E129"))) -> N/A | R105: =IF(ISERROR(INDIRECT(CONCATENATE($B105,"!E127"))),"",INDIRECT(CONCATENATE($B105,"!E127"))) -> 11.13935636 | S105: =IF(ISERROR(INDIRECT(CONCATENATE($B105,"!F122"))),"",INDIRECT(CONCATENATE($B105,"!F122"))) -> 56.03224263 | T105: =IF(ISERROR(INDIRECT(CONCATENATE($B105,"!F129"))),"",INDIRECT(CONCATENATE($B105,"!F129"))) -> N/A | W105: =IF(ISERROR(INDIRECT(CONCATENATE($B105,"!F127"))),"",INDIRECT(CONCATENATE($B105,"!F127"))) -> 3.632237506 | X105: =IF(ISERROR(INDIRECT(CONCATENATE($B105,"!G122"))),"",INDIRECT(CONCATENATE($B105,"!G122"))) -> 84.96641823 | Y105: =IF(ISERROR(INDIRECT(CONCATENATE($B105,"!G129"))),"",INDIRECT(CONCATENATE($B105,"!G129"))) -> N/A | AB105: =IF(ISERROR(INDIRECT(CONCATENATE($B105,"!G2127"))),"",INDIRECT(CONCATENATE($B105,"!G127"))) -> 0.4464219125
B106: MICS06 | C106: 2006 | D106: 14.30215693 | E106: 48.51528786 | H106: 20.71819023 | I106: 22.07913196 | J106: 59.61305473 | M106: 10.96143777 | N106: 32.1680377 | O106: 65.01490181 | R106: 4.682318787 | S106: 47.73929191 | T106: 69.27612149 | W106: 1.115485682 | X106: 81.0373388 | Y106: 79.78847256 | AB106: 0.06381495354
B107: DHS07 | C107: 2007 | D107: 19.92383095 | E107: 47.21342019 | H107: 18.35325636 | I107: 26.09210963 | J107: 57.24901632 | M107: 10.59311014 | N107: 37.06303158 | O107: 63.80955289 | R107: 4.791442087 | S107: 51.45579307 | T107: 70.38191449 | W107: 2.955552261 | X107: 78.11418283 | Y107: 79.18533548 | AB107: 0.0460151848
B108: DHS11 | C108: 2011 | D108: 26.9063546 | E108: 54.60424185 | H108: 12.60348074 | I108: 39.82900041 | J108: 62.23208961 | M108: 5.153285469 | N108: 52.93401001 | O108: 67.68414656 | R108: 1.818103553 | S108: 70.50294818 | T108: 65.53150558 | W108: 0.5637221159 | X108: 87.20716482 | Y108: 77.33411866 | AB108: 0.08040640405
B109: MICS13 | C109: 2013 | D109: 52.47393938 | E109: 60.42724166 | H109: 11.81302386 | I109: 67.59980027 | J109: 68.90782582 | M109: 5.340069344 | N109: 79.62701034 | O109: 71.76212352 | R109: 1.805871384 | S109: 88.7677574 | T109: 72.35755098 | W109: 0.5646672506 | X109: 95.76585137 | Y109: 83.0887762 | AB109: 0.03659455343
B110: DHS14 | C110: 2014 | D110: 42.367297 | E110: 61.93502871 | H110: 9.371937074 | I110: 54.68813189 | J110: 67.84349271 | M110: 5.216960306 | N110: 71.60202304 | O110: 70.18687084 | R110: 1.234008886 | S110: 86.36067983 | T110: 64.21880738 | W110: 0.1764942363 | X110: 93.67589237 | Y110: 79.64734785 | AB110: 0
B111: DHS18 | C111: 2018 | D111: 38.48990094 | E111: 62.23524506 | H111: 4.007911527 | I111: 51.26473978 | J111: 65.6745205 | M111: 1.271201355 | N111: 68.60613981 | O111: 72.16825249 | R111: 0.466223405 | S111: 81.8709228 | T111: 66.2526742 | W111: 0 | X111: 88.32437773 | Y111: 85.94813852 | AB111: 0
B112: MICS19 | C112: 2019 | D112: 68.83166708 | E112: 69.61851687 | H112: 5.092674667 | I112: 79.18459923 | J112: 71.99165493 | M112: 1.987056518 | N112: 86.39987557 | O112: 76.68015208 | R112: 0.5424330905 | S112: 92.44179089 | T112: 74.73639655 | W112: 0.09643872922 | X112: 95.95132956 | Y112: 84.99377512 | AB112: 0
B118: =CONCATENATE("National use of sanitation facilities, ",C99,"–",C100) -> National use of sanitation facilities, 2000–2020 | S118: Data points used for regression
A197: URBAN | D197: Poorest | I197: Poor | N197: Middle | S197: Rich | X197: Richest
D198: Improved | E198: Basic | F198: Limited | G198: Unimproved | H198: Open defecation | I198: Improved | J198: Basic | K198: Limited | L198: Unimproved | M198: Open defecation | N198: Improved | O198: Basic | P198: Limited | Q198: Unimproved | R198: Open defecation | S198: Improved | T198: Basic | U198: Limited | V198: Unimproved | W198: Open defecation | X198: Improved | Y198: Basic | Z198: Limited | AA198: Unimproved | AB198: Open defecation
A199: Forecast period: | C199: 2000 | D199: =IF((D201+H201)>100,D201*100/(D201+H201),D201) -> 24.05382574 | E199: =D199*AVERAGEIF(E205:E216,">0")/100 -> 13.0618884 | F199: =D199*(100-AVERAGEIF(E205:E216,">0"))/100 -> 10.99193734 | G199: =100-(E199+F199+H199) -> 63.08310145 | H199: =IF((D201+H201)>100,H201*100/(D201+H201),H201) -> 12.86307281 | I199: =IF((I201+M201)>100,I201*100/(I201+M201),I201) -> 39.29443881 | J199: =I199*AVERAGEIF(J205:J216,">0")/100 -> 20.07045543 | K199: =I199*(100-AVERAGEIF(J205:J216,">0"))/100 -> 19.22398338 | L199: =100-(J199+K199+M199) -> 56.88307869 | M199: =IF((I201+M201)>100,M201*100/(I201+M201),M201) -> 3.822482494 | N199: =IF((N201+R201)>100,N201*100/(N201+R201),N201) -> 59.75156735 | O199: =N199*AVERAGEIF(O205:O216,">0")/100 -> 29.41164848 | P199: =N199*(100-AVERAGEIF(O205:O216,">0"))/100 -> 30.33991888 | Q199: =100-(O199+P199+R199) -> 39.43107659 | R199: =IF((N201+R201)>100,R201*100/(N201+R201),R201) -> 0.8173560588 | S199: =IF((S201+W201)>100,S201*100/(S201+W201),S201) -> 79.4065221 | T199: =S199*AVERAGEIF(T205:T216,">0")/100 -> 57.33126021 | U199: =S199*(100-AVERAGEIF(T205:T216,">0"))/100 -> 22.07526189 | V199: =100-(T199+U199+W199) -> 20.51384597 | W199: =IF((S201+W201)>100,W201*100/(S201+W201),W201) -> 0.07963192949 | X199: =IF((X201+AB201)>100,X201*100/(X201+AB201),X201) -> 95.23848437 | Y199: =X199*AVERAGEIF(Y205:Y216,">0")/100 -> 90.81851669 | Z199: =X199*(100-AVERAGEIF(Y205:Y216,">0"))/100 -> 4.419967688 | AA199: =100-(Y199+Z199+AB199) -> 4.761515627 | AB199: =IF((X201+AB201)>100,AB201*100/(X201+AB201),AB201) -> 0
C200: 2020 | D200: =IF((D202+H202)>100,D202*100/(D202+H202),D202) -> 74.22577612 | E200: =D200*AVERAGEIF(E205:E216,">0")/100 -> 40.30663624 | F200: =D200*(100-AVERAGEIF(E205:E216,">0"))/100 -> 33.91913988 | G200: =100-(E200+F200+H200) -> 25.77422388 | H200: =IF((D202+H202)>100,H202*100/(D202+H202),H202) -> 0 | I200: =IF((I202+M202)>100,I202*100/(I202+M202),I202) -> 90.4886606 | J200: =I200*AVERAGEIF(J205:J216,">0")/100 -> 46.21897358 | K200: =I200*(100-AVERAGEIF(J205:J216,">0"))/100 -> 44.26968702 | L200: =100-(J200+K200+M200) -> 9.511339402 | M200: =IF((I202+M202)>100,M202*100/(I202+M202),M202) -> 0 | N200: =IF((N202+R202)>100,N202*100/(N202+R202),N202) -> 93.909551 | O200: =N200*AVERAGEIF(O205:O216,">0")/100 -> 46.22530965 | P200: =N200*(100-AVERAGEIF(O205:O216,">0"))/100 -> 47.68424136 | Q200: =100-(O200+P200+R200) -> 6.090448995 | R200: =IF((N202+R202)>100,R202*100/(N202+R202),R202) -> 0 | S200: =IF((S202+W202)>100,S202*100/(S202+W202),S202) -> 93.0798373 | T200: =S200*AVERAGEIF(T205:T216,">0")/100 -> 67.20335096 | U200: =S200*(100-AVERAGEIF(T205:T216,">0"))/100 -> 25.87648635 | V200: =100-(T200+U200+W200) -> 6.920162695 | W200: =IF((S202+W202)>100,W202*100/(S202+W202),W202) -> 0 | X200: =IF((X202+AB202)>100,X202*100/(X202+AB202),X202) -> 91.49111672 | Y200: =X200*AVERAGEIF(Y205:Y216,">0")/100 -> 87.24506238 | Z200: =X200*(100-AVERAGEIF(Y205:Y216,">0"))/100 -> 4.246054337 | AA200: =100-(Y200+Z200+AB200) -> 8.508883279 | AB200: =IF((X202+AB202)>100,AB202*100/(X202+AB202),AB202) -> 0
A201: Regression period: | C201: =MinRegYear(C199,C205:C216) -> 2002 | D201: =IF(MAX(C205:C216)-MIN(C205:C216)<5,AVERAGEIF(C205:C216,">0",D205:D216), IF(FORECAST($C201,D$205:D$216,$C$205:$C$216)<0,0, IF(FORECAST($C201,D$205:D$216,$C$205:$C$216)>100,100, FORECAST($C201,D$205:D$216,$C$205:$C$216)))) -> 24.05382574 | H201: =IF(MAX(C205:C216)-MIN(C205:C216)<5,AVERAGEIF(C205:C216,">0",H205:H216), IF(FORECAST($C201,H$205:H$216,$C$205:$C$216)<0,0, IF(FORECAST($C201,H$205:H$216,$C$205:$C$216)>100,100, FORECAST($C201,H$205:H$216,$C$205:$C$216)))) -> 12.86307281 | I201: =IF(MAX(C205:C216)-MIN(C205:C216)<5,AVERAGEIF(C205:C216,">0",I205:I216), IF(FORECAST($C201,I$205:I$216,$C$205:$C$216)<0,0, IF(FORECAST($C201,I$205:I$216,$C$205:$C$216)>100,100, FORECAST($C201,I$205:I$216,$C$205:$C$216)))) -> 39.29443881 | M201: =IF(MAX(C205:C216)-MIN(C205:C216)<5,AVERAGEIF(C205:C216,">0",M205:M216), IF(FORECAST($C201,M$205:M$216,$C$205:$C$216)<0,0, IF(FORECAST($C201,M$205:M$216,$C$205:$C$216)>100,100, FORECAST($C201,M$205:M$216,$C$205:$C$216)))) -> 3.822482494 | N201: =IF(MAX(C205:C216)-MIN(C205:C216)<5,AVERAGEIF(C205:C216,">0",N205:N216), IF(FORECAST($C201,N$205:N$216,$C$205:$C$216)<0,0, IF(FORECAST($C201,N$205:N$216,$C$205:$C$216)>100,100, FORECAST($C201,N$205:N$216,$C$205:$C$216)))) -> 59.75156735 | R201: =IF(MAX(C205:C216)-MIN(C205:C216)<5,AVERAGEIF(C205:C216,">0",R205:R216), IF(FORECAST($C201,R$205:R$216,$C$205:$C$216)<0,0, IF(FORECAST($C201,R$205:R$216,$C$205:$C$216)>100,100, FORECAST($C201,R$205:R$216,$C$205:$C$216)))) -> 0.8173560588 | S201: =IF(MAX(C205:C216)-MIN(C205:C216)<5,AVERAGEIF(C205:C216,">0",S205:S216), IF(FORECAST($C201,S$205:S$216,$C$205:$C$216)<0,0, IF(FORECAST($C201,S$205:S$216,$C$205:$C$216)>100,100, FORECAST($C201,S$205:S$216,$C$205:$C$216)))) -> 79.4065221 | W201: =IF(MAX(C205:C216)-MIN(C205:C216)<5,AVERAGEIF(C205:C216,">0",W205:W216), IF(FORECAST($C201,W$205:W$216,$C$205:$C$216)<0,0, IF(FORECAST($C201,W$205:W$216,$C$205:$C$216)>100,100, FORECAST($C201,W$205:W$216,$C$205:$C$216)))) -> 0.07963192949 | X201: =IF(MAX(C205:C216)-MIN(C205:C216)<5,AVERAGEIF(C205:C216,">0",X205:X216), IF(FORECAST($C201,X$205:X$216,$C$205:$C$216)<0,0, IF(FORECAST($C201,X$205:X$216,$C$205:$C$216)>100,100, FORECAST($C201,X$205:X$216,$C$205:$C$216)))) -> 95.23848437 | AB201: =IF(MAX(C205:C216)-MIN(C205:C216)<5,AVERAGEIF(C205:C216,">0",AB205:AB216), IF(FORECAST($C201,AB$205:AB$216,$C$205:$C$216)<0,0, IF(FORECAST($C201,AB$205:AB$216,$C$205:$C$216)>100,100, FORECAST($C201,AB$205:AB$216,$C$205:$C$216)))) -> 0
C202: =MaxRegYear(C200,C205:C216) -> 2020 | D202: =IF(MAX(C205:C216)-MIN(C205:C216)<5,AVERAGEIF(C205:C216,">0",D205:D216), IF(FORECAST($C202,D$205:D$216,$C$205:$C$216)<0,0, IF(FORECAST($C202,D$205:D$216,$C$205:$C$216)>100,100, FORECAST($C202,D$205:D$216,$C$205:$C$216)))) -> 74.22577612 | H202: =IF(MAX(C205:C216)-MIN(C205:C216)<5,AVERAGEIF(C205:C216,">0",H205:H216), IF(FORECAST($C202,H$205:H$216,$C$205:$C$216)<0,0, IF(FORECAST($C202,H$205:H$216,$C$205:$C$216)>100,100, FORECAST($C202,H$205:H$216,$C$205:$C$216)))) -> 0 | I202: =IF(MAX(C205:C216)-MIN(C205:C216)<5,AVERAGEIF(C205:C216,">0",I205:I216), IF(FORECAST($C202,I$205:I$216,$C$205:$C$216)<0,0, IF(FORECAST($C202,I$205:I$216,$C$205:$C$216)>100,100, FORECAST($C202,I$205:I$216,$C$205:$C$216)))) -> 90.4886606 | M202: =IF(MAX(C205:C216)-MIN(C205:C216)<5,AVERAGEIF(C205:C216,">0",M205:M216), IF(FORECAST($C202,M$205:M$216,$C$205:$C$216)<0,0, IF(FORECAST($C202,M$205:M$216,$C$205:$C$216)>100,100, FORECAST($C202,M$205:M$216,$C$205:$C$216)))) -> 0 | N202: =IF(MAX(C205:C216)-MIN(C205:C216)<5,AVERAGEIF(C205:C216,">0",N205:N216), IF(FORECAST($C202,N$205:N$216,$C$205:$C$216)<0,0, IF(FORECAST($C202,N$205:N$216,$C$205:$C$216)>100,100, FORECAST($C202,N$205:N$216,$C$205:$C$216)))) -> 93.909551 | R202: =IF(MAX(C205:C216)-MIN(C205:C216)<5,AVERAGEIF(C205:C216,">0",R205:R216), IF(FORECAST($C202,R$205:R$216,$C$205:$C$216)<0,0, IF(FORECAST($C202,R$205:R$216,$C$205:$C$216)>100,100, FORECAST($C202,R$205:R$216,$C$205:$C$216)))) -> 0 | S202: =IF(MAX(C205:C216)-MIN(C205:C216)<5,AVERAGEIF(C205:C216,">0",S205:S216), IF(FORECAST($C202,S$205:S$216,$C$205:$C$216)<0,0, IF(FORECAST($C202,S$205:S$216,$C$205:$C$216)>100,100, FORECAST($C202,S$205:S$216,$C$205:$C$216)))) -> 93.0798373 | W202: =IF(MAX(C205:C216)-MIN(C205:C216)<5,AVERAGEIF(C205:C216,">0",W205:W216), IF(FORECAST($C202,W$205:W$216,$C$205:$C$216)<0,0, IF(FORECAST($C202,W$205:W$216,$C$205:$C$216)>100,100, FORECAST($C202,W$205:W$216,$C$205:$C$216)))) -> 0 | X202: =IF(MAX(C205:C216)-MIN(C205:C216)<5,AVERAGEIF(C205:C216,">0",X205:X216), IF(FORECAST($C202,X$205:X$216,$C$205:$C$216)<0,0, IF(FORECAST($C202,X$205:X$216,$C$205:$C$216)>100,100, FORECAST($C202,X$205:X$216,$C$205:$C$216)))) -> 91.49111672 | AB202: =IF(MAX(C205:C216)-MIN(C205:C216)<5,AVERAGEIF(C205:C216,">0",AB205:AB216), IF(FORECAST($C202,AB$205:AB$216,$C$205:$C$216)<0,0, IF(FORECAST($C202,AB$205:AB$216,$C$205:$C$216)>100,100, FORECAST($C202,AB$205:AB$216,$C$205:$C$216)))) -> 0
B204: Survey | C204: Year | D204: Improved | E204: Not shared | H204: Open defecation | I204: Improved | J204: Not shared | M204: Open defecation | N204: Improved | O204: Not shared | R204: Open defecation | S204: Improved | T204: Not shared | W204: Open defecation | X204: Improved | Y204: Not shared | AB204: Open defecation
B205: DHS04 | C205: 2004 | D205: =IF(ISERROR(INDIRECT(CONCATENATE($B205,"!H122"))),"",INDIRECT(CONCATENATE($B205,"!H122"))) -> 37.49810736 | E205: =IF(ISERROR(INDIRECT(CONCATENATE($B205,"!H129"))),"",INDIRECT(CONCATENATE($B205,"!H129"))) -> N/A | H205: =IF(ISERROR(INDIRECT(CONCATENATE($B205,"!H127"))),"",INDIRECT(CONCATENATE($B205,"!H127"))) -> 13.65086016 | I205: =IF(ISERROR(INDIRECT(CONCATENATE($B205,"!I122"))),"",INDIRECT(CONCATENATE($B205,"!I122"))) -> 52.11494713 | J205: =IF(ISERROR(INDIRECT(CONCATENATE($B205,"!I129"))),"",INDIRECT(CONCATENATE($B205,"!I129"))) -> N/A | M205: =IF(ISERROR(INDIRECT(CONCATENATE($B205,"!I127"))),"",INDIRECT(CONCATENATE($B205,"!I127"))) -> 5.223168627 | N205: =IF(ISERROR(INDIRECT(CONCATENATE($B205,"!J122"))),"",INDIRECT(CONCATENATE($B205,"!J122"))) -> 71.41657923 | O205: =IF(ISERROR(INDIRECT(CONCATENATE($B205,"!J129"))),"",INDIRECT(CONCATENATE($B205,"!J129"))) -> N/A | R205: =IF(ISERROR(INDIRECT(CONCATENATE($B205,"!J127"))),"",INDIRECT(CONCATENATE($B205,"!J127"))) -> 1.488039944 | S205: =IF(ISERROR(INDIRECT(CONCATENATE($B205,"!K122"))),"",INDIRECT(CONCATENATE($B205,"!K122"))) -> 87.93456506 | T205: =IF(ISERROR(INDIRECT(CONCATENATE($B205,"!K129"))),"",INDIRECT(CONCATENATE($B205,"!K129"))) -> N/A | W205: =IF(ISERROR(INDIRECT(CONCATENATE($B205,"!K127"))),"",INDIRECT(CONCATENATE($B205,"!K127"))) -> 0.1455399959 | X205: =IF(ISERROR(INDIRECT(CONCATENATE($B205,"!L122"))),"",INDIRECT(CONCATENATE($B205,"!L122"))) -> 99.85150138 | Y205: =IF(ISERROR(INDIRECT(CONCATENATE($B205,"!L129"))),"",INDIRECT(CONCATENATE($B205,"!L129"))) -> N/A | AB205: =IF(ISERROR(INDIRECT(CONCATENATE($B205,"!L2127"))),"",INDIRECT(CONCATENATE($B205,"!L127"))) -> 0
B206: MICS06 | C206: 2006 | D206: 21.54424845 | E206: 44.48313458 | H206: 10.80224596 | I206: 38.29036558 | J206: 50.28770458 | M206: 2.022677586 | N206: 59.53754495 | O206: 55.74206782 | R206: 0.3274521531 | S206: 79.77360873 | T206: 69.361473 | W206: 0.02813839183 | X206: 94.10758379 | Y206: 94.59004699 | AB206: 0
B207: DHS07 | C207: 2007 | D207: 34.59024128 | E207: 46.07355838 | H207: 6.704963932 | I207: 49.11879832 | J207: 50.72550852 | M207: 1.764610153 | N207: 57.33035665 | O207: 51.82416916 | R207: 0 | S207: 74.034339 | T207: 69.29927097 | W207: 0 | X207: 90.74833494 | Y207: 91.98486614 | AB207: 0
B208: DHS11 | C208: 2011 | D208: 48.65406436 | E208: 54.3147783 | H208: 3.542928364 | I208: 66.44897 | J208: 51.23659144 | M208: 0.3915940653 | N208: 82.51581216 | O208: 42.93986921 | R208: 0.1172386005 | S208: 84.93445201 | T208: 67.54746256 | W208: 0 | X208: 86.66075839 | Y208: 93.93375125 | AB208: 0
B209: MICS13 | C209: 2013 | D209: 66.80267229 | E209: 57.10485479 | H209: 6.000588174 | I209: 82.54067871 | J209: 54.00686225 | M209: 1.065780817 | N209: 90.48947593 | O209: 47.4394745 | R209: 0.03474974301 | S209: 95.16649694 | T209: 75.32382929 | W209: 0.04443042882 | X209: 96.79586889 | Y209: 98.29958832 | AB209: 0
B210: DHS14 | C210: 2014 | D210: 67.47732642 | E210: 57.83435944 | H210: 3.858484737 | I210: 80.19745913 | J210: 48.80149154 | M210: 0.5358981723 | N210: 89.09107108 | O210: 43.79854411 | R210: 0.06722057275 | S210: 91.40425967 | T210: 69.15503142 | W210: 0 | X210: 93.89351463 | Y210: 94.16148467 | AB210: 0
B211: DHS18 | C211: 2018 | D211: 50.45431329 | E211: 56.19455254 | H211: 0.4568942547 | I211: 73.42660359 | J211: 47.54121913 | M211: 0 | N211: 78.94329025 | O211: 49.13850676 | R211: 0 | S211: 82.83576197 | T211: 73.00628659 | W211: 0 | X211: 86.5144749 | Y211: 95.6321334 | AB211: 0
B212: MICS19 | C212: 2019 | D212: 77.24675629 | E212: 64.11399874 | H212: 1.947255954 | I212: 88.37106892 | J212: 54.94024453 | M212: 0.07991852669 | N212: 92.91100621 | O212: 53.67994389 | R212: 0.02497724521 | S212: 96.90046871 | T212: 81.70445338 | W212: 0 | X212: 97.5136191 | Y212: 98.91149946 | AB212: 0
B218: =CONCATENATE("Urban use of sanitation facilities, ",C199,"–",C200) -> Urban use of sanitation facilities, 2000–2020 | S218: Data points used for regression
A297: RURAL | D297: Poorest | I297: Poor | N297: Middle | S297: Rich | X297: Richest
D298: Improved | E298: Basic | F298: Limited | G298: Unimproved | H298: Open defecation | I298: Improved | J298: Basic | K298: Limited | L298: Unimproved | M298: Open defecation | N298: Improved | O298: Basic | P298: Limited | Q298: Unimproved | R298: Open defecation | S298: Improved | T298: Basic | U298: Limited | V298: Unimproved | W298: Open defecation | X298: Improved | Y298: Basic | Z298: Limited | AA298: Unimproved | AB298: Open defecation
A299: Forecast period: | C299: 2000 | D299: =IF((D301+H301)>100,D301*100/(D301+H301),D301) -> 7.61751753 | E299: =D299*AVERAGEIF(E305:E316,">0")/100 -> 4.412378282 | F299: =D299*(100-AVERAGEIF(E305:E316,">0"))/100 -> 3.205139248 | G299: =100-(E299+F299+H299) -> 63.16589103 | H299: =IF((D301+H301)>100,H301*100/(D301+H301),H301) -> 29.21659144 | I299: =IF((I301+M301)>100,I301*100/(I301+M301),I301) -> 13.34451121 | J299: =I299*AVERAGEIF(J305:J316,">0")/100 -> 8.459622137 | K299: =I299*(100-AVERAGEIF(J305:J316,">0"))/100 -> 4.884889076 | L299: =100-(J299+K299+M299) -> 67.64190967 | M299: =IF((I301+M301)>100,M301*100/(I301+M301),M301) -> 19.01357911 | N299: =IF((N301+R301)>100,N301*100/(N301+R301),N301) -> 22.3103648 | O299: =N299*AVERAGEIF(O305:O316,">0")/100 -> 15.60278002 | P299: =N299*(100-AVERAGEIF(O305:O316,">0"))/100 -> 6.707584782 | Q299: =100-(O299+P299+R299) -> 66.66131351 | R299: =IF((N301+R301)>100,R301*100/(N301+R301),R301) -> 11.02832168 | S299: =IF((S301+W301)>100,S301*100/(S301+W301),S301) -> 31.64547374 | T299: =S299*AVERAGEIF(T305:T316,">0")/100 -> 23.43505415 | U299: =S299*(100-AVERAGEIF(T305:T316,">0"))/100 -> 8.21041959 | V299: =100-(T299+U299+W299) -> 62.22932249 | W299: =IF((S301+W301)>100,W301*100/(S301+W301),W301) -> 6.125203767 | X299: =IF((X301+AB301)>100,X301*100/(X301+AB301),X301) -> 62.07691832 | Y299: =X299*AVERAGEIF(Y305:Y316,">0")/100 -> 51.64509997 | Z299: =X299*(100-AVERAGEIF(Y305:Y316,">0"))/100 -> 10.43181835 | AA299: =100-(Y299+Z299+AB299) -> 36.73720584 | AB299: =IF((X301+AB301)>100,AB301*100/(X301+AB301),AB301) -> 1.185875843
C300: 2020 | D300: =IF((D302+H302)>100,D302*100/(D302+H302),D302) -> 57.94786006 | E300: =D300*AVERAGEIF(E305:E316,">0")/100 -> 33.56577496 | F300: =D300*(100-AVERAGEIF(E305:E316,">0"))/100 -> 24.3820851 | G300: =100-(E300+F300+H300) -> 40.1096972 | H300: =IF((D302+H302)>100,H302*100/(D302+H302),H302) -> 1.942442739 | I300: =IF((I302+M302)>100,I302*100/(I302+M302),I302) -> 69.0755256 | J300: =I300*AVERAGEIF(J305:J316,">0")/100 -> 43.78975267 | K300: =I300*(100-AVERAGEIF(J305:J316,">0"))/100 -> 25.28577293 | L300: =100-(J300+K300+M300) -> 30.9192119 | M300: =IF((I302+M302)>100,M302*100/(I302+M302),M302) -> 0.005262500389 | N300: =IF((N302+R302)>100,N302*100/(N302+R302),N302) -> 80.91405559 | O300: =N300*AVERAGEIF(O305:O316,">0")/100 -> 56.58734051 | P300: =N300*(100-AVERAGEIF(O305:O316,">0"))/100 -> 24.32671508 | Q300: =100-(O300+P300+R300) -> 19.08594441 | R300: =IF((N302+R302)>100,R302*100/(N302+R302),R302) -> 0 | S300: =IF((S302+W302)>100,S302*100/(S302+W302),S302) -> 93.18421592 | T300: =S300*AVERAGEIF(T305:T316,">0")/100 -> 69.0075669 | U300: =S300*(100-AVERAGEIF(T305:T316,">0"))/100 -> 24.17664902 | V300: =100-(T300+U300+W300) -> 6.815784076 | W300: =IF((S302+W302)>100,W302*100/(S302+W302),W302) -> 0 | X300: =IF((X302+AB302)>100,X302*100/(X302+AB302),X302) -> 100 | Y300: =X300*AVERAGEIF(Y305:Y316,">0")/100 -> 83.19533471 | Z300: =X300*(100-AVERAGEIF(Y305:Y316,">0"))/100 -> 16.80466529 | AA300: =100-(Y300+Z300+AB300) -> 0 | AB300: =IF((X302+AB302)>100,AB302*100/(X302+AB302),AB302) -> 0
A301: Regression period: | C301: =MinRegYear(C299,C305:C316) -> 2002 | D301: =IF(MAX(C305:C316)-MIN(C305:C316)<5,AVERAGEIF(C305:C316,">0",D305:D316), IF(FORECAST($C301,D$305:D$316,$C$305:$C$316)<0,0, IF(FORECAST($C301,D$305:D$316,$C$305:$C$316)>100,100, FORECAST($C301,D$305:D$316,$C$305:$C$316)))) -> 7.61751753 | H301: =IF(MAX(C305:C316)-MIN(C305:C316)<5,AVERAGEIF(C305:C316,">0",H305:H316), IF(FORECAST($C301,H$305:H$316,$C$305:$C$316)<0,0, IF(FORECAST($C301,H$305:H$316,$C$305:$C$316)>100,100, FORECAST($C301,H$305:H$316,$C$305:$C$316)))) -> 29.21659144 | I301: =IF(MAX(C305:C316)-MIN(C305:C316)<5,AVERAGEIF(C305:C316,">0",I305:I316), IF(FORECAST($C301,I$305:I$316,$C$305:$C$316)<0,0, IF(FORECAST($C301,I$305:I$316,$C$305:$C$316)>100,100, FORECAST($C301,I$305:I$316,$C$305:$C$316)))) -> 13.34451121 | M301: =IF(MAX(C305:C316)-MIN(C305:C316)<5,AVERAGEIF(C305:C316,">0",M305:M316), IF(FORECAST($C301,M$305:M$316,$C$305:$C$316)<0,0, IF(FORECAST($C301,M$305:M$316,$C$305:$C$316)>100,100, FORECAST($C301,M$305:M$316,$C$305:$C$316)))) -> 19.01357911 | N301: =IF(MAX(C305:C316)-MIN(C305:C316)<5,AVERAGEIF(C305:C316,">0",N305:N316), IF(FORECAST($C301,N$305:N$316,$C$305:$C$316)<0,0, IF(FORECAST($C301,N$305:N$316,$C$305:$C$316)>100,100, FORECAST($C301,N$305:N$316,$C$305:$C$316)))) -> 22.3103648 | R301: =IF(MAX(C305:C316)-MIN(C305:C316)<5,AVERAGEIF(C305:C316,">0",R305:R316), IF(FORECAST($C301,R$305:R$316,$C$305:$C$316)<0,0, IF(FORECAST($C301,R$305:R$316,$C$305:$C$316)>100,100, FORECAST($C301,R$305:R$316,$C$305:$C$316)))) -> 11.02832168 | S301: =IF(MAX(C305:C316)-MIN(C305:C316)<5,AVERAGEIF(C305:C316,">0",S305:S316), IF(FORECAST($C301,S$305:S$316,$C$305:$C$316)<0,0, IF(FORECAST($C301,S$305:S$316,$C$305:$C$316)>100,100, FORECAST($C301,S$305:S$316,$C$305:$C$316)))) -> 31.64547374 | W301: =IF(MAX(C305:C316)-MIN(C305:C316)<5,AVERAGEIF(C305:C316,">0",W305:W316), IF(FORECAST($C301,W$305:W$316,$C$305:$C$316)<0,0, IF(FORECAST($C301,W$305:W$316,$C$305:$C$316)>100,100, FORECAST($C301,W$305:W$316,$C$305:$C$316)))) -> 6.125203767 | X301: =IF(MAX(C305:C316)-MIN(C305:C316)<5,AVERAGEIF(C305:C316,">0",X305:X316), IF(FORECAST($C301,X$305:X$316,$C$305:$C$316)<0,0, IF(FORECAST($C301,X$305:X$316,$C$305:$C$316)>100,100, FORECAST($C301,X$305:X$316,$C$305:$C$316)))) -> 62.07691832 | AB301: =IF(MAX(C305:C316)-MIN(C305:C316)<5,AVERAGEIF(C305:C316,">0",AB305:AB316), IF(FORECAST($C301,AB$305:AB$316,$C$305:$C$316)<0,0, IF(FORECAST($C301,AB$305:AB$316,$C$305:$C$316)>100,100, FORECAST($C301,AB$305:AB$316,$C$305:$C$316)))) -> 1.185875843
C302: =MaxRegYear(C300,C305:C316) -> 2020 | D302: =IF(MAX(C305:C316)-MIN(C305:C316)<5,AVERAGEIF(C305:C316,">0",D305:D316), IF(FORECAST($C302,D$305:D$316,$C$305:$C$316)<0,0, IF(FORECAST($C302,D$305:D$316,$C$305:$C$316)>100,100, FORECAST($C302,D$305:D$316,$C$305:$C$316)))) -> 57.94786006 | H302: =IF(MAX(C305:C316)-MIN(C305:C316)<5,AVERAGEIF(C305:C316,">0",H305:H316), IF(FORECAST($C302,H$305:H$316,$C$305:$C$316)<0,0, IF(FORECAST($C302,H$305:H$316,$C$305:$C$316)>100,100, FORECAST($C302,H$305:H$316,$C$305:$C$316)))) -> 1.942442739 | I302: =IF(MAX(C305:C316)-MIN(C305:C316)<5,AVERAGEIF(C305:C316,">0",I305:I316), IF(FORECAST($C302,I$305:I$316,$C$305:$C$316)<0,0, IF(FORECAST($C302,I$305:I$316,$C$305:$C$316)>100,100, FORECAST($C302,I$305:I$316,$C$305:$C$316)))) -> 69.0755256 | M302: =IF(MAX(C305:C316)-MIN(C305:C316)<5,AVERAGEIF(C305:C316,">0",M305:M316), IF(FORECAST($C302,M$305:M$316,$C$305:$C$316)<0,0, IF(FORECAST($C302,M$305:M$316,$C$305:$C$316)>100,100, FORECAST($C302,M$305:M$316,$C$305:$C$316)))) -> 0.005262500389 | N302: =IF(MAX(C305:C316)-MIN(C305:C316)<5,AVERAGEIF(C305:C316,">0",N305:N316), IF(FORECAST($C302,N$305:N$316,$C$305:$C$316)<0,0, IF(FORECAST($C302,N$305:N$316,$C$305:$C$316)>100,100, FORECAST($C302,N$305:N$316,$C$305:$C$316)))) -> 80.91405559 | R302: =IF(MAX(C305:C316)-MIN(C305:C316)<5,AVERAGEIF(C305:C316,">0",R305:R316), IF(FORECAST($C302,R$305:R$316,$C$305:$C$316)<0,0, IF(FORECAST($C302,R$305:R$316,$C$305:$C$316)>100,100, FORECAST($C302,R$305:R$316,$C$305:$C$316)))) -> 0 | S302: =IF(MAX(C305:C316)-MIN(C305:C316)<5,AVERAGEIF(C305:C316,">0",S305:S316), IF(FORECAST($C302,S$305:S$316,$C$305:$C$316)<0,0, IF(FORECAST($C302,S$305:S$316,$C$305:$C$316)>100,100, FORECAST($C302,S$305:S$316,$C$305:$C$316)))) -> 93.18421592 | W302: =IF(MAX(C305:C316)-MIN(C305:C316)<5,AVERAGEIF(C305:C316,">0",W305:W316), IF(FORECAST($C302,W$305:W$316,$C$305:$C$316)<0,0, IF(FORECAST($C302,W$305:W$316,$C$305:$C$316)>100,100, FORECAST($C302,W$305:W$316,$C$305:$C$316)))) -> 0 | X302: =IF(MAX(C305:C316)-MIN(C305:C316)<5,AVERAGEIF(C305:C316,">0",X305:X316), IF(FORECAST($C302,X$305:X$316,$C$305:$C$316)<0,0, IF(FORECAST($C302,X$305:X$316,$C$305:$C$316)>100,100, FORECAST($C302,X$305:X$316,$C$305:$C$316)))) -> 100 | AB302: =IF(MAX(C305:C316)-MIN(C305:C316)<5,AVERAGEIF(C305:C316,">0",AB305:AB316), IF(FORECAST($C302,AB$305:AB$316,$C$305:$C$316)<0,0, IF(FORECAST($C302,AB$305:AB$316,$C$305:$C$316)>100,100, FORECAST($C302,AB$305:AB$316,$C$305:$C$316)))) -> 0
B304: Survey | C304: Year | D304: Improved | E304: Not shared | H304: Open defecation | I304: Improved | J304: Not shared | M304: Open defecation | N304: Improved | O304: Not shared | R304: Open defecation | S304: Improved | T304: Not shared | W304: Open defecation | X304: Improved | Y304: Not shared | AB304: Open defecation
B305: DHS04 | C305: 2004 | D305: =IF(ISERROR(INDIRECT(CONCATENATE($B305,"!M122"))),"",INDIRECT(CONCATENATE($B305,"!M122"))) -> 21.24658565 | E305: =IF(ISERROR(INDIRECT(CONCATENATE($B305,"!M129"))),"",INDIRECT(CONCATENATE($B305,"!M129"))) -> N/A | H305: =IF(ISERROR(INDIRECT(CONCATENATE($B305,"!M127"))),"",INDIRECT(CONCATENATE($B305,"!M127"))) -> 29.30437889 | I305: =IF(ISERROR(INDIRECT(CONCATENATE($B305,"!N122"))),"",INDIRECT(CONCATENATE($B305,"!N122"))) -> 27.01236189 | J305: =IF(ISERROR(INDIRECT(CONCATENATE($B305,"!N129"))),"",INDIRECT(CONCATENATE($B305,"!N129"))) -> N/A | M305: =IF(ISERROR(INDIRECT(CONCATENATE($B305,"!N127"))),"",INDIRECT(CONCATENATE($B305,"!N127"))) -> 20.30787092 | N305: =IF(ISERROR(INDIRECT(CONCATENATE($B305,"!O122"))),"",INDIRECT(CONCATENATE($B305,"!O122"))) -> 37.07792612 | O305: =IF(ISERROR(INDIRECT(CONCATENATE($B305,"!O129"))),"",INDIRECT(CONCATENATE($B305,"!O129"))) -> N/A | R305: =IF(ISERROR(INDIRECT(CONCATENATE($B305,"!O127"))),"",INDIRECT(CONCATENATE($B305,"!O127"))) -> 12.04701858 | S305: =IF(ISERROR(INDIRECT(CONCATENATE($B305,"!P122"))),"",INDIRECT(CONCATENATE($B305,"!P122"))) -> 45.94738752 | T305: =IF(ISERROR(INDIRECT(CONCATENATE($B305,"!P129"))),"",INDIRECT(CONCATENATE($B305,"!P129"))) -> N/A | W305: =IF(ISERROR(INDIRECT(CONCATENATE($B305,"!P127"))),"",INDIRECT(CONCATENATE($B305,"!P127"))) -> 7.933943484 | X305: =IF(ISERROR(INDIRECT(CONCATENATE($B305,"!Q122"))),"",INDIRECT(CONCATENATE($B305,"!Q122"))) -> 70.66494673 | Y305: =IF(ISERROR(INDIRECT(CONCATENATE($B305,"!Q129"))),"",INDIRECT(CONCATENATE($B305,"!Q129"))) -> N/A | AB305: =IF(ISERROR(INDIRECT(CONCATENATE($B305,"!Q2127"))),"",INDIRECT(CONCATENATE($B305,"!Q127"))) -> 1.116170352
B306: MICS06 | C306: 2006 | D306: 13.11707335 | E306: 49.77152459 | H306: 22.48078924 | I306: 20.002377 | J306: 56.97304457 | M306: 13.68280198 | N306: 26.28100814 | O306: 69.24704355 | R306: 7.666833767 | S306: 36.8319911 | T306: 68.60611746 | W306: 3.055231475 | X306: 62.3914491 | Y306: 80.25042502 | AB306: 0.4843623863
B307: DHS07 | C307: 2007 | D307: 18.64117988 | E307: 49.16866915 | H307: 19.99847494 | I307: 23.08823951 | J307: 52.84516571 | M307: 12.54128076 | N307: 33.49787702 | O307: 63.44614295 | R307: 7.067456298 | S307: 42.12767231 | T307: 70.47718988 | W307: 3.794450159 | X307: 68.77153806 | Y307: 82.70408657 | AB307: 1.385300651
B308: DHS11 | C308: 2011 | D308: 24.56548869 | E308: 53.97563884 | H308: 13.71050638 | I308: 35.0732103 | J308: 61.20061694 | M308: 6.921662653 | N308: 46.99364364 | O308: 66.61591045 | R308: 3.311040086 | S308: 58.1204924 | T308: 70.0414862 | W308: 1.15430085 | X308: 83.18804703 | Y308: 81.22017503 | AB308: 0.3040726686
B309: MICS13 | C309: 2013 | D309: 50.49413016 | E309: 59.23904748 | H309: 12.75147984 | I309: 65.07170145 | J309: 70.0683171 | M309: 6.303817772 | N309: 75.50173613 | O309: 71.91236465 | R309: 2.721699119 | S309: 85.94408534 | T309: 76.76864896 | W309: 0.9069905131 | X309: 94.77299879 | Y309: 84.39115648 | AB309: 0.1247813765
B310: DHS14 | C310: 2014 | D310: 40.53764205 | E310: 61.04285003 | H310: 10.19577818 | I310: 48.78607865 | J310: 66.01015343 | M310: 7.29242149 | N310: 61.65176039 | O310: 70.30794975 | R310: 2.243684583 | S310: 76.92832217 | T310: 76.44703851 | W310: 0.4978046047 | X310: 93.27739987 | Y310: 80.54170896 | AB310: 0.09606976861
B311: DHS18 | C311: 2018 | D311: 37.38158425 | E311: 61.75831823 | H311: 4.603970294 | I311: 45.68480272 | J311: 65.91188654 | M311: 2.224310877 | N311: 60.65777193 | O311: 71.65963877 | R311: 0.5944423159 | S311: 76.99916535 | T311: 75.64381282 | W311: 0.3289817773 | X311: 91.25983803 | Y311: 86.91730445 | AB311: 0
B312: MICS19 | C312: 2019 | D312: 67.46234688 | E312: 70.51263423 | H312: 5.529836993 | I312: 77.34604559 | J312: 70.74895725 | M312: 2.577129638 | N312: 84.25900063 | O312: 76.35677807 | R312: 0.9361715751 | S312: 90.09491853 | T312: 80.40067462 | W312: 0.2131985979 | X312: 95.28257229 | Y312: 86.34248645 | AB312: 0.03542816553
B318: =CONCATENATE("Rural use of sanitation facilities, ",C299,"–",C300) -> Rural use of sanitation facilities, 2000–2020 | S318: Data points used for regression

Sheet Hygiene
B4: Access to hygiene facilities by wealth quintile (%)
B5: =IF(ISERROR(INDIRECT(CONCATENATE($E$32,"!A2"))),"",INDIRECT(CONCATENATE($E$32,"!A2"))) -> Bangladesh
B7: =CONCATENATE("National ",IF(ISERROR(INDIRECT(CONCATENATE($E$32,"!A2"))),"",INDIRECT(CONCATENATE($E$32,"!A210")))) -> National Access to hygiene facilities | K7: =CONCATENATE("Urban ",IF(ISERROR(INDIRECT(CONCATENATE($E$32,"!A2"))),"",INDIRECT(CONCATENATE($E$32,"!A210")))) -> Urban Access to hygiene facilities | S7: =CONCATENATE("Rural ",IF(ISERROR(INDIRECT(CONCATENATE($E$32,"!A2"))),"",INDIRECT(CONCATENATE($E$32,"!A210")))) -> Rural Access to hygiene facilities
E32: =INDEX(B88:B100,A88) -> DHS14 | G32: =IF(ISERROR(INDIRECT(CONCATENATE($E$32,"!A2"))),"",INDIRECT(CONCATENATE($E$32,"!A2"))) -> Bangladesh | K32: Poorest | N32: Poor | Q32: Middle | T32: Rich | W32: Richest
K33: Basic | L33: Limited | M33: No facility | N33: Basic | O33: Limited | P33: No facility | Q33: Basic | R33: Limited | S33: No facility | T33: Basic | U33: Limited | V33: No facility | W33: Basic | X33: Limited | Y33: No facility
B34: >>> Select Survey : | G34: NATIONAL | J34: =IF(ISERROR(INDIRECT(CONCATENATE(#REF!,"!A2"))),"",INDIRECT(CONCATENATE(#REF!,"!A210"))) ->  | K34: =IF(ISERROR(INDIRECT(CONCATENATE($E$32,"!C222"))),"",INDIRECT(CONCATENATE($E$32,"!C222"))) -> 6.040537889 | L34: =IF(ISERROR(INDIRECT(CONCATENATE($E$32,"!C223"))),"",INDIRECT(CONCATENATE($E$32,"!C223"))) -> 85.35825657 | M34: =IF(ISERROR(INDIRECT(CONCATENATE($E$32,"!C224"))),"",INDIRECT(CONCATENATE($E$32,"!C224"))) -> 8.60120554 | N34: =IF(ISERROR(INDIRECT(CONCATENATE($E$32,"!D222"))),"",INDIRECT(CONCATENATE($E$32,"!D222"))) -> 8.700521058 | O34: =IF(ISERROR(INDIRECT(CONCATENATE($E$32,"!D223"))),"",INDIRECT(CONCATENATE($E$32,"!D223"))) -> 83.93562683 | P34: =IF(ISERROR(INDIRECT(CONCATENATE($E$32,"!D224"))),"",INDIRECT(CONCATENATE($E$32,"!D224"))) -> 7.363852107 | Q34: =IF(ISERROR(INDIRECT(CONCATENATE($E$32,"!E222"))),"",INDIRECT(CONCATENATE($E$32,"!E222"))) -> 16.40106322 | R34: =IF(ISERROR(INDIRECT(CONCATENATE($E$32,"!E223"))),"",INDIRECT(CONCATENATE($E$32,"!E223"))) -> 80.07099023 | S34: =IF(ISERROR(INDIRECT(CONCATENATE($E$32,"!E224"))),"",INDIRECT(CONCATENATE($E$32,"!E224"))) -> 3.527946553 | T34: =IF(ISERROR(INDIRECT(CONCATENATE($E$32,"!F222"))),"",INDIRECT(CONCATENATE($E$32,"!F222"))) -> 34.19022983 | U34: =IF(ISERROR(INDIRECT(CONCATENATE($E$32,"!F223"))),"",INDIRECT(CONCATENATE($E$32,"!F223"))) -> 63.58914335 | V34: =IF(ISERROR(INDIRECT(CONCATENATE($E$32,"!F224"))),"",INDIRECT(CONCATENATE($E$32,"!F224"))) -> 2.22062682 | W34: =IF(ISERROR(INDIRECT(CONCATENATE($E$32,"!G222"))),"",INDIRECT(CONCATENATE($E$32,"!G222"))) -> 75.74923933 | X34: =IF(ISERROR(INDIRECT(CONCATENATE($E$32,"!G223"))),"",INDIRECT(CONCATENATE($E$32,"!G223"))) -> 23.92674973 | Y34: =IF(ISERROR(INDIRECT(CONCATENATE($E$32,"!G224"))),"",INDIRECT(CONCATENATE($E$32,"!G224"))) -> 0.3240109424
G37: URBAN | J37: =IF(ISERROR(INDIRECT(CONCATENATE(#REF!,"!A2"))),"",INDIRECT(CONCATENATE(#REF!,"!A210"))) ->  | K37: =IF(ISERROR(INDIRECT(CONCATENATE($E$32,"!H222"))),"",INDIRECT(CONCATENATE($E$32,"!H222"))) -> 9.638985799 | L37: =IF(ISERROR(INDIRECT(CONCATENATE($E$32,"!H223"))),"",INDIRECT(CONCATENATE($E$32,"!H223"))) -> 86.1343196 | M37: =IF(ISERROR(INDIRECT(CONCATENATE($E$32,"!H224"))),"",INDIRECT(CONCATENATE($E$32,"!H224"))) -> 4.226694602 | N37: =IF(ISERROR(INDIRECT(CONCATENATE($E$32,"!I222"))),"",INDIRECT(CONCATENATE($E$32,"!I222"))) -> 22.4748265 | O37: =IF(ISERROR(INDIRECT(CONCATENATE($E$32,"!I223"))),"",INDIRECT(CONCATENATE($E$32,"!I223"))) -> 75.66201268 | P37: =IF(ISERROR(INDIRECT(CONCATENATE($E$32,"!I224"))),"",INDIRECT(CONCATENATE($E$32,"!I224"))) -> 1.863160821 | Q37: =IF(ISERROR(INDIRECT(CONCATENATE($E$32,"!J222"))),"",INDIRECT(CONCATENATE($E$32,"!J222"))) -> 39.66471399 | R37: =IF(ISERROR(INDIRECT(CONCATENATE($E$32,"!J223"))),"",INDIRECT(CONCATENATE($E$32,"!J223"))) -> 58.4137063 | S37: =IF(ISERROR(INDIRECT(CONCATENATE($E$32,"!J224"))),"",INDIRECT(CONCATENATE($E$32,"!J224"))) -> 1.921579708 | T37: =IF(ISERROR(INDIRECT(CONCATENATE($E$32,"!K222"))),"",INDIRECT(CONCATENATE($E$32,"!K222"))) -> 73.59164856 | U37: =IF(ISERROR(INDIRECT(CONCATENATE($E$32,"!K223"))),"",INDIRECT(CONCATENATE($E$32,"!K223"))) -> 26.31349892 | V37: =IF(ISERROR(INDIRECT(CONCATENATE($E$32,"!K224"))),"",INDIRECT(CONCATENATE($E$32,"!K224"))) -> 0.09485252154 | W37: =IF(ISERROR(INDIRECT(CONCATENATE($E$32,"!L222"))),"",INDIRECT(CONCATENATE($E$32,"!L222"))) -> 96.66312186 | X37: =IF(ISERROR(INDIRECT(CONCATENATE($E$32,"!L223"))),"",INDIRECT(CONCATENATE($E$32,"!L223"))) -> 3.32620162 | Y37: =IF(ISERROR(INDIRECT(CONCATENATE($E$32,"!L224"))),"",INDIRECT(CONCATENATE($E$32,"!L224"))) -> 0.01067651555
G40: RURAL | J40: =IF(ISERROR(INDIRECT(CONCATENATE(#REF!,"!A2"))),"",INDIRECT(CONCATENATE(#REF!,"!A210"))) ->  | K40: =IF(ISERROR(INDIRECT(CONCATENATE($E$32,"!M222"))),"",INDIRECT(CONCATENATE($E$32,"!M222"))) -> 5.636750098 | L40: =IF(ISERROR(INDIRECT(CONCATENATE($E$32,"!M223"))),"",INDIRECT(CONCATENATE($E$32,"!M223"))) -> 85.22690532 | M40: =IF(ISERROR(INDIRECT(CONCATENATE($E$32,"!M224"))),"",INDIRECT(CONCATENATE($E$32,"!M224"))) -> 9.136344586 | N40: =IF(ISERROR(INDIRECT(CONCATENATE($E$32,"!N222"))),"",INDIRECT(CONCATENATE($E$32,"!N222"))) -> 7.287920708 | O40: =IF(ISERROR(INDIRECT(CONCATENATE($E$32,"!N223"))),"",INDIRECT(CONCATENATE($E$32,"!N223"))) -> 84.80381567 | P40: =IF(ISERROR(INDIRECT(CONCATENATE($E$32,"!N224"))),"",INDIRECT(CONCATENATE($E$32,"!N224"))) -> 7.908263619 | Q40: =IF(ISERROR(INDIRECT(CONCATENATE($E$32,"!O222"))),"",INDIRECT(CONCATENATE($E$32,"!O222"))) -> 12.17875371 | R40: =IF(ISERROR(INDIRECT(CONCATENATE($E$32,"!O223"))),"",INDIRECT(CONCATENATE($E$32,"!O223"))) -> 82.23551065 | S40: =IF(ISERROR(INDIRECT(CONCATENATE($E$32,"!O224"))),"",INDIRECT(CONCATENATE($E$32,"!O224"))) -> 5.585735639 | T40: =IF(ISERROR(INDIRECT(CONCATENATE($E$32,"!P222"))),"",INDIRECT(CONCATENATE($E$32,"!P222"))) -> 23.54305142 | U40: =IF(ISERROR(INDIRECT(CONCATENATE($E$32,"!P223"))),"",INDIRECT(CONCATENATE($E$32,"!P223"))) -> 72.63493308 | V40: =IF(ISERROR(INDIRECT(CONCATENATE($E$32,"!P224"))),"",INDIRECT(CONCATENATE($E$32,"!P224"))) -> 3.822015506 | W40: =IF(ISERROR(INDIRECT(CONCATENATE($E$32,"!Q222"))),"",INDIRECT(CONCATENATE($E$32,"!Q222"))) -> 54.56094347 | X40: =IF(ISERROR(INDIRECT(CONCATENATE($E$32,"!Q223"))),"",INDIRECT(CONCATENATE($E$32,"!Q223"))) -> 44.63271806 | Y40: =IF(ISERROR(INDIRECT(CONCATENATE($E$32,"!Q224"))),"",INDIRECT(CONCATENATE($E$32,"!Q224"))) -> 0.8063384692
A88: 6 | B88: DHS04
B89: MICS06
B90: DHS07
B91: DHS11
B92: MICS13
B93: DHS14
B94: Template

Sheet DHS04
A2: =A1026 -> Bangladesh
A3: =A1034 -> 2004
A4: Use of drinking water sources
A5: by wealth quintile and sub-national region
A6: Notes:
A7: WHO/UNICEF JMP customised wealth index excludes water,
A8: sanitation and hygiene assets.
A9: Survey used for analysis: | B9: =A1025 -> DHS04
A10: Improved wells based on: | B10: MICS06
A11: Time to source based on: | B11: MICS06
A14: Use of drinking water sources | C14: NATIONAL wealth index quintile | H14: URBAN wealth index quintile | M14: RURAL wealth index quintile | R14: SUB-REGIONS: | BA14: Raw numbers of respondents: | BB14: Use of drinking water sources | BC14: NATIONAL wealth index quintile | BH14: URBAN wealth index quintile | BM14: RURAL wealth index quintile | BR14: SUB-REGIONS:
A15: Weighted percentage (used in graphs) | C15: Poorest | D15: Poor | E15: Middle | F15: Rich | G15: Richest | H15: Poorest | I15: Poor | J15: Middle | K15: Rich | L15: Richest | M15: Poorest | N15: Poor | O15: Middle | P15: Rich | Q15: Richest | R15: barisal | S15: chittagong | T15: dhaka | U15: khulna | V15: rajshahi | W15: sylhet | BA15: Water data, raw numbers (weighted) | BC15: Poorest | BD15: Poor | BE15: Middle | BF15: Rich | BG15: Richest | BH15: Poorest | BI15: Poor | BJ15: Middle | BK15: Rich | BL15: Richest | BM15: Poorest | BN15: Poor | BO15: Middle | BP15: Rich | BQ15: Richest | BR15: barisal | BS15: chittagong | BT15: dhaka | BU15: khulna | BV15: rajshahi | BW15: sylhet
A16: Water | B16: Improved | C16: =C58+C59+C60+C61+C62+C63*MICS06!C24/100 -> 95.61232025 | D16: =D58+D59+D60+D61+D62+D63*MICS06!D24/100 -> 96.81153903 | E16: =E58+E59+E60+E61+E62+E63*MICS06!E24/100 -> 98.35623625 | F16: =F58+F59+F60+F61+F62+F63*MICS06!F24/100 -> 98.11332719 | G16: =G58+G59+G60+G61+G62+G63*MICS06!G24/100 -> 98.88739839 | H16: =H58+H59+H60+H61+H62+H63*MICS06!H24/100 -> 97.46869898 | I16: =I58+I59+I60+I61+I62+I63*MICS06!I24/100 -> 99.10113698 | J16: =J58+J59+J60+J61+J62+J63*MICS06!J24/100 -> 99.49284406 | K16: =K58+K59+K60+K61+K62+K63*MICS06!K24/100 -> 99.77646677 | L16: =L58+L59+L60+L61+L62+L63*MICS06!L24/100 -> 99.88780198 | M16: =M58+M59+M60+M61+M62+M63*MICS06!M24/100 -> 95.04349834 | N16: =N58+N59+N60+N61+N62+N63*MICS06!N24/100 -> 96.63925068 | O16: =O58+O59+O60+O61+O62+O63*MICS06!O24/100 -> 98.09949422 | P16: =P58+P59+P60+P61+P62+P63*MICS06!P24/100 -> 98.01528752 | Q16: =Q58+Q59+Q60+Q61+Q62+Q63*MICS06!Q24/100 -> 97.73302951 | R16: =R58+R59+R60+R61+R62+R63*MICS06!R24/100 -> 95.54906714 | S16: =S58+S59+S60+S61+S62+S63*MICS06!S24/100 -> 97.40263104 | T16: =T58+T59+T60+T61+T62+T63*MICS06!T24/100 -> 99.72030004 | U16: =U58+U59+U60+U61+U62+U63*MICS06!U24/100 -> 92.80307639 | V16: =V58+V59+V60+V61+V62+V63*MICS06!V24/100 -> 99.58915244 | W16: =W58+W59+W60+W61+W62+W63*MICS06!W24/100 -> 92.13805404 | BA16: Water | BB16: Improved | BC16: N/A | BD16: N/A | BE16: N/A | BF16: N/A | BG16: N/A | BH16: N/A | BI16: N/A | BJ16: N/A | BK16: N/A | BL16: N/A | BM16: N/A | BN16: N/A | BO16: N/A | BP16: N/A | BQ16: N/A | BR16: N/A | BS16: N/A | BT16: N/A | BU16: N/A | BV16: N/A | BW16: N/A
B17: Not Improved | C17: =100-C16 -> 4.387679752 | D17: 3.188460971 | E17: 1.643763754 | F17: 1.88667281 | G17: 1.112601608 | H17: 2.531301016 | I17: 0.898863022 | J17: 0.5071559397 | K17: 0.2235332339 | L17: 0.1121980229 | M17: 4.956501659 | N17: 3.360749323 | O17: 1.900505781 | P17: 1.984712485 | Q17: 2.266970491 | R17: 4.450932856 | S17: 2.597368956 | T17: 0.2796999589 | U17: 7.196923613 | V17: 0.4108475575 | W17: 7.861945956 | BB17: Not Improved | BC17: N/A | BD17: N/A | BE17: N/A | BF17: N/A | BG17: N/A | BH17: N/A | BI17: N/A | BJ17: N/A | BK17: N/A | BL17: N/A | BM17: N/A | BN17: N/A | BO17: N/A | BP17: N/A | BQ17: N/A | BR17: N/A | BS17: N/A | BT17: N/A | BU17: N/A | BV17: N/A | BW17: N/A
A18: Water ladder | B18: Basic | C18: =C16*MICS06!C23/100 -> 93.98819326 | D18: =D16*MICS06!D23/100 -> 95.85653899 | E18: =E16*MICS06!E23/100 -> 97.70769309 | F18: =F16*MICS06!F23/100 -> 97.78311176 | G18: =G16*MICS06!G23/100 -> 98.78911353 | H18: =H16*MICS06!H23/100 -> 96.82548832 | I18: =I16*MICS06!I23/100 -> 98.58022553 | J18: =J16*MICS06!J23/100 -> 99.19712823 | K18: =K16*MICS06!K23/100 -> 99.73359828 | L18: =L16*MICS06!L23/100 -> 99.88780198 | M18: =M16*MICS06!M23/100 -> 93.10294815 | N18: =N16*MICS06!N23/100 -> 95.54186074 | O18: =O16*MICS06!O23/100 -> 97.22864542 | P18: =P16*MICS06!P23/100 -> 97.64883205 | Q18: =Q16*MICS06!Q23/100 -> 97.47684884 | R18: =R16*MICS06!R23/100 -> 92.88543266 | S18: =S16*MICS06!S23/100 -> 96.00034445 | T18: =T16*MICS06!T23/100 -> 99.55953693 | U18: =U16*MICS06!U23/100 -> 91.78508111 | V18: =V16*MICS06!V23/100 -> 99.50109596 | W18: =W16*MICS06!W23/100 -> 90.69198928 | BA18: Water ladder | BB18: Basic | BC18: N/A | BD18: N/A | BE18: N/A | BF18: N/A | BG18: N/A | BH18: N/A | BI18: N/A | BJ18: N/A | BK18: N/A | BL18: N/A | BM18: N/A | BN18: N/A | BO18: N/A | BP18: N/A | BQ18: N/A | BR18: N/A | BS18: N/A | BT18: N/A | BU18: N/A | BV18: N/A | BW18: N/A
B19: Limited | C19: =C16*MICS06!C22/100 -> 1.624126986 | D19: =D16*MICS06!D22/100 -> 0.9550000383 | E19: =E16*MICS06!E22/100 -> 0.6485431545 | F19: =F16*MICS06!F22/100 -> 0.3302154349 | G19: =G16*MICS06!G22/100 -> 0.0982848667 | H19: =H16*MICS06!H22/100 -> 0.6432106613 | I19: =I16*MICS06!I22/100 -> 0.5209114459 | J19: =J16*MICS06!J22/100 -> 0.2957158309 | K19: =K16*MICS06!K22/100 -> 0.04286848563 | L19: =L16*MICS06!L22/100 -> 0 | M19: =M16*MICS06!M22/100 -> 1.940550194 | N19: =N16*MICS06!N22/100 -> 1.097389933 | O19: =O16*MICS06!O22/100 -> 0.8708487995 | P19: =P16*MICS06!P22/100 -> 0.3664554677 | Q19: =Q16*MICS06!Q22/100 -> 0.2561806709 | R19: =R16*MICS06!R22/100 -> 2.663634479 | S19: =S16*MICS06!S22/100 -> 1.40228659 | T19: =T16*MICS06!T22/100 -> 0.1607631088 | U19: =U16*MICS06!U22/100 -> 1.017995278 | V19: =V16*MICS06!V22/100 -> 0.08805648261 | W19: =W16*MICS06!W22/100 -> 1.446064763 | BB19: Limited | BC19: N/A | BD19: N/A | BE19: N/A | BF19: N/A | BG19: N/A | BH19: N/A | BI19: N/A | BJ19: N/A | BK19: N/A | BL19: N/A | BM19: N/A | BN19: N/A | BO19: N/A | BP19: N/A | BQ19: N/A | BR19: N/A | BS19: N/A | BT19: N/A | BU19: N/A | BV19: N/A | BW19: N/A
B20: Unimproved | C20: =100-(C18+C19+C21) -> 0.7676454958 | D20: 0.6701158707 | E20: 0.1979155024 | F20: 0.2984211279 | G20: 0.2627313668 | H20: 0.02668365861 | I20: 0 | J20: -2.557953849e-13 | K20: 0.02967577977 | L20: 0.1121980229 | M20: 0.9969163698 | N20: 0.707105796 | O20: 0.2298764991 | P20: 0.3601895821 | Q20: 0.5081500536 | R20: 3.410605132e-13 | S20: 0.6853254369 | T20: 0.06598829291 | U20: -2.842170943e-13 | V20: 0.4108475575 | W20: 1.912673491 | BB20: Unimproved | BC20: N/A | BD20: N/A | BE20: N/A | BF20: N/A | BG20: N/A | BH20: N/A | BI20: N/A | BJ20: N/A | BK20: N/A | BL20: N/A | BM20: N/A | BN20: N/A | BO20: N/A | BP20: N/A | BQ20: N/A | BR20: N/A | BS20: N/A | BT20: N/A | BU20: N/A | BV20: N/A | BW20: N/A
B21: Surface water | C21: =C64+C65 -> 3.620034256 | D21: 2.5183451 | E21: 1.445848252 | F21: 1.588251682 | G21: 0.8498702415 | H21: 2.504617357 | I21: 0.898863022 | J21: 0.5071559397 | K21: 0.1938574542 | L21: 0 | M21: 3.959585289 | N21: 2.653643527 | O21: 1.670629282 | P21: 1.624522903 | Q21: 1.758820437 | R21: 4.450932856 | S21: 1.912043519 | T21: 0.213711666 | U21: 7.196923613 | V21: 0 | W21: 5.949272465 | BB21: Surface water | BC21: N/A | BD21: N/A | BE21: N/A | BF21: N/A | BG21: N/A | BH21: N/A | BI21: N/A | BJ21: N/A | BK21: N/A | BL21: N/A | BM21: N/A | BN21: N/A | BO21: N/A | BP21: N/A | BQ21: N/A | BR21: N/A | BS21: N/A | BT21: N/A | BU21: N/A | BV21: N/A | BW21: N/A
A22: Improved water point at more than 30 minutes | B22: Yes | C22: N/A | D22: N/A | E22: N/A | F22: N/A | G22: N/A | H22: N/A | I22: N/A | J22: N/A | K22: N/A | L22: N/A | M22: N/A | N22: N/A | O22: N/A | P22: N/A | Q22: N/A | R22: N/A | S22: N/A | T22: N/A | U22: N/A | V22: N/A | W22: N/A | BA22: Improved water point at more than 30 minutes | BB22: Yes | BC22: N/A | BD22: N/A | BE22: N/A | BF22: N/A | BG22: N/A | BH22: N/A | BI22: N/A | BJ22: N/A | BK22: N/A | BL22: N/A | BM22: N/A | BN22: N/A | BO22: N/A | BP22: N/A | BQ22: N/A | BR22: N/A | BS22: N/A | BT22: N/A | BU22: N/A | BV22: N/A | BW22: N/A
B23: No | C23: N/A | D23: N/A | E23: N/A | F23: N/A | G23: N/A | H23: N/A | I23: N/A | J23: N/A | K23: N/A | L23: N/A | M23: N/A | N23: N/A | O23: N/A | P23: N/A | Q23: N/A | R23: N/A | S23: N/A | T23: N/A | U23: N/A | V23: N/A | W23: N/A | BB23: No | BC23: N/A | BD23: N/A | BE23: N/A | BF23: N/A | BG23: N/A | BH23: N/A | BI23: N/A | BJ23: N/A | BK23: N/A | BL23: N/A | BM23: N/A | BN23: N/A | BO23: N/A | BP23: N/A | BQ23: N/A | BR23: N/A | BS23: N/A | BT23: N/A | BU23: N/A | BV23: N/A | BW23: N/A
A24: Manually calculated ratios | B24: Improved wells
B25: Improved springs
B26: Other
C27: NATIONAL wealth index quintile | H27: URBAN wealth index quintile | M27: RURAL wealth index quintile | R27: SUB-REGIONS: | BA27: Raw numbers of respondents: | BB27: Use of drinking water sources | BC27: NATIONAL wealth index quintile | BH27: URBAN wealth index quintile | BM27: RURAL wealth index quintile | BR27: SUB-REGIONS:
A28: Percentage based on weighted population | C28: Poorest | D28: Poor | E28: Middle | F28: Rich | G28: Richest | H28: Poorest | I28: Poor | J28: Middle | K28: Rich | L28: Richest | M28: Poorest | N28: Poor | O28: Middle | P28: Rich | Q28: Richest | R28: barisal | S28: chittagong | T28: dhaka | U28: khulna | V28: rajshahi | W28: sylhet | BA28: Water data, raw numbers (weighted) | BC28: Poorest | BD28: Poor | BE28: Middle | BF28: Rich | BG28: Richest | BH28: Poorest | BI28: Poor | BJ28: Middle | BK28: Rich | BL28: Richest | BM28: Poorest | BN28: Poor | BO28: Middle | BP28: Rich | BQ28: Richest | BR28: barisal | BS28: chittagong | BT28: dhaka | BU28: khulna | BV28: rajshahi | BW28: sylhet
A29: Piped water | B29: Yes | C29: =C58+C59 -> 1.257260316 | D29: 2.1403135 | E29: 1.398796455 | F29: 2.709035921 | G29: 25.8096995 | H29: 14.60570635 | I29: 11.1187687 | J29: 22.67796489 | K29: 39.06580835 | L29: 63.44748265 | M29: 0.01991895489 | N29: 0.08126046115 | O29: 0.3094838929 | P29: 0.06662112172 | Q29: 0.1439117713 | R29: 0.6666624647 | S29: 4.904777478 | T29: 15.88721811 | U29: 3.207799544 | V29: 0.4607869592 | W29: 3.342674959 | BA29: Piped water | BB29: Yes | BC29: N/A | BD29: N/A | BE29: N/A | BF29: N/A | BG29: N/A | BH29: N/A | BI29: N/A | BJ29: N/A | BK29: N/A | BL29: N/A | BM29: N/A | BN29: N/A | BO29: N/A | BP29: N/A | BQ29: N/A | BR29: N/A | BS29: N/A | BT29: N/A | BU29: N/A | BV29: N/A | BW29: N/A
B30: No | C30: =100-C29 -> 98.74273968 | D30: 97.8596865 | E30: 98.60120355 | F30: 97.29096408 | G30: 74.1903005 | H30: 85.39429365 | I30: 88.8812313 | J30: 77.32203511 | K30: 60.93419165 | L30: 36.55251735 | M30: 99.98008105 | N30: 99.91873954 | O30: 99.69051611 | P30: 99.93337888 | Q30: 99.85608823 | R30: 99.33333754 | S30: 95.09522252 | T30: 84.11278189 | U30: 96.79220046 | V30: 99.53921304 | W30: 96.65732504 | BB30: No | BC30: N/A | BD30: N/A | BE30: N/A | BF30: N/A | BG30: N/A | BH30: N/A | BI30: N/A | BJ30: N/A | BK30: N/A | BL30: N/A | BM30: N/A | BN30: N/A | BO30: N/A | BP30: N/A | BQ30: N/A | BR30: N/A | BS30: N/A | BT30: N/A | BU30: N/A | BV30: N/A | BW30: N/A
A31: Piped water on premises | B31: Yes | C31: N/A | D31: N/A | E31: N/A | F31: N/A | G31: N/A | H31: N/A | I31: N/A | J31: N/A | K31: N/A | L31: N/A | M31: N/A | N31: N/A | O31: N/A | P31: N/A | Q31: N/A | R31: N/A | S31: N/A | T31: N/A | U31: N/A | V31: N/A | W31: N/A | BA31: Piped water on premises | BB31: Yes | BC31: N/A | BD31: N/A | BE31: N/A | BF31: N/A | BG31: N/A | BH31: N/A | BI31: N/A | BJ31: N/A | BK31: N/A | BL31: N/A | BM31: N/A | BN31: N/A | BO31: N/A | BP31: N/A | BQ31: N/A | BR31: N/A | BS31: N/A | BT31: N/A | BU31: N/A | BV31: N/A | BW31: N/A
B32: No | C32: N/A | D32: N/A | E32: N/A | F32: N/A | G32: N/A | H32: N/A | I32: N/A | J32: N/A | K32: N/A | L32: N/A | M32: N/A | N32: N/A | O32: N/A | P32: N/A | Q32: N/A | R32: N/A | S32: N/A | T32: N/A | U32: N/A | V32: N/A | W32: N/A | BB32: No | BC32: N/A | BD32: N/A | BE32: N/A | BF32: N/A | BG32: N/A | BH32: N/A | BI32: N/A | BJ32: N/A | BK32: N/A | BL32: N/A | BM32: N/A | BN32: N/A | BO32: N/A | BP32: N/A | BQ32: N/A | BR32: N/A | BS32: N/A | BT32: N/A | BU32: N/A | BV32: N/A | BW32: N/A
A33: Piped water into dwelling | B33: Yes | C33: =C58 -> 0.7113140969 | D33: 0.5776401998 | E33: 0.5280607874 | F33: 1.066516217 | G33: 21.82739476 | H33: 5.627159127 | I33: 4.081969354 | J33: 13.41334251 | K33: 30.14340946 | L33: 60.1311227 | M33: 0 | N33: 0 | O33: 0 | P33: 0 | Q33: 0.0576390289 | R33: 0.420815027 | S33: 2.904207371 | T33: 12.27254868 | U33: 2.452406026 | V33: 0.4418499109 | W33: 2.00654539 | BA33: Piped water into dwelling | BB33: Yes | BC33: N/A | BD33: N/A | BE33: N/A | BF33: N/A | BG33: N/A | BH33: N/A | BI33: N/A | BJ33: N/A | BK33: N/A | BL33: N/A | BM33: N/A | BN33: N/A | BO33: N/A | BP33: N/A | BQ33: N/A | BR33: N/A | BS33: N/A | BT33: N/A | BU33: N/A | BV33: N/A | BW33: N/A
B34: No | C34: =100-C33 -> 99.2886859 | D34: 99.4223598 | E34: 99.47193921 | F34: 98.93348378 | G34: 78.17260524 | H34: 94.37284087 | I34: 95.91803065 | J34: 86.58665749 | K34: 69.85659054 | L34: 39.8688773 | M34: 100 | N34: 100 | O34: 100 | P34: 100 | Q34: 99.94236097 | R34: 99.57918497 | S34: 97.09579263 | T34: 87.72745132 | U34: 97.54759397 | V34: 99.55815009 | W34: 97.99345461 | BB34: No | BC34: N/A | BD34: N/A | BE34: N/A | BF34: N/A | BG34: N/A | BH34: N/A | BI34: N/A | BJ34: N/A | BK34: N/A | BL34: N/A | BM34: N/A | BN34: N/A | BO34: N/A | BP34: N/A | BQ34: N/A | BR34: N/A | BS34: N/A | BT34: N/A | BU34: N/A | BV34: N/A | BW34: N/A
A35: Water source on premises | B35: Yes | C35: N/A | D35: N/A | E35: N/A | F35: N/A | G35: N/A | H35: N/A | I35: N/A | J35: N/A | K35: N/A | L35: N/A | M35: N/A | N35: N/A | O35: N/A | P35: N/A | Q35: N/A | R35: N/A | S35: N/A | T35: N/A | U35: N/A | V35: N/A | W35: N/A | BA35: Water source on premises | BB35: Yes | BC35: N/A | BD35: N/A | BE35: N/A | BF35: N/A | BG35: N/A | BH35: N/A | BI35: N/A | BJ35: N/A | BK35: N/A | BL35: N/A | BM35: N/A | BN35: N/A | BO35: N/A | BP35: N/A | BQ35: N/A | BR35: N/A | BS35: N/A | BT35: N/A | BU35: N/A | BV35: N/A | BW35: N/A
B36: No | C36: N/A | D36: N/A | E36: N/A | F36: N/A | G36: N/A | H36: N/A | I36: N/A | J36: N/A | K36: N/A | L36: N/A | M36: N/A | N36: N/A | O36: N/A | P36: N/A | Q36: N/A | R36: N/A | S36: N/A | T36: N/A | U36: N/A | V36: N/A | W36: N/A | BB36: No | BC36: N/A | BD36: N/A | BE36: N/A | BF36: N/A | BG36: N/A | BH36: N/A | BI36: N/A | BJ36: N/A | BK36: N/A | BL36: N/A | BM36: N/A | BN36: N/A | BO36: N/A | BP36: N/A | BQ36: N/A | BR36: N/A | BS36: N/A | BT36: N/A | BU36: N/A | BV36: N/A | BW36: N/A
A37: Improved Water source on premises | B37: Yes | C37: N/A | D37: N/A | E37: N/A | F37: N/A | G37: N/A | H37: N/A | I37: N/A | J37: N/A | K37: N/A | L37: N/A | M37: N/A | N37: N/A | O37: N/A | P37: N/A | Q37: N/A | R37: N/A | S37: N/A | T37: N/A | U37: N/A | V37: N/A | W37: N/A | BA37: Improved water source on premises | BB37: Yes | BC37: N/A | BD37: N/A | BE37: N/A | BF37: N/A | BG37: N/A | BH37: N/A | BI37: N/A | BJ37: N/A | BK37: N/A | BL37: N/A | BM37: N/A | BN37: N/A | BO37: N/A | BP37: N/A | BQ37: N/A | BR37: N/A | BS37: N/A | BT37: N/A | BU37: N/A | BV37: N/A | BW37: N/A
B38: No | C38: N/A | D38: N/A | E38: N/A | F38: N/A | G38: N/A | H38: N/A | I38: N/A | J38: N/A | K38: N/A | L38: N/A | M38: N/A | N38: N/A | O38: N/A | P38: N/A | Q38: N/A | R38: N/A | S38: N/A | T38: N/A | U38: N/A | V38: N/A | W38: N/A | BB38: No | BC38: N/A | BD38: N/A | BE38: N/A | BF38: N/A | BG38: N/A | BH38: N/A | BI38: N/A | BJ38: N/A | BK38: N/A | BL38: N/A | BM38: N/A | BN38: N/A | BO38: N/A | BP38: N/A | BQ38: N/A | BR38: N/A | BS38: N/A | BT38: N/A | BU38: N/A | BV38: N/A | BW38: N/A
A39: Piped water on premises available when needed | B39: Yes | C39: N/A | D39: N/A | E39: N/A | F39: N/A | G39: N/A | H39: N/A | I39: N/A | J39: N/A | K39: N/A | L39: N/A | M39: N/A | N39: N/A | O39: N/A | P39: N/A | Q39: N/A | R39: N/A | S39: N/A | T39: N/A | U39: N/A | V39: N/A | W39: N/A | BA39: Piped water on premises available when needed | BB39: Yes | BC39: N/A | BD39: N/A | BE39: N/A | BF39: N/A | BG39: N/A | BH39: N/A | BI39: N/A | BJ39: N/A | BK39: N/A | BL39: N/A | BM39: N/A | BN39: N/A | BO39: N/A | BP39: N/A | BQ39: N/A | BR39: N/A | BS39: N/A | BT39: N/A | BU39: N/A | BV39: N/A | BW39: N/A
B40: No | C40: N/A | D40: N/A | E40: N/A | F40: N/A | G40: N/A | H40: N/A | I40: N/A | J40: N/A | K40: N/A | L40: N/A | M40: N/A | N40: N/A | O40: N/A | P40: N/A | Q40: N/A | R40: N/A | S40: N/A | T40: N/A | U40: N/A | V40: N/A | W40: N/A | BB40: No | BC40: N/A | BD40: N/A | BE40: N/A | BF40: N/A | BG40: N/A | BH40: N/A | BI40: N/A | BJ40: N/A | BK40: N/A | BL40: N/A | BM40: N/A | BN40: N/A | BO40: N/A | BP40: N/A | BQ40: N/A | BR40: N/A | BS40: N/A | BT40: N/A | BU40: N/A | BV40: N/A | BW40: N/A
A41: Water point at more than 30 minutes | B41: Yes | C41: N/A | D41: N/A | E41: N/A | F41: N/A | G41: N/A | H41: N/A | I41: N/A | J41: N/A | K41: N/A | L41: N/A | M41: N/A | N41: N/A | O41: N/A | P41: N/A | Q41: N/A | R41: N/A | S41: N/A | T41: N/A | U41: N/A | V41: N/A | W41: N/A | BA41: Water point at more than 30 minutes | BB41: Yes | BC41: N/A | BD41: N/A | BE41: N/A | BF41: N/A | BG41: N/A | BH41: N/A | BI41: N/A | BJ41: N/A | BK41: N/A | BL41: N/A | BM41: N/A | BN41: N/A | BO41: N/A | BP41: N/A | BQ41: N/A | BR41: N/A | BS41: N/A | BT41: N/A | BU41: N/A | BV41: N/A | BW41: N/A
B42: No | C42: N/A | D42: N/A | E42: N/A | F42: N/A | G42: N/A | H42: N/A | I42: N/A | J42: N/A | K42: N/A | L42: N/A | M42: N/A | N42: N/A | O42: N/A | P42: N/A | Q42: N/A | R42: N/A | S42: N/A | T42: N/A | U42: N/A | V42: N/A | W42: N/A | BB42: No | BC42: N/A | BD42: N/A | BE42: N/A | BF42: N/A | BG42: N/A | BH42: N/A | BI42: N/A | BJ42: N/A | BK42: N/A | BL42: N/A | BM42: N/A | BN42: N/A | BO42: N/A | BP42: N/A | BQ42: N/A | BR42: N/A | BS42: N/A | BT42: N/A | BU42: N/A | BV42: N/A | BW42: N/A
A43: Water source available when needed | B43: Yes | C43: N/A | D43: N/A | E43: N/A | F43: N/A | G43: N/A | H43: N/A | I43: N/A | J43: N/A | K43: N/A | L43: N/A | M43: N/A | N43: N/A | O43: N/A | P43: N/A | Q43: N/A | R43: N/A | S43: N/A | T43: N/A | U43: N/A | V43: N/A | W43: N/A | BA43: Water source available when needed | BB43: Yes | BC43: N/A | BD43: N/A | BE43: N/A | BF43: N/A | BG43: N/A | BH43: N/A | BI43: N/A | BJ43: N/A | BK43: N/A | BL43: N/A | BM43: N/A | BN43: N/A | BO43: N/A | BP43: N/A | BQ43: N/A | BR43: N/A | BS43: N/A | BT43: N/A | BU43: N/A | BV43: N/A | BW43: N/A
B44: No | C44: N/A | D44: N/A | E44: N/A | F44: N/A | G44: N/A | H44: N/A | I44: N/A | J44: N/A | K44: N/A | L44: N/A | M44: N/A | N44: N/A | O44: N/A | P44: N/A | Q44: N/A | R44: N/A | S44: N/A | T44: N/A | U44: N/A | V44: N/A | W44: N/A | BB44: No | BC44: N/A | BD44: N/A | BE44: N/A | BF44: N/A | BG44: N/A | BH44: N/A | BI44: N/A | BJ44: N/A | BK44: N/A | BL44: N/A | BM44: N/A | BN44: N/A | BO44: N/A | BP44: N/A | BQ44: N/A | BR44: N/A | BS44: N/A | BT44: N/A | BU44: N/A | BV44: N/A | BW44: N/A
A45: Improved water source available when needed | B45: Yes | C45: N/A | D45: N/A | E45: N/A | F45: N/A | G45: N/A | H45: N/A | I45: N/A | J45: N/A | K45: N/A | L45: N/A | M45: N/A | N45: N/A | O45: N/A | P45: N/A | Q45: N/A | R45: N/A | S45: N/A | T45: N/A | U45: N/A | V45: N/A | W45: N/A | BA45: Improved water source available when needed | BB45: Yes | BC45: N/A | BD45: N/A | BE45: N/A | BF45: N/A | BG45: N/A | BH45: N/A | BI45: N/A | BJ45: N/A | BK45: N/A | BL45: N/A | BM45: N/A | BN45: N/A | BO45: N/A | BP45: N/A | BQ45: N/A | BR45: N/A | BS45: N/A | BT45: N/A | BU45: N/A | BV45: N/A | BW45: N/A
B46: No | C46: N/A | D46: N/A | E46: N/A | F46: N/A | G46: N/A | H46: N/A | I46: N/A | J46: N/A | K46: N/A | L46: N/A | M46: N/A | N46: N/A | O46: N/A | P46: N/A | Q46: N/A | R46: N/A | S46: N/A | T46: N/A | U46: N/A | V46: N/A | W46: N/A | BB46: No | BC46: N/A | BD46: N/A | BE46: N/A | BF46: N/A | BG46: N/A | BH46: N/A | BI46: N/A | BJ46: N/A | BK46: N/A | BL46: N/A | BM46: N/A | BN46: N/A | BO46: N/A | BP46: N/A | BQ46: N/A | BR46: N/A | BS46: N/A | BT46: N/A | BU46: N/A | BV46: N/A | BW46: N/A
A47: Microbiological quality at point of collection | B47: Not contaminated (No E. coli in 100 mL) | C47: N/A | D47: N/A | E47: N/A | F47: N/A | G47: N/A | H47: N/A | I47: N/A | J47: N/A | K47: N/A | L47: N/A | M47: N/A | N47: N/A | O47: N/A | P47: N/A | Q47: N/A | R47: N/A | S47: N/A | T47: N/A | U47: N/A | V47: N/A | W47: N/A | BA47: Microbiological quality at point of collection | BB47: Not contaminated (No E. coli in 100 mL) | BC47: N/A | BD47: N/A | BE47: N/A | BF47: N/A | BG47: N/A | BH47: N/A | BI47: N/A | BJ47: N/A | BK47: N/A | BL47: N/A | BM47: N/A | BN47: N/A | BO47: N/A | BP47: N/A | BQ47: N/A | BR47: N/A | BS47: N/A | BT47: N/A | BU47: N/A | BV47: N/A | BW47: N/A
B48: Contaminated (E. coli detected in 100 mL) | C48: N/A | D48: N/A | E48: N/A | F48: N/A | G48: N/A | H48: N/A | I48: N/A | J48: N/A | K48: N/A | L48: N/A | M48: N/A | N48: N/A | O48: N/A | P48: N/A | Q48: N/A | R48: N/A | S48: N/A | T48: N/A | U48: N/A | V48: N/A | W48: N/A | BB48: Contaminated (E. coli detected in 100 mL) | BC48: N/A | BD48: N/A | BE48: N/A | BF48: N/A | BG48: N/A | BH48: N/A | BI48: N/A | BJ48: N/A | BK48: N/A | BL48: N/A | BM48: N/A | BN48: N/A | BO48: N/A | BP48: N/A | BQ48: N/A | BR48: N/A | BS48: N/A | BT48: N/A | BU48: N/A | BV48: N/A | BW48: N/A
B49: Highly contaminated (>100 CFU/100 mL) | C49: N/A | D49: N/A | E49: N/A | F49: N/A | G49: N/A | H49: N/A | I49: N/A | J49: N/A | K49: N/A | L49: N/A | M49: N/A | N49: N/A | O49: N/A | P49: N/A | Q49: N/A | R49: N/A | S49: N/A | T49: N/A | U49: N/A | V49: N/A | W49: N/A | BB49: Highly contaminated (>100 CFU/100 mL) | BC49: N/A | BD49: N/A | BE49: N/A | BF49: N/A | BG49: N/A | BH49: N/A | BI49: N/A | BJ49: N/A | BK49: N/A | BL49: N/A | BM49: N/A | BN49: N/A | BO49: N/A | BP49: N/A | BQ49: N/A | BR49: N/A | BS49: N/A | BT49: N/A | BU49: N/A | BV49: N/A | BW49: N/A
A50: Microbiological quality of improved water sources at point of collection | B50: Not contaminated (No E. coli in 100 mL) | C50: N/A | D50: N/A | E50: N/A | F50: N/A | G50: N/A | H50: N/A | I50: N/A | J50: N/A | K50: N/A | L50: N/A | M50: N/A | N50: N/A | O50: N/A | P50: N/A | Q50: N/A | R50: N/A | S50: N/A | T50: N/A | U50: N/A | V50: N/A | W50: N/A | BA50: Microbiological quality of improved water sources at point of collection | BB50: Not contaminated (No E. coli in 100 mL) | BC50: N/A | BD50: N/A | BE50: N/A | BF50: N/A | BG50: N/A | BH50: N/A | BI50: N/A | BJ50: N/A | BK50: N/A | BL50: N/A | BM50: N/A | BN50: N/A | BO50: N/A | BP50: N/A | BQ50: N/A | BR50: N/A | BS50: N/A | BT50: N/A | BU50: N/A | BV50: N/A | BW50: N/A
B51: Contaminated (E. coli detected in 100 mL) | C51: N/A | D51: N/A | E51: N/A | F51: N/A | G51: N/A | H51: N/A | I51: N/A | J51: N/A | K51: N/A | L51: N/A | M51: N/A | N51: N/A | O51: N/A | P51: N/A | Q51: N/A | R51: N/A | S51: N/A | T51: N/A | U51: N/A | V51: N/A | W51: N/A | BB51: Contaminated (E. coli detected in 100 mL) | BC51: N/A | BD51: N/A | BE51: N/A | BF51: N/A | BG51: N/A | BH51: N/A | BI51: N/A | BJ51: N/A | BK51: N/A | BL51: N/A | BM51: N/A | BN51: N/A | BO51: N/A | BP51: N/A | BQ51: N/A | BR51: N/A | BS51: N/A | BT51: N/A | BU51: N/A | BV51: N/A | BW51: N/A
B52: Highly contaminated (>100 CFU/100 mL) | C52: N/A | D52: N/A | E52: N/A | F52: N/A | G52: N/A | H52: N/A | I52: N/A | J52: N/A | K52: N/A | L52: N/A | M52: N/A | N52: N/A | O52: N/A | P52: N/A | Q52: N/A | R52: N/A | S52: N/A | T52: N/A | U52: N/A | V52: N/A | W52: N/A | BB52: Highly contaminated (>100 CFU/100 mL) | BC52: N/A | BD52: N/A | BE52: N/A | BF52: N/A | BG52: N/A | BH52: N/A | BI52: N/A | BJ52: N/A | BK52: N/A | BL52: N/A | BM52: N/A | BN52: N/A | BO52: N/A | BP52: N/A | BQ52: N/A | BR52: N/A | BS52: N/A | BT52: N/A | BU52: N/A | BV52: N/A | BW52: N/A
A53: Microbiological quality of piped on premises at point of collection | B53: Not contaminated (No E. coli in 100 mL) | C53: N/A | D53: N/A | E53: N/A | F53: N/A | G53: N/A | H53: N/A | I53: N/A | J53: N/A | K53: N/A | L53: N/A | M53: N/A | N53: N/A | O53: N/A | P53: N/A | Q53: N/A | R53: N/A | S53: N/A | T53: N/A | U53: N/A | V53: N/A | W53: N/A | BA53: Microbiological quality of piped on premises at point of collection | BB53: Not contaminated (No E. coli in 100 mL) | BC53: N/A | BD53: N/A | BE53: N/A | BF53: N/A | BG53: N/A | BH53: N/A | BI53: N/A | BJ53: N/A | BK53: N/A | BL53: N/A | BM53: N/A | BN53: N/A | BO53: N/A | BP53: N/A | BQ53: N/A | BR53: N/A | BS53: N/A | BT53: N/A | BU53: N/A | BV53: N/A | BW53: N/A
B54: Contaminated (E. coli detected in 100 mL) | C54: N/A | D54: N/A | E54: N/A | F54: N/A | G54: N/A | H54: N/A | I54: N/A | J54: N/A | K54: N/A | L54: N/A | M54: N/A | N54: N/A | O54: N/A | P54: N/A | Q54: N/A | R54: N/A | S54: N/A | T54: N/A | U54: N/A | V54: N/A | W54: N/A | BB54: Contaminated (E. coli detected in 100 mL) | BC54: N/A | BD54: N/A | BE54: N/A | BF54: N/A | BG54: N/A | BH54: N/A | BI54: N/A | BJ54: N/A | BK54: N/A | BL54: N/A | BM54: N/A | BN54: N/A | BO54: N/A | BP54: N/A | BQ54: N/A | BR54: N/A | BS54: N/A | BT54: N/A | BU54: N/A | BV54: N/A | BW54: N/A
B55: Highly contaminated (>100 CFU/100 mL) | C55: N/A | D55: N/A | E55: N/A | F55: N/A | G55: N/A | H55: N/A | I55: N/A | J55: N/A | K55: N/A | L55: N/A | M55: N/A | N55: N/A | O55: N/A | P55: N/A | Q55: N/A | R55: N/A | S55: N/A | T55: N/A | U55: N/A | V55: N/A | W55: N/A | BB55: Highly contaminated (>100 CFU/100 mL) | BC55: N/A | BD55: N/A | BE55: N/A | BF55: N/A | BG55: N/A | BH55: N/A | BI55: N/A | BJ55: N/A | BK55: N/A | BL55: N/A | BM55: N/A | BN55: N/A | BO55: N/A | BP55: N/A | BQ55: N/A | BR55: N/A | BS55: N/A | BT55: N/A | BU55: N/A | BV55: N/A | BW55: N/A
C56: NATIONAL wealth index quintile | H56: URBAN wealth index quintile | M56: RURAL wealth index quintile | R56: SUB-REGIONS: | BA56: Raw numbers of respondents: | BB56: Use of drinking water sources | BC56: NATIONAL wealth index quintile | BH56: URBAN wealth index quintile | BM56: RURAL wealth index quintile | BR56: SUB-REGIONS:
A57: Percentage based on weighted population | C57: Poorest | D57: Poor | E57: Middle | F57: Rich | G57: Richest | H57: Poorest | I57: Poor | J57: Middle | K57: Rich | L57: Richest | M57: Poorest | N57: Poor | O57: Middle | P57: Rich | Q57: Richest | R57: barisal | S57: chittagong | T57: dhaka | U57: khulna | V57: rajshahi | W57: sylhet | BA57: Water data, raw numbers (weighted) | BC57: Poorest | BD57: Poor | BE57: Middle | BF57: Rich | BG57: Richest | BH57: Poorest | BI57: Poor | BJ57: Middle | BK57: Rich | BL57: Richest | BM57: Poorest | BN57: Poor | BO57: Middle | BP57: Rich | BQ57: Richest | BR57: barisal | BS57: chittagong | BT57: dhaka | BU57: khulna | BV57: rajshahi | BW57: sylhet
A58: source of drinking water | B58: piped inside dwelling | C58: 0.7113140969 | D58: 0.5776401998 | E58: 0.5280607874 | F58: 1.066516217 | G58: 21.82739476 | H58: 5.627159127 | I58: 4.081969354 | J58: 13.41334251 | K58: 30.14340946 | L58: 60.1311227 | M58: 0 | N58: 0 | O58: 0 | P58: 0 | Q58: 0.0576390289 | R58: 0.420815027 | S58: 2.904207371 | T58: 12.27254868 | U58: 2.452406026 | V58: 0.4418499109 | W58: 2.00654539
B59: piped outside dwelling | C59: 0.5459462191 | D59: 1.5626733 | E59: 0.8707356675 | F59: 1.642519704 | G59: 3.982304741 | H59: 8.978547222 | I59: 7.036799341 | J59: 9.264622372 | K59: 8.922398889 | L59: 3.316359945 | M59: 0.01991895489 | N59: 0.08126046115 | O59: 0.3094838929 | P59: 0.06662112172 | Q59: 0.08627274239 | R59: 0.2458474377 | S59: 2.000570107 | T59: 3.614669428 | U59: 0.7553935175 | V59: 0.01893704837 | W59: 1.336129569
B60: tubewell | C60: 90.21377277 | D60: 91.05021186 | E60: 93.7299929 | F60: 90.47856025 | G60: 69.58626746 | H60: 81.32553261 | I60: 85.27202757 | J60: 74.55862122 | K60: 57.86054466 | L60: 32.25773546 | M60: 90.77217795 | N60: 92.32640091 | O60: 94.33918557 | P60: 93.58055219 | Q60: 92.89114298 | R60: 70.60576554 | S60: 87.14681813 | T60: 82.75372461 | U60: 86.05835514 | V60: 98.31276167 | W60: 83.84223445
B61: shallow tubewell | C61: 0.09985274583 | D61: 0.4180416994 | E61: 0.2660859481 | F61: 0.355364261 | G61: 0.1360091056 | H61: 0 | I61: 0 | J61: 0.1820845411 | K61: 0 | L61: 0 | M61: 0.1276806499 | N61: 0.2881055652 | O61: 0.4436614061 | P61: 0.5451827779 | Q61: 0.174985521 | R61: 2.860098904 | S61: 0 | T61: 0.09981999748 | U61: 0.01804127214 | V61: 0.1257075236 | W61: 0.09707199912
B62: deet tubewell | C62: 3.24545681 | D62: 2.605533075 | E62: 2.543086828 | F62: 4.182221413 | G62: 3.048502186 | H62: 1.391542218 | I62: 2.710340717 | J62: 2.074173409 | K62: 2.499510973 | L62: 3.998275335 | M62: 3.269333737 | N62: 3.22817566 | O62: 2.59530308 | P62: 3.446461244 | Q62: 3.908558636 | R62: 21.41654023 | S62: 4.65286945 | T62: 0.8519167464 | U62: 3.37570386 | V62: 0.3533652342 | W62: 1.147537258
B63: surface well/other well | C63: 1.563623104 | D63: 1.267554768 | E63: 0.6161896153 | F63: 0.6865664763 | G63: 0.5452544886 | H63: 0.1726014639 | I63: 0 | J63: 0 | K63: 0.3802785698 | L63: 0.1843085356 | M63: 1.851303423 | N63: 1.422413872 | O63: 0.6417367747 | P63: 0.7366597609 | Q63: 1.122580653 | R63: 0 | S63: 1.383491425 | T63: 0.177871811 | U63: 0.1431765668 | V63: 0.7473786129 | W63: 5.621208867
B64: pond/tank/lake | C64: 2.565657829 | D64: 1.89342399 | E64: 1.192347096 | F64: 1.316414406 | G64: 0.8030473151 | H64: 2.097605205 | I64: 0.7497803229 | J64: 0.5071559397 | K64: 0.1938574542 | L64: 0 | M64: 2.825283526 | N64: 1.755514997 | O64: 1.455753536 | P64: 1.308406986 | Q64: 1.599371279 | R64: 4.248588956 | S64: 0.7778377795 | T64: 0.213711666 | U64: 7.196923613 | V64: 0 | W64: 3.037961115
B65: river/stream | C65: 1.054376427 | D65: 0.62492111 | E65: 0.2535011561 | F65: 0.2718372757 | G65: 0.04682292643 | H65: 0.407012152 | I65: 0.1490826991 | J65: 0 | K65: 0 | L65: 0 | M65: 1.134301763 | N65: 0.8981285308 | O65: 0.2148757454 | P65: 0.3161159165 | Q65: 0.1594491579 | R65: 0.2023439003 | S65: 1.13420574 | T65: 0 | U65: 0 | V65: 0 | W65: 2.91131135
B66: other | C66: 0 | D66: 0 | E66: 0 | F66: 0 | G66: 0.02439702067 | H66: 0 | I66: 0 | J66: 0 | K66: 0 | L66: 0.1121980229 | M66: 0 | N66: 0 | O66: 0 | P66: 0 | Q66: 0 | R66: 0 | S66: 0 | T66: 0.01573705995 | U66: 0 | V66: 0 | W66: 0
A108: =A1026 -> Bangladesh
A109: =A1034 -> 2004
A110: Use of sanitation facilities
A111: by wealth quintile and sub-national region
A112: Notes:
A113: WHO/UNICEF JMP customised wealth index excludes water,
A114: sanitation and hygiene assets.
A115: Survey used for analysis: | B115: =A1025 -> DHS04
A116: Improved latrines based on: | B116: MICS06
A117: Shared among improved based on: | B117: MICS06
A120: Use of sanitation facilities | C120: NATIONAL wealth index quintile | H120: URBAN wealth index quintile | M120: RURAL wealth index quintile | R120: SUB-REGIONS: | BA120: Raw numbers of respondents: | BB120: Use of sanitation facilities | BC120: NATIONAL wealth index quintile | BH120: URBAN wealth index quintile | BM120: RURAL wealth index quintile | BR120: SUB-REGIONS:
A121: Weighted percentage (used in graphs) | C121: Poorest | D121: Poor | E121: Middle | F121: Rich | G121: Richest | H121: Poorest | I121: Poor | J121: Middle | K121: Rich | L121: Richest | M121: Poorest | N121: Poor | O121: Middle | P121: Rich | Q121: Richest | R121: barisal | S121: chittagong | T121: dhaka | U121: khulna | V121: rajshahi | W121: sylhet | BA121: Sanitation data, raw numbers (weighted) | BC121: Poorest | BD121: Poor | BE121: Middle | BF121: Rich | BG121: Richest | BH121: Poorest | BI121: Poor | BJ121: Middle | BK121: Rich | BL121: Richest | BM121: Poorest | BN121: Poor | BO121: Middle | BP121: Rich | BQ121: Richest | BR121: barisal | BS121: chittagong | BT121: dhaka | BU121: khulna | BV121: rajshahi | BW121: sylhet
A122: Sanitation | B122: Improved | C122: =C153+C154+(C155+C156)*'DHS07'!C130/100 -> 23.35798062 | D122: =D153+D154+(D155+D156)*'DHS07'!D130/100 -> 29.3653752 | E122: =E153+E154+(E155+E156)*'DHS07'!E130/100 -> 40.29486264 | F122: =F153+F154+(F155+F156)*'DHS07'!F130/100 -> 56.03224263 | G122: =G153+G154+(G155+G156)*'DHS07'!G130/100 -> 84.96641823 | H122: =H153+H154+(H155+H156)*'DHS07'!H130/100 -> 37.49810736 | I122: =I153+I154+(I155+I156)*'DHS07'!I130/100 -> 52.11494713 | J122: =J153+J154+(J155+J156)*'DHS07'!J130/100 -> 71.41657923 | K122: =K153+K154+(K155+K156)*'DHS07'!K130/100 -> 87.93456506 | L122: =L153+L154+(L155+L156)*'DHS07'!L130/100 -> 99.85150138 | M122: =M153+M154+(M155+M156)*'DHS07'!M130/100 -> 21.24658565 | N122: =N153+N154+(N155+N156)*'DHS07'!N130/100 -> 27.01236189 | O122: =O153+O154+(O155+O156)*'DHS07'!O130/100 -> 37.07792612 | P122: =P153+P154+(P155+P156)*'DHS07'!P130/100 -> 45.94738752 | Q122: =Q153+Q154+(Q155+Q156)*'DHS07'!Q130/100 -> 70.66494673 | R122: =R153+R154+(R155+R156)*'DHS07'!R130/100 -> 55.64990167 | S122: =S153+S154+(S155+S156)*'DHS07'!S130/100 -> 51.0839354 | T122: =T153+T154+(T155+T156)*'DHS07'!T130/100 -> 44.78327108 | U122: =U153+U154+(U155+U156)*'DHS07'!U130/100 -> 53.52128895 | V122: =V153+V154+(V155+V156)*'DHS07'!V130/100 -> 37.96130919 | W122: =W153+W154+(W155+W156)*'DHS07'!W130/100 -> 48.53303981 | BA122: Sanitation | BB122: Improved | BC122: N/A | BD122: N/A | BE122: N/A | BF122: N/A | BG122: N/A | BH122: N/A | BI122: N/A | BJ122: N/A | BK122: N/A | BL122: N/A | BM122: N/A | BN122: N/A | BO122: N/A | BP122: N/A | BQ122: N/A | BR122: N/A | BS122: N/A | BT122: N/A | BU122: N/A | BV122: N/A | BW122: N/A
B123: Not Improved | C123: =100-C122 -> 76.64201938 | D123: 70.6346248 | E123: 59.70513736 | F123: 43.96775737 | G123: 15.03358177 | H123: 62.50189264 | I123: 47.88505287 | J123: 28.58342077 | K123: 12.06543494 | L123: 0.1484986204 | M123: 78.75341435 | N123: 72.98763811 | O123: 62.92207388 | P123: 54.05261248 | Q123: 29.33505327 | R123: 44.35009833 | S123: 48.9160646 | T123: 55.21672892 | U123: 46.47871105 | V123: 62.03869081 | W123: 51.46696019 | BB123: Not Improved | BC123: N/A | BD123: N/A | BE123: N/A | BF123: N/A | BG123: N/A | BH123: N/A | BI123: N/A | BJ123: N/A | BK123: N/A | BL123: N/A | BM123: N/A | BN123: N/A | BO123: N/A | BP123: N/A | BQ123: N/A | BR123: N/A | BS123: N/A | BT123: N/A | BU123: N/A | BV123: N/A | BW123: N/A
A124: Sanitation ladder | B124: Basic | C124: =C122*MICS06!C129/100 -> 11.33219153 | D124: =D122*MICS06!D129/100 -> 17.50559719 | E124: =E122*MICS06!E129/100 -> 26.19766538 | F124: =F122*MICS06!F129/100 -> 38.81696448 | G124: =G122*MICS06!G129/100 -> 67.79340729 | H124: =H122*MICS06!H129/100 -> 16.68033356 | I124: =I122*MICS06!I129/100 -> 26.20741065 | J124: =J122*MICS06!J129/100 -> 39.80907803 | K124: =K122*MICS06!K129/100 -> 60.9927096 | L124: =L122*MICS06!L129/100 -> 94.44958207 | M124: =M122*MICS06!M129/100 -> 10.5747496 | N124: =N122*MICS06!N129/100 -> 15.38976498 | O124: =O122*MICS06!O129/100 -> 25.67536765 | P124: =P122*MICS06!P129/100 -> 31.52271865 | Q124: =Q122*MICS06!Q129/100 -> 56.70892008 | R124: =R122*MICS06!R129/100 -> 45.72818096 | S124: =S122*MICS06!S129/100 -> 36.48306483 | T124: =T122*MICS06!T129/100 -> 30.86938262 | U124: =U122*MICS06!U129/100 -> 36.41880401 | V124: =V122*MICS06!V129/100 -> 24.70139189 | W124: =W122*MICS06!W129/100 -> 40.37115743 | BA124: Sanitation ladder | BB124: Basic | BC124: N/A | BD124: N/A | BE124: N/A | BF124: N/A | BG124: N/A | BH124: N/A | BI124: N/A | BJ124: N/A | BK124: N/A | BL124: N/A | BM124: N/A | BN124: N/A | BO124: N/A | BP124: N/A | BQ124: N/A | BR124: N/A | BS124: N/A | BT124: N/A | BU124: N/A | BV124: N/A | BW124: N/A
B125: Limited | C125: =C122*MICS06!C128/100 -> 12.02578908 | D125: =D122*MICS06!D128/100 -> 11.85977801 | E125: =E122*MICS06!E128/100 -> 14.09719726 | F125: =F122*MICS06!F128/100 -> 17.21527815 | G125: =G122*MICS06!G128/100 -> 17.17301093 | H125: =H122*MICS06!H128/100 -> 20.8177738 | I125: =I122*MICS06!I128/100 -> 25.90753647 | J125: =J122*MICS06!J128/100 -> 31.6075012 | K125: =K122*MICS06!K128/100 -> 26.94185545 | L125: =L122*MICS06!L128/100 -> 5.401919306 | M125: =M122*MICS06!M128/100 -> 10.67183605 | N125: =N122*MICS06!N128/100 -> 11.62259691 | O125: =O122*MICS06!O128/100 -> 11.40255847 | P125: =P122*MICS06!P128/100 -> 14.42466887 | Q125: =Q122*MICS06!Q128/100 -> 13.95602664 | R125: =R122*MICS06!R128/100 -> 9.921720712 | S125: =S122*MICS06!S128/100 -> 14.60087056 | T125: =T122*MICS06!T128/100 -> 13.91388846 | U125: =U122*MICS06!U128/100 -> 17.10248493 | V125: =V122*MICS06!V128/100 -> 13.2599173 | W125: =W122*MICS06!W128/100 -> 8.161882388 | BB125: Limited | BC125: N/A | BD125: N/A | BE125: N/A | BF125: N/A | BG125: N/A | BH125: N/A | BI125: N/A | BJ125: N/A | BK125: N/A | BL125: N/A | BM125: N/A | BN125: N/A | BO125: N/A | BP125: N/A | BQ125: N/A | BR125: N/A | BS125: N/A | BT125: N/A | BU125: N/A | BV125: N/A | BW125: N/A
B126: Unimproved | C126: =100-(C124+C125+C127) -> 49.55271552 | D126: 53.14088978 | E126: 48.565781 | F126: 40.33551987 | G126: 14.58715986 | H126: 48.85103248 | I126: 42.66188425 | J126: 27.09538082 | K126: 11.91989494 | L126: 0.1484986204 | M126: 49.44903547 | N126: 52.67976719 | O126: 50.8750553 | P126: 46.118669 | Q126: 28.21888292 | R126: 40.90117318 | S126: 43.38743858 | T126: 44.79897808 | U126: 38.74771019 | V126: 37.24170372 | W126: 43.29721624 | BB126: Unimproved | BC126: N/A | BD126: N/A | BE126: N/A | BF126: N/A | BG126: N/A | BH126: N/A | BI126: N/A | BJ126: N/A | BK126: N/A | BL126: N/A | BM126: N/A | BN126: N/A | BO126: N/A | BP126: N/A | BQ126: N/A | BR126: N/A | BS126: N/A | BT126: N/A | BU126: N/A | BV126: N/A | BW126: N/A
B127: Open defecation | C127: =C158 -> 27.08930387 | D127: 17.49373502 | E127: 11.13935636 | F127: 3.632237506 | G127: 0.4464219125 | H127: 13.65086016 | I127: 5.223168627 | J127: 1.488039944 | K127: 0.1455399959 | L127: 0 | M127: 29.30437889 | N127: 20.30787092 | O127: 12.04701858 | P127: 7.933943484 | Q127: 1.116170352 | R127: 3.448925149 | S127: 5.528626019 | T127: 10.41775084 | U127: 7.73100086 | V127: 24.79698709 | W127: 8.169743947 | BB127: Open defecation | BC127: N/A | BD127: N/A | BE127: N/A | BF127: N/A | BG127: N/A | BH127: N/A | BI127: N/A | BJ127: N/A | BK127: N/A | BL127: N/A | BM127: N/A | BN127: N/A | BO127: N/A | BP127: N/A | BQ127: N/A | BR127: N/A | BS127: N/A | BT127: N/A | BU127: N/A | BV127: N/A | BW127: N/A
A128: Shared among Improved Sanitation | B128: Yes | C128: N/A | D128: N/A | E128: N/A | F128: N/A | G128: N/A | H128: N/A | I128: N/A | J128: N/A | K128: N/A | L128: N/A | M128: N/A | N128: N/A | O128: N/A | P128: N/A | Q128: N/A | R128: N/A | S128: N/A | T128: N/A | U128: N/A | V128: N/A | W128: N/A | BA128: Shared among improved sanitation facilities | BB128: Yes | BC128: N/A | BD128: N/A | BE128: N/A | BF128: N/A | BG128: N/A | BH128: N/A | BI128: N/A | BJ128: N/A | BK128: N/A | BL128: N/A | BM128: N/A | BN128: N/A | BO128: N/A | BP128: N/A | BQ128: N/A | BR128: N/A | BS128: N/A | BT128: N/A | BU128: N/A | BV128: N/A | BW128: N/A
B129: No | C129: N/A | D129: N/A | E129: N/A | F129: N/A | G129: N/A | H129: N/A | I129: N/A | J129: N/A | K129: N/A | L129: N/A | M129: N/A | N129: N/A | O129: N/A | P129: N/A | Q129: N/A | R129: N/A | S129: N/A | T129: N/A | U129: N/A | V129: N/A | W129: N/A | BB129: No | BC129: N/A | BD129: N/A | BE129: N/A | BF129: N/A | BG129: N/A | BH129: N/A | BI129: N/A | BJ129: N/A | BK129: N/A | BL129: N/A | BM129: N/A | BN129: N/A | BO129: N/A | BP129: N/A | BQ129: N/A | BR129: N/A | BS129: N/A | BT129: N/A | BU129: N/A | BV129: N/A | BW129: N/A
A130: Manually calculated ratios | B130: Improved latrines
B131: Other
B132: Other
C133: NATIONAL wealth index quintile | H133: URBAN wealth index quintile | M133: RURAL wealth index quintile | R133: SUB-REGIONS: | BA133: Raw numbers of respondents: | BB133: Use of sanitation facilities | BC133: NATIONAL wealth index quintile | BH133: URBAN wealth index quintile | BM133: RURAL wealth index quintile | BR133: SUB-REGIONS:
A134: Percentage based on weighted population | C134: Poorest | D134: Poor | E134: Middle | F134: Rich | G134: Richest | H134: Poorest | I134: Poor | J134: Middle | K134: Rich | L134: Richest | M134: Poorest | N134: Poor | O134: Middle | P134: Rich | Q134: Richest | R134: barisal | S134: chittagong | T134: dhaka | U134: khulna | V134: rajshahi | W134: sylhet | BA134: Sanitation data, raw numbers (weighted) | BC134: Poorest | BD134: Poor | BE134: Middle | BF134: Rich | BG134: Richest | BH134: Poorest | BI134: Poor | BJ134: Middle | BK134: Rich | BL134: Richest | BM134: Poorest | BN134: Poor | BO134: Middle | BP134: Rich | BQ134: Richest | BR134: barisal | BS134: chittagong | BT134: dhaka | BU134: khulna | BV134: rajshahi | BW134: sylhet
A135: Sanitation type | B135: Sewer connection | C135: N/A | D135: N/A | E135: N/A | F135: N/A | G135: N/A | H135: N/A | I135: N/A | J135: N/A | K135: N/A | L135: N/A | M135: N/A | N135: N/A | O135: N/A | P135: N/A | Q135: N/A | R135: N/A | S135: N/A | T135: N/A | U135: N/A | V135: N/A | W135: N/A | BA135: Sanitation type | BB135: Sewer connection | BC135: N/A | BD135: N/A | BE135: N/A | BF135: N/A | BG135: N/A | BH135: N/A | BI135: N/A | BJ135: N/A | BK135: N/A | BL135: N/A | BM135: N/A | BN135: N/A | BO135: N/A | BP135: N/A | BQ135: N/A | BR135: N/A | BS135: N/A | BT135: N/A | BU135: N/A | BV135: N/A | BW135: N/A
B136: Septic tank connection | C136: N/A | D136: N/A | E136: N/A | F136: N/A | G136: N/A | H136: N/A | I136: N/A | J136: N/A | K136: N/A | L136: N/A | M136: N/A | N136: N/A | O136: N/A | P136: N/A | Q136: N/A | R136: N/A | S136: N/A | T136: N/A | U136: N/A | V136: N/A | W136: N/A | BB136: Septic tank connection | BC136: N/A | BD136: N/A | BE136: N/A | BF136: N/A | BG136: N/A | BH136: N/A | BI136: N/A | BJ136: N/A | BK136: N/A | BL136: N/A | BM136: N/A | BN136: N/A | BO136: N/A | BP136: N/A | BQ136: N/A | BR136: N/A | BS136: N/A | BT136: N/A | BU136: N/A | BV136: N/A | BW136: N/A
B137: Improved latrines | C137: N/A | D137: N/A | E137: N/A | F137: N/A | G137: N/A | H137: N/A | I137: N/A | J137: N/A | K137: N/A | L137: N/A | M137: N/A | N137: N/A | O137: N/A | P137: N/A | Q137: N/A | R137: N/A | S137: N/A | T137: N/A | U137: N/A | V137: N/A | W137: N/A | BB137: Improved latrines | BC137: N/A | BD137: N/A | BE137: N/A | BF137: N/A | BG137: N/A | BH137: N/A | BI137: N/A | BJ137: N/A | BK137: N/A | BL137: N/A | BM137: N/A | BN137: N/A | BO137: N/A | BP137: N/A | BQ137: N/A | BR137: N/A | BS137: N/A | BT137: N/A | BU137: N/A | BV137: N/A | BW137: N/A
B138: Unimproved facilities | C138: N/A | D138: N/A | E138: N/A | F138: N/A | G138: N/A | H138: N/A | I138: N/A | J138: N/A | K138: N/A | L138: N/A | M138: N/A | N138: N/A | O138: N/A | P138: N/A | Q138: N/A | R138: N/A | S138: N/A | T138: N/A | U138: N/A | V138: N/A | W138: N/A | BB138: Unimproved facilities | BC138: N/A | BD138: N/A | BE138: N/A | BF138: N/A | BG138: N/A | BH138: N/A | BI138: N/A | BJ138: N/A | BK138: N/A | BL138: N/A | BM138: N/A | BN138: N/A | BO138: N/A | BP138: N/A | BQ138: N/A | BR138: N/A | BS138: N/A | BT138: N/A | BU138: N/A | BV138: N/A | BW138: N/A
B139: Open defecation | C139: =C158 -> 27.08930387 | D139: 17.49373502 | E139: 11.13935636 | F139: 3.632237506 | G139: 0.4464219125 | H139: 13.65086016 | I139: 5.223168627 | J139: 1.488039944 | K139: 0.1455399959 | L139: 0 | M139: 29.30437889 | N139: 20.30787092 | O139: 12.04701858 | P139: 7.933943484 | Q139: 1.116170352 | R139: 3.448925149 | S139: 5.528626019 | T139: 10.41775084 | U139: 7.73100086 | V139: 24.79698709 | W139: 8.169743947 | BB139: Open defecation | BC139: N/A | BD139: N/A | BE139: N/A | BF139: N/A | BG139: N/A | BH139: N/A | BI139: N/A | BJ139: N/A | BK139: N/A | BL139: N/A | BM139: N/A | BN139: N/A | BO139: N/A | BP139: N/A | BQ139: N/A | BR139: N/A | BS139: N/A | BT139: N/A | BU139: N/A | BV139: N/A | BW139: N/A
A140: Septic tank emptying practices | B140: Not emptied/treated and disposed in situ | C140: N/A | D140: N/A | E140: N/A | F140: N/A | G140: N/A | H140: N/A | I140: N/A | J140: N/A | K140: N/A | L140: N/A | M140: N/A | N140: N/A | O140: N/A | P140: N/A | Q140: N/A | R140: N/A | S140: N/A | T140: N/A | U140: N/A | V140: N/A | W140: N/A | BA140: Septic tank emptying practices | BB140: Not emptied/treated and disposed in situ | BC140: N/A | BD140: N/A | BE140: N/A | BF140: N/A | BG140: N/A | BH140: N/A | BI140: N/A | BJ140: N/A | BK140: N/A | BL140: N/A | BM140: N/A | BN140: N/A | BO140: N/A | BP140: N/A | BQ140: N/A | BR140: N/A | BS140: N/A | BT140: N/A | BU140: N/A | BV140: N/A | BW140: N/A
B141: Emptied and buried on site | C141: N/A | D141: N/A | E141: N/A | F141: N/A | G141: N/A | H141: N/A | I141: N/A | J141: N/A | K141: N/A | L141: N/A | M141: N/A | N141: N/A | O141: N/A | P141: N/A | Q141: N/A | R141: N/A | S141: N/A | T141: N/A | U141: N/A | V141: N/A | W141: N/A | BB141: Emptied and buried on site | BC141: N/A | BD141: N/A | BE141: N/A | BF141: N/A | BG141: N/A | BH141: N/A | BI141: N/A | BJ141: N/A | BK141: N/A | BL141: N/A | BM141: N/A | BN141: N/A | BO141: N/A | BP141: N/A | BQ141: N/A | BR141: N/A | BS141: N/A | BT141: N/A | BU141: N/A | BV141: N/A | BW141: N/A
B142: Emptied and discharged locally | C142: N/A | D142: N/A | E142: N/A | F142: N/A | G142: N/A | H142: N/A | I142: N/A | J142: N/A | K142: N/A | L142: N/A | M142: N/A | N142: N/A | O142: N/A | P142: N/A | Q142: N/A | R142: N/A | S142: N/A | T142: N/A | U142: N/A | V142: N/A | W142: N/A | BB142: Emptied and discharged locally | BC142: N/A | BD142: N/A | BE142: N/A | BF142: N/A | BG142: N/A | BH142: N/A | BI142: N/A | BJ142: N/A | BK142: N/A | BL142: N/A | BM142: N/A | BN142: N/A | BO142: N/A | BP142: N/A | BQ142: N/A | BR142: N/A | BS142: N/A | BT142: N/A | BU142: N/A | BV142: N/A | BW142: N/A
B143: Emptied and removed offsite | C143: N/A | D143: N/A | E143: N/A | F143: N/A | G143: N/A | H143: N/A | I143: N/A | J143: N/A | K143: N/A | L143: N/A | M143: N/A | N143: N/A | O143: N/A | P143: N/A | Q143: N/A | R143: N/A | S143: N/A | T143: N/A | U143: N/A | V143: N/A | W143: N/A | BB143: Emptied and removed offsite | BC143: N/A | BD143: N/A | BE143: N/A | BF143: N/A | BG143: N/A | BH143: N/A | BI143: N/A | BJ143: N/A | BK143: N/A | BL143: N/A | BM143: N/A | BN143: N/A | BO143: N/A | BP143: N/A | BQ143: N/A | BR143: N/A | BS143: N/A | BT143: N/A | BU143: N/A | BV143: N/A | BW143: N/A
A144: Latrine emptying practices | B144: Not emptied/treated and disposed in situ | C144: N/A | D144: N/A | E144: N/A | F144: N/A | G144: N/A | H144: N/A | I144: N/A | J144: N/A | K144: N/A | L144: N/A | M144: N/A | N144: N/A | O144: N/A | P144: N/A | Q144: N/A | R144: N/A | S144: N/A | T144: N/A | U144: N/A | V144: N/A | W144: N/A | BA144: Latrine emptying practices | BB144: Not emptied/treated and disposed in situ | BC144: N/A | BD144: N/A | BE144: N/A | BF144: N/A | BG144: N/A | BH144: N/A | BI144: N/A | BJ144: N/A | BK144: N/A | BL144: N/A | BM144: N/A | BN144: N/A | BO144: N/A | BP144: N/A | BQ144: N/A | BR144: N/A | BS144: N/A | BT144: N/A | BU144: N/A | BV144: N/A | BW144: N/A
B145: Emptied and buried on site | C145: N/A | D145: N/A | E145: N/A | F145: N/A | G145: N/A | H145: N/A | I145: N/A | J145: N/A | K145: N/A | L145: N/A | M145: N/A | N145: N/A | O145: N/A | P145: N/A | Q145: N/A | R145: N/A | S145: N/A | T145: N/A | U145: N/A | V145: N/A | W145: N/A | BB145: Emptied and buried on site | BC145: N/A | BD145: N/A | BE145: N/A | BF145: N/A | BG145: N/A | BH145: N/A | BI145: N/A | BJ145: N/A | BK145: N/A | BL145: N/A | BM145: N/A | BN145: N/A | BO145: N/A | BP145: N/A | BQ145: N/A | BR145: N/A | BS145: N/A | BT145: N/A | BU145: N/A | BV145: N/A | BW145: N/A
B146: Emptied and discharged locally | C146: N/A | D146: N/A | E146: N/A | F146: N/A | G146: N/A | H146: N/A | I146: N/A | J146: N/A | K146: N/A | L146: N/A | M146: N/A | N146: N/A | O146: N/A | P146: N/A | Q146: N/A | R146: N/A | S146: N/A | T146: N/A | U146: N/A | V146: N/A | W146: N/A | BB146: Emptied and discharged locally | BC146: N/A | BD146: N/A | BE146: N/A | BF146: N/A | BG146: N/A | BH146: N/A | BI146: N/A | BJ146: N/A | BK146: N/A | BL146: N/A | BM146: N/A | BN146: N/A | BO146: N/A | BP146: N/A | BQ146: N/A | BR146: N/A | BS146: N/A | BT146: N/A | BU146: N/A | BV146: N/A | BW146: N/A
B147: Emptied and removed offsite | C147: N/A | D147: N/A | E147: N/A | F147: N/A | G147: N/A | H147: N/A | I147: N/A | J147: N/A | K147: N/A | L147: N/A | M147: N/A | N147: N/A | O147: N/A | P147: N/A | Q147: N/A | R147: N/A | S147: N/A | T147: N/A | U147: N/A | V147: N/A | W147: N/A | BB147: Emptied and removed offsite | BC147: N/A | BD147: N/A | BE147: N/A | BF147: N/A | BG147: N/A | BH147: N/A | BI147: N/A | BJ147: N/A | BK147: N/A | BL147: N/A | BM147: N/A | BN147: N/A | BO147: N/A | BP147: N/A | BQ147: N/A | BR147: N/A | BS147: N/A | BT147: N/A | BU147: N/A | BV147: N/A | BW147: N/A
A148: Shared among improved sanitation facilities | B148: Yes | C148: N/A | D148: N/A | E148: N/A | F148: N/A | G148: N/A | H148: N/A | I148: N/A | J148: N/A | K148: N/A | L148: N/A | M148: N/A | N148: N/A | O148: N/A | P148: N/A | Q148: N/A | R148: N/A | S148: N/A | T148: N/A | U148: N/A | V148: N/A | W148: N/A | BA148: Shared among improved sanitation facilities | BB148: Yes | BC148: N/A | BD148: N/A | BE148: N/A | BF148: N/A | BG148: N/A | BH148: N/A | BI148: N/A | BJ148: N/A | BK148: N/A | BL148: N/A | BM148: N/A | BN148: N/A | BO148: N/A | BP148: N/A | BQ148: N/A | BR148: N/A | BS148: N/A | BT148: N/A | BU148: N/A | BV148: N/A | BW148: N/A
B149: No | C149: N/A | D149: N/A | E149: N/A | F149: N/A | G149: N/A | H149: N/A | I149: N/A | J149: N/A | K149: N/A | L149: N/A | M149: N/A | N149: N/A | O149: N/A | P149: N/A | Q149: N/A | R149: N/A | S149: N/A | T149: N/A | U149: N/A | V149: N/A | W149: N/A | BB149: No | BC149: N/A | BD149: N/A | BE149: N/A | BF149: N/A | BG149: N/A | BH149: N/A | BI149: N/A | BJ149: N/A | BK149: N/A | BL149: N/A | BM149: N/A | BN149: N/A | BO149: N/A | BP149: N/A | BQ149: N/A | BR149: N/A | BS149: N/A | BT149: N/A | BU149: N/A | BV149: N/A | BW149: N/A
B150: DK/missing | C150: N/A | D150: N/A | E150: N/A | F150: N/A | G150: N/A | H150: N/A | I150: N/A | J150: N/A | K150: N/A | L150: N/A | M150: N/A | N150: N/A | O150: N/A | P150: N/A | Q150: N/A | R150: N/A | S150: N/A | T150: N/A | U150: N/A | V150: N/A | W150: N/A | BB150: DK/missing | BC150: N/A | BD150: N/A | BE150: N/A | BF150: N/A | BG150: N/A | BH150: N/A | BI150: N/A | BJ150: N/A | BK150: N/A | BL150: N/A | BM150: N/A | BN150: N/A | BO150: N/A | BP150: N/A | BQ150: N/A | BR150: N/A | BS150: N/A | BT150: N/A | BU150: N/A | BV150: N/A | BW150: N/A
A151: Shared among all sanitation facilities | B151: Yes | C151: N/A | D151: N/A | E151: N/A | F151: N/A | G151: N/A | H151: N/A | I151: N/A | J151: N/A | K151: N/A | L151: N/A | M151: N/A | N151: N/A | O151: N/A | P151: N/A | Q151: N/A | R151: N/A | S151: N/A | T151: N/A | U151: N/A | V151: N/A | W151: N/A | BA151: Shared among all sanitation facilities | BB151: Yes | BC151: N/A | BD151: N/A | BE151: N/A | BF151: N/A | BG151: N/A | BH151: N/A | BI151: N/A | BJ151: N/A | BK151: N/A | BL151: N/A | BM151: N/A | BN151: N/A | BO151: N/A | BP151: N/A | BQ151: N/A | BR151: N/A | BS151: N/A | BT151: N/A | BU151: N/A | BV151: N/A | BW151: N/A
B152: No | C152: N/A | D152: N/A | E152: N/A | F152: N/A | G152: N/A | H152: N/A | I152: N/A | J152: N/A | K152: N/A | L152: N/A | M152: N/A | N152: N/A | O152: N/A | P152: N/A | Q152: N/A | R152: N/A | S152: N/A | T152: N/A | U152: N/A | V152: N/A | W152: N/A | BB152: No | BC152: N/A | BD152: N/A | BE152: N/A | BF152: N/A | BG152: N/A | BH152: N/A | BI152: N/A | BJ152: N/A | BK152: N/A | BL152: N/A | BM152: N/A | BN152: N/A | BO152: N/A | BP152: N/A | BQ152: N/A | BR152: N/A | BS152: N/A | BT152: N/A | BU152: N/A | BV152: N/A | BW152: N/A
A153: type of toilet facility | B153: septic tank/modern toilet | C153: 0.174432026 | D153: 0.9763072982 | E153: 1.96359329 | F153: 4.647682775 | G153: 41.1200361 | H153: 1.801765917 | I153: 4.722537647 | J153: 16.73216069 | K153: 48.27286615 | L153: 85.18857812 | M153: 0.0414517131 | N153: 0.6101510584 | O153: 1.377966673 | P153: 2.52686137 | Q153: 14.35572475 | R153: 4.616366119 | S153: 8.80006617 | T153: 12.55571879 | U153: 9.823812259 | V153: 6.659431419 | W153: 15.24920765 | BA153: Type of toilet facility
B154: water sealed/slab latrine | C154: 4.862301972 | D154: 8.036264691 | E154: 13.06376214 | F154: 21.19466798 | G154: 27.37342874 | H154: 10.94850326 | I154: 18.6235428 | J154: 27.12141498 | K154: 27.39291164 | L154: 9.828747366 | M154: 3.992032667 | N154: 6.916635314 | O154: 10.33987925 | P154: 17.05330462 | Q154: 30.86538087 | R154: 17.40420146 | S154: 15.94320453 | T154: 12.75110625 | U154: 21.40806109 | V154: 11.13985632 | W154: 20.94527171
B155: pit latrine | C155: 25.36143516 | D155: 34.44214384 | E155: 45.455361 | F155: 50.83298183 | G155: 21.82867345 | H155: 30.03573261 | I155: 36.74973351 | J155: 28.96836031 | K155: 11.3164503 | L155: 1.153972827 | M155: 23.89813665 | N155: 33.11881542 | O155: 44.66091903 | P155: 52.29190747 | Q155: 43.35600073 | R155: 43.56220624 | S155: 38.05471252 | T155: 33.11640022 | U155: 44.25554675 | V155: 33.77625134 | W155: 24.5051009
B156: open latrine | C156: 39.52892199 | D156: 35.98295238 | E156: 26.59532542 | F156: 18.38872923 | G156: 8.979209499 | H156: 39.3848473 | I156: 32.92280007 | J156: 23.78737445 | K156: 12.68191654 | L156: 3.828701684 | M156: 39.62489856 | N156: 36.16428071 | O156: 29.41600553 | P156: 19.19105635 | Q156: 9.724615283 | R156: 30.08728066 | S156: 29.89054488 | T156: 28.23875067 | U156: 16.41576237 | V156: 22.45379509 | W156: 27.83060882
B157: hanging latrine | C157: 2.983604984 | D157: 3.068596778 | E157: 1.782601793 | F157: 1.303700678 | G157: 0.2522303029 | H157: 4.178290751 | I157: 1.758217353 | J157: 1.902649634 | K157: 0.1903153704 | L157: 0 | M157: 3.139101522 | N157: 2.882246578 | O157: 2.158210933 | P157: 1.002926713 | Q157: 0.5821080084 | R157: 0.8810203763 | S157: 1.782845882 | T157: 2.920273234 | U157: 0.3658166706 | V157: 1.173678746 | W157: 3.300066968
B158: no facility/bush/field | C158: 27.08930387 | D158: 17.49373502 | E158: 11.13935636 | F158: 3.632237506 | G158: 0.4464219125 | H158: 13.65086016 | I158: 5.223168627 | J158: 1.488039944 | K158: 0.1455399959 | L158: 0 | M158: 29.30437889 | N158: 20.30787092 | O158: 12.04701858 | P158: 7.933943484 | Q158: 1.116170352 | R158: 3.448925149 | S158: 5.528626019 | T158: 10.41775084 | U158: 7.73100086 | V158: 24.79698709 | W158: 8.169743947
A160: Bangladesh DHS04 Weighted population | C160: COMPOSITE wealth index quintile | H160: URBAN wealth index quintile | M160: RURAL wealth index quintile | R160: REGIONS
C161: Poorest | D161: Poor | E161: Middle | F161: Rich | G161: Richest | H161: Poorest | I161: Poor | J161: Middle | K161: Rich | L161: Richest | M161: Poorest | N161: Poor | O161: Middle | P161: Rich | Q161: Richest | R161: barisal | S161: chittagong | T161: dhaka | U161: khulna | V161: rajshahi | W161: sylhet
A162: type of toilet facility | B162: septic tank/modern toilet | C162: 19.166464 | D162: 107.152519 | E162: 215.813782 | F162: 510.183584 | G162: 4515.430199 | H162: 42.993308 | I162: 112.956063 | J162: 399.608212 | K162: 1153.874107 | L162: 2034.129535 | M162: 3.561994 | N162: 52.490587 | O162: 118.767483 | P162: 216.404092 | Q162: 1232.961167 | R162: 163.922112 | S162: 950.933946 | T162: 2136.130414 | U162: 627.437604 | V162: 873.513176 | W162: 615.809296
B163: water sealed/slab latrine | C163: 534.2662 | D163: 882.00304 | E163: 1435.806452 | F163: 2326.572659 | G163: 3005.902196 | H163: 261.25057 | I163: 445.447391 | J163: 647.731058 | K163: 654.777186 | L163: 234.690445 | M163: 343.040018 | N163: 595.030104 | O163: 891.198211 | P163: 1460.469872 | Q163: 2650.915692 | R163: 618.004159 | S163: 1722.820499 | T163: 2169.372086 | U163: 1367.312628 | V163: 1461.207521 | W163: 845.833654
B164: pit latrine | C164: 2786.696027 | D164: 3780.123818 | E164: 4995.888619 | F164: 5580.017852 | G164: 2397.027353 | H164: 716.705478 | I164: 878.998861 | J164: 691.840993 | K164: 270.498937 | L164: 27.554518 | M164: 2053.594725 | N164: 2849.173231 | O164: 3849.341967 | P164: 4478.355199 | Q164: 3723.68976 | R164: 1546.8463 | S164: 4112.187027 | T164: 5634.161684 | U164: 2826.559943 | V164: 4430.408352 | W164: 989.590363
B165: open latrine | C165: 4343.409164 | D165: 3949.231964 | E165: 2923.027794 | F165: 2018.560267 | G165: 986.015519 | H165: 939.79182 | I165: 787.464316 | J165: 568.10536 | K165: 303.137897 | L165: 91.421589 | M165: 3405.013698 | N165: 3111.171073 | O165: 2535.376948 | P165: 1643.550047 | Q165: 835.21196 | R165: 1068.36643 | S165: 3229.968189 | T165: 4804.317074 | U165: 1048.459227 | V165: 2945.24932 | W165: 1123.884468
B166: hanging latrine | C166: 327.836343 | D166: 336.787275 | E166: 195.921445 | F166: 143.109312 | G166: 27.697649 | H166: 99.701376 | I166: 42.053939 | J166: 45.440301 | K166: 4.549139 | L166: 0 | M166: 269.746651 | N166: 247.956326 | O166: 186.017039 | P166: 85.892106 | Q166: 49.995147 | R166: 31.28407 | S166: 192.654082 | T166: 496.832127 | U166: 23.364365 | V166: 153.950658 | W166: 133.266722
B167: no facility/bush/field | C167: 2976.552983 | D167: 1919.987464 | E167: 1224.299674 | F167: 398.71653 | G167: 49.022014 | H167: 325.733565 | I167: 124.93041 | J167: 35.538326 | K167: 3.478866 | L167: 0 | M167: 2518.159419 | N167: 1747.062552 | O167: 1038.337213 | P167: 679.474488 | Q167: 95.863826 | R167: 122.46756 | S167: 597.422571 | T167: 1772.393503 | U167: 493.771718 | V167: 3252.604252 | W167: 329.919061
B168: Total | C168: 10987.92718 | D168: 10975.28608 | E168: 10990.75777 | F168: 10977.1602 | G168: 10981.09493 | H168: 2386.176117 | I168: 2391.85098 | J168: 2388.26425 | K168: 2390.316132 | L168: 2387.796087 | M168: 8593.116505 | N168: 8602.883873 | O168: 8619.038861 | P168: 8564.145804 | Q168: 8588.637552 | R168: 3550.890631 | S168: 10805.98631 | T168: 17013.20689 | U168: 6386.905485 | V168: 13116.93328 | W168: 4038.303564
A208: =A1026 -> Bangladesh
A209: =A1034 -> 2004
A210: Access to hygiene facilities
A211: by wealth quintile and sub-national region
A212: Notes:
A213: WHO/UNICEF JMP customised wealth index excludes water,
A214: sanitation and hygiene assets.
A215: Survey used for analysis: | B215: =A1025 -> DHS04
A220: Access to handwashing | C220: NATIONAL wealth index quintile | H220: URBAN wealth index quintile | M220: RURAL wealth index quintile | R220: SUB-REGIONS: | BA220: Raw numbers of respondents: | BB220: Access to handwashing | BC220: NATIONAL wealth index quintile | BH220: URBAN wealth index quintile | BM220: RURAL wealth index quintile | BR220: SUB-REGIONS:
A221: Weighted percentage (used in graphs) | C221: Poorest | D221: Poor | E221: Middle | F221: Rich | G221: Richest | H221: Poorest | I221: Poor | J221: Middle | K221: Rich | L221: Richest | M221: Poorest | N221: Poor | O221: Middle | P221: Rich | Q221: Richest | R221: barisal | S221: chittagong | T221: dhaka | U221: khulna | V221: rajshahi | W221: sylhet | BA221: Hygiene data, raw numbers (weighted) | BC221: Poorest | BD221: Poor | BE221: Middle | BF221: Rich | BG221: Richest | BH221: Poorest | BI221: Poor | BJ221: Middle | BK221: Rich | BL221: Richest | BM221: Poorest | BN221: Poor | BO221: Middle | BP221: Rich | BQ221: Richest | BR221: barisal | BS221: chittagong | BT221: dhaka | BU221: khulna | BV221: rajshahi | BW221: sylhet
A222: Hygiene ladder | B222: Basic | C222: N/A | D222: N/A | E222: N/A | F222: N/A | G222: N/A | H222: N/A | I222: N/A | J222: N/A | K222: N/A | L222: N/A | M222: N/A | N222: N/A | O222: N/A | P222: N/A | Q222: N/A | R222: N/A | S222: N/A | T222: N/A | U222: N/A | V222: N/A | W222: N/A | BA222: Hygiene ladder | BB222: Basic | BC222: N/A | BD222: N/A | BE222: N/A | BF222: N/A | BG222: N/A | BH222: N/A | BI222: N/A | BJ222: N/A | BK222: N/A | BL222: N/A | BM222: N/A | BN222: N/A | BO222: N/A | BP222: N/A | BQ222: N/A | BR222: N/A | BS222: N/A | BT222: N/A | BU222: N/A | BV222: N/A | BW222: N/A
B223: Limited | C223: N/A | D223: N/A | E223: N/A | F223: N/A | G223: N/A | H223: N/A | I223: N/A | J223: N/A | K223: N/A | L223: N/A | M223: N/A | N223: N/A | O223: N/A | P223: N/A | Q223: N/A | R223: N/A | S223: N/A | T223: N/A | U223: N/A | V223: N/A | W223: N/A | BB223: Limited | BC223: N/A | BD223: N/A | BE223: N/A | BF223: N/A | BG223: N/A | BH223: N/A | BI223: N/A | BJ223: N/A | BK223: N/A | BL223: N/A | BM223: N/A | BN223: N/A | BO223: N/A | BP223: N/A | BQ223: N/A | BR223: N/A | BS223: N/A | BT223: N/A | BU223: N/A | BV223: N/A | BW223: N/A
B224: No facility | C224: N/A | D224: N/A | E224: N/A | F224: N/A | G224: N/A | H224: N/A | I224: N/A | J224: N/A | K224: N/A | L224: N/A | M224: N/A | N224: N/A | O224: N/A | P224: N/A | Q224: N/A | R224: N/A | S224: N/A | T224: N/A | U224: N/A | V224: N/A | W224: N/A | BB224: No facility | BC224: N/A | BD224: N/A | BE224: N/A | BF224: N/A | BG224: N/A | BH224: N/A | BI224: N/A | BJ224: N/A | BK224: N/A | BL224: N/A | BM224: N/A | BN224: N/A | BO224: N/A | BP224: N/A | BQ224: N/A | BR224: N/A | BS224: N/A | BT224: N/A | BU224: N/A | BV224: N/A | BW224: N/A
BA225: Observed handwashing place | BB225: Fixed | BC225: N/A | BD225: N/A | BE225: N/A | BF225: N/A | BG225: N/A | BH225: N/A | BI225: N/A | BJ225: N/A | BK225: N/A | BL225: N/A | BM225: N/A | BN225: N/A | BO225: N/A | BP225: N/A | BQ225: N/A | BR225: N/A | BS225: N/A | BT225: N/A | BU225: N/A | BV225: N/A | BW225: N/A
BB226: Mobile | BC226: N/A | BD226: N/A | BE226: N/A | BF226: N/A | BG226: N/A | BH226: N/A | BI226: N/A | BJ226: N/A | BK226: N/A | BL226: N/A | BM226: N/A | BN226: N/A | BO226: N/A | BP226: N/A | BQ226: N/A | BR226: N/A | BS226: N/A | BT226: N/A | BU226: N/A | BV226: N/A | BW226: N/A
BA227: Water / Soap | BB227: Water and soap | BC227: N/A | BD227: N/A | BE227: N/A | BF227: N/A | BG227: N/A | BH227: N/A | BI227: N/A | BJ227: N/A | BK227: N/A | BL227: N/A | BM227: N/A | BN227: N/A | BO227: N/A | BP227: N/A | BQ227: N/A | BR227: N/A | BS227: N/A | BT227: N/A | BU227: N/A | BV227: N/A | BW227: N/A
BB228: Water only | BC228: N/A | BD228: N/A | BE228: N/A | BF228: N/A | BG228: N/A | BH228: N/A | BI228: N/A | BJ228: N/A | BK228: N/A | BL228: N/A | BM228: N/A | BN228: N/A | BO228: N/A | BP228: N/A | BQ228: N/A | BR228: N/A | BS228: N/A | BT228: N/A | BU228: N/A | BV228: N/A | BW228: N/A
BB229: Soap only | BC229: N/A | BD229: N/A | BE229: N/A | BF229: N/A | BG229: N/A | BH229: N/A | BI229: N/A | BJ229: N/A | BK229: N/A | BL229: N/A | BM229: N/A | BN229: N/A | BO229: N/A | BP229: N/A | BQ229: N/A | BR229: N/A | BS229: N/A | BT229: N/A | BU229: N/A | BV229: N/A | BW229: N/A
BB230: Neither | BC230: N/A | BD230: N/A | BE230: N/A | BF230: N/A | BG230: N/A | BH230: N/A | BI230: N/A | BJ230: N/A | BK230: N/A | BL230: N/A | BM230: N/A | BN230: N/A | BO230: N/A | BP230: N/A | BQ230: N/A | BR230: N/A | BS230: N/A | BT230: N/A | BU230: N/A | BV230: N/A | BW230: N/A
BA259: Raw numbers of respondents: | BB259: Menstrual health and hygiene | BC259: NATIONAL wealth index quintile | BH259: URBAN wealth index quintile | BM259: RURAL wealth index quintile | BR259: SUB-REGIONS:
BA260: MHH data, raw numbers (weighted) | BC260: Poorest | BD260: Poor | BE260: Middle | BF260: Rich | BG260: Richest | BH260: Poorest | BI260: Poor | BJ260: Middle | BK260: Rich | BL260: Richest | BM260: Poorest | BN260: Poor | BO260: Middle | BP260: Rich | BQ260: Richest | BR260: barisal | BS260: chittagong | BT260: dhaka | BU260: khulna | BV260: rajshahi | BW260: sylhet
BA261: Private place to wash and change | BB261: Yes | BC261: N/A | BD261: N/A | BE261: N/A | BF261: N/A | BG261: N/A | BH261: N/A | BI261: N/A | BJ261: N/A | BK261: N/A | BL261: N/A | BM261: N/A | BN261: N/A | BO261: N/A | BP261: N/A | BQ261: N/A | BR261: N/A | BS261: N/A | BT261: N/A | BU261: N/A | BV261: N/A | BW261: N/A
BB262: No | BC262: N/A | BD262: N/A | BE262: N/A | BF262: N/A | BG262: N/A | BH262: N/A | BI262: N/A | BJ262: N/A | BK262: N/A | BL262: N/A | BM262: N/A | BN262: N/A | BO262: N/A | BP262: N/A | BQ262: N/A | BR262: N/A | BS262: N/A | BT262: N/A | BU262: N/A | BV262: N/A | BW262: N/A
BB263: DK/not sure/missing | BC263: N/A | BD263: N/A | BE263: N/A | BF263: N/A | BG263: N/A | BH263: N/A | BI263: N/A | BJ263: N/A | BK263: N/A | BL263: N/A | BM263: N/A | BN263: N/A | BO263: N/A | BP263: N/A | BQ263: N/A | BR263: N/A | BS263: N/A | BT263: N/A | BU263: N/A | BV263: N/A | BW263: N/A
BA264: Use of menstrual materials | BB264: Materials reusable | BC264: N/A | BD264: N/A | BE264: N/A | BF264: N/A | BG264: N/A | BH264: N/A | BI264: N/A | BJ264: N/A | BK264: N/A | BL264: N/A | BM264: N/A | BN264: N/A | BO264: N/A | BP264: N/A | BQ264: N/A | BR264: N/A | BS264: N/A | BT264: N/A | BU264: N/A | BV264: N/A | BW264: N/A
BB265: Materials not reusable | BC265: N/A | BD265: N/A | BE265: N/A | BF265: N/A | BG265: N/A | BH265: N/A | BI265: N/A | BJ265: N/A | BK265: N/A | BL265: N/A | BM265: N/A | BN265: N/A | BO265: N/A | BP265: N/A | BQ265: N/A | BR265: N/A | BS265: N/A | BT265: N/A | BU265: N/A | BV265: N/A | BW265: N/A
BB266: No materials used | BC266: N/A | BD266: N/A | BE266: N/A | BF266: N/A | BG266: N/A | BH266: N/A | BI266: N/A | BJ266: N/A | BK266: N/A | BL266: N/A | BM266: N/A | BN266: N/A | BO266: N/A | BP266: N/A | BQ266: N/A | BR266: N/A | BS266: N/A | BT266: N/A | BU266: N/A | BV266: N/A | BW266: N/A
BB267: DK/not sure/missing | BC267: N/A | BD267: N/A | BE267: N/A | BF267: N/A | BG267: N/A | BH267: N/A | BI267: N/A | BJ267: N/A | BK267: N/A | BL267: N/A | BM267: N/A | BN267: N/A | BO267: N/A | BP267: N/A | BQ267: N/A | BR267: N/A | BS267: N/A | BT267: N/A | BU267: N/A | BV267: N/A | BW267: N/A
BA268: Use of menstrual materials with private place to wash and change | BB268: Materials reusable | BC268: N/A | BD268: N/A | BE268: N/A | BF268: N/A | BG268: N/A | BH268: N/A | BI268: N/A | BJ268: N/A | BK268: N/A | BL268: N/A | BM268: N/A | BN268: N/A | BO268: N/A | BP268: N/A | BQ268: N/A | BR268: N/A | BS268: N/A | BT268: N/A | BU268: N/A | BV268: N/A | BW268: N/A
BB269: Materials not reusable | BC269: N/A | BD269: N/A | BE269: N/A | BF269: N/A | BG269: N/A | BH269: N/A | BI269: N/A | BJ269: N/A | BK269: N/A | BL269: N/A | BM269: N/A | BN269: N/A | BO269: N/A | BP269: N/A | BQ269: N/A | BR269: N/A | BS269: N/A | BT269: N/A | BU269: N/A | BV269: N/A | BW269: N/A
BB270: No materials used | BC270: N/A | BD270: N/A | BE270: N/A | BF270: N/A | BG270: N/A | BH270: N/A | BI270: N/A | BJ270: N/A | BK270: N/A | BL270: N/A | BM270: N/A | BN270: N/A | BO270: N/A | BP270: N/A | BQ270: N/A | BR270: N/A | BS270: N/A | BT270: N/A | BU270: N/A | BV270: N/A | BW270: N/A
BA271: Awareness of menstruation before menarche | BB271: Yes | BC271: N/A | BD271: N/A | BE271: N/A | BF271: N/A | BG271: N/A | BH271: N/A | BI271: N/A | BJ271: N/A | BK271: N/A | BL271: N/A | BM271: N/A | BN271: N/A | BO271: N/A | BP271: N/A | BQ271: N/A | BR271: N/A | BS271: N/A | BT271: N/A | BU271: N/A | BV271: N/A | BW271: N/A
BB272: No | BC272: N/A | BD272: N/A | BE272: N/A | BF272: N/A | BG272: N/A | BH272: N/A | BI272: N/A | BJ272: N/A | BK272: N/A | BL272: N/A | BM272: N/A | BN272: N/A | BO272: N/A | BP272: N/A | BQ272: N/A | BR272: N/A | BS272: N/A | BT272: N/A | BU272: N/A | BV272: N/A | BW272: N/A
BB273: DK/not sure/missing | BC273: N/A | BD273: N/A | BE273: N/A | BF273: N/A | BG273: N/A | BH273: N/A | BI273: N/A | BJ273: N/A | BK273: N/A | BL273: N/A | BM273: N/A | BN273: N/A | BO273: N/A | BP273: N/A | BQ273: N/A | BR273: N/A | BS273: N/A | BT273: N/A | BU273: N/A | BV273: N/A | BW273: N/A
BA274: Participation in (all) activities during menstruation | BB274: Yes | BC274: N/A | BD274: N/A | BE274: N/A | BF274: N/A | BG274: N/A | BH274: N/A | BI274: N/A | BJ274: N/A | BK274: N/A | BL274: N/A | BM274: N/A | BN274: N/A | BO274: N/A | BP274: N/A | BQ274: N/A | BR274: N/A | BS274: N/A | BT274: N/A | BU274: N/A | BV274: N/A | BW274: N/A
BB275: No | BC275: N/A | BD275: N/A | BE275: N/A | BF275: N/A | BG275: N/A | BH275: N/A | BI275: N/A | BJ275: N/A | BK275: N/A | BL275: N/A | BM275: N/A | BN275: N/A | BO275: N/A | BP275: N/A | BQ275: N/A | BR275: N/A | BS275: N/A | BT275: N/A | BU275: N/A | BV275: N/A | BW275: N/A
BB276: DK/not sure/missing/no such activity | BC276: N/A | BD276: N/A | BE276: N/A | BF276: N/A | BG276: N/A | BH276: N/A | BI276: N/A | BJ276: N/A | BK276: N/A | BL276: N/A | BM276: N/A | BN276: N/A | BO276: N/A | BP276: N/A | BQ276: N/A | BR276: N/A | BS276: N/A | BT276: N/A | BU276: N/A | BV276: N/A | BW276: N/A
BA277: Participation in specific activities during menstruation | BB277: Did not go to school (amongst those usually attending school) | BC277: N/A | BD277: N/A | BE277: N/A | BF277: N/A | BG277: N/A | BH277: N/A | BI277: N/A | BJ277: N/A | BK277: N/A | BL277: N/A | BM277: N/A | BN277: N/A | BO277: N/A | BP277: N/A | BQ277: N/A | BR277: N/A | BS277: N/A | BT277: N/A | BU277: N/A | BV277: N/A | BW277: N/A
BB278: Did not go to work (amongst those who usually work) | BC278: N/A | BD278: N/A | BE278: N/A | BF278: N/A | BG278: N/A | BH278: N/A | BI278: N/A | BJ278: N/A | BK278: N/A | BL278: N/A | BM278: N/A | BN278: N/A | BO278: N/A | BP278: N/A | BQ278: N/A | BR278: N/A | BS278: N/A | BT278: N/A | BU278: N/A | BV278: N/A | BW278: N/A
BB279: Did not participate in social activities | BC279: N/A | BD279: N/A | BE279: N/A | BF279: N/A | BG279: N/A | BH279: N/A | BI279: N/A | BJ279: N/A | BK279: N/A | BL279: N/A | BM279: N/A | BN279: N/A | BO279: N/A | BP279: N/A | BQ279: N/A | BR279: N/A | BS279: N/A | BT279: N/A | BU279: N/A | BV279: N/A | BW279: N/A
BB280: Did not cook food | BC280: N/A | BD280: N/A | BE280: N/A | BF280: N/A | BG280: N/A | BH280: N/A | BI280: N/A | BJ280: N/A | BK280: N/A | BL280: N/A | BM280: N/A | BN280: N/A | BO280: N/A | BP280: N/A | BQ280: N/A | BR280: N/A | BS280: N/A | BT280: N/A | BU280: N/A | BV280: N/A | BW280: N/A
BB281: Did not eat with others | BC281: N/A | BD281: N/A | BE281: N/A | BF281: N/A | BG281: N/A | BH281: N/A | BI281: N/A | BJ281: N/A | BK281: N/A | BL281: N/A | BM281: N/A | BN281: N/A | BO281: N/A | BP281: N/A | BQ281: N/A | BR281: N/A | BS281: N/A | BT281: N/A | BU281: N/A | BV281: N/A | BW281: N/A
BB282: Did not bathe in regular place | BC282: N/A | BD282: N/A | BE282: N/A | BF282: N/A | BG282: N/A | BH282: N/A | BI282: N/A | BJ282: N/A | BK282: N/A | BL282: N/A | BM282: N/A | BN282: N/A | BO282: N/A | BP282: N/A | BQ282: N/A | BR282: N/A | BS282: N/A | BT282: N/A | BU282: N/A | BV282: N/A | BW282: N/A
BB283: Did not participate in other activities | BC283: N/A | BD283: N/A | BE283: N/A | BF283: N/A | BG283: N/A | BH283: N/A | BI283: N/A | BJ283: N/A | BK283: N/A | BL283: N/A | BM283: N/A | BN283: N/A | BO283: N/A | BP283: N/A | BQ283: N/A | BR283: N/A | BS283: N/A | BT283: N/A | BU283: N/A | BV283: N/A | BW283: N/A
BB284: DK/not sure/missing/no such activity | BC284: N/A | BD284: N/A | BE284: N/A | BF284: N/A | BG284: N/A | BH284: N/A | BI284: N/A | BJ284: N/A | BK284: N/A | BL284: N/A | BM284: N/A | BN284: N/A | BO284: N/A | BP284: N/A | BQ284: N/A | BR284: N/A | BS284: N/A | BT284: N/A | BU284: N/A | BV284: N/A | BW284: N/A
BA339: Raw numbers of respondents: | BB339: Basic water, sanitation and hygiene | BC339: NATIONAL wealth index quintile | BH339: URBAN wealth index quintile | BM339: RURAL wealth index quintile | BR339: SUB-REGIONS:
BA340: WatSan data, raw numbers (weighted) | BC340: Poorest | BD340: Poor | BE340: Middle | BF340: Rich | BG340: Richest | BH340: Poorest | BI340: Poor | BJ340: Middle | BK340: Rich | BL340: Richest | BM340: Poorest | BN340: Poor | BO340: Middle | BP340: Rich | BQ340: Richest | BR340: barisal | BS340: chittagong | BT340: dhaka | BU340: khulna | BV340: rajshahi | BW340: sylhet
BA341: Access to Basic Water Sanitation and Hygiene | BB341: Yes | BC341: N/A | BD341: N/A | BE341: N/A | BF341: N/A | BG341: N/A | BH341: N/A | BI341: N/A | BJ341: N/A | BK341: N/A | BL341: N/A | BM341: N/A | BN341: N/A | BO341: N/A | BP341: N/A | BQ341: N/A | BR341: N/A | BS341: N/A | BT341: N/A | BU341: N/A | BV341: N/A | BW341: N/A
BB342: No | BC342: N/A | BD342: N/A | BE342: N/A | BF342: N/A | BG342: N/A | BH342: N/A | BI342: N/A | BJ342: N/A | BK342: N/A | BL342: N/A | BM342: N/A | BN342: N/A | BO342: N/A | BP342: N/A | BQ342: N/A | BR342: N/A | BS342: N/A | BT342: N/A | BU342: N/A | BV342: N/A | BW342: N/A
BA343: Access to Basic Water and Sanitation | BB343: Yes | BC343: N/A | BD343: N/A | BE343: N/A | BF343: N/A | BG343: N/A | BH343: N/A | BI343: N/A | BJ343: N/A | BK343: N/A | BL343: N/A | BM343: N/A | BN343: N/A | BO343: N/A | BP343: N/A | BQ343: N/A | BR343: N/A | BS343: N/A | BT343: N/A | BU343: N/A | BV343: N/A | BW343: N/A
BB344: No | BC344: N/A | BD344: N/A | BE344: N/A | BF344: N/A | BG344: N/A | BH344: N/A | BI344: N/A | BJ344: N/A | BK344: N/A | BL344: N/A | BM344: N/A | BN344: N/A | BO344: N/A | BP344: N/A | BQ344: N/A | BR344: N/A | BS344: N/A | BT344: N/A | BU344: N/A | BV344: N/A | BW344: N/A
BA345: Access to Basic Water and Hygiene | BB345: Yes | BC345: N/A | BD345: N/A | BE345: N/A | BF345: N/A | BG345: N/A | BH345: N/A | BI345: N/A | BJ345: N/A | BK345: N/A | BL345: N/A | BM345: N/A | BN345: N/A | BO345: N/A | BP345: N/A | BQ345: N/A | BR345: N/A | BS345: N/A | BT345: N/A | BU345: N/A | BV345: N/A | BW345: N/A
BB346: No | BC346: N/A | BD346: N/A | BE346: N/A | BF346: N/A | BG346: N/A | BH346: N/A | BI346: N/A | BJ346: N/A | BK346: N/A | BL346: N/A | BM346: N/A | BN346: N/A | BO346: N/A | BP346: N/A | BQ346: N/A | BR346: N/A | BS346: N/A | BT346: N/A | BU346: N/A | BV346: N/A | BW346: N/A
BA347: Access to Basic Sanitation and Hygiene | BB347: Yes | BC347: N/A | BD347: N/A | BE347: N/A | BF347: N/A | BG347: N/A | BH347: N/A | BI347: N/A | BJ347: N/A | BK347: N/A | BL347: N/A | BM347: N/A | BN347: N/A | BO347: N/A | BP347: N/A | BQ347: N/A | BR347: N/A | BS347: N/A | BT347: N/A | BU347: N/A | BV347: N/A | BW347: N/A
BB348: No | BC348: N/A | BD348: N/A | BE348: N/A | BF348: N/A | BG348: N/A | BH348: N/A | BI348: N/A | BJ348: N/A | BK348: N/A | BL348: N/A | BM348: N/A | BN348: N/A | BO348: N/A | BP348: N/A | BQ348: N/A | BR348: N/A | BS348: N/A | BT348: N/A | BU348: N/A | BV348: N/A | BW348: N/A
BA349: Access to Basic Water | BB349: Yes | BC349: N/A | BD349: N/A | BE349: N/A | BF349: N/A | BG349: N/A | BH349: N/A | BI349: N/A | BJ349: N/A | BK349: N/A | BL349: N/A | BM349: N/A | BN349: N/A | BO349: N/A | BP349: N/A | BQ349: N/A | BR349: N/A | BS349: N/A | BT349: N/A | BU349: N/A | BV349: N/A | BW349: N/A
BB350: No | BC350: N/A | BD350: N/A | BE350: N/A | BF350: N/A | BG350: N/A | BH350: N/A | BI350: N/A | BJ350: N/A | BK350: N/A | BL350: N/A | BM350: N/A | BN350: N/A | BO350: N/A | BP350: N/A | BQ350: N/A | BR350: N/A | BS350: N/A | BT350: N/A | BU350: N/A | BV350: N/A | BW350: N/A
BA351: Access to Basic Sanitation | BB351: Yes | BC351: N/A | BD351: N/A | BE351: N/A | BF351: N/A | BG351: N/A | BH351: N/A | BI351: N/A | BJ351: N/A | BK351: N/A | BL351: N/A | BM351: N/A | BN351: N/A | BO351: N/A | BP351: N/A | BQ351: N/A | BR351: N/A | BS351: N/A | BT351: N/A | BU351: N/A | BV351: N/A | BW351: N/A
BB352: No | BC352: N/A | BD352: N/A | BE352: N/A | BF352: N/A | BG352: N/A | BH352: N/A | BI352: N/A | BJ352: N/A | BK352: N/A | BL352: N/A | BM352: N/A | BN352: N/A | BO352: N/A | BP352: N/A | BQ352: N/A | BR352: N/A | BS352: N/A | BT352: N/A | BU352: N/A | BV352: N/A | BW352: N/A
BA353: Access to Basic Hygiene | BB353: Yes | BC353: N/A | BD353: N/A | BE353: N/A | BF353: N/A | BG353: N/A | BH353: N/A | BI353: N/A | BJ353: N/A | BK353: N/A | BL353: N/A | BM353: N/A | BN353: N/A | BO353: N/A | BP353: N/A | BQ353: N/A | BR353: N/A | BS353: N/A | BT353: N/A | BU353: N/A | BV353: N/A | BW353: N/A
BB354: No | BC354: N/A | BD354: N/A | BE354: N/A | BF354: N/A | BG354: N/A | BH354: N/A | BI354: N/A | BJ354: N/A | BK354: N/A | BL354: N/A | BM354: N/A | BN354: N/A | BO354: N/A | BP354: N/A | BQ354: N/A | BR354: N/A | BS354: N/A | BT354: N/A | BU354: N/A | BV354: N/A | BW354: N/A
C399: INITIAL (national) Wealth Index | H399: URBAN Wealth Index | M399: RURAL Wealth Index
C400: Component Matrix | H400: Component Matrix | M400: Component Matrix
E401: Component | J401: Component | O401: Component
B402: Note: The INITIAL (national) Wealth Index is based on the first component of the Principal Component Analysis (PCA) which has been obtained at national level. The final national-level (NATIONAL) Wealth Index is based on the URBAN and RURAL specific wealth indexes. Regression procedures are used to establish the relationships between the two sets of scores (urban and rural) and the initial (national) wealth factors. This allows best use of the available information for each area and a better precision of the FINAL (NATIONAL) Wealth Index. For dependency reasons, all WASH variables (contained in the generic MICS and DHS scripts) have been excluded from the sets of asset variables used in the PCAs. The PCA can extracts as many components as there are asset variables in the input. Only the first of the components is used to represent the Wealth Index. The scores represent the weights of the asset variables on the Wealth Index (correlations between the variables and the component). The communalities are the proportion of each variable's variance that can be explained by the component. Proportion of explained variance is the part of the model's total variance that is explained by the component. For more information on the procedure used: The DHS Wealth Index, DHS Comparative Reports No. 6, Shea Oscar Rutstein, Kiersten Johnson, ORC Macro International Inc., 2004. The DHS Wealth Index: Approaches for Rural and Urban Areas, Shea O. Rutstein, ORC Macro International Inc., 2008. MICS Methodological Paper No. 4, Review of options for reporting water, sanitation and hygiene coverage by wealth quintile, UNICEF, 2016. | E402: 1 | J402: 1 | O402: 1
C403: if floors are made of carpet (+5parq) | E403: 0.8292914777 | H403: if floors are made of carpet (+5parq) | J403: 0.8273934055 | M403: table | O403: 0.6437170795
C404: if floors are made of earth | E404: -0.8174212115 | H404: if floors are made of earth | J404: -0.8064791364 | M404: chair/bench | O404: 0.6294335142
C405: if walls are made of brick | E405: 0.76568356 | H405: if walls are made of brick | J405: 0.7804672471 | M405: watch or clock | O405: 0.6003130223
C406: has television | E406: 0.6989521758 | H406: if roof is made of metal | J406: 0.7045214312 | M406: if floors are made of carpet (+5parq) | O406: 0.5869167498
C407: Uses open fire without chimney | E407: -0.6718403862 | H407: has television | J407: 0.6890761379 | M407: almirah (wardrobe) | O407: 0.5806637773
C408: Uses kerozene stove | E408: 0.6452404731 | H408: Uses open fire without chimney | J408: -0.6831470815 | M408: if floors are made of earth | O408: -0.5781161103
C409: has electricity | E409: 0.6312449354 | H409: Uses kerozene stove | J409: 0.6594461266 | M409: has television | O409: 0.5755921055
C410: if roof is made of metal | E410: 0.6257094795 | H410: almirah (wardrobe) | J410: 0.6474698023 | M410: has electricity | O410: 0.5413491913
C411: almirah (wardrobe) | E411: 0.6145978237 | H411: has telephone | J411: 0.6176579615 | M411: if walls are made of brick | O411: 0.5351629258
C412: has telephone | E412: 0.5910960576 | H412: has electricity | J412: 0.57636757 | M412: has radio | O412: 0.4600748717
C413: watch or clock | E413: 0.5121161603 | H413: if roof is made of wood | J413: -0.5620987994 | M413: owns any land | O413: 0.4289986217
C414: if uses straw/shrubs/grass for cooking fuel | E414: -0.4890991623 | H414: watch or clock | J414: 0.5383717336 | M414: Number of members per sleeping room | O414: -0.4208684283
C415: table | E415: 0.4759819576 | H415: table | J415: 0.532048532 | M415: has bicycle | O415: 0.4070981447
C416: chair/bench | E416: 0.4686008764 | H416: chair/bench | J416: 0.531309175 | M416: if uses straw/shrubs/grass for cooking fuel | O416: -0.4018282209
... 168 more rows

Sheet MICS06
A2: =A1026 -> Bangladesh
A3: =A1034 -> 2006
A4: Use of drinking water sources
A5: by wealth quintile and sub-national region
A6: Notes:
A7: WHO/UNICEF JMP customised wealth index excludes water,
A8: sanitation and hygiene assets.
A9: Survey used for analysis: | B9: =A1025 -> MICS06
A10: =B1028 -> 
A11: =B1027 -> 
A14: Use of drinking water sources | C14: NATIONAL wealth index quintile | H14: URBAN wealth index quintile | M14: RURAL wealth index quintile | R14: SUB-REGIONS: | BA14: Raw numbers of respondents: | BB14: Use of drinking water sources | BC14: NATIONAL wealth index quintile | BH14: URBAN wealth index quintile | BM14: RURAL wealth index quintile | BR14: SUB-REGIONS:
A15: Weighted percentage (used in graphs) | C15: Poorest | D15: Poor | E15: Middle | F15: Rich | G15: Richest | H15: Poorest | I15: Poor | J15: Middle | K15: Rich | L15: Richest | M15: Poorest | N15: Poor | O15: Middle | P15: Rich | Q15: Richest | R15: Barisal | S15: Chittagong | T15: Dhaka | U15: Khulna | V15: Rajshahi | W15: Sylhet | BA15: Water data, raw numbers (weighted) | BC15: Poorest | BD15: Poor | BE15: Middle | BF15: Rich | BG15: Richest | BH15: Poorest | BI15: Poor | BJ15: Middle | BK15: Rich | BL15: Richest | BM15: Poorest | BN15: Poor | BO15: Middle | BP15: Rich | BQ15: Richest | BR15: Barisal | BS15: Chittagong | BT15: Dhaka | BU15: Khulna | BV15: Rajshahi | BW15: Sylhet
A16: Water | B16: Improved | C16: 95.80716887 | D16: 96.68712505 | E16: 97.56392331 | F16: 98.35198294 | G16: 99.38760295 | H16: 98.6914219 | I16: 98.8121203 | J16: 98.75531786 | K16: 99.63186618 | L16: 99.98889793 | M16: 95.2529238 | N16: 96.32443126 | O16: 96.76186207 | P16: 97.89350173 | Q16: 98.30368982 | R16: 96.87680239 | S16: 97.20792457 | T16: 99.63779179 | U16: 91.69872397 | V16: 99.13932897 | W16: 93.53073144 | BA16: Water | BB16: Improved | BC16: N/A | BD16: N/A | BE16: N/A | BF16: N/A | BG16: N/A | BH16: N/A | BI16: N/A | BJ16: N/A | BK16: N/A | BL16: N/A | BM16: N/A | BN16: N/A | BO16: N/A | BP16: N/A | BQ16: N/A | BR16: N/A | BS16: N/A | BT16: N/A | BU16: N/A | BV16: N/A | BW16: N/A
B17: Not Improved | C17: 4.192831133 | D17: 3.312874952 | E17: 2.436076685 | F17: 1.648017059 | G17: 0.6123970501 | H17: 1.308578105 | I17: 1.187879698 | J17: 1.244682141 | K17: 0.3681338202 | L17: 0.01110206949 | M17: 4.747076202 | N17: 3.675568745 | O17: 3.238137932 | P17: 2.106498267 | Q17: 1.696310182 | R17: 3.123197608 | S17: 2.792075428 | T17: 0.3622082116 | U17: 8.301276032 | V17: 0.8606710271 | W17: 6.46926856 | BB17: Not Improved | BC17: N/A | BD17: N/A | BE17: N/A | BF17: N/A | BG17: N/A | BH17: N/A | BI17: N/A | BJ17: N/A | BK17: N/A | BL17: N/A | BM17: N/A | BN17: N/A | BO17: N/A | BP17: N/A | BQ17: N/A | BR17: N/A | BS17: N/A | BT17: N/A | BU17: N/A | BV17: N/A | BW17: N/A
A18: Water ladder | B18: Basic | C18: =C16*C23/100 -> 94.17973207 | D18: =D16*D23/100 -> 95.73335229 | E18: =E16*E23/100 -> 96.92060453 | F18: 98.02096427 | G18: 99.28882093 | H18: 98.0401423 | I18: 98.29272803 | J18: 98.46179413 | K18: 99.58905982 | L18: 99.98889793 | M18: 93.30809766 | N18: 95.23061626 | O18: 95.9028877 | P18: 97.52750159 | Q18: 98.04601332 | R18: 94.17615445 | S18: 95.80844113 | T18: 99.47716169 | U18: 90.69284279 | V18: 99.05167022 | W18: 92.06280924 | BA18: Water ladder | BB18: Basic | BC18: N/A | BD18: N/A | BE18: N/A | BF18: N/A | BG18: N/A | BH18: N/A | BI18: N/A | BJ18: N/A | BK18: N/A | BL18: N/A | BM18: N/A | BN18: N/A | BO18: N/A | BP18: N/A | BQ18: N/A | BR18: N/A | BS18: N/A | BT18: N/A | BU18: N/A | BV18: N/A | BW18: N/A
B19: Limited | C19: =C16*C22/100 -> 1.627436799 | D19: =D16*D22/100 -> 0.9537727532 | E19: =E16*E22/100 -> 0.643318787 | F19: 0.3310186674 | G19: 0.09878202346 | H19: 0.6512795944 | I19: 0.5193922697 | J19: 0.2935237318 | K19: 0.04280635867 | L19: 0 | M19: 1.944826138 | N19: 1.093814991 | O19: 0.8589743718 | P19: 0.3660001401 | Q19: 0.2576765024 | R19: 2.700647937 | S19: 1.399483439 | T19: 0.1606300939 | U19: 1.00588118 | V19: 0.08765874981 | W19: 1.4679222 | BB19: Limited | BC19: N/A | BD19: N/A | BE19: N/A | BF19: N/A | BG19: N/A | BH19: N/A | BI19: N/A | BJ19: N/A | BK19: N/A | BL19: N/A | BM19: N/A | BN19: N/A | BO19: N/A | BP19: N/A | BQ19: N/A | BR19: N/A | BS19: N/A | BT19: N/A | BU19: N/A | BV19: N/A | BW19: N/A
B20: Unimproved | C20: =100-C18-C19-C21 -> 1.423345998 | D20: =100-D18-D19-D21 -> 1.002776297 | E20: =100-E18-E19-E21 -> 0.390860073 | F20: 0.5073686445 | G20: 0.2659236299 | H20: 0.2645833132 | I20: 0.3257079304 | J20: 0.6120772554 | K20: 0.1992663581 | L20: 0.01110206949 | M20: 1.768426483 | N20: 1.097533926 | O20: 0.6387739205 | P20: 0.417308815 | Q20: 0.5468935613 | R20: 0.03586527783 | S20: 1.80290235 | T20: 0.2694242334 | U20: 0.3604418986 | V20: 0.8375181159 | W20: 0.4773245199 | BB20: Unimproved | BC20: N/A | BD20: N/A | BE20: N/A | BF20: N/A | BG20: N/A | BH20: N/A | BI20: N/A | BJ20: N/A | BK20: N/A | BL20: N/A | BM20: N/A | BN20: N/A | BO20: N/A | BP20: N/A | BQ20: N/A | BR20: N/A | BS20: N/A | BT20: N/A | BU20: N/A | BV20: N/A | BW20: N/A
B21: Surface water | C21: 2.769485135 | D21: 2.310098656 | E21: 2.045216612 | F21: 1.140648415 | G21: 0.3464734203 | H21: 1.043994792 | I21: 0.8621717675 | J21: 0.6326048859 | K21: 0.1688674621 | L21: 0 | M21: 2.978649719 | N21: 2.578034819 | O21: 2.599364011 | P21: 1.689189452 | Q21: 1.149416621 | R21: 3.08733233 | S21: 0.989173078 | T21: 0.09278397823 | U21: 7.940834133 | V21: 0.02315291118 | W21: 5.99194404 | BB21: Surface water | BC21: N/A | BD21: N/A | BE21: N/A | BF21: N/A | BG21: N/A | BH21: N/A | BI21: N/A | BJ21: N/A | BK21: N/A | BL21: N/A | BM21: N/A | BN21: N/A | BO21: N/A | BP21: N/A | BQ21: N/A | BR21: N/A | BS21: N/A | BT21: N/A | BU21: N/A | BV21: N/A | BW21: N/A
A22: Improved water point at more than 30 minutes | B22: Yes | C22: 1.698658689 | D22: 0.9864526976 | E22: 0.6593818341 | F22: 0.3365653213 | G22: 0.09939068911 | H22: 0.6599150989 | I22: 0.5256361953 | J22: 0.2972232161 | K22: 0.04296452562 | L22: 0 | M22: 2.041749544 | N22: 1.135553023 | O22: 0.8877199689 | P22: 0.373875828 | Q22: 0.2621229202 | R22: 2.787713747 | S22: 1.439680402 | T22: 0.1612140243 | U22: 1.096941306 | V22: 0.088419753 | W22: 1.569454421 | BA22: Improved water point at more than 30 minutes | BB22: Yes | BC22: N/A | BD22: N/A | BE22: N/A | BF22: N/A | BG22: N/A | BH22: N/A | BI22: N/A | BJ22: N/A | BK22: N/A | BL22: N/A | BM22: N/A | BN22: N/A | BO22: N/A | BP22: N/A | BQ22: N/A | BR22: N/A | BS22: N/A | BT22: N/A | BU22: N/A | BV22: N/A | BW22: N/A
B23: No | C23: 98.30134131 | D23: 99.0135473 | E23: 99.34061817 | F23: 99.66343468 | G23: 99.90060931 | H23: 99.3400849 | I23: 99.4743638 | J23: 99.70277678 | K23: 99.95703547 | L23: 100 | M23: 97.95825046 | N23: 98.86444698 | O23: 99.11228003 | P23: 99.62612417 | Q23: 99.73787708 | R23: 97.21228625 | S23: 98.5603196 | T23: 99.83878598 | U23: 98.90305869 | V23: 99.91158025 | W23: 98.43054558 | BB23: No | BC23: N/A | BD23: N/A | BE23: N/A | BF23: N/A | BG23: N/A | BH23: N/A | BI23: N/A | BJ23: N/A | BK23: N/A | BL23: N/A | BM23: N/A | BN23: N/A | BO23: N/A | BP23: N/A | BQ23: N/A | BR23: N/A | BS23: N/A | BT23: N/A | BU23: N/A | BV23: N/A | BW23: N/A
A24: Manually calculated ratios | B24: Improved wells | C24: =C62/(C62+C63)*100 -> 50.90597638 | D24: 47.13318212 | E24: 67.88074685 | F24: 56.53427043 | G24: 56.28933808 | H24: 84.54030574 | I24: 97.478419 | J24: 29.24561275 | K24: 92.19630499 | L24: 100 | M24: =M62/(M62+M63)*100 -> 46.15056843 | N24: 50.28832254 | O24: 64.17900482 | P24: 51.10502823 | Q24: 54.73375993 | R24: 100 | S24: 50.46406326 | T24: 71.74862466 | U24: 100 | V24: 45.02818914 | W24: 65.97398289
B25: Improved springs
B26: Other
C27: NATIONAL wealth index quintile | H27: URBAN wealth index quintile | M27: RURAL wealth index quintile | R27: SUB-REGIONS: | BA27: Raw numbers of respondents: | BB27: Use of drinking water sources | BC27: NATIONAL wealth index quintile | BH27: URBAN wealth index quintile | BM27: RURAL wealth index quintile | BR27: SUB-REGIONS:
A28: Percentage based on weighted population | C28: Poorest | D28: Poor | E28: Middle | F28: Rich | G28: Richest | H28: Poorest | I28: Poor | J28: Middle | K28: Rich | L28: Richest | M28: Poorest | N28: Poor | O28: Middle | P28: Rich | Q28: Richest | R28: Barisal | S28: Chittagong | T28: Dhaka | U28: Khulna | V28: Rajshahi | W28: Sylhet | BA28: Water data, raw numbers (weighted) | BC28: Poorest | BD28: Poor | BE28: Middle | BF28: Rich | BG28: Richest | BH28: Poorest | BI28: Poor | BJ28: Middle | BK28: Rich | BL28: Richest | BM28: Poorest | BN28: Poor | BO28: Middle | BP28: Rich | BQ28: Richest | BR28: Barisal | BS28: Chittagong | BT28: Dhaka | BU28: Khulna | BV28: Rajshahi | BW28: Sylhet
A29: Piped water | B29: Yes | C29: 2.323558498 | D29: 1.211959908 | E29: 2.065718697 | F29: 4.962788547 | G29: 30.62586632 | H29: 11.38127618 | I29: 14.18387978 | J29: 19.25406443 | K29: 32.92382272 | L29: 59.48041574 | M29: 0.5412555482 | N29: 0.2603348922 | O29: 0.2773594012 | P29: 0.4262935851 | Q29: 0.9263220907 | R29: 1.626768142 | S29: 8.033320522 | T29: 17.05451522 | U29: 4.256392215 | V29: 1.434844997 | W29: 4.810841945 | BA29: Piped water | BB29: Yes | BC29: N/A | BD29: N/A | BE29: N/A | BF29: N/A | BG29: N/A | BH29: N/A | BI29: N/A | BJ29: N/A | BK29: N/A | BL29: N/A | BM29: N/A | BN29: N/A | BO29: N/A | BP29: N/A | BQ29: N/A | BR29: N/A | BS29: N/A | BT29: N/A | BU29: N/A | BV29: N/A | BW29: N/A
B30: No | C30: 97.6764415 | D30: 98.78804009 | E30: 97.9342813 | F30: 95.03721145 | G30: 69.37413368 | H30: 88.61872382 | I30: 85.81612022 | J30: 80.74593557 | K30: 67.07617728 | L30: 40.51958426 | M30: 99.45874445 | N30: 99.73966511 | O30: 99.7226406 | P30: 99.57370641 | Q30: 99.07367791 | R30: 98.37323186 | S30: 91.96667948 | T30: 82.94548478 | U30: 95.74360779 | V30: 98.565155 | W30: 95.18915806 | BB30: No | BC30: N/A | BD30: N/A | BE30: N/A | BF30: N/A | BG30: N/A | BH30: N/A | BI30: N/A | BJ30: N/A | BK30: N/A | BL30: N/A | BM30: N/A | BN30: N/A | BO30: N/A | BP30: N/A | BQ30: N/A | BR30: N/A | BS30: N/A | BT30: N/A | BU30: N/A | BV30: N/A | BW30: N/A
A31: Piped water on premises | B31: Yes | C31: N/A | D31: N/A | E31: N/A | F31: N/A | G31: N/A | H31: N/A | I31: N/A | J31: N/A | K31: N/A | L31: N/A | M31: N/A | N31: N/A | O31: N/A | P31: N/A | Q31: N/A | R31: N/A | S31: N/A | T31: N/A | U31: N/A | V31: N/A | W31: N/A | BA31: Piped water on premises | BB31: Yes | BC31: N/A | BD31: N/A | BE31: N/A | BF31: N/A | BG31: N/A | BH31: N/A | BI31: N/A | BJ31: N/A | BK31: N/A | BL31: N/A | BM31: N/A | BN31: N/A | BO31: N/A | BP31: N/A | BQ31: N/A | BR31: N/A | BS31: N/A | BT31: N/A | BU31: N/A | BV31: N/A | BW31: N/A
B32: No | C32: N/A | D32: N/A | E32: N/A | F32: N/A | G32: N/A | H32: N/A | I32: N/A | J32: N/A | K32: N/A | L32: N/A | M32: N/A | N32: N/A | O32: N/A | P32: N/A | Q32: N/A | R32: N/A | S32: N/A | T32: N/A | U32: N/A | V32: N/A | W32: N/A | BB32: No | BC32: N/A | BD32: N/A | BE32: N/A | BF32: N/A | BG32: N/A | BH32: N/A | BI32: N/A | BJ32: N/A | BK32: N/A | BL32: N/A | BM32: N/A | BN32: N/A | BO32: N/A | BP32: N/A | BQ32: N/A | BR32: N/A | BS32: N/A | BT32: N/A | BU32: N/A | BV32: N/A | BW32: N/A
A33: Piped water into dwelling | B33: Yes | C33: 0.6557314492 | D33: 0.4290659105 | E33: 0.9366306325 | F33: 2.698093366 | G33: 28.3146773 | H33: 3.589331296 | I33: 7.240026054 | J33: 14.07811041 | K33: 29.88412539 | L33: 57.24817024 | M33: 0.1516724596 | N33: 0.0645165517 | O33: 0.1106936747 | P33: 0.1581044576 | Q33: 0.6635673827 | R33: 0.7616948667 | S33: 6.484231324 | T33: 14.57169744 | U33: 1.724952505 | V33: 0.922986688 | W33: 3.679514283 | BA33: Piped water into dwelling | BB33: Yes | BC33: N/A | BD33: N/A | BE33: N/A | BF33: N/A | BG33: N/A | BH33: N/A | BI33: N/A | BJ33: N/A | BK33: N/A | BL33: N/A | BM33: N/A | BN33: N/A | BO33: N/A | BP33: N/A | BQ33: N/A | BR33: N/A | BS33: N/A | BT33: N/A | BU33: N/A | BV33: N/A | BW33: N/A
B34: No | C34: 99.34426855 | D34: 99.57093409 | E34: 99.06336937 | F34: 97.30190663 | G34: 71.6853227 | H34: 96.4106687 | I34: 92.75997395 | J34: 85.92188959 | K34: 70.11587461 | L34: 42.75182976 | M34: 99.84832754 | N34: 99.93548345 | O34: 99.88930633 | P34: 99.84189554 | Q34: 99.33643262 | R34: 99.23830513 | S34: 93.51576868 | T34: 85.42830256 | U34: 98.27504749 | V34: 99.07701331 | W34: 96.32048572 | BB34: No | BC34: N/A | BD34: N/A | BE34: N/A | BF34: N/A | BG34: N/A | BH34: N/A | BI34: N/A | BJ34: N/A | BK34: N/A | BL34: N/A | BM34: N/A | BN34: N/A | BO34: N/A | BP34: N/A | BQ34: N/A | BR34: N/A | BS34: N/A | BT34: N/A | BU34: N/A | BV34: N/A | BW34: N/A
A35: Water source on premises | B35: Yes | C35: 51.77979788 | D35: 60.54516359 | E35: 66.00187096 | F35: 76.28478447 | G35: 87.45088541 | H35: 59.37579605 | I35: 68.28416855 | J35: 80.21638853 | K35: 86.95687926 | L35: 90.84237946 | M35: 49.10351948 | N35: 59.38856392 | O35: 62.99439131 | P35: 70.45987887 | Q35: 82.52199711 | R35: 27.48856192 | S35: 60.53697927 | T35: 77.23404667 | U35: 59.10555214 | V35: 80.13114218 | W35: 61.63408889 | BA35: Water source on premises | BB35: Yes | BC35: N/A | BD35: N/A | BE35: N/A | BF35: N/A | BG35: N/A | BH35: N/A | BI35: N/A | BJ35: N/A | BK35: N/A | BL35: N/A | BM35: N/A | BN35: N/A | BO35: N/A | BP35: N/A | BQ35: N/A | BR35: N/A | BS35: N/A | BT35: N/A | BU35: N/A | BV35: N/A | BW35: N/A
B36: No | C36: 48.22020212 | D36: 39.45483641 | E36: 33.99812904 | F36: 23.71521553 | G36: 12.54911459 | H36: 40.62420395 | I36: 31.71583145 | J36: 19.78361147 | K36: 13.04312074 | L36: 9.157620536 | M36: 50.89648052 | N36: 40.61143608 | O36: 37.00560869 | P36: 29.54012113 | Q36: 17.47800289 | R36: 72.51143808 | S36: 39.46302073 | T36: 22.76595333 | U36: 40.89444786 | V36: 19.86885782 | W36: 38.36591111 | BB36: No | BC36: N/A | BD36: N/A | BE36: N/A | BF36: N/A | BG36: N/A | BH36: N/A | BI36: N/A | BJ36: N/A | BK36: N/A | BL36: N/A | BM36: N/A | BN36: N/A | BO36: N/A | BP36: N/A | BQ36: N/A | BR36: N/A | BS36: N/A | BT36: N/A | BU36: N/A | BV36: N/A | BW36: N/A
A37: Improved Water source on premises | B37: Yes | C37: 53.35691393 | D37: 62.04715647 | E37: 67.11107196 | F37: 77.04736033 | G37: 87.70333427 | H37: 59.62062371 | I37: 68.93696693 | J37: 80.79369197 | K37: 86.94982873 | L37: 90.84557193 | M37: 50.87946644 | N37: 61.03374302 | O37: 64.48591591 | P37: 71.494836 | Q37: 83.27790323 | R37: 27.4339624 | S37: 61.7904487 | T37: 77.35376998 | U37: 63.74572427 | V37: 80.61589241 | W37: 63.03716246 | BA37: Improved water source on premises | BB37: Yes | BC37: N/A | BD37: N/A | BE37: N/A | BF37: N/A | BG37: N/A | BH37: N/A | BI37: N/A | BJ37: N/A | BK37: N/A | BL37: N/A | BM37: N/A | BN37: N/A | BO37: N/A | BP37: N/A | BQ37: N/A | BR37: N/A | BS37: N/A | BT37: N/A | BU37: N/A | BV37: N/A | BW37: N/A
B38: No | C38: 46.64308607 | D38: 37.95284353 | E38: 32.88892804 | F38: 22.95263967 | G38: 12.29666573 | H38: 40.37937629 | I38: 31.06303307 | J38: 19.20630803 | K38: 13.05017127 | L38: 9.15442807 | M38: 49.12053356 | N38: 38.96625698 | O38: 35.51408409 | P38: 28.505164 | Q38: 16.72209677 | R38: 72.5660376 | S38: 38.2095513 | T38: 22.64623002 | U38: 36.25427573 | V38: 19.38410759 | W38: 36.96283754 | BB38: No | BC38: N/A | BD38: N/A | BE38: N/A | BF38: N/A | BG38: N/A | BH38: N/A | BI38: N/A | BJ38: N/A | BK38: N/A | BL38: N/A | BM38: N/A | BN38: N/A | BO38: N/A | BP38: N/A | BQ38: N/A | BR38: N/A | BS38: N/A | BT38: N/A | BU38: N/A | BV38: N/A | BW38: N/A
A39: Piped water on premises available when needed | B39: Yes | C39: N/A | D39: N/A | E39: N/A | F39: N/A | G39: N/A | H39: N/A | I39: N/A | J39: N/A | K39: N/A | L39: N/A | M39: N/A | N39: N/A | O39: N/A | P39: N/A | Q39: N/A | R39: N/A | S39: N/A | T39: N/A | U39: N/A | V39: N/A | W39: N/A | BA39: Piped water on premises available when needed | BB39: Yes | BC39: N/A | BD39: N/A | BE39: N/A | BF39: N/A | BG39: N/A | BH39: N/A | BI39: N/A | BJ39: N/A | BK39: N/A | BL39: N/A | BM39: N/A | BN39: N/A | BO39: N/A | BP39: N/A | BQ39: N/A | BR39: N/A | BS39: N/A | BT39: N/A | BU39: N/A | BV39: N/A | BW39: N/A
B40: No | C40: N/A | D40: N/A | E40: N/A | F40: N/A | G40: N/A | H40: N/A | I40: N/A | J40: N/A | K40: N/A | L40: N/A | M40: N/A | N40: N/A | O40: N/A | P40: N/A | Q40: N/A | R40: N/A | S40: N/A | T40: N/A | U40: N/A | V40: N/A | W40: N/A | BB40: No | BC40: N/A | BD40: N/A | BE40: N/A | BF40: N/A | BG40: N/A | BH40: N/A | BI40: N/A | BJ40: N/A | BK40: N/A | BL40: N/A | BM40: N/A | BN40: N/A | BO40: N/A | BP40: N/A | BQ40: N/A | BR40: N/A | BS40: N/A | BT40: N/A | BU40: N/A | BV40: N/A | BW40: N/A
A41: Water point at more than 30 minutes | B41: Yes | C41: 2.08534735 | D41: 1.292454163 | E41: 0.8654661063 | F41: 0.41108725 | G41: 0.1125063206 | H41: 0.7831979097 | I41: 0.6863123798 | J41: 0.4095392584 | K41: 0.04281468652 | L41: 0 | M41: 2.48356926 | N41: 1.451241494 | O41: 1.225671981 | P41: 0.468105563 | Q41: 0.286500225 | R41: 2.800786939 | S41: 1.607271472 | T41: 0.1631279563 | U41: 2.506066731 | V41: 0.0947463028 | W41: 1.529837198 | BA41: Water point at more than 30 minutes | BB41: Yes | BC41: N/A | BD41: N/A | BE41: N/A | BF41: N/A | BG41: N/A | BH41: N/A | BI41: N/A | BJ41: N/A | BK41: N/A | BL41: N/A | BM41: N/A | BN41: N/A | BO41: N/A | BP41: N/A | BQ41: N/A | BR41: N/A | BS41: N/A | BT41: N/A | BU41: N/A | BV41: N/A | BW41: N/A
B42: No | C42: 97.91465265 | D42: 98.70754584 | E42: 99.13453389 | F42: 99.58891275 | G42: 99.88749368 | H42: 99.21680209 | I42: 99.31368762 | J42: 99.59046074 | K42: 99.95718531 | L42: 100 | M42: 97.51643074 | N42: 98.54875851 | O42: 98.77432802 | P42: 99.53189444 | Q42: 99.71349978 | R42: 97.19921306 | S42: 98.39272853 | T42: 99.83687204 | U42: 97.49393327 | V42: 99.9052537 | W42: 98.4701628 | BB42: No | BC42: N/A | BD42: N/A | BE42: N/A | BF42: N/A | BG42: N/A | BH42: N/A | BI42: N/A | BJ42: N/A | BK42: N/A | BL42: N/A | BM42: N/A | BN42: N/A | BO42: N/A | BP42: N/A | BQ42: N/A | BR42: N/A | BS42: N/A | BT42: N/A | BU42: N/A | BV42: N/A | BW42: N/A
A43: Water source available when needed | B43: Yes | C43: N/A | D43: N/A | E43: N/A | F43: N/A | G43: N/A | H43: N/A | I43: N/A | J43: N/A | K43: N/A | L43: N/A | M43: N/A | N43: N/A | O43: N/A | P43: N/A | Q43: N/A | R43: N/A | S43: N/A | T43: N/A | U43: N/A | V43: N/A | W43: N/A | BA43: Water source available when needed | BB43: Yes | BC43: N/A | BD43: N/A | BE43: N/A | BF43: N/A | BG43: N/A | BH43: N/A | BI43: N/A | BJ43: N/A | BK43: N/A | BL43: N/A | BM43: N/A | BN43: N/A | BO43: N/A | BP43: N/A | BQ43: N/A | BR43: N/A | BS43: N/A | BT43: N/A | BU43: N/A | BV43: N/A | BW43: N/A
B44: No | C44: N/A | D44: N/A | E44: N/A | F44: N/A | G44: N/A | H44: N/A | I44: N/A | J44: N/A | K44: N/A | L44: N/A | M44: N/A | N44: N/A | O44: N/A | P44: N/A | Q44: N/A | R44: N/A | S44: N/A | T44: N/A | U44: N/A | V44: N/A | W44: N/A | BB44: No | BC44: N/A | BD44: N/A | BE44: N/A | BF44: N/A | BG44: N/A | BH44: N/A | BI44: N/A | BJ44: N/A | BK44: N/A | BL44: N/A | BM44: N/A | BN44: N/A | BO44: N/A | BP44: N/A | BQ44: N/A | BR44: N/A | BS44: N/A | BT44: N/A | BU44: N/A | BV44: N/A | BW44: N/A
A45: Improved water source available when needed | B45: Yes | C45: N/A | D45: N/A | E45: N/A | F45: N/A | G45: N/A | H45: N/A | I45: N/A | J45: N/A | K45: N/A | L45: N/A | M45: N/A | N45: N/A | O45: N/A | P45: N/A | Q45: N/A | R45: N/A | S45: N/A | T45: N/A | U45: N/A | V45: N/A | W45: N/A | BA45: Improved water source available when needed | BB45: Yes | BC45: N/A | BD45: N/A | BE45: N/A | BF45: N/A | BG45: N/A | BH45: N/A | BI45: N/A | BJ45: N/A | BK45: N/A | BL45: N/A | BM45: N/A | BN45: N/A | BO45: N/A | BP45: N/A | BQ45: N/A | BR45: N/A | BS45: N/A | BT45: N/A | BU45: N/A | BV45: N/A | BW45: N/A
B46: No | C46: N/A | D46: N/A | E46: N/A | F46: N/A | G46: N/A | H46: N/A | I46: N/A | J46: N/A | K46: N/A | L46: N/A | M46: N/A | N46: N/A | O46: N/A | P46: N/A | Q46: N/A | R46: N/A | S46: N/A | T46: N/A | U46: N/A | V46: N/A | W46: N/A | BB46: No | BC46: N/A | BD46: N/A | BE46: N/A | BF46: N/A | BG46: N/A | BH46: N/A | BI46: N/A | BJ46: N/A | BK46: N/A | BL46: N/A | BM46: N/A | BN46: N/A | BO46: N/A | BP46: N/A | BQ46: N/A | BR46: N/A | BS46: N/A | BT46: N/A | BU46: N/A | BV46: N/A | BW46: N/A
A47: Microbiological quality at point of collection | B47: Not contaminated (No E. coli in 100 mL) | C47: N/A | D47: N/A | E47: N/A | F47: N/A | G47: N/A | H47: N/A | I47: N/A | J47: N/A | K47: N/A | L47: N/A | M47: N/A | N47: N/A | O47: N/A | P47: N/A | Q47: N/A | R47: N/A | S47: N/A | T47: N/A | U47: N/A | V47: N/A | W47: N/A | BA47: Microbiological quality at point of collection | BB47: Not contaminated (No E. coli in 100 mL) | BC47: N/A | BD47: N/A | BE47: N/A | BF47: N/A | BG47: N/A | BH47: N/A | BI47: N/A | BJ47: N/A | BK47: N/A | BL47: N/A | BM47: N/A | BN47: N/A | BO47: N/A | BP47: N/A | BQ47: N/A | BR47: N/A | BS47: N/A | BT47: N/A | BU47: N/A | BV47: N/A | BW47: N/A
B48: Contaminated (E. coli detected in 100 mL) | C48: N/A | D48: N/A | E48: N/A | F48: N/A | G48: N/A | H48: N/A | I48: N/A | J48: N/A | K48: N/A | L48: N/A | M48: N/A | N48: N/A | O48: N/A | P48: N/A | Q48: N/A | R48: N/A | S48: N/A | T48: N/A | U48: N/A | V48: N/A | W48: N/A | BB48: Contaminated (E. coli detected in 100 mL) | BC48: N/A | BD48: N/A | BE48: N/A | BF48: N/A | BG48: N/A | BH48: N/A | BI48: N/A | BJ48: N/A | BK48: N/A | BL48: N/A | BM48: N/A | BN48: N/A | BO48: N/A | BP48: N/A | BQ48: N/A | BR48: N/A | BS48: N/A | BT48: N/A | BU48: N/A | BV48: N/A | BW48: N/A
B49: Highly contaminated (>100 CFU/100 mL) | C49: N/A | D49: N/A | E49: N/A | F49: N/A | G49: N/A | H49: N/A | I49: N/A | J49: N/A | K49: N/A | L49: N/A | M49: N/A | N49: N/A | O49: N/A | P49: N/A | Q49: N/A | R49: N/A | S49: N/A | T49: N/A | U49: N/A | V49: N/A | W49: N/A | BB49: Highly contaminated (>100 CFU/100 mL) | BC49: N/A | BD49: N/A | BE49: N/A | BF49: N/A | BG49: N/A | BH49: N/A | BI49: N/A | BJ49: N/A | BK49: N/A | BL49: N/A | BM49: N/A | BN49: N/A | BO49: N/A | BP49: N/A | BQ49: N/A | BR49: N/A | BS49: N/A | BT49: N/A | BU49: N/A | BV49: N/A | BW49: N/A
A50: Microbiological quality of improved water sources at point of collection | B50: Not contaminated (No E. coli in 100 mL) | C50: N/A | D50: N/A | E50: N/A | F50: N/A | G50: N/A | H50: N/A | I50: N/A | J50: N/A | K50: N/A | L50: N/A | M50: N/A | N50: N/A | O50: N/A | P50: N/A | Q50: N/A | R50: N/A | S50: N/A | T50: N/A | U50: N/A | V50: N/A | W50: N/A | BA50: Microbiological quality of improved water sources at point of collection | BB50: Not contaminated (No E. coli in 100 mL) | BC50: N/A | BD50: N/A | BE50: N/A | BF50: N/A | BG50: N/A | BH50: N/A | BI50: N/A | BJ50: N/A | BK50: N/A | BL50: N/A | BM50: N/A | BN50: N/A | BO50: N/A | BP50: N/A | BQ50: N/A | BR50: N/A | BS50: N/A | BT50: N/A | BU50: N/A | BV50: N/A | BW50: N/A
B51: Contaminated (E. coli detected in 100 mL) | C51: N/A | D51: N/A | E51: N/A | F51: N/A | G51: N/A | H51: N/A | I51: N/A | J51: N/A | K51: N/A | L51: N/A | M51: N/A | N51: N/A | O51: N/A | P51: N/A | Q51: N/A | R51: N/A | S51: N/A | T51: N/A | U51: N/A | V51: N/A | W51: N/A | BB51: Contaminated (E. coli detected in 100 mL) | BC51: N/A | BD51: N/A | BE51: N/A | BF51: N/A | BG51: N/A | BH51: N/A | BI51: N/A | BJ51: N/A | BK51: N/A | BL51: N/A | BM51: N/A | BN51: N/A | BO51: N/A | BP51: N/A | BQ51: N/A | BR51: N/A | BS51: N/A | BT51: N/A | BU51: N/A | BV51: N/A | BW51: N/A
B52: Highly contaminated (>100 CFU/100 mL) | C52: N/A | D52: N/A | E52: N/A | F52: N/A | G52: N/A | H52: N/A | I52: N/A | J52: N/A | K52: N/A | L52: N/A | M52: N/A | N52: N/A | O52: N/A | P52: N/A | Q52: N/A | R52: N/A | S52: N/A | T52: N/A | U52: N/A | V52: N/A | W52: N/A | BB52: Highly contaminated (>100 CFU/100 mL) | BC52: N/A | BD52: N/A | BE52: N/A | BF52: N/A | BG52: N/A | BH52: N/A | BI52: N/A | BJ52: N/A | BK52: N/A | BL52: N/A | BM52: N/A | BN52: N/A | BO52: N/A | BP52: N/A | BQ52: N/A | BR52: N/A | BS52: N/A | BT52: N/A | BU52: N/A | BV52: N/A | BW52: N/A
A53: Microbiological quality of piped on premises at point of collection | B53: Not contaminated (No E. coli in 100 mL) | C53: N/A | D53: N/A | E53: N/A | F53: N/A | G53: N/A | H53: N/A | I53: N/A | J53: N/A | K53: N/A | L53: N/A | M53: N/A | N53: N/A | O53: N/A | P53: N/A | Q53: N/A | R53: N/A | S53: N/A | T53: N/A | U53: N/A | V53: N/A | W53: N/A | BA53: Microbiological quality of piped on premises at point of collection | BB53: Not contaminated (No E. coli in 100 mL) | BC53: N/A | BD53: N/A | BE53: N/A | BF53: N/A | BG53: N/A | BH53: N/A | BI53: N/A | BJ53: N/A | BK53: N/A | BL53: N/A | BM53: N/A | BN53: N/A | BO53: N/A | BP53: N/A | BQ53: N/A | BR53: N/A | BS53: N/A | BT53: N/A | BU53: N/A | BV53: N/A | BW53: N/A
B54: Contaminated (E. coli detected in 100 mL) | C54: N/A | D54: N/A | E54: N/A | F54: N/A | G54: N/A | H54: N/A | I54: N/A | J54: N/A | K54: N/A | L54: N/A | M54: N/A | N54: N/A | O54: N/A | P54: N/A | Q54: N/A | R54: N/A | S54: N/A | T54: N/A | U54: N/A | V54: N/A | W54: N/A | BB54: Contaminated (E. coli detected in 100 mL) | BC54: N/A | BD54: N/A | BE54: N/A | BF54: N/A | BG54: N/A | BH54: N/A | BI54: N/A | BJ54: N/A | BK54: N/A | BL54: N/A | BM54: N/A | BN54: N/A | BO54: N/A | BP54: N/A | BQ54: N/A | BR54: N/A | BS54: N/A | BT54: N/A | BU54: N/A | BV54: N/A | BW54: N/A
B55: Highly contaminated (>100 CFU/100 mL) | C55: N/A | D55: N/A | E55: N/A | F55: N/A | G55: N/A | H55: N/A | I55: N/A | J55: N/A | K55: N/A | L55: N/A | M55: N/A | N55: N/A | O55: N/A | P55: N/A | Q55: N/A | R55: N/A | S55: N/A | T55: N/A | U55: N/A | V55: N/A | W55: N/A | BB55: Highly contaminated (>100 CFU/100 mL) | BC55: N/A | BD55: N/A | BE55: N/A | BF55: N/A | BG55: N/A | BH55: N/A | BI55: N/A | BJ55: N/A | BK55: N/A | BL55: N/A | BM55: N/A | BN55: N/A | BO55: N/A | BP55: N/A | BQ55: N/A | BR55: N/A | BS55: N/A | BT55: N/A | BU55: N/A | BV55: N/A | BW55: N/A
C56: NATIONAL wealth index quintile | H56: URBAN wealth index quintile | M56: RURAL wealth index quintile | R56: SUB-REGIONS: | BA56: Raw numbers of respondents: | BB56: Use of drinking water sources | BC56: NATIONAL wealth index quintile | BH56: URBAN wealth index quintile | BM56: RURAL wealth index quintile | BR56: SUB-REGIONS:
A57: Percentage based on weighted population | C57: Poorest | D57: Poor | E57: Middle | F57: Rich | G57: Richest | H57: Poorest | I57: Poor | J57: Middle | K57: Rich | L57: Richest | M57: Poorest | N57: Poor | O57: Middle | P57: Rich | Q57: Richest | R57: Barisal | S57: Chittagong | T57: Dhaka | U57: Khulna | V57: Rajshahi | W57: Sylhet | BA57: Water data, raw numbers (weighted) | BC57: Poorest | BD57: Poor | BE57: Middle | BF57: Rich | BG57: Richest | BH57: Poorest | BI57: Poor | BJ57: Middle | BK57: Rich | BL57: Richest | BM57: Poorest | BN57: Poor | BO57: Middle | BP57: Rich | BQ57: Richest | BR57: Barisal | BS57: Chittagong | BT57: Dhaka | BU57: Khulna | BV57: Rajshahi | BW57: Sylhet
A58: Main source of drinking water | B58: Piped into dwelling | C58: 0.006323632481 | D58: 0.04170739111 | E58: 0.04397591243 | F58: 0.2999898296 | G58: 20.38937954 | H58: 0.166052766 | I58: 0.7166987822 | J58: 2.628541316 | K58: 15.99203916 | L58: 51.87213539 | M58: 0.004980429742 | N58: 0 | O58: 0.002134250222 | P58: 0 | Q58: 0.3544794846 | R58: 0.5148276007 | S58: 4.306469837 | T58: 9.157636085 | U58: 0.6517368146 | V58: 0.475193352 | W58: 2.760608947
B59: Piped into yard or plot | C59: 0.6494078167 | D59: 0.3873585194 | E59: 0.8926547201 | F59: 2.398103536 | G59: 7.91637286 | H59: 3.42327853 | I59: 6.523327272 | J59: 11.44956909 | K59: 13.89208623 | L59: 5.344996617 | M59: 0.1466920298 | N59: 0.0645165517 | O59: 0.1085594245 | P59: 0.1581044576 | Q59: 0.3090878981 | R59: 0.2468672661 | S59: 2.177761487 | T59: 5.414061356 | U59: 1.067679271 | V59: 0.4446388398 | W59: 0.9130412657
B60: Public tap/standpipe | C60: 1.667827049 | D60: 0.7828939977 | E60: 1.126330783 | F60: 2.264695182 | G60: 2.301463004 | H60: 7.791944882 | I60: 6.934268711 | J60: 5.175954025 | K60: 3.039697327 | L60: 2.198421249 | M60: 0.3895830886 | N60: 0.1958183405 | O60: 0.1666657264 | P60: 0.2681891275 | Q60: 0.262754708 | R60: 0.8650732751 | S60: 1.549089198 | T60: 2.478246468 | U60: 2.522090403 | V60: 0.5118583094 | W60: 1.131327662
B61: Tubewell/borehole | C61: 92.39678946 | D61: 94.68473113 | E61: 94.81613957 | F61: 92.99862439 | G61: 68.55100019 | H61: 87.00213582 | I61: 84.28796334 | J61: 79.39560225 | K61: 66.54309269 | L61: 40.4982333 | M61: 93.51944745 | N61: 95.11173162 | O61: 95.58801928 | P61: 96.95035363 | Q61: 96.87417613 | R61: 94.96946392 | S61: 87.66405175 | T61: 82.3527184 | U61: 87.01078747 | V61: 97.1572739 | W61: 87.79819554
B62: Protected well | C62: 0.970160671 | D62: 0.611913814 | E62: 0.4726253661 | F62: 0.2339497497 | G62: 0.1521454633 | H62: 0.3080098941 | I62: 0.2718123364 | J62: 0.02697365401 | K62: 0.09195102342 | L62: 0 | M62: 1.043318237 | N62: 0.7684366846 | O62: 0.6266660888 | P62: 0.3357570142 | Q62: 0.3695750763 | R62: 0.1032036943 | S62: 1.091959837 | T62: 0.2290905501 | U62: 0.0842861194 | V62: 0.5472100773 | W62: 0.7608313964
B63: Unprotected well | C63: 0.9356286687 | D63: 0.6863516256 | E63: 0.2236329811 | F63: 0.179869599 | G63: 0.1181463335 | H63: 0.05632507182 | I63: 0.007031267333 | J63: 0.06525780048 | K63: 0.007782933846 | L63: 0 | M63: 1.217365158 | N63: 0.7596251909 | O63: 0.3497686355 | P63: 0.3212370739 | Q63: 0.3056481804 | R63: 0 | S63: 1.071876696 | T63: 0.09020553565 | U63: 0 | V63: 0.6680510463 | W63: 0.392398048
B64: Protected spring | C64: 0.08766187443 | D64: 0.1174142535 | E64: 0.09939126102 | F64: 0.006082046773 | G64: 0.02256274976 | H64: 0 | I64: 0 | J64: 0 | K64: 0.003132914878 | L64: 0 | M64: 0.1154474984 | N64: 0.1272920308 | O64: 0.1614128983 | P64: 0.02886376954 | Q64: 0.0332581715 | R64: 0 | S64: 0.3289227948 | T64: 0.001467622251 | U64: 0 | V64: 0 | W64: 0.02036166801
B65: Unprotected spring | C65: 0.3651926986 | D65: 0.1928048954 | E65: 0.07952593571 | F65: 0.06882029376 | G65: 0.006894543348 | H65: 0 | I65: 0 | J65: 0 | K65: 0 | L65: 0 | M65: 0.4732877469 | N65: 0.1754155854 | O65: 0.2217963524 | P65: 0.02426851022 | Q65: 0.1063084877 | R65: 0 | S65: 0.6830523233 | T65: 0.0147679489 | U65: 0 | V65: 0 | W65: 0.05090417002
B66: Rainwater collection | C66: 0.02899836759 | D66: 0.06110594052 | E66: 0.1100484202 | F66: 0.1444858021 | G66: 0.03602822605 | H66: 0 | I66: 0.06846484311 | J66: 0.07178056048 | K66: 0.06986683684 | L66: 0.01024888951 | M66: 0.03345506381 | N66: 0.05663602938 | O66: 0.1084043985 | P66: 0.1465210201 | Q66: 0.1003583483 | R66: 0.1645041944 | S66: 0.08966967048 | T66: 0 | U66: 0.3472581635 | V66: 0 | W66: 0.1346368167
B67: Surface water | C67: 2.762442965 | D67: 2.303389602 | E67: 2.04158415 | F67: 1.139181328 | G67: 0.3456879888 | H67: 1.041931131 | I67: 0.8600801911 | J67: 0.6314833087 | K67: 0.1683632975 | L67: 0 | M67: 2.970298827 | N67: 2.570003394 | O67: 2.594320031 | P67: 1.686731494 | Q67: 1.147929165 | R67: 3.073829877 | S67: 0.9871460664 | T67: 0.09257278477 | U67: 7.93409378 | V67: 0.02310223052 | W67: 5.980758592
B68: Bottled water | C68: 0 | D68: 0 | E68: 0.002757281245 | F68: 0.006052409007 | G68: 0.01865091831 | H68: 0 | I68: 0.009585015769 | J68: 0.006896956006 | K68: 0 | L68: 0.06486248972 | M68: 0 | N68: 0 | O68: 0 | P68: 0.005712709374 | Q68: 0 | R68: 0.01286243908 | S68: 0 | T68: 0.00457130854 | U68: 0.01488572617 | V68: 0.003154496147 | W68: 0.01172813913
B69: Other | C69: 0.1138672273 | D69: 0.1261590644 | E69: 0.08220908742 | F69: 0.2484485008 | G69: 0.1274718191 | H69: 0.1815584037 | I69: 0.2801050852 | J69: 0.5241265426 | K69: 0.1919875888 | L69: 0.01110206949 | M69: 0.07569857979 | N69: 0.170524574 | O69: 0.05359381532 | P69: 0.07426118849 | Q69: 0.1261022874 | R69: 0.04936773126 | S69: 0.05000034182 | T69: 0.1493538093 | U69: 0.3597502601 | V69: 0.1537928819 | W69: 0.02345627826
B70: Missing | C70: 0.01569957355 | D70: 0.004169765289 | E70: 0.009124530864 | F70: 0.01169733811 | G70: 0.0141963653 | H70: 0.02876349868 | I70: 0.04066315423 | J70: 0.02381448956 | K70: 0 | L70: 0 | M70: 0.01042589105 | N70: 0 | O70: 0.0186590978 | P70: 0 | Q70: 0.01032206115 | R70: 0 | S70: 0 | T70: 0.01530813301 | U70: 0.007431991133 | V70: 0.01572486831 | W70: 0.02175147154
A108: =A1026 -> Bangladesh
A109: =A1034 -> 2006
A110: Use of sanitation facilities
A111: by wealth quintile and sub-national region
A112: Notes:
A113: WHO/UNICEF JMP customised wealth index excludes water,
A114: sanitation and hygiene assets.
A115: Survey used for analysis: | B115: =A1025 -> MICS06
A116: =B1030 -> 
A117: =B1029 -> 
A120: Use of sanitation facilities | C120: NATIONAL wealth index quintile | H120: URBAN wealth index quintile | M120: RURAL wealth index quintile | R120: SUB-REGIONS: | BA120: Raw numbers of respondents: | BB120: Use of sanitation facilities | BC120: NATIONAL wealth index quintile | BH120: URBAN wealth index quintile | BM120: RURAL wealth index quintile | BR120: SUB-REGIONS:
A121: Weighted percentage (used in graphs) | C121: Poorest | D121: Poor | E121: Middle | F121: Rich | G121: Richest | H121: Poorest | I121: Poor | J121: Middle | K121: Rich | L121: Richest | M121: Poorest | N121: Poor | O121: Middle | P121: Rich | Q121: Richest | R121: Barisal | S121: Chittagong | T121: Dhaka | U121: Khulna | V121: Rajshahi | W121: Sylhet | BA121: Sanitation data, raw numbers (weighted) | BC121: Poorest | BD121: Poor | BE121: Middle | BF121: Rich | BG121: Richest | BH121: Poorest | BI121: Poor | BJ121: Middle | BK121: Rich | BL121: Richest | BM121: Poorest | BN121: Poor | BO121: Middle | BP121: Rich | BQ121: Richest | BR121: Barisal | BS121: Chittagong | BT121: Dhaka | BU121: Khulna | BV121: Rajshahi | BW121: Sylhet
A122: Sanitation | B122: Improved | C122: 14.30215693 | D122: 22.07913196 | E122: 32.1680377 | F122: 47.73929191 | G122: 81.0373388 | H122: 21.54424845 | I122: 38.29036558 | J122: 59.53754495 | K122: 79.77360873 | L122: 94.10758379 | M122: 13.11707335 | N122: 20.002377 | O122: 26.28100814 | P122: 36.8319911 | Q122: 62.3914491 | R122: 48.48324838 | S122: 41.92822786 | T122: 37.95237941 | U122: 40.38464549 | V122: 38.07796093 | W122: 34.4092049 | BA122: Sanitation | BB122: Improved | BC122: 8630.209167 | BD122: 13322.47104 | BE122: 19414.07535 | BF122: 28811.79861 | BG122: 48902.74441 | BH122: 3738.380618 | BI122: 6647.676696 | BJ122: 10325.55953 | BK122: 13843.83105 | BL122: 16329.74074 | BM122: 5639.376316 | BN122: 8599.681073 | BO122: 11300.06254 | BP122: 15838.87166 | BQ122: 26818.11836 | BR122: 9259.969414 | BS122: 24915.49623 | BT122: 36266.29129 | BU122: 13671.79354 | BV122: 27949.06472 | BW122: 7018.68339
B123: Not Improved | C123: 85.69784307 | D123: 77.92086804 | E123: 67.8319623 | F123: 52.26070809 | G123: 18.9626612 | H123: 78.45575155 | I123: 61.70963442 | J123: 40.46245505 | K123: 20.22639127 | L123: 5.892416213 | M123: 86.88292665 | N123: 79.997623 | O123: 73.71899186 | P123: 63.1680089 | Q123: 37.6085509 | R123: 51.51675162 | S123: 58.07177214 | T123: 62.04762059 | U123: 59.61535451 | V123: 61.92203907 | W123: 65.5907951 | BB123: Not Improved | BC123: 51711.80223 | BD123: 47017.17936 | BE123: 40937.99067 | BF123: 31540.58086 | BG123: 11443.19628 | BH123: 13613.7244 | BI123: 10713.54876 | BJ123: 7017.378509 | BK123: 3510.067401 | BL123: 1022.464133 | BM123: 37353.26516 | BN123: 34393.61454 | BO123: 31697.00395 | BP123: 27164.15692 | BQ123: 16165.52563 | BR123: 9839.347822 | BS123: 34508.66142 | BT123: 59291.06732 | BU123: 20182.14617 | BV123: 45450.51877 | BW123: 13379.0079
A124: Sanitation ladder | B124: Basic | C124: =C122*C129/100 -> 6.938732607 | D124: =D122*D129/100 -> 13.16204502 | E124: =E122*E129/100 -> 20.91401813 | F124: 33.07192986 | G124: 64.65845484 | H124: 9.583557033 | I124: 19.25534592 | J124: 33.18745869 | K124: 55.33215008 | L124: 89.01640772 | M124: 6.528567386 | N124: 11.39596317 | O124: 18.19882115 | P124: 25.26899907 | Q124: 50.06940307 | R124: 39.83925737 | S124: 29.94425241 | T124: 26.16080722 | U124: 27.47991534 | V124: 24.77729708 | W124: 28.62255142 | BA124: Sanitation ladder | BB124: Basic | BC124: 4186.970821 | BD124: 7941.931951 | BE124: 12619.80773 | BF124: 19959.69661 | BG124: 39018.75281 | BH124: 1662.948881 | BI124: 3342.964018 | BJ124: 5755.680398 | BK124: 9602.285134 | BL124: 15446.30944 | BM124: 2806.80357 | BN124: 4899.500131 | BO124: 7822.57949 | BP124: 10866.43489 | BQ124: 21521.65397 | BR124: 7609.02615 | BS124: 17794.11976 | BT124: 24996.2075 | BU124: 9303.033973 | BV124: 18186.43286 | BW124: 5838.339678
B125: Limited | C125: =C122*C128/100 -> 7.363424327 | D125: =D122*D128/100 -> 8.917086943 | E125: =E122*E128/100 -> 11.25401958 | F125: 14.66736205 | G125: 16.37888397 | H125: 11.96069142 | I125: 19.03501965 | J125: 26.35008627 | K125: 24.44145865 | L125: 5.091176063 | M125: 6.588505961 | N125: 8.606413837 | O125: 8.082186988 | P125: 11.56299202 | Q125: 12.32204602 | R125: 8.643991008 | S125: 11.98397546 | T125: 11.79157219 | U125: 12.90473015 | V125: 13.30066385 | W125: 5.786653474 | BB125: Limited | BC125: 4443.238347 | BD125: 5380.539087 | BE125: 6790.83103 | BF125: 8852.102002 | BG125: 9883.991604 | BH125: 2075.431736 | BI125: 3304.712678 | BJ125: 4569.879135 | BK125: 4241.545913 | BL125: 883.4313007 | BM125: 2832.572746 | BN125: 3700.180942 | BO125: 3474.046459 | BP125: 4972.436764 | BQ125: 5296.464396 | BR125: 1650.943265 | BS125: 7121.376468 | BT125: 11266.6472 | BU125: 4368.759564 | BV125: 9762.631865 | BW125: 1180.343712
B126: Unimproved | C126: =100-C124-C125-C127 -> 64.97965284 | D126: =100-D124-D125-D127 -> 66.95943026 | E126: =100-E124-E125-E127 -> 63.14964351 | F126: 51.14522241 | G126: 18.89884624 | H126: 67.65350559 | I126: 59.68695684 | J126: 40.13500289 | K126: 20.19825288 | L126: 5.892416213 | M126: 64.40213741 | N126: 66.31482102 | O126: 66.0521581 | P126: 60.11277743 | Q126: 37.12418852 | R126: 50.5221031 | S126: 54.10165285 | T126: 56.35881254 | U126: 55.9924568 | V126: 44.77355702 | W126: 61.39990511 | BB126: Unimproved | BC126: 39210.02952 | BD126: 40403.08613 | BE126: 38112.27546 | BF126: 30867.35871 | BG126: 11404.68655 | BH126: 11739.30734 | BI126: 10362.38714 | BJ126: 6960.588685 | BK126: 3505.184293 | BL126: 1022.464133 | BM126: 27688.18004 | BN126: 28510.92703 | BO126: 28400.75381 | BP126: 25850.31485 | BQ126: 15957.32903 | BR126: 9649.376745 | BS126: 32149.45148 | BT126: 53855.18811 | BU126: 18955.65257 | BV126: 32863.60437 | BW126: 12524.1631
B127: Open defecation | C127: 20.71819023 | D127: 10.96143777 | E127: 4.682318787 | F127: 1.115485682 | G127: 0.06381495354 | H127: 10.80224596 | I127: 2.022677586 | J127: 0.3274521531 | K127: 0.02813839183 | L127: 0 | M127: 22.48078924 | N127: 13.68280198 | O127: 7.666833767 | P127: 3.055231475 | Q127: 0.4843623863 | R127: 0.9946485231 | S127: 3.97011929 | T127: 5.688808052 | U127: 3.622897708 | V127: 17.14848205 | W127: 4.190889991 | BB127: Open defecation | BC127: 12501.77271 | BD127: 6614.093231 | BE127: 2825.715214 | BF127: 673.2221516 | BG127: 38.50973401 | BH127: 1874.417064 | BI127: 351.161616 | BJ127: 56.78982403 | BK127: 4.883107942 | BL127: 0 | BM127: 9665.085121 | BN127: 5882.687503 | BO127: 3296.250134 | BP127: 1313.842064 | BQ127: 208.1966038 | BR127: 189.9710768 | BS127: 2359.209946 | BT127: 5435.87921 | BU127: 1226.493606 | BV127: 12586.9144 | BW127: 854.8448026
A128: Shared among Improved Sanitation | B128: Yes | C128: 51.48471214 | D128: 40.38694527 | E128: 34.98509819 | F128: 30.72387851 | G128: 20.21152744 | H128: 55.51686542 | I128: 49.71229542 | J128: 44.25793218 | K128: 30.638527 | L128: 5.409953011 | M128: 50.22847541 | N128: 43.02695543 | O128: 30.75295645 | P128: 31.39388254 | Q128: 19.74957498 | R128: 17.82881984 | S128: 28.58211774 | T128: 31.06938847 | U128: 31.95454607 | V128: 34.93008429 | W128: 16.81716707 | BA128: Shared among improved sanitation facilities | BB128: Yes | BC128: N/A | BD128: N/A | BE128: N/A | BF128: N/A | BG128: N/A | BH128: N/A | BI128: N/A | BJ128: N/A | BK128: N/A | BL128: N/A | BM128: N/A | BN128: N/A | BO128: N/A | BP128: N/A | BQ128: N/A | BR128: N/A | BS128: N/A | BT128: N/A | BU128: N/A | BV128: N/A | BW128: N/A
B129: No | C129: 48.51528786 | D129: 59.61305473 | E129: 65.01490181 | F129: 69.27612149 | G129: 79.78847256 | H129: 44.48313458 | I129: 50.28770458 | J129: 55.74206782 | K129: 69.361473 | L129: 94.59004699 | M129: 49.77152459 | N129: 56.97304457 | O129: 69.24704355 | P129: 68.60611746 | Q129: 80.25042502 | R129: 82.17118016 | S129: 71.41788226 | T129: 68.93061153 | U129: 68.04545393 | V129: 65.06991571 | W129: 83.18283293 | BB129: No | BC129: N/A | BD129: N/A | BE129: N/A | BF129: N/A | BG129: N/A | BH129: N/A | BI129: N/A | BJ129: N/A | BK129: N/A | BL129: N/A | BM129: N/A | BN129: N/A | BO129: N/A | BP129: N/A | BQ129: N/A | BR129: N/A | BS129: N/A | BT129: N/A | BU129: N/A | BV129: N/A | BW129: N/A
A130: Manually calculated ratios | B130: Improved latrines | C130: =C158/(C158+C159)*100 -> 24.98264597 | D130: =D158/(D158+D159)*100 -> 28.16482563 | E130: 32.71146434 | F130: 38.86083289 | G130: 55.0026877 | H130: 24.08487682 | I130: 35.27169726 | J130: 44.71486153 | K130: 58.71123452 | L130: 75.15239511 | M130: 25.25659657 | N130: 28.23786107 | O130: 30.50992308 | P130: 34.01163713 | Q130: 44.46162315 | R130: 54.64910069 | S130: 37.54494907 | T130: 25.00041652 | U130: 27.99498043 | V130: 38.53139621 | W130: 21.91215236
B131: Other
B132: Other
C133: NATIONAL wealth index quintile | H133: URBAN wealth index quintile | M133: RURAL wealth index quintile | R133: SUB-REGIONS: | BA133: Raw numbers of respondents: | BB133: Use of sanitation facilities | BC133: NATIONAL wealth index quintile | BH133: URBAN wealth index quintile | BM133: RURAL wealth index quintile | BR133: SUB-REGIONS:
A134: Percentage based on weighted population | C134: Poorest | D134: Poor | E134: Middle | F134: Rich | G134: Richest | H134: Poorest | I134: Poor | J134: Middle | K134: Rich | L134: Richest | M134: Poorest | N134: Poor | O134: Middle | P134: Rich | Q134: Richest | R134: Barisal | S134: Chittagong | T134: Dhaka | U134: Khulna | V134: Rajshahi | W134: Sylhet | BA134: Sanitation data, raw numbers (weighted) | BC134: Poorest | BD134: Poor | BE134: Middle | BF134: Rich | BG134: Richest | BH134: Poorest | BI134: Poor | BJ134: Middle | BK134: Rich | BL134: Richest | BM134: Poorest | BN134: Poor | BO134: Middle | BP134: Rich | BQ134: Richest | BR134: Barisal | BS134: Chittagong | BT134: Dhaka | BU134: Khulna | BV134: Rajshahi | BW134: Sylhet
A135: Sanitation type | B135: Sewer connection | C135: 0.1461293039 | D135: 0.1450548276 | E135: 0.350859678 | F135: 1.023744939 | G135: 12.66124444 | H135: 0.7943054587 | I135: 2.636825251 | J135: 5.327750874 | K135: 10.9345899 | L135: 27.32474284 | M135: 0.02839494957 | N135: 0.0783588853 | O135: 0.05163357064 | P135: 0.1473511634 | Q135: 0.8276796919 | R135: 0.751612806 | S135: 0.7831982461 | T135: 7.398246202 | U135: 0.2175643061 | V135: 0.7797432723 | W135: 1.575386926 | BA135: Sanitation type | BB135: Sewer connection | BC135: N/A | BD135: N/A | BE135: N/A | BF135: N/A | BG135: N/A | BH135: N/A | BI135: N/A | BJ135: N/A | BK135: N/A | BL135: N/A | BM135: N/A | BN135: N/A | BO135: N/A | BP135: N/A | BQ135: N/A | BR135: N/A | BS135: N/A | BT135: N/A | BU135: N/A | BV135: N/A | BW135: N/A
B136: Septic tank connection | C136: 0.9815911966 | D136: 2.025725449 | E136: 4.089406664 | F136: 12.12658583 | G136: 46.79714996 | H136: 4.087967945 | I136: 7.657254502 | J136: 24.3040113 | K136: 45.69383499 | L136: 59.84812873 | M136: 0.5710713638 | N136: 1.286428187 | O136: 2.377528468 | P136: 5.758250369 | Q136: 25.53539516 | R136: 8.130073415 | S136: 16.62042812 | T136: 10.8302557 | U136: 15.26504107 | V136: 11.80765658 | W136: 20.73028549 | BB136: Septic tank connection | BC136: N/A | BD136: N/A | BE136: N/A | BF136: N/A | BG136: N/A | BH136: N/A | BI136: N/A | BJ136: N/A | BK136: N/A | BL136: N/A | BM136: N/A | BN136: N/A | BO136: N/A | BP136: N/A | BQ136: N/A | BR136: N/A | BS136: N/A | BT136: N/A | BU136: N/A | BV136: N/A | BW136: N/A
B137: Improved latrines | C137: 13.17443643 | D137: 19.90835169 | E137: 27.72777136 | F137: 34.58896114 | G137: 21.5789444 | H137: 16.66197505 | I137: 27.99628582 | J137: 29.90578278 | K137: 23.14518384 | L137: 6.934712221 | M137: 12.51760703 | N137: 18.63758993 | O137: 23.8518461 | P137: 30.92638957 | Q137: 36.02837425 | R137: 39.60156216 | S137: 24.5246015 | T137: 19.7238775 | U137: 24.90204012 | V137: 25.49056107 | W137: 12.10353248 | BB137: Improved latrines | BC137: N/A | BD137: N/A | BE137: N/A | BF137: N/A | BG137: N/A | BH137: N/A | BI137: N/A | BJ137: N/A | BK137: N/A | BL137: N/A | BM137: N/A | BN137: N/A | BO137: N/A | BP137: N/A | BQ137: N/A | BR137: N/A | BS137: N/A | BT137: N/A | BU137: N/A | BV137: N/A | BW137: N/A
B138: Unimproved facilities | C138: 64.97965284 | D138: 66.95943026 | E138: 63.14991013 | F138: 51.14522241 | G138: 18.89884624 | H138: 67.65350559 | I138: 59.68695684 | J138: 40.13500289 | K138: 20.19825288 | L138: 5.892416213 | M138: 64.40213741 | N138: 66.31482102 | O138: 66.05277088 | P138: 60.11277743 | Q138: 37.12418852 | R138: 50.5221031 | S138: 54.10165285 | T138: 56.35901713 | U138: 55.9924568 | V138: 44.77355702 | W138: 61.39990511 | BB138: Unimproved facilities | BC138: N/A | BD138: N/A | BE138: N/A | BF138: N/A | BG138: N/A | BH138: N/A | BI138: N/A | BJ138: N/A | BK138: N/A | BL138: N/A | BM138: N/A | BN138: N/A | BO138: N/A | BP138: N/A | BQ138: N/A | BR138: N/A | BS138: N/A | BT138: N/A | BU138: N/A | BV138: N/A | BW138: N/A
B139: Open defecation | C139: 20.71819023 | D139: 10.96143777 | E139: 4.682052164 | F139: 1.115485682 | G139: 0.06381495354 | H139: 10.80224596 | I139: 2.022677586 | J139: 0.3274521531 | K139: 0.02813839183 | L139: 0 | M139: 22.48078924 | N139: 13.68280198 | O139: 7.666220986 | P139: 3.055231475 | Q139: 0.4843623863 | R139: 0.9946485231 | S139: 3.97011929 | T139: 5.688603462 | U139: 3.622897708 | V139: 17.14848205 | W139: 4.190889991 | BB139: Open defecation | BC139: N/A | BD139: N/A | BE139: N/A | BF139: N/A | BG139: N/A | BH139: N/A | BI139: N/A | BJ139: N/A | BK139: N/A | BL139: N/A | BM139: N/A | BN139: N/A | BO139: N/A | BP139: N/A | BQ139: N/A | BR139: N/A | BS139: N/A | BT139: N/A | BU139: N/A | BV139: N/A | BW139: N/A
A140: Septic tank emptying practices | B140: Not emptied/treated and disposed in situ | C140: N/A | D140: N/A | E140: N/A | F140: N/A | G140: N/A | H140: N/A | I140: N/A | J140: N/A | K140: N/A | L140: N/A | M140: N/A | N140: N/A | O140: N/A | P140: N/A | Q140: N/A | R140: N/A | S140: N/A | T140: N/A | U140: N/A | V140: N/A | W140: N/A | BA140: Septic tank emptying practices | BB140: Not emptied/treated and disposed in situ | BC140: N/A | BD140: N/A | BE140: N/A | BF140: N/A | BG140: N/A | BH140: N/A | BI140: N/A | BJ140: N/A | BK140: N/A | BL140: N/A | BM140: N/A | BN140: N/A | BO140: N/A | BP140: N/A | BQ140: N/A | BR140: N/A | BS140: N/A | BT140: N/A | BU140: N/A | BV140: N/A | BW140: N/A
B141: Emptied and buried on site | C141: N/A | D141: N/A | E141: N/A | F141: N/A | G141: N/A | H141: N/A | I141: N/A | J141: N/A | K141: N/A | L141: N/A | M141: N/A | N141: N/A | O141: N/A | P141: N/A | Q141: N/A | R141: N/A | S141: N/A | T141: N/A | U141: N/A | V141: N/A | W141: N/A | BB141: Emptied and buried on site | BC141: N/A | BD141: N/A | BE141: N/A | BF141: N/A | BG141: N/A | BH141: N/A | BI141: N/A | BJ141: N/A | BK141: N/A | BL141: N/A | BM141: N/A | BN141: N/A | BO141: N/A | BP141: N/A | BQ141: N/A | BR141: N/A | BS141: N/A | BT141: N/A | BU141: N/A | BV141: N/A | BW141: N/A
B142: Emptied and discharged locally | C142: N/A | D142: N/A | E142: N/A | F142: N/A | G142: N/A | H142: N/A | I142: N/A | J142: N/A | K142: N/A | L142: N/A | M142: N/A | N142: N/A | O142: N/A | P142: N/A | Q142: N/A | R142: N/A | S142: N/A | T142: N/A | U142: N/A | V142: N/A | W142: N/A | BB142: Emptied and discharged locally | BC142: N/A | BD142: N/A | BE142: N/A | BF142: N/A | BG142: N/A | BH142: N/A | BI142: N/A | BJ142: N/A | BK142: N/A | BL142: N/A | BM142: N/A | BN142: N/A | BO142: N/A | BP142: N/A | BQ142: N/A | BR142: N/A | BS142: N/A | BT142: N/A | BU142: N/A | BV142: N/A | BW142: N/A
B143: Emptied and removed offsite | C143: N/A | D143: N/A | E143: N/A | F143: N/A | G143: N/A | H143: N/A | I143: N/A | J143: N/A | K143: N/A | L143: N/A | M143: N/A | N143: N/A | O143: N/A | P143: N/A | Q143: N/A | R143: N/A | S143: N/A | T143: N/A | U143: N/A | V143: N/A | W143: N/A | BB143: Emptied and removed offsite | BC143: N/A | BD143: N/A | BE143: N/A | BF143: N/A | BG143: N/A | BH143: N/A | BI143: N/A | BJ143: N/A | BK143: N/A | BL143: N/A | BM143: N/A | BN143: N/A | BO143: N/A | BP143: N/A | BQ143: N/A | BR143: N/A | BS143: N/A | BT143: N/A | BU143: N/A | BV143: N/A | BW143: N/A
A144: Latrine emptying practices | B144: Not emptied/treated and disposed in situ | C144: N/A | D144: N/A | E144: N/A | F144: N/A | G144: N/A | H144: N/A | I144: N/A | J144: N/A | K144: N/A | L144: N/A | M144: N/A | N144: N/A | O144: N/A | P144: N/A | Q144: N/A | R144: N/A | S144: N/A | T144: N/A | U144: N/A | V144: N/A | W144: N/A | BA144: Latrine emptying practices | BB144: Not emptied/treated and disposed in situ | BC144: N/A | BD144: N/A | BE144: N/A | BF144: N/A | BG144: N/A | BH144: N/A | BI144: N/A | BJ144: N/A | BK144: N/A | BL144: N/A | BM144: N/A | BN144: N/A | BO144: N/A | BP144: N/A | BQ144: N/A | BR144: N/A | BS144: N/A | BT144: N/A | BU144: N/A | BV144: N/A | BW144: N/A
B145: Emptied and buried on site | C145: N/A | D145: N/A | E145: N/A | F145: N/A | G145: N/A | H145: N/A | I145: N/A | J145: N/A | K145: N/A | L145: N/A | M145: N/A | N145: N/A | O145: N/A | P145: N/A | Q145: N/A | R145: N/A | S145: N/A | T145: N/A | U145: N/A | V145: N/A | W145: N/A | BB145: Emptied and buried on site | BC145: N/A | BD145: N/A | BE145: N/A | BF145: N/A | BG145: N/A | BH145: N/A | BI145: N/A | BJ145: N/A | BK145: N/A | BL145: N/A | BM145: N/A | BN145: N/A | BO145: N/A | BP145: N/A | BQ145: N/A | BR145: N/A | BS145: N/A | BT145: N/A | BU145: N/A | BV145: N/A | BW145: N/A
B146: Emptied and discharged locally | C146: N/A | D146: N/A | E146: N/A | F146: N/A | G146: N/A | H146: N/A | I146: N/A | J146: N/A | K146: N/A | L146: N/A | M146: N/A | N146: N/A | O146: N/A | P146: N/A | Q146: N/A | R146: N/A | S146: N/A | T146: N/A | U146: N/A | V146: N/A | W146: N/A | BB146: Emptied and discharged locally | BC146: N/A | BD146: N/A | BE146: N/A | BF146: N/A | BG146: N/A | BH146: N/A | BI146: N/A | BJ146: N/A | BK146: N/A | BL146: N/A | BM146: N/A | BN146: N/A | BO146: N/A | BP146: N/A | BQ146: N/A | BR146: N/A | BS146: N/A | BT146: N/A | BU146: N/A | BV146: N/A | BW146: N/A
B147: Emptied and removed offsite | C147: N/A | D147: N/A | E147: N/A | F147: N/A | G147: N/A | H147: N/A | I147: N/A | J147: N/A | K147: N/A | L147: N/A | M147: N/A | N147: N/A | O147: N/A | P147: N/A | Q147: N/A | R147: N/A | S147: N/A | T147: N/A | U147: N/A | V147: N/A | W147: N/A | BB147: Emptied and removed offsite | BC147: N/A | BD147: N/A | BE147: N/A | BF147: N/A | BG147: N/A | BH147: N/A | BI147: N/A | BJ147: N/A | BK147: N/A | BL147: N/A | BM147: N/A | BN147: N/A | BO147: N/A | BP147: N/A | BQ147: N/A | BR147: N/A | BS147: N/A | BT147: N/A | BU147: N/A | BV147: N/A | BW147: N/A
A148: Shared among improved sanitation facilities | B148: Yes | C148: 7.363424327 | D148: 8.917086943 | E148: 11.25202744 | F148: 14.66736205 | G148: 16.37888397 | H148: 11.96069142 | I148: 19.03501965 | J148: 26.35008627 | K148: 24.44145865 | L148: 5.091176063 | M148: 6.588505961 | N148: 8.606413837 | O148: 8.07972902 | P148: 11.56299202 | Q148: 12.32204602 | R148: 8.643991008 | S148: 11.98397546 | T148: 11.79045482 | U148: 12.90473015 | V148: 13.30066385 | W148: 5.786653474 | BA148: Shared among improved sanitation facilities | BB148: Yes | BC148: N/A | BD148: N/A | BE148: N/A | BF148: N/A | BG148: N/A | BH148: N/A | BI148: N/A | BJ148: N/A | BK148: N/A | BL148: N/A | BM148: N/A | BN148: N/A | BO148: N/A | BP148: N/A | BQ148: N/A | BR148: N/A | BS148: N/A | BT148: N/A | BU148: N/A | BV148: N/A | BW148: N/A
B149: No | C149: 6.938732607 | D149: 13.16204502 | E149: 20.91031602 | F149: 33.07192986 | G149: 64.65845484 | H149: 9.583557033 | I149: 19.25534592 | J149: 33.18745869 | K149: 55.33215008 | L149: 89.01640772 | M149: 6.528567386 | N149: 11.39596317 | O149: 18.19328649 | P149: 25.26899907 | Q149: 50.06940307 | R149: 39.83925737 | S149: 29.94425241 | T149: 26.15832822 | U149: 27.47991534 | V149: 24.77729708 | W149: 28.62255142 | BB149: No | BC149: N/A | BD149: N/A | BE149: N/A | BF149: N/A | BG149: N/A | BH149: N/A | BI149: N/A | BJ149: N/A | BK149: N/A | BL149: N/A | BM149: N/A | BN149: N/A | BO149: N/A | BP149: N/A | BQ149: N/A | BR149: N/A | BS149: N/A | BT149: N/A | BU149: N/A | BV149: N/A | BW149: N/A
B150: DK/missing | C150: 85.69784307 | D150: 77.92086804 | E150: 67.83765654 | F150: 52.26070809 | G150: 18.9626612 | H150: 78.45575155 | I150: 61.70963442 | J150: 40.46245505 | K150: 20.22639127 | L150: 5.892416213 | M150: 86.88292665 | N150: 79.997623 | O150: 73.72698449 | P150: 63.1680089 | Q150: 37.6085509 | R150: 51.51675162 | S150: 58.07177214 | T150: 62.05121696 | U150: 59.61535451 | V150: 61.92203907 | W150: 65.5907951 | BB150: DK/missing | BC150: N/A | BD150: N/A | BE150: N/A | BF150: N/A | BG150: N/A | BH150: N/A | BI150: N/A | BJ150: N/A | BK150: N/A | BL150: N/A | BM150: N/A | BN150: N/A | BO150: N/A | BP150: N/A | BQ150: N/A | BR150: N/A | BS150: N/A | BT150: N/A | BU150: N/A | BV150: N/A | BW150: N/A
A151: Shared among all sanitation facilities | B151: Yes | C151: 49.36564232 | D151: 40.32676124 | E151: 37.09792454 | F151: 34.27145305 | G151: 24.69010918 | H151: 55.27909175 | I151: 52.90681749 | J151: 48.3322799 | K151: 35.99389443 | L151: 5.848503922 | M151: 48.17162291 | N151: 40.92611649 | O151: 34.64932209 | P151: 34.0144306 | Q151: 22.48485625 | R151: 18.38408332 | S151: 34.36498293 | T151: 40.09740611 | U151: 37.86341458 | V151: 40.68061744 | W151: 28.91342314 | BA151: Shared among all sanitation facilities | BB151: Yes | BC151: N/A | BD151: N/A | BE151: N/A | BF151: N/A | BG151: N/A | BH151: N/A | BI151: N/A | BJ151: N/A | BK151: N/A | BL151: N/A | BM151: N/A | BN151: N/A | BO151: N/A | BP151: N/A | BQ151: N/A | BR151: N/A | BS151: N/A | BT151: N/A | BU151: N/A | BV151: N/A | BW151: N/A
B152: No | C152: 50.54252338 | D152: 59.6449848 | E152: 62.88716656 | F152: 65.71931953 | G152: 75.30989082 | H152: 44.71472575 | I152: 47.09318251 | J152: 51.6677201 | K152: 64.00610557 | L152: 94.15149608 | M152: 51.7474322 | N152: 59.00728319 | O152: 65.32574066 | P152: 65.96003089 | Q152: 77.51514375 | R152: 81.61591668 | S152: 65.62600987 | T152: 59.85415974 | U152: 62.13658542 | V152: 59.28082103 | W152: 71.0816804 | BB152: No | BC152: N/A | BD152: N/A | BE152: N/A | BF152: N/A | BG152: N/A | BH152: N/A | BI152: N/A | BJ152: N/A | BK152: N/A | BL152: N/A | BM152: N/A | BN152: N/A | BO152: N/A | BP152: N/A | BQ152: N/A | BR152: N/A | BS152: N/A | BT152: N/A | BU152: N/A | BV152: N/A | BW152: N/A
A153: Kind of toilet facility | B153: Flush to piped sewer system | C153: 0.1461293039 | D153: 0.1450548276 | E153: 0.350859678 | F153: 1.023744939 | G153: 12.66124444 | H153: 0.7943054587 | I153: 2.636825251 | J153: 5.327750874 | K153: 10.9345899 | L153: 27.32474284 | M153: 0.02839494957 | N153: 0.0783588853 | O153: 0.05163357064 | P153: 0.1473511634 | Q153: 0.8276796919 | R153: 0.751612806 | S153: 0.7831982461 | T153: 7.398246202 | U153: 0.2175643061 | V153: 0.7797432723 | W153: 1.575386926 | BA153: Kind of toilet facility | BB153: Flush to piped sewer system | BC153: 88.17736124 | BD153: 87.52557587 | BE153: 211.7510645 | BF153: 617.8544306 | BG153: 7640.547062 | BH153: 137.8287174 | BI153: 457.7851768 | BJ153: 923.9885331 | BK153: 1897.577627 | BL153: 4741.445358 | BM153: 12.20773886 | BN153: 33.68906719 | BO153: 22.2009207 | BP153: 63.36546289 | BQ153: 355.7668922 | BR153: 143.5529142 | BS153: 465.4089604 | BT153: 7069.568655 | BU153: 73.65408901 | BV153: 572.3283141 | BW153: 321.3425619
B154: Flush to septic tank | C154: 0.9815911966 | D154: 2.025725449 | E154: 4.089406664 | F154: 12.12658583 | G154: 46.79714996 | H154: 4.087967945 | I154: 7.657254502 | J154: 24.3040113 | K154: 45.69383499 | L154: 59.84812873 | M154: 0.5710713638 | N154: 1.286428187 | O154: 2.377528468 | P154: 5.758250369 | Q154: 25.53539516 | R154: 8.130073415 | S154: 16.62042812 | T154: 10.8302557 | U154: 15.26504107 | V154: 11.80765658 | W154: 20.73028549 | BB154: Flush to septic tank | BC154: 592.3118718 | BD154: 1222.315654 | BE154: 2468.04141 | BF154: 7318.683096 | BG154: 28240.18036 | BH154: 709.3484911 | BI154: 1329.393218 | BJ154: 4215.029622 | BK154: 7929.661721 | BL154: 10384.96991 | BM154: 245.518664 | BN154: 553.0778732 | BO154: 1022.267496 | BP154: 2476.222051 | BQ154: 10976.04335 | BR154: 1552.788513 | BS154: 9876.549408 | BT154: 10349.10628 | BU154: 5167.817799 | BV154: 8666.770752 | BW154: 4228.499637
B155: Flush to pit (latrine) | C155: 1.962310015 | D155: 2.906465879 | E155: 5.717110287 | F155: 10.40282177 | G155: 8.951648589 | H155: 3.476592202 | I155: 6.743061255 | J155: 10.52421029 | K155: 9.555941974 | L155: 2.677629596 | M155: 1.728504178 | N155: 2.334516129 | O155: 4.155220816 | P155: 7.126430744 | Q155: 13.37352236 | R155: 4.34456289 | S155: 3.89449587 | T155: 8.281940783 | U155: 8.155283918 | V155: 5.025306754 | W155: 2.750574432 | BB155: Flush to pit (latrine) | BC155: 1184.097333 | BD155: 1753.75135 | BE155: 3450.394175 | BF155: 6278.350471 | BG155: 5401.956549 | BH155: 603.26193 | BI155: 1170.678067 | BJ155: 1825.207269 | BK155: 1658.328466 | BL155: 464.6277732 | BM155: 743.1296042 | BN155: 1003.685421 | BO155: 1786.623057 | BP155: 3064.581049 | BQ155: 5748.427241 | BR155: 829.7818489 | BS155: 2314.271365 | BT155: 7914.003855 | BU155: 2760.884901 | BV155: 3688.554227 | BW155: 561.0536812
B156: Flush to somewhere else | C156: 0.126184032 | D156: 0.06898527508 | E156: 0.1670605824 | F156: 0.6316005016 | G156: 1.320188275 | H156: 0.2769784054 | I156: 0.7678027482 | J156: 2.335175137 | K156: 1.893694237 | L156: 1.173897857 | M156: 0.1204001602 | N156: 0.0378166164 | O156: 0.07522310239 | P156: 0.1447811368 | Q156: 0.2679057453 | R156: 0.3111878467 | S156: 1.063354032 | T156: 0.5163209215 | U156: 0.007516598426 | V156: 0.1124694961 | W156: 0.6209259745 | BB156: Flush to somewhere else | BC156: 76.14198295 | BD156: 41.62547381 | BE156: 100.824513 | BF156: 381.1859315 | BG156: 796.6800334 | BH156: 48.06158379 | BI156: 133.2999662 | BJ156: 404.9879771 | BK156: 328.6297747 | BL156: 203.6971612 | BM156: 51.76320922 | BN156: 16.25860968 | BO156: 32.34372735 | BP156: 62.26027364 | BQ156: 115.1556518 | BR156: 59.43475404 | BS156: 631.8891762 | BT156: 493.3826345 | BU156: 2.544664699 | BV156: 82.55214172 | BW156: 126.6545634
B157: Flush to unknown place/not sure/DK where | C157: 0.06181178585 | D157: 0 | E157: 0.02377760778 | F157: 0.137064685 | G157: 1.106856539 | H157: 0.09693570601 | I157: 0.2015980512 | J157: 0.9505588214 | K157: 1.936364459 | L157: 1.261320088 | M157: 0.0253377095 | N157: 0.02229356604 | O157: 0 | P157: 0.01611588442 | Q157: 0.007743553878 | R157: 0.05060938789 | S157: 0.5196668687 | T157: 0.459400869 | U157: 0.05430343872 | V157: 0.02921117347 | W157: 0.02462909217 | BB157: Flush to unknown place/not sure/DK where | BC157: 37.29847486 | BD157: 0 | BE157: 14.35027754 | BF157: 82.72179884 | BG157: 667.9429907 | BH157: 16.82038551 | BI157: 34.99989219 | BJ157: 164.8548274 | BK157: 336.0347218 | BL157: 218.8668456 | BM157: 10.8933506 | BN157: 9.584738749 | BO157: 0 | BP157: 6.930318382 | BQ157: 3.328461632 | BR157: 9.666047544 | BS157: 308.8076593 | BT157: 438.9913358 | BU157: 18.3838534 | BV157: 21.44087966 | BW157: 5.023766189
B158: Pit latrine with slab | C158: 11.15031463 | D158: 17.00188581 | E158: 21.98688347 | F158: 24.04907469 | G158: 11.52043928 | H158: 13.08844714 | I158: 21.05162652 | J158: 18.43101367 | K158: 11.6528774 | L158: 2.995762538 | M158: 10.76376515 | N158: 16.28078023 | O158: 19.69662528 | P158: 23.78384294 | Q158: 22.64710833 | R158: 35.20638988 | S158: 20.11043876 | T158: 10.98253585 | U158: 16.69245277 | V158: 20.43604314 | W158: 9.328328958 | BB158: Pit latrine with slab | BC158: 6728.324127 | BD158: 10258.87846 | BE158: 13269.53843 | BF158: 14514.18881 | BG158: 6952.117453 | BH158: 2271.121094 | BI158: 3654.820342 | BJ158: 3196.479281 | BK158: 2022.228511 | BL158: 519.830853 | BM158: 4627.626959 | BN158: 6999.643974 | BO158: 8468.971069 | BP158: 10227.77277 | BQ158: 9734.552422 | BR158: 6724.18009 | BS158: 11950.45883 | BT158: 10494.62117 | BU158: 5651.052895 | BV158: 14999.97055 | BW158: 1902.763743
B159: Pit latrine without slab/open pit | C159: 33.48192587 | D159: 43.36378459 | E159: 45.2277274 | F159: 37.83604948 | G159: 9.424790418 | H159: 41.25456337 | I159: 38.63256266 | J159: 22.78797491 | K159: 8.194903857 | L159: 0.9904877122 | M159: 31.85387384 | N159: 41.37507476 | O159: 44.86147022 | P159: 46.14470196 | Q159: 28.28919747 | R159: 29.21624367 | S159: 33.45319432 | T159: 32.94687565 | U159: 42.93413925 | V159: 32.60133716 | W159: 33.24315741 | BB159: Pit latrine without slab/open pit | BC159: 20203.66752 | BD159: 26165.55602 | BE159: 27295.8679 | BF159: 22834.95616 | BG159: 5687.478436 | BH159: 7158.535163 | BI159: 6707.086303 | BJ159: 3952.10437 | BK159: 1422.135293 | BL159: 171.871457 | BM159: 13694.82178 | BN159: 17788.5082 | BO159: 19289.11618 | BP159: 19843.61937 | BQ159: 12159.72793 | BR159: 5580.103064 | BS159: 19879.27893 | BT159: 31483.16412 | BU159: 14534.89762 | BV159: 23929.24569 | BW159: 6780.836624
B160: Bucket | C160: 0.2472970912 | D160: 0.1687860392 | E160: 0.1331090555 | F160: 0.02324686137 | G160: 0.2732404958 | H160: 0.2568895237 | I160: 0 | J160: 0.01599596955 | K160: 0.401033553 | L160: 0.5082286406 | M160: 0.2350554373 | N160: 0.1894713509 | O160: 0.2131770876 | P160: 0.02941852461 | Q160: 0.04271759746 | R160: 0.14610077 | S160: 0.3427173173 | T160: 0.0483132464 | U160: 0.1039277587 | V160: 0.2180273573 | W160: 0.1832549945 | BB160: Bucket | BC160: 149.224039 | BD160: 101.844906 | BE160: 80.33406508 | BF160: 14.03003399 | BG160: 164.8895476 | BH160: 44.57573995 | BI160: 0 | BJ160: 2.774171088 | BK160: 69.59495552 | BL160: 88.18887493 | BM160: 101.0565415 | BN160: 81.45997798 | BO160: 91.65989408 | BP160: 12.65085655 | BQ160: 18.36158002 | BR160: 27.90424955 | BS160: 203.6568789 | BT160: 46.16686212 | BU160: 35.18364078 | BV160: 160.0311721 | BW160: 37.37978806
B161: Hanging toilet/hanging latrine | C161: 30.80976894 | D161: 23.08210596 | E161: 17.12883683 | F161: 12.27312392 | G161: 7.605214208 | H161: 25.51578809 | I161: 19.78297065 | J161: 14.64690396 | K161: 9.391507428 | L161: 3.037756689 | M161: 31.92144294 | N161: 24.3536363 | O161: 20.59640192 | P161: 13.36027051 | Q161: 8.138875549 | R161: 20.09531182 | S161: 18.88933021 | T161: 22.5403091 | U161: 12.64876962 | V161: 11.49420553 | W161: 27.12287873 | BB161: Hanging toilet/hanging latrine | BC161: 18591.23428 | BD161: 13927.66204 | BE161: 10337.60691 | BF161: 7407.122323 | BG161: 4589.438056 | BH161: 4427.526347 | BI161: 3434.566136 | BJ161: 2540.203478 | BK161: 1629.792662 | BL161: 527.117764 | BM161: 13723.87152 | BN161: 10470.43085 | BO161: 8855.848629 | BP161: 5745.320944 | BQ161: 3498.385292 | BR161: 3838.067354 | BS161: 11224.82536 | BT161: 21538.924 | BU161: 4282.106842 | BV161: 8436.698984 | BW161: 5532.441072
B162: No facilities or bush or field | C162: 20.71819023 | D162: 10.96143777 | E162: 4.682052164 | F162: 1.115485682 | G162: 0.06381495354 | H162: 10.80224596 | I162: 2.022677586 | J162: 0.3274521531 | K162: 0.02813839183 | L162: 0 | M162: 22.48078924 | N162: 13.68280198 | O162: 7.666220986 | P162: 3.055231475 | Q162: 0.4843623863 | R162: 0.9946485231 | S162: 3.97011929 | T162: 5.688603462 | U162: 3.622897708 | V162: 17.14848205 | W162: 4.190889991 | BB162: No facilities or bush or field | BC162: 12501.77271 | BD162: 6614.093231 | BE162: 2825.715214 | BF162: 673.2221516 | BG162: 38.50973401 | BH162: 1874.417064 | BI162: 351.161616 | BJ162: 56.78982403 | BK162: 4.883107942 | BL162: 0 | BM162: 9665.085121 | BN162: 5882.687503 | BO162: 3296.250134 | BP162: 1313.842064 | BQ162: 208.1966038 | BR162: 189.9710768 | BS162: 2359.209946 | BT162: 5435.87921 | BU162: 1226.493606 | BV162: 12586.9144 | BW162: 854.8448026
B163: Other | C163: 0.1383628839 | D163: 0.1447652136 | E163: 0.1554711796 | F163: 0.06426167837 | G163: 0.06942110095 | H163: 0.2654915714 | I163: 0.05134291771 | J163: 0.06707497164 | K163: 0.02146524434 | L163: 0 | M163: 0.1327231282 | N163: 0.1500506503 | O163: 0.1299185639 | P163: 0.1097651819 | Q163: 0.1171881163 | R163: 0.4862826366 | S163: 0.118969358 | T163: 0.09252936881 | U163: 0.04727861772 | V163: 0.0869834319 | W163: 0.0662091294 | BB163: Other | BC163: 83.49094718 | BD163: 87.35082378 | BE163: 93.83006898 | BF163: 38.78345199 | BG163: 41.89281641 | BH163: 46.0683763 | BI163: 8.913759699 | BJ163: 11.63277077 | BK163: 3.725056703 | BL163: 0 | BM163: 57.06117868 | BN163: 64.51171966 | BO163: 55.86117128 | BP163: 47.20235254 | BQ163: 50.37172271 | BR163: 92.87666342 | BS163: 70.69653886 | BT163: 88.41862078 | BU163: 16.00567474 | BV163: 63.84547672 | BW163: 13.50513382
B164: Missing | C164: 0.1761140288 | D164: 0.1310031854 | E164: 0.3377050819 | F164: 0.3169399636 | G164: 0.2059917465 | H164: 0.08379462009 | I164: 0.4522778612 | J164: 0.281877948 | K164: 0.2956485611 | L164: 0.182045314 | M164: 0.1386419048 | N164: 0.2087713379 | O164: 0.1765799765 | P164: 0.3238401169 | Q164: 0.2683040421 | R164: 0.266976351 | S164: 0.2340876098 | T164: 0.2146688382 | U164: 0.2508249512 | V164: 0.2605340497 | W164: 0.1634788689 | BB164: Missing | BC164: 106.2707473 | BD164: 79.04686408 | BE164: 203.811994 | BF164: 191.2808095 | BG164: 124.3076572 | BH164: 14.54013048 | BI164: 78.52097917 | BJ164: 48.88591787 | BK164: 51.30655105 | BL164: 31.58887585 | BM164: 59.60581705 | BN164: 89.75767843 | BO164: 75.9242099 | BP164: 139.261058 | BQ164: 115.3268543 | BR164: 50.99066022 | BS164: 139.1045903 | BT164: 205.1318715 | BU164: 84.91412774 | BV164: 191.2309073 | BW164: 33.345915
BB165: Total | BC165: 60342.0114 | BD165: 60339.6504 | BE165: 60352.06602 | BF165: 60352.37947 | BG165: 60345.94069 | BH165: 17352.10502 | BI165: 17361.22546 | BJ165: 17342.93804 | BK165: 17353.89845 | BL165: 17352.20487 | BM165: 42992.64148 | BN165: 42993.29561 | BO165: 42997.06649 | BP165: 43003.02857 | BQ165: 42983.644 | BR165: 19099.31724 | BS165: 59424.15765 | BT165: 95557.35861 | BU165: 33853.93971 | BV165: 73399.58349 | BW165: 20397.69129
A208: =A1026 -> Bangladesh
A209: =A1034 -> 2006
A210: Access to hygiene facilities
A211: by wealth quintile and sub-national region
A212: Notes:
A213: WHO/UNICEF JMP customised wealth index excludes water,
A214: sanitation and hygiene assets.
A215: Survey used for analysis: | B215: =A1025 -> MICS06
A220: Access to handwashing | C220: NATIONAL wealth index quintile | H220: URBAN wealth index quintile | M220: RURAL wealth index quintile | R220: SUB-REGIONS: | BA220: Raw numbers of respondents: | BB220: Access to handwashing | BC220: NATIONAL wealth index quintile | BH220: URBAN wealth index quintile | BM220: RURAL wealth index quintile | BR220: SUB-REGIONS:
A221: Weighted percentage (used in graphs) | C221: Poorest | D221: Poor | E221: Middle | F221: Rich | G221: Richest | H221: Poorest | I221: Poor | J221: Middle | K221: Rich | L221: Richest | M221: Poorest | N221: Poor | O221: Middle | P221: Rich | Q221: Richest | R221: Barisal | S221: Chittagong | T221: Dhaka | U221: Khulna | V221: Rajshahi | W221: Sylhet | BA221: Hygiene data, raw numbers (weighted) | BC221: Poorest | BD221: Poor | BE221: Middle | BF221: Rich | BG221: Richest | BH221: Poorest | BI221: Poor | BJ221: Middle | BK221: Rich | BL221: Richest | BM221: Poorest | BN221: Poor | BO221: Middle | BP221: Rich | BQ221: Richest | BR221: Barisal | BS221: Chittagong | BT221: Dhaka | BU221: Khulna | BV221: Rajshahi | BW221: Sylhet
A222: Hygiene ladder | B222: Basic | C222: 29.60793799 | D222: 42.27540589 | E222: 57.40708927 | F222: 75.92202557 | G222: 95.87787156 | H222: 48.07606847 | I222: 69.23240321 | J222: 87.77058557 | K222: 97.36944104 | L222: 99.67554755 | M222: 26.21631814 | N222: 38.12551883 | O222: 48.45170041 | P222: 63.10979483 | Q222: 84.42475424 | R222: 58.91090417 | S222: 71.31560632 | T222: 59.89690188 | U222: 56.90310508 | V222: 52.98208617 | W222: 62.17186332 | BA222: Hygiene ladder | BB222: Basic | BC222: 17866.02532 | BD222: 25508.83212 | BE222: 34646.36442 | BF222: 45820.74897 | BG222: 57858.40351 | BH222: 8342.209892 | BI222: 12019.59361 | BJ222: 15221.99827 | BK222: 16897.39392 | BL222: 17295.90522 | BM222: 11271.08767 | BN222: 16391.41701 | BO222: 20832.80984 | BP222: 27139.1231 | BQ222: 36288.83581 | BR222: 11251.58047 | BS222: 42378.69833 | BT222: 57235.89733 | BU222: 19263.94289 | BV222: 38888.63057 | BW222: 12681.62475
B223: Limited | C223: 70.33344769 | D223: 57.66534125 | E223: 42.52931623 | F223: 23.98569497 | G223: 4.098194746 | H223: 51.8923882 | I223: 30.60843758 | J223: 12.16764171 | K223: 2.607313061 | L223: 0.3244524513 | M223: 73.73141256 | N223: 61.80532933 | O223: 51.45278086 | P223: 36.84322281 | Q223: 15.53265028 | R223: 41.0115305 | S223: 28.64252201 | T223: 40.05071935 | U223: 42.97192151 | V223: 46.97006339 | W223: 37.76705168 | BB223: Limited | BC223: 42440.61702 | BD223: 34795.06531 | BE223: 25667.32101 | BF223: 14475.93765 | BG223: 2473.094171 | BH223: 9004.421699 | BI223: 5313.999856 | BJ223: 2110.226563 | BK223: 452.4704608 | BL223: 56.29965405 | BM223: 31699.08186 | BN223: 26572.14794 | BO223: 22123.1864 | BP223: 15843.70163 | BQ223: 6676.499099 | BR223: 7832.922313 | BS223: 17020.57743 | BT223: 38271.40952 | BU223: 14547.6884 | BV223: 34475.83089 | BW223: 7703.60661
B224: No facility | C224: 0.05861431981 | D224: 0.0592528582 | E224: 0.06359449537 | F224: 0.0922794608 | G224: 0.02393369693 | H224: 0.03154333152 | I224: 0.1591592125 | J224: 0.0617727189 | K224: 0.02324589867 | L224: 0 | M224: 0.05226930088 | N224: 0.06915184304 | O224: 0.09551872698 | P224: 0.04698235657 | Q224: 0.04259548546 | R224: 0.07756533506 | S224: 0.04187167382 | T224: 0.05237877087 | U224: 0.1249734109 | V224: 0.04785043675 | W224: 0.06108500402 | BB224: No facility | BC224: 35.36905954 | BD224: 35.75296749 | BE224: 38.38059183 | BF224: 55.69285035 | BG224: 14.44301456 | BH224: 5.473432014 | BI224: 27.63198972 | BJ224: 10.71320436 | BK224: 4.034069648 | BL224: 0 | BM224: 22.47195313 | BN224: 29.7306563 | BO224: 41.07025055 | BP224: 20.20383622 | BQ224: 18.30909183 | BR224: 14.81444941 | BS224: 24.88188946 | BT224: 50.05176991 | BU224: 42.30842318 | BV224: 35.12202127 | BW224: 12.45993055
A225: Hand washing after defication | B225: Only water | C225: 11.36766303 | D225: 7.478639995 | E225: 4.883145468 | F225: 2.61448068 | G225: 0.8042812849 | H225: 7.473491217 | I225: 4.295166406 | J225: 2.424096418 | K225: 0.3707231884 | L225: 0.1040062212 | M225: 12.52328358 | N225: 8.440858684 | O225: 5.705643929 | P225: 3.952945843 | Q225: 1.560733768 | R225: 3.251982194 | S225: 8.681733872 | T225: 5.341095482 | U225: 1.125877136 | V225: 3.857915848 | W225: 11.20510154 | BA225: Observed handwashing place | BB225: Fixed | BC225: N/A | BD225: N/A | BE225: N/A | BF225: N/A | BG225: N/A | BH225: N/A | BI225: N/A | BJ225: N/A | BK225: N/A | BL225: N/A | BM225: N/A | BN225: N/A | BO225: N/A | BP225: N/A | BQ225: N/A | BR225: N/A | BS225: N/A | BT225: N/A | BU225: N/A | BV225: N/A | BW225: N/A
B226: Water and soil | C226: 36.60470338 | D226: 30.83045613 | E226: 22.02115897 | F226: 11.77593326 | G226: 1.696616644 | H226: 27.24802952 | I226: 15.63570489 | J226: 5.389887773 | K226: 0.9217366775 | L226: 0.1208327977 | M226: 38.03980501 | N226: 33.08642823 | O226: 27.20773593 | P226: 18.63890843 | Q226: 7.58588788 | R226: 24.55308813 | S226: 14.78911615 | T226: 22.98170571 | U226: 26.75853051 | V226: 18.24270199 | W226: 20.71189516 | BB226: Mobile | BC226: N/A | BD226: N/A | BE226: N/A | BF226: N/A | BG226: N/A | BH226: N/A | BI226: N/A | BJ226: N/A | BK226: N/A | BL226: N/A | BM226: N/A | BN226: N/A | BO226: N/A | BP226: N/A | BQ226: N/A | BR226: N/A | BS226: N/A | BT226: N/A | BU226: N/A | BV226: N/A | BW226: N/A
B227: Water and ash | C227: 22.36108128 | D227: 19.35624513 | E227: 15.62501179 | F227: 9.595281033 | G227: 1.597296817 | H227: 17.17086746 | I227: 10.67756628 | J227: 4.353657521 | K227: 1.314853195 | L227: 0.09961343234 | M227: 23.16832397 | N227: 20.27804241 | O227: 18.53940101 | P227: 14.25136854 | Q227: 6.386028631 | R227: 13.20646017 | S227: 5.17167198 | T227: 11.72791816 | U227: 15.08751386 | V227: 24.86944556 | W227: 5.850054971 | BA227: Water / Soap | BB227: Water and soap | BC227: N/A | BD227: N/A | BE227: N/A | BF227: N/A | BG227: N/A | BH227: N/A | BI227: N/A | BJ227: N/A | BK227: N/A | BL227: N/A | BM227: N/A | BN227: N/A | BO227: N/A | BP227: N/A | BQ227: N/A | BR227: N/A | BS227: N/A | BT227: N/A | BU227: N/A | BV227: N/A | BW227: N/A
B228: Water and soap | C228: 29.60793799 | D228: 42.27540589 | E228: 57.40708927 | F228: 75.92202557 | G228: 95.87787156 | H228: 48.07606847 | I228: 69.23240321 | J228: 87.77058557 | K228: 97.36944104 | L228: 99.67554755 | M228: 26.21631814 | N228: 38.12551883 | O228: 48.45170041 | P228: 63.10979483 | Q228: 84.42475424 | R228: 58.91090417 | S228: 71.31560632 | T228: 59.89690188 | U228: 56.90310508 | V228: 52.98208617 | W228: 62.17186332 | BB228: Water only | BC228: N/A | BD228: N/A | BE228: N/A | BF228: N/A | BG228: N/A | BH228: N/A | BI228: N/A | BJ228: N/A | BK228: N/A | BL228: N/A | BM228: N/A | BN228: N/A | BO228: N/A | BP228: N/A | BQ228: N/A | BR228: N/A | BS228: N/A | BT228: N/A | BU228: N/A | BV228: N/A | BW228: N/A
B229: Others | C229: 0.04447786828 | D229: 0.04531017866 | E229: 0.02509439992 | F229: 0.05189253318 | G229: 0.01724879054 | H229: 0.02210494526 | I229: 0.1103735291 | J229: 0.0617727189 | K229: 0 | L229: 0 | M229: 0.03901020097 | N229: 0.06025956255 | O229: 0.02803155109 | P229: 0.02941605598 | Q229: 0.02316800728 | R229: 0.01513641245 | S229: 0.04187167382 | T229: 0.01765798237 | U229: 0.1208079559 | V229: 0.01777480175 | W229: 0.06108500402 | BB229: Soap only | BC229: N/A | BD229: N/A | BE229: N/A | BF229: N/A | BG229: N/A | BH229: N/A | BI229: N/A | BJ229: N/A | BK229: N/A | BL229: N/A | BM229: N/A | BN229: N/A | BO229: N/A | BP229: N/A | BQ229: N/A | BR229: N/A | BS229: N/A | BT229: N/A | BU229: N/A | BV229: N/A | BW229: N/A
B230: Missing | C230: 0.01413645153 | D230: 0.01394267955 | E230: 0.03850009545 | F230: 0.04038692762 | G230: 0.006684906394 | H230: 0.00943838626 | I230: 0.04878568345 | J230: 0 | K230: 0.02324589867 | L230: 0 | M230: 0.01325909992 | N230: 0.008892280488 | O230: 0.06748717589 | P230: 0.01756630059 | Q230: 0.01942747818 | R230: 0.06242892261 | S230: 0 | T230: 0.03472078849 | U230: 0.004165454956 | V230: 0.030075635 | W230: 0 | BB230: Neither | BC230: N/A | BD230: N/A | BE230: N/A | BF230: N/A | BG230: N/A | BH230: N/A | BI230: N/A | BJ230: N/A | BK230: N/A | BL230: N/A | BM230: N/A | BN230: N/A | BO230: N/A | BP230: N/A | BQ230: N/A | BR230: N/A | BS230: N/A | BT230: N/A | BU230: N/A | BV230: N/A | BW230: N/A
BA231: Hand washing after defication | BB231: Only water | BC231: 6859.476521 | BD231: 4512.585227 | BE231: 2947.079177 | BF231: 1577.901301 | BG231: 485.3511072 | BH231: 1296.808045 | BI231: 745.6935234 | BJ231: 420.4095398 | BK231: 64.33492564 | BL231: 18.04737258 | BM231: 5384.090411 | BN231: 3629.003326 | BO231: 2453.259514 | BP231: 1699.88643 | BQ231: 670.8602467 | BR231: 621.1063957 | BS231: 5159.047223 | BT231: 5103.809763 | BU231: 381.1537668 | BV231: 2831.694164 | BW231: 2285.582021
BB232: Water and soil | BC232: 22088.01428 | BD232: 18602.98944 | BE232: 13290.2244 | BF232: 7107.055926 | BG232: 1023.839274 | BH232: 4728.106699 | BI232: 2714.549978 | BJ232: 934.764897 | BK232: 159.957247 | BL232: 20.96715461 | BM232: 16354.31699 | BN232: 14224.9459 | BO232: 11698.52831 | BP232: 8015.295118 | BQ232: 3260.69104 | BR232: 4689.472194 | BS232: 8788.307698 | BT232: 21960.71094 | BU232: 9058.816785 | BV232: 13390.06727 | BW232: 4224.748436
BB233: Water and ash | BC233: 13493.12622 | BD233: 11679.49064 | BE233: 9430.017434 | BF233: 5790.98042 | BG233: 963.90379 | BH233: 2979.506955 | BI233: 1853.756355 | BJ233: 755.0521264 | BK233: 228.1782882 | BL233: 17.28512686 | BM233: 9960.67446 | BN233: 8718.198719 | BO233: 7971.398577 | BP233: 6128.520084 | BQ233: 2744.947812 | BR233: 2522.343724 | BS233: 3073.22251 | BT233: 11206.88881 | BU233: 5107.717847 | BV233: 18254.06945 | BW233: 1193.276153
BB234: Water and soap | BC234: 17866.02532 | BD234: 25508.83212 | BE234: 34646.36442 | BF234: 45820.74897 | BG234: 57858.40351 | BH234: 8342.209892 | BI234: 12019.59361 | BJ234: 15221.99827 | BK234: 16897.39392 | BL234: 17295.90522 | BM234: 11271.08767 | BN234: 16391.41701 | BO234: 20832.80984 | BP234: 27139.1231 | BQ234: 36288.83581 | BR234: 11251.58047 | BS234: 42378.69833 | BT234: 57235.89733 | BU234: 19263.94289 | BV234: 38888.63057 | BW234: 12681.62475
BB235: Others | BC235: 26.83884035 | BD235: 27.3400034 | BE235: 15.14498881 | BF235: 31.31837854 | BG235: 10.40894491 | BH235: 3.835673317 | BI235: 19.16219723 | BJ235: 10.71320436 | BK235: 0 | BL235: 0 | BM235: 16.77151584 | BN235: 25.90757186 | BO235: 12.05274466 | BP235: 12.64979496 | BQ235: 9.958453772 | BR235: 2.890951432 | BS235: 24.88188946 | BT235: 16.87350154 | BU235: 40.89825257 | BV235: 13.04663045 | BW235: 12.45993055
BB236: Missing | BC236: 8.530219195 | BD236: 8.412964093 | BE236: 23.23560303 | BF236: 24.37447181 | BG236: 4.034069648 | BH236: 1.637758696 | BI236: 8.469792493 | BJ236: 0 | BK236: 4.034069648 | BL236: 0 | BM236: 5.700437291 | BN236: 3.823084437 | BO236: 29.01750589 | BP236: 7.554041262 | BQ236: 8.350638059 | BR236: 11.92349798 | BS236: 0 | BT236: 33.17826837 | BU236: 1.410170609 | BV236: 22.07539082 | BW236: 0
BB237: Total | BC237: 60342.0114 | BD237: 60339.6504 | BE237: 60352.06602 | BF237: 60352.37947 | BG237: 60345.94069 | BH237: 17352.10502 | BI237: 17361.22546 | BJ237: 17342.93804 | BK237: 17353.89845 | BL237: 17352.20487 | BM237: 42992.64148 | BN237: 42993.29561 | BO237: 42997.06649 | BP237: 43003.02857 | BQ237: 42983.644 | BR237: 19099.31724 | BS237: 59424.15765 | BT237: 95557.35861 | BU237: 33853.93971 | BV237: 73399.58349 | BW237: 20397.69129
BA259: Raw numbers of respondents: | BB259: Menstrual health and hygiene | BC259: NATIONAL wealth index quintile | BH259: URBAN wealth index quintile | BM259: RURAL wealth index quintile | BR259: SUB-REGIONS:
BA260: MHH data, raw numbers (weighted) | BC260: Poorest | BD260: Poor | BE260: Middle | BF260: Rich | BG260: Richest | BH260: Poorest | BI260: Poor | BJ260: Middle | BK260: Rich | BL260: Richest | BM260: Poorest | BN260: Poor | BO260: Middle | BP260: Rich | BQ260: Richest | BR260: Barisal | BS260: Chittagong | BT260: Dhaka | BU260: Khulna | BV260: Rajshahi | BW260: Sylhet
BA261: Private place to wash and change | BB261: Yes | BC261: N/A | BD261: N/A | BE261: N/A | BF261: N/A | BG261: N/A | BH261: N/A | BI261: N/A | BJ261: N/A | BK261: N/A | BL261: N/A | BM261: N/A | BN261: N/A | BO261: N/A | BP261: N/A | BQ261: N/A | BR261: N/A | BS261: N/A | BT261: N/A | BU261: N/A | BV261: N/A | BW261: N/A
BB262: No | BC262: N/A | BD262: N/A | BE262: N/A | BF262: N/A | BG262: N/A | BH262: N/A | BI262: N/A | BJ262: N/A | BK262: N/A | BL262: N/A | BM262: N/A | BN262: N/A | BO262: N/A | BP262: N/A | BQ262: N/A | BR262: N/A | BS262: N/A | BT262: N/A | BU262: N/A | BV262: N/A | BW262: N/A
BB263: DK/not sure/missing | BC263: N/A | BD263: N/A | BE263: N/A | BF263: N/A | BG263: N/A | BH263: N/A | BI263: N/A | BJ263: N/A | BK263: N/A | BL263: N/A | BM263: N/A | BN263: N/A | BO263: N/A | BP263: N/A | BQ263: N/A | BR263: N/A | BS263: N/A | BT263: N/A | BU263: N/A | BV263: N/A | BW263: N/A
BA264: Use of menstrual materials | BB264: Materials reusable | BC264: N/A | BD264: N/A | BE264: N/A | BF264: N/A | BG264: N/A | BH264: N/A | BI264: N/A | BJ264: N/A | BK264: N/A | BL264: N/A | BM264: N/A | BN264: N/A | BO264: N/A | BP264: N/A | BQ264: N/A | BR264: N/A | BS264: N/A | BT264: N/A | BU264: N/A | BV264: N/A | BW264: N/A
BB265: Materials not reusable | BC265: N/A | BD265: N/A | BE265: N/A | BF265: N/A | BG265: N/A | BH265: N/A | BI265: N/A | BJ265: N/A | BK265: N/A | BL265: N/A | BM265: N/A | BN265: N/A | BO265: N/A | BP265: N/A | BQ265: N/A | BR265: N/A | BS265: N/A | BT265: N/A | BU265: N/A | BV265: N/A | BW265: N/A
BB266: No materials used | BC266: N/A | BD266: N/A | BE266: N/A | BF266: N/A | BG266: N/A | BH266: N/A | BI266: N/A | BJ266: N/A | BK266: N/A | BL266: N/A | BM266: N/A | BN266: N/A | BO266: N/A | BP266: N/A | BQ266: N/A | BR266: N/A | BS266: N/A | BT266: N/A | BU266: N/A | BV266: N/A | BW266: N/A
BB267: DK/not sure/missing | BC267: N/A | BD267: N/A | BE267: N/A | BF267: N/A | BG267: N/A | BH267: N/A | BI267: N/A | BJ267: N/A | BK267: N/A | BL267: N/A | BM267: N/A | BN267: N/A | BO267: N/A | BP267: N/A | BQ267: N/A | BR267: N/A | BS267: N/A | BT267: N/A | BU267: N/A | BV267: N/A | BW267: N/A
BA268: Use of menstrual materials with private place to wash and change | BB268: Materials reusable | BC268: N/A | BD268: N/A | BE268: N/A | BF268: N/A | BG268: N/A | BH268: N/A | BI268: N/A | BJ268: N/A | BK268: N/A | BL268: N/A | BM268: N/A | BN268: N/A | BO268: N/A | BP268: N/A | BQ268: N/A | BR268: N/A | BS268: N/A | BT268: N/A | BU268: N/A | BV268: N/A | BW268: N/A
BB269: Materials not reusable | BC269: N/A | BD269: N/A | BE269: N/A | BF269: N/A | BG269: N/A | BH269: N/A | BI269: N/A | BJ269: N/A | BK269: N/A | BL269: N/A | BM269: N/A | BN269: N/A | BO269: N/A | BP269: N/A | BQ269: N/A | BR269: N/A | BS269: N/A | BT269: N/A | BU269: N/A | BV269: N/A | BW269: N/A
BB270: No materials used | BC270: N/A | BD270: N/A | BE270: N/A | BF270: N/A | BG270: N/A | BH270: N/A | BI270: N/A | BJ270: N/A | BK270: N/A | BL270: N/A | BM270: N/A | BN270: N/A | BO270: N/A | BP270: N/A | BQ270: N/A | BR270: N/A | BS270: N/A | BT270: N/A | BU270: N/A | BV270: N/A | BW270: N/A
BA271: Awareness of menstruation before menarche | BB271: Yes | BC271: N/A | BD271: N/A | BE271: N/A | BF271: N/A | BG271: N/A | BH271: N/A | BI271: N/A | BJ271: N/A | BK271: N/A | BL271: N/A | BM271: N/A | BN271: N/A | BO271: N/A | BP271: N/A | BQ271: N/A | BR271: N/A | BS271: N/A | BT271: N/A | BU271: N/A | BV271: N/A | BW271: N/A
BB272: No | BC272: N/A | BD272: N/A | BE272: N/A | BF272: N/A | BG272: N/A | BH272: N/A | BI272: N/A | BJ272: N/A | BK272: N/A | BL272: N/A | BM272: N/A | BN272: N/A | BO272: N/A | BP272: N/A | BQ272: N/A | BR272: N/A | BS272: N/A | BT272: N/A | BU272: N/A | BV272: N/A | BW272: N/A
BB273: DK/not sure/missing | BC273: N/A | BD273: N/A | BE273: N/A | BF273: N/A | BG273: N/A | BH273: N/A | BI273: N/A | BJ273: N/A | BK273: N/A | BL273: N/A | BM273: N/A | BN273: N/A | BO273: N/A | BP273: N/A | BQ273: N/A | BR273: N/A | BS273: N/A | BT273: N/A | BU273: N/A | BV273: N/A | BW273: N/A
BA274: Participation in (all) activities during menstruation | BB274: Yes | BC274: N/A | BD274: N/A | BE274: N/A | BF274: N/A | BG274: N/A | BH274: N/A | BI274: N/A | BJ274: N/A | BK274: N/A | BL274: N/A | BM274: N/A | BN274: N/A | BO274: N/A | BP274: N/A | BQ274: N/A | BR274: N/A | BS274: N/A | BT274: N/A | BU274: N/A | BV274: N/A | BW274: N/A
BB275: No | BC275: N/A | BD275: N/A | BE275: N/A | BF275: N/A | BG275: N/A | BH275: N/A | BI275: N/A | BJ275: N/A | BK275: N/A | BL275: N/A | BM275: N/A | BN275: N/A | BO275: N/A | BP275: N/A | BQ275: N/A | BR275: N/A | BS275: N/A | BT275: N/A | BU275: N/A | BV275: N/A | BW275: N/A
BB276: DK/not sure/missing/no such activity | BC276: N/A | BD276: N/A | BE276: N/A | BF276: N/A | BG276: N/A | BH276: N/A | BI276: N/A | BJ276: N/A | BK276: N/A | BL276: N/A | BM276: N/A | BN276: N/A | BO276: N/A | BP276: N/A | BQ276: N/A | BR276: N/A | BS276: N/A | BT276: N/A | BU276: N/A | BV276: N/A | BW276: N/A
BA277: Participation in specific activities during menstruation | BB277: Did not go to school (amongst those usually attending school) | BC277: N/A | BD277: N/A | BE277: N/A | BF277: N/A | BG277: N/A | BH277: N/A | BI277: N/A | BJ277: N/A | BK277: N/A | BL277: N/A | BM277: N/A | BN277: N/A | BO277: N/A | BP277: N/A | BQ277: N/A | BR277: N/A | BS277: N/A | BT277: N/A | BU277: N/A | BV277: N/A | BW277: N/A
BB278: Did not go to work (amongst those who usually work) | BC278: N/A | BD278: N/A | BE278: N/A | BF278: N/A | BG278: N/A | BH278: N/A | BI278: N/A | BJ278: N/A | BK278: N/A | BL278: N/A | BM278: N/A | BN278: N/A | BO278: N/A | BP278: N/A | BQ278: N/A | BR278: N/A | BS278: N/A | BT278: N/A | BU278: N/A | BV278: N/A | BW278: N/A
BB279: Did not participate in social activities | BC279: N/A | BD279: N/A | BE279: N/A | BF279: N/A | BG279: N/A | BH279: N/A | BI279: N/A | BJ279: N/A | BK279: N/A | BL279: N/A | BM279: N/A | BN279: N/A | BO279: N/A | BP279: N/A | BQ279: N/A | BR279: N/A | BS279: N/A | BT279: N/A | BU279: N/A | BV279: N/A | BW279: N/A
BB280: Did not cook food | BC280: N/A | BD280: N/A | BE280: N/A | BF280: N/A | BG280: N/A | BH280: N/A | BI280: N/A | BJ280: N/A | BK280: N/A | BL280: N/A | BM280: N/A | BN280: N/A | BO280: N/A | BP280: N/A | BQ280: N/A | BR280: N/A | BS280: N/A | BT280: N/A | BU280: N/A | BV280: N/A | BW280: N/A
BB281: Did not eat with others | BC281: N/A | BD281: N/A | BE281: N/A | BF281: N/A | BG281: N/A | BH281: N/A | BI281: N/A | BJ281: N/A | BK281: N/A | BL281: N/A | BM281: N/A | BN281: N/A | BO281: N/A | BP281: N/A | BQ281: N/A | BR281: N/A | BS281: N/A | BT281: N/A | BU281: N/A | BV281: N/A | BW281: N/A
BB282: Did not bathe in regular place | BC282: N/A | BD282: N/A | BE282: N/A | BF282: N/A | BG282: N/A | BH282: N/A | BI282: N/A | BJ282: N/A | BK282: N/A | BL282: N/A | BM282: N/A | BN282: N/A | BO282: N/A | BP282: N/A | BQ282: N/A | BR282: N/A | BS282: N/A | BT282: N/A | BU282: N/A | BV282: N/A | BW282: N/A
BB283: Did not participate in other activities | BC283: N/A | BD283: N/A | BE283: N/A | BF283: N/A | BG283: N/A | BH283: N/A | BI283: N/A | BJ283: N/A | BK283: N/A | BL283: N/A | BM283: N/A | BN283: N/A | BO283: N/A | BP283: N/A | BQ283: N/A | BR283: N/A | BS283: N/A | BT283: N/A | BU283: N/A | BV283: N/A | BW283: N/A
BB284: DK/not sure/missing/no such activity | BC284: N/A | BD284: N/A | BE284: N/A | BF284: N/A | BG284: N/A | BH284: N/A | BI284: N/A | BJ284: N/A | BK284: N/A | BL284: N/A | BM284: N/A | BN284: N/A | BO284: N/A | BP284: N/A | BQ284: N/A | BR284: N/A | BS284: N/A | BT284: N/A | BU284: N/A | BV284: N/A | BW284: N/A
BA339: Raw numbers of respondents: | BB339: Basic water, sanitation and hygiene | BC339: NATIONAL wealth index quintile | BH339: URBAN wealth index quintile | BM339: RURAL wealth index quintile | BR339: SUB-REGIONS:
BA340: WatSan data, raw numbers (weighted) | BC340: Poorest | BD340: Poor | BE340: Middle | BF340: Rich | BG340: Richest | BH340: Poorest | BI340: Poor | BJ340: Middle | BK340: Rich | BL340: Richest | BM340: Poorest | BN340: Poor | BO340: Middle | BP340: Rich | BQ340: Richest | BR340: Barisal | BS340: Chittagong | BT340: Dhaka | BU340: Khulna | BV340: Rajshahi | BW340: Sylhet
BA341: Access to Basic Water Sanitation and Hygiene | BB341: Yes | BC341: N/A | BD341: N/A | BE341: N/A | BF341: N/A | BG341: N/A | BH341: N/A | BI341: N/A | BJ341: N/A | BK341: N/A | BL341: N/A | BM341: N/A | BN341: N/A | BO341: N/A | BP341: N/A | BQ341: N/A | BR341: N/A | BS341: N/A | BT341: N/A | BU341: N/A | BV341: N/A | BW341: N/A
BB342: No | BC342: N/A | BD342: N/A | BE342: N/A | BF342: N/A | BG342: N/A | BH342: N/A | BI342: N/A | BJ342: N/A | BK342: N/A | BL342: N/A | BM342: N/A | BN342: N/A | BO342: N/A | BP342: N/A | BQ342: N/A | BR342: N/A | BS342: N/A | BT342: N/A | BU342: N/A | BV342: N/A | BW342: N/A
BA343: Access to Basic Water and Sanitation | BB343: Yes | BC343: N/A | BD343: N/A | BE343: N/A | BF343: N/A | BG343: N/A | BH343: N/A | BI343: N/A | BJ343: N/A | BK343: N/A | BL343: N/A | BM343: N/A | BN343: N/A | BO343: N/A | BP343: N/A | BQ343: N/A | BR343: N/A | BS343: N/A | BT343: N/A | BU343: N/A | BV343: N/A | BW343: N/A
BB344: No | BC344: N/A | BD344: N/A | BE344: N/A | BF344: N/A | BG344: N/A | BH344: N/A | BI344: N/A | BJ344: N/A | BK344: N/A | BL344: N/A | BM344: N/A | BN344: N/A | BO344: N/A | BP344: N/A | BQ344: N/A | BR344: N/A | BS344: N/A | BT344: N/A | BU344: N/A | BV344: N/A | BW344: N/A
BA345: Access to Basic Water and Hygiene | BB345: Yes | BC345: N/A | BD345: N/A | BE345: N/A | BF345: N/A | BG345: N/A | BH345: N/A | BI345: N/A | BJ345: N/A | BK345: N/A | BL345: N/A | BM345: N/A | BN345: N/A | BO345: N/A | BP345: N/A | BQ345: N/A | BR345: N/A | BS345: N/A | BT345: N/A | BU345: N/A | BV345: N/A | BW345: N/A
BB346: No | BC346: N/A | BD346: N/A | BE346: N/A | BF346: N/A | BG346: N/A | BH346: N/A | BI346: N/A | BJ346: N/A | BK346: N/A | BL346: N/A | BM346: N/A | BN346: N/A | BO346: N/A | BP346: N/A | BQ346: N/A | BR346: N/A | BS346: N/A | BT346: N/A | BU346: N/A | BV346: N/A | BW346: N/A
BA347: Access to Basic Sanitation and Hygiene | BB347: Yes | BC347: N/A | BD347: N/A | BE347: N/A | BF347: N/A | BG347: N/A | BH347: N/A | BI347: N/A | BJ347: N/A | BK347: N/A | BL347: N/A | BM347: N/A | BN347: N/A | BO347: N/A | BP347: N/A | BQ347: N/A | BR347: N/A | BS347: N/A | BT347: N/A | BU347: N/A | BV347: N/A | BW347: N/A
BB348: No | BC348: N/A | BD348: N/A | BE348: N/A | BF348: N/A | BG348: N/A | BH348: N/A | BI348: N/A | BJ348: N/A | BK348: N/A | BL348: N/A | BM348: N/A | BN348: N/A | BO348: N/A | BP348: N/A | BQ348: N/A | BR348: N/A | BS348: N/A | BT348: N/A | BU348: N/A | BV348: N/A | BW348: N/A
BA349: Access to Basic Water | BB349: Yes | BC349: N/A | BD349: N/A | BE349: N/A | BF349: N/A | BG349: N/A | BH349: N/A | BI349: N/A | BJ349: N/A | BK349: N/A | BL349: N/A | BM349: N/A | BN349: N/A | BO349: N/A | BP349: N/A | BQ349: N/A | BR349: N/A | BS349: N/A | BT349: N/A | BU349: N/A | BV349: N/A | BW349: N/A
BB350: No | BC350: N/A | BD350: N/A | BE350: N/A | BF350: N/A | BG350: N/A | BH350: N/A | BI350: N/A | BJ350: N/A | BK350: N/A | BL350: N/A | BM350: N/A | BN350: N/A | BO350: N/A | BP350: N/A | BQ350: N/A | BR350: N/A | BS350: N/A | BT350: N/A | BU350: N/A | BV350: N/A | BW350: N/A
BA351: Access to Basic Sanitation | BB351: Yes | BC351: N/A | BD351: N/A | BE351: N/A | BF351: N/A | BG351: N/A | BH351: N/A | BI351: N/A | BJ351: N/A | BK351: N/A | BL351: N/A | BM351: N/A | BN351: N/A | BO351: N/A | BP351: N/A | BQ351: N/A | BR351: N/A | BS351: N/A | BT351: N/A | BU351: N/A | BV351: N/A | BW351: N/A
BB352: No | BC352: N/A | BD352: N/A | BE352: N/A | BF352: N/A | BG352: N/A | BH352: N/A | BI352: N/A | BJ352: N/A | BK352: N/A | BL352: N/A | BM352: N/A | BN352: N/A | BO352: N/A | BP352: N/A | BQ352: N/A | BR352: N/A | BS352: N/A | BT352: N/A | BU352: N/A | BV352: N/A | BW352: N/A
BA353: Access to Basic Hygiene | BB353: Yes | BC353: N/A | BD353: N/A | BE353: N/A | BF353: N/A | BG353: N/A | BH353: N/A | BI353: N/A | BJ353: N/A | BK353: N/A | BL353: N/A | BM353: N/A | BN353: N/A | BO353: N/A | BP353: N/A | BQ353: N/A | BR353: N/A | BS353: N/A | BT353: N/A | BU353: N/A | BV353: N/A | BW353: N/A
BB354: No | BC354: N/A | BD354: N/A | BE354: N/A | BF354: N/A | BG354: N/A | BH354: N/A | BI354: N/A | BJ354: N/A | BK354: N/A | BL354: N/A | BM354: N/A | BN354: N/A | BO354: N/A | BP354: N/A | BQ354: N/A | BR354: N/A | BS354: N/A | BT354: N/A | BU354: N/A | BV354: N/A | BW354: N/A
C399: INITIAL (national) Wealth Index | H399: URBAN Wealth Index | M399: RURAL Wealth Index
C400: Component Matrix | H400: Component Matrix | M400: Component Matrix
E401: Component | J401: Component | O401: Component
B402: Note: The INITIAL (national) Wealth Index is based on the first component of the Principal Component Analysis (PCA) which has been obtained at national level. The final national-level (NATIONAL) Wealth Index is based on the URBAN and RURAL specific wealth indexes. Regression procedures are used to establish the relationships between the two sets of scores (urban and rural) and the initial (national) wealth factors. This allows best use of the available information for each area and a better precision of the FINAL (NATIONAL) Wealth Index. For dependency reasons, all WASH variables (contained in the generic MICS and DHS scripts) have been excluded from the sets of asset variables used in the PCAs. The PCA can extracts as many components as there are asset variables in the input. Only the first of the components is used to represent the Wealth Index. The scores represent the weights of the asset variables on the Wealth Index (correlations between the variables and the component). The communalities are the proportion of each variable's variance that can be explained by the component. Proportion of explained variance is the part of the model's total variance that is explained by the component. For more information on the procedure used: The DHS Wealth Index, DHS Comparative Reports No. 6, Shea Oscar Rutstein, Kiersten Johnson, ORC Macro International Inc., 2004. The DHS Wealth Index: Approaches for Rural and Urban Areas, Shea O. Rutstein, ORC Macro International Inc., 2008. MICS Methodological Paper No. 4, Review of options for reporting water, sanitation and hygiene coverage by wealth quintile, UNICEF, 2016. | E402: 1 | J402: 1 | O402: 1
C403: Has earth/sand floor | E403: -0.8023512049 | H403: Has earth/sand floor | J403: -0.7819082847 | M403: Household has: fan | O403: 0.701278727
C404: Has cement floor | E404: 0.7877873761 | H404: Has cement floor | J404: 0.7389313139 | M404: Has cement floor | O404: 0.6775523934
C405: Has parpaing brick wall | E405: 0.7104151721 | H405: Has parpaing brick wall | J405: 0.7221543466 | M405: Household has: television | O405: 0.6556970722
C406: Household has: fan | E406: 0.7064849591 | H406: Household has: mobile telephone | J406: 0.7050582246 | M406: Household has: electricity | O406: 0.6524320615
C407: Household has: mobile telephone | E407: 0.6851943448 | H407: Has cement roof | J407: 0.6960709459 | M407: Has earth/sand floor | O407: -0.6370239231
... 269 more rows

Sheet DHS07
A2: =A1026 -> Bangladesh
A3: =A1034 -> 2007
A4: Use of drinking water sources
A5: by wealth quintile and sub-national region
A6: Notes:
A7: WHO/UNICEF JMP customised wealth index excludes water,
A8: sanitation and hygiene assets.
A9: Survey used for analysis: | B9: =A1025 -> DHS07
A10: =B1028 -> 
A11: =B1027 -> Time to improved source based on: | B11: MICS06
A14: Use of drinking water sources | C14: NATIONAL wealth index quintile | H14: URBAN wealth index quintile | M14: RURAL wealth index quintile | R14: SUB-REGIONS: | BA14: Raw numbers of respondents: | BB14: Use of drinking water sources | BC14: NATIONAL wealth index quintile | BH14: URBAN wealth index quintile | BM14: RURAL wealth index quintile | BR14: SUB-REGIONS:
A15: Weighted percentage (used in graphs) | C15: Poorest | D15: Poor | E15: Middle | F15: Rich | G15: Richest | H15: Poorest | I15: Poor | J15: Middle | K15: Rich | L15: Richest | M15: Poorest | N15: Poor | O15: Middle | P15: Rich | Q15: Richest | R15: Barisal | S15: Chittagong | T15: Dhaka | U15: Khulna | V15: Rajshahi | W15: Sylhet | BA15: Water data, raw numbers (weighted) | BC15: Poorest | BD15: Poor | BE15: Middle | BF15: Rich | BG15: Richest | BH15: Poorest | BI15: Poor | BJ15: Middle | BK15: Rich | BL15: Richest | BM15: Poorest | BN15: Poor | BO15: Middle | BP15: Rich | BQ15: Richest | BR15: Barisal | BS15: Chittagong | BT15: Dhaka | BU15: Khulna | BV15: Rajshahi | BW15: Sylhet
A16: Water | B16: Improved | C16: 96.64846016 | D16: 96.23628447 | E16: 96.39972062 | F16: 96.9137249 | G16: 99.20369433 | H16: 98.60352076 | I16: 99.66784455 | J16: 99.7859015 | K16: 100 | L16: 100 | M16: 96.79782919 | N16: 95.68292024 | O16: 96.04356544 | P16: 95.68930145 | Q16: 97.58517517 | R16: 96.85506615 | S16: 96.94587118 | T16: 99.17056828 | U16: 91.02397714 | V16: 98.93997398 | W16: 92.83068521 | BA16: Water | BB16: Improved | BC16: N/A | BD16: N/A | BE16: N/A | BF16: N/A | BG16: N/A | BH16: N/A | BI16: N/A | BJ16: N/A | BK16: N/A | BL16: N/A | BM16: N/A | BN16: N/A | BO16: N/A | BP16: N/A | BQ16: N/A | BR16: N/A | BS16: N/A | BT16: N/A | BU16: N/A | BV16: N/A | BW16: N/A
B17: Not Improved | C17: 3.351539841 | D17: 3.763715532 | E17: 3.600279384 | F17: 3.086275101 | G17: 0.7963056676 | H17: 1.396479238 | I17: 0.3321554508 | J17: 0.2140984974 | K17: 0 | L17: 0 | M17: 3.202170808 | N17: 4.317079763 | O17: 3.956434558 | P17: 4.310698554 | Q17: 2.414824825 | R17: 3.144933846 | S17: 3.054128825 | T17: 0.8294317197 | U17: 8.976022859 | V17: 1.060026025 | W17: 7.169314791 | BB17: Not Improved | BC17: N/A | BD17: N/A | BE17: N/A | BF17: N/A | BG17: N/A | BH17: N/A | BI17: N/A | BJ17: N/A | BK17: N/A | BL17: N/A | BM17: N/A | BN17: N/A | BO17: N/A | BP17: N/A | BQ17: N/A | BR17: N/A | BS17: N/A | BT17: N/A | BU17: N/A | BV17: N/A | BW17: N/A
A18: Water ladder | B18: Basic | C18: =C16*MICS06!C23/100 -> 95.00673269 | D18: =D16*MICS06!D23/100 -> 95.28695904 | E18: =E16*MICS06!E23/100 -> 95.76407837 | F18: =F16*MICS06!F23/100 -> 96.58754691 | G18: =G16*MICS06!G23/100 -> 99.1050951 | H18: =H16*MICS06!H23/100 -> 97.95282124 | I18: =I16*MICS06!I23/100 -> 99.14395428 | J18: =J16*MICS06!J23/100 -> 99.48931464 | K18: =K16*MICS06!K23/100 -> 99.95703547 | L18: =L16*MICS06!L23/100 -> 100 | M18: =M16*MICS06!M23/100 -> 94.82145996 | N18: =N16*MICS06!N23/100 -> 94.59638994 | O18: =O16*MICS06!O23/100 -> 95.19096753 | P18: =P16*MICS06!P23/100 -> 95.33154228 | Q18: =Q16*MICS06!Q23/100 -> 97.32938206 | R18: =R16*MICS06!R23/100 -> 94.15502416 | S18: =S16*MICS06!S23/100 -> 95.55016047 | T18: =T16*MICS06!T23/100 -> 99.01069142 | U18: =U16*MICS06!U23/100 -> 90.02549754 | V18: =V16*MICS06!V23/100 -> 98.85249149 | W18: =W16*MICS06!W23/100 -> 91.37374992 | BA18: Water ladder | BB18: Basic | BC18: N/A | BD18: N/A | BE18: N/A | BF18: N/A | BG18: N/A | BH18: N/A | BI18: N/A | BJ18: N/A | BK18: N/A | BL18: N/A | BM18: N/A | BN18: N/A | BO18: N/A | BP18: N/A | BQ18: N/A | BR18: N/A | BS18: N/A | BT18: N/A | BU18: N/A | BV18: N/A | BW18: N/A
B19: Limited | C19: =C16*MICS06!C22/100 -> 1.641727466 | D19: =D16*MICS06!D22/100 -> 0.9493254242 | E19: =E16*MICS06!E22/100 -> 0.6356422458 | F19: =F16*MICS06!F22/100 -> 0.3261779896 | G19: =G16*MICS06!G22/100 -> 0.09859923542 | H19: =H16*MICS06!H22/100 -> 0.6506995215 | I19: =I16*MICS06!I22/100 -> 0.5238902661 | J19: =J16*MICS06!J22/100 -> 0.2965868657 | K19: =K16*MICS06!K22/100 -> 0.04296452562 | L19: =L16*MICS06!L22/100 -> 0 | M19: =M16*MICS06!M22/100 -> 1.976369236 | N19: =N16*MICS06!N22/100 -> 1.086530294 | O19: =O16*MICS06!O22/100 -> 0.8525979092 | P19: =P16*MICS06!P22/100 -> 0.3577591681 | Q19: =Q16*MICS06!Q22/100 -> 0.2557931108 | R19: =R16*MICS06!R22/100 -> 2.700041993 | S19: =S16*MICS06!S22/100 -> 1.395710708 | T19: =T16*MICS06!T22/100 -> 0.1598768641 | U19: =U16*MICS06!U22/100 -> 0.9984796035 | V19: =V16*MICS06!V22/100 -> 0.08748248061 | W19: =W16*MICS06!W22/100 -> 1.456935293 | BB19: Limited | BC19: N/A | BD19: N/A | BE19: N/A | BF19: N/A | BG19: N/A | BH19: N/A | BI19: N/A | BJ19: N/A | BK19: N/A | BL19: N/A | BM19: N/A | BN19: N/A | BO19: N/A | BP19: N/A | BQ19: N/A | BR19: N/A | BS19: N/A | BT19: N/A | BU19: N/A | BV19: N/A | BW19: N/A
B20: Unimproved | C20: =100-C18-C19-C21 -> 0.7551402226 | D20: =100-D18-D19-D21 -> 0.9499154254 | E20: 0.655376862 | F20: 0.6720685332 | G20: 0.1535624998 | H20: 0.570100515 | I20: 0.1022306605 | J20: -8.77631301e-14 | K20: 1.429412144e-15 | L20: 0 | M20: 0.3729494687 | N20: 1.207294615 | O20: 0.7175393002 | P20: 1.083569824 | Q20: 0.5199952934 | R20: 0.1358251017 | S20: 0.6782757773 | T20: 0.1362349379 | U20: 0.1895214415 | V20: 1.060026025 | W20: 2.381219385 | BB20: Unimproved | BC20: N/A | BD20: N/A | BE20: N/A | BF20: N/A | BG20: N/A | BH20: N/A | BI20: N/A | BJ20: N/A | BK20: N/A | BL20: N/A | BM20: N/A | BN20: N/A | BO20: N/A | BP20: N/A | BQ20: N/A | BR20: N/A | BS20: N/A | BT20: N/A | BU20: N/A | BV20: N/A | BW20: N/A
B21: Surface water | C21: =C66 -> 2.596399618 | D21: 2.813800106 | E21: 2.944902522 | F21: 2.414206568 | G21: 0.6427431677 | H21: 0.8263787226 | I21: 0.2299247903 | J21: 0.2140984974 | K21: 0 | L21: 0 | M21: 2.82922134 | N21: 3.109785148 | O21: 3.238895258 | P21: 3.22712873 | Q21: 1.894829532 | R21: 3.009108744 | S21: 2.375853047 | T21: 0.6931967818 | U21: 8.786501417 | V21: 0 | W21: 4.788095406 | BB21: Surface water | BC21: N/A | BD21: N/A | BE21: N/A | BF21: N/A | BG21: N/A | BH21: N/A | BI21: N/A | BJ21: N/A | BK21: N/A | BL21: N/A | BM21: N/A | BN21: N/A | BO21: N/A | BP21: N/A | BQ21: N/A | BR21: N/A | BS21: N/A | BT21: N/A | BU21: N/A | BV21: N/A | BW21: N/A
A22: Improved water point at more than 30 minutes | B22: Yes | C22: N/A | D22: N/A | E22: N/A | F22: N/A | G22: N/A | H22: N/A | I22: N/A | J22: N/A | K22: N/A | L22: N/A | M22: N/A | N22: N/A | O22: N/A | P22: N/A | Q22: N/A | R22: N/A | S22: N/A | T22: N/A | U22: N/A | V22: N/A | W22: N/A | BA22: Improved water point at more than 30 minutes | BB22: Yes | BC22: N/A | BD22: N/A | BE22: N/A | BF22: N/A | BG22: N/A | BH22: N/A | BI22: N/A | BJ22: N/A | BK22: N/A | BL22: N/A | BM22: N/A | BN22: N/A | BO22: N/A | BP22: N/A | BQ22: N/A | BR22: N/A | BS22: N/A | BT22: N/A | BU22: N/A | BV22: N/A | BW22: N/A
B23: No | C23: N/A | D23: N/A | E23: N/A | F23: N/A | G23: N/A | H23: N/A | I23: N/A | J23: N/A | K23: N/A | L23: N/A | M23: N/A | N23: N/A | O23: N/A | P23: N/A | Q23: N/A | R23: N/A | S23: N/A | T23: N/A | U23: N/A | V23: N/A | W23: N/A | BB23: No | BC23: N/A | BD23: N/A | BE23: N/A | BF23: N/A | BG23: N/A | BH23: N/A | BI23: N/A | BJ23: N/A | BK23: N/A | BL23: N/A | BM23: N/A | BN23: N/A | BO23: N/A | BP23: N/A | BQ23: N/A | BR23: N/A | BS23: N/A | BT23: N/A | BU23: N/A | BV23: N/A | BW23: N/A
A24: Manually calculated ratios | B24: Improved wells
B25: Improved springs
B26: Other
C27: NATIONAL wealth index quintile | H27: URBAN wealth index quintile | M27: RURAL wealth index quintile | R27: SUB-REGIONS: | BA27: Raw numbers of respondents: | BB27: Use of drinking water sources | BC27: NATIONAL wealth index quintile | BH27: URBAN wealth index quintile | BM27: RURAL wealth index quintile | BR27: SUB-REGIONS:
A28: Percentage based on weighted population | C28: Poorest | D28: Poor | E28: Middle | F28: Rich | G28: Richest | H28: Poorest | I28: Poor | J28: Middle | K28: Rich | L28: Richest | M28: Poorest | N28: Poor | O28: Middle | P28: Rich | Q28: Richest | R28: Barisal | S28: Chittagong | T28: Dhaka | U28: Khulna | V28: Rajshahi | W28: Sylhet | BA28: Water data, raw numbers (weighted) | BC28: Poorest | BD28: Poor | BE28: Middle | BF28: Rich | BG28: Richest | BH28: Poorest | BI28: Poor | BJ28: Middle | BK28: Rich | BL28: Richest | BM28: Poorest | BN28: Poor | BO28: Middle | BP28: Rich | BQ28: Richest | BR28: Barisal | BS28: Chittagong | BT28: Dhaka | BU28: Khulna | BV28: Rajshahi | BW28: Sylhet
A29: Piped water | B29: Yes | C29: 0.3386417533 | D29: 0.4782674765 | E29: 0.8922782093 | F29: 3.179496608 | G29: 28.76024843 | H29: 3.252525654 | I29: 10.45425277 | J29: 31.80823242 | K29: 41.14404664 | L29: 57.56237997 | M29: 0.2942135668 | N29: 0.1081504648 | O29: 0 | P29: 0.2079590305 | Q29: 1.521145748 | R29: 0.753592843 | S29: 3.604500349 | T29: 16.82709005 | U29: 0.9471675754 | V29: 2.270729337 | W29: 1.98778619 | BA29: Piped water | BB29: Yes | BC29: N/A | BD29: N/A | BE29: N/A | BF29: N/A | BG29: N/A | BH29: N/A | BI29: N/A | BJ29: N/A | BK29: N/A | BL29: N/A | BM29: N/A | BN29: N/A | BO29: N/A | BP29: N/A | BQ29: N/A | BR29: N/A | BS29: N/A | BT29: N/A | BU29: N/A | BV29: N/A | BW29: N/A
B30: No | C30: 99.66135825 | D30: 99.52173252 | E30: 99.10772179 | F30: 96.82050339 | G30: 71.23975157 | H30: 96.74747435 | I30: 89.54574723 | J30: 68.19176758 | K30: 58.85595336 | L30: 42.43762003 | M30: 99.70578643 | N30: 99.89184954 | O30: 100 | P30: 99.79204097 | Q30: 98.47885425 | R30: 99.24640716 | S30: 96.39549965 | T30: 83.17290995 | U30: 99.05283242 | V30: 97.72927066 | W30: 98.01221381 | BB30: No | BC30: N/A | BD30: N/A | BE30: N/A | BF30: N/A | BG30: N/A | BH30: N/A | BI30: N/A | BJ30: N/A | BK30: N/A | BL30: N/A | BM30: N/A | BN30: N/A | BO30: N/A | BP30: N/A | BQ30: N/A | BR30: N/A | BS30: N/A | BT30: N/A | BU30: N/A | BV30: N/A | BW30: N/A
A31: Piped water on premises | B31: Yes | C31: N/A | D31: N/A | E31: N/A | F31: N/A | G31: N/A | H31: N/A | I31: N/A | J31: N/A | K31: N/A | L31: N/A | M31: N/A | N31: N/A | O31: N/A | P31: N/A | Q31: N/A | R31: N/A | S31: N/A | T31: N/A | U31: N/A | V31: N/A | W31: N/A | BA31: Piped water on premises | BB31: Yes | BC31: N/A | BD31: N/A | BE31: N/A | BF31: N/A | BG31: N/A | BH31: N/A | BI31: N/A | BJ31: N/A | BK31: N/A | BL31: N/A | BM31: N/A | BN31: N/A | BO31: N/A | BP31: N/A | BQ31: N/A | BR31: N/A | BS31: N/A | BT31: N/A | BU31: N/A | BV31: N/A | BW31: N/A
B32: No | C32: N/A | D32: N/A | E32: N/A | F32: N/A | G32: N/A | H32: N/A | I32: N/A | J32: N/A | K32: N/A | L32: N/A | M32: N/A | N32: N/A | O32: N/A | P32: N/A | Q32: N/A | R32: N/A | S32: N/A | T32: N/A | U32: N/A | V32: N/A | W32: N/A | BB32: No | BC32: N/A | BD32: N/A | BE32: N/A | BF32: N/A | BG32: N/A | BH32: N/A | BI32: N/A | BJ32: N/A | BK32: N/A | BL32: N/A | BM32: N/A | BN32: N/A | BO32: N/A | BP32: N/A | BQ32: N/A | BR32: N/A | BS32: N/A | BT32: N/A | BU32: N/A | BV32: N/A | BW32: N/A
A33: Piped water into dwelling | B33: Yes | C33: 0.02616793158 | D33: 0.2084890171 | E33: 0.5621162505 | F33: 2.375843923 | G33: 26.77020771 | H33: 1.763045958 | I33: 8.008402281 | J33: 29.49388502 | K33: 36.08579293 | L33: 55.90685889 | M33: 0 | N33: 0 | O33: 0 | P33: 0.1451657714 | Q33: 0.9140335634 | R33: 0.4134683343 | S33: 2.652160689 | T33: 15.88945839 | U33: 0.5397221291 | V33: 1.528242765 | W33: 1.74948146 | BA33: Piped water into dwelling | BB33: Yes | BC33: N/A | BD33: N/A | BE33: N/A | BF33: N/A | BG33: N/A | BH33: N/A | BI33: N/A | BJ33: N/A | BK33: N/A | BL33: N/A | BM33: N/A | BN33: N/A | BO33: N/A | BP33: N/A | BQ33: N/A | BR33: N/A | BS33: N/A | BT33: N/A | BU33: N/A | BV33: N/A | BW33: N/A
B34: No | C34: 99.97383207 | D34: 99.79151098 | E34: 99.43788375 | F34: 97.62415608 | G34: 73.22979229 | H34: 98.23695404 | I34: 91.99159772 | J34: 70.50611498 | K34: 63.91420707 | L34: 44.09314111 | M34: 100 | N34: 100 | O34: 100 | P34: 99.85483423 | Q34: 99.08596644 | R34: 99.58653167 | S34: 97.34783931 | T34: 84.11054161 | U34: 99.46027787 | V34: 98.47175723 | W34: 98.25051854 | BB34: No | BC34: N/A | BD34: N/A | BE34: N/A | BF34: N/A | BG34: N/A | BH34: N/A | BI34: N/A | BJ34: N/A | BK34: N/A | BL34: N/A | BM34: N/A | BN34: N/A | BO34: N/A | BP34: N/A | BQ34: N/A | BR34: N/A | BS34: N/A | BT34: N/A | BU34: N/A | BV34: N/A | BW34: N/A
A35: Water source on premises | B35: Yes | C35: N/A | D35: N/A | E35: N/A | F35: N/A | G35: N/A | H35: N/A | I35: N/A | J35: N/A | K35: N/A | L35: N/A | M35: N/A | N35: N/A | O35: N/A | P35: N/A | Q35: N/A | R35: N/A | S35: N/A | T35: N/A | U35: N/A | V35: N/A | W35: N/A | BA35: Water source on premises | BB35: Yes | BC35: N/A | BD35: N/A | BE35: N/A | BF35: N/A | BG35: N/A | BH35: N/A | BI35: N/A | BJ35: N/A | BK35: N/A | BL35: N/A | BM35: N/A | BN35: N/A | BO35: N/A | BP35: N/A | BQ35: N/A | BR35: N/A | BS35: N/A | BT35: N/A | BU35: N/A | BV35: N/A | BW35: N/A
B36: No | C36: N/A | D36: N/A | E36: N/A | F36: N/A | G36: N/A | H36: N/A | I36: N/A | J36: N/A | K36: N/A | L36: N/A | M36: N/A | N36: N/A | O36: N/A | P36: N/A | Q36: N/A | R36: N/A | S36: N/A | T36: N/A | U36: N/A | V36: N/A | W36: N/A | BB36: No | BC36: N/A | BD36: N/A | BE36: N/A | BF36: N/A | BG36: N/A | BH36: N/A | BI36: N/A | BJ36: N/A | BK36: N/A | BL36: N/A | BM36: N/A | BN36: N/A | BO36: N/A | BP36: N/A | BQ36: N/A | BR36: N/A | BS36: N/A | BT36: N/A | BU36: N/A | BV36: N/A | BW36: N/A
A37: Improved Water source on premises | B37: Yes | C37: N/A | D37: N/A | E37: N/A | F37: N/A | G37: N/A | H37: N/A | I37: N/A | J37: N/A | K37: N/A | L37: N/A | M37: N/A | N37: N/A | O37: N/A | P37: N/A | Q37: N/A | R37: N/A | S37: N/A | T37: N/A | U37: N/A | V37: N/A | W37: N/A | BA37: Improved water source on premises | BB37: Yes | BC37: N/A | BD37: N/A | BE37: N/A | BF37: N/A | BG37: N/A | BH37: N/A | BI37: N/A | BJ37: N/A | BK37: N/A | BL37: N/A | BM37: N/A | BN37: N/A | BO37: N/A | BP37: N/A | BQ37: N/A | BR37: N/A | BS37: N/A | BT37: N/A | BU37: N/A | BV37: N/A | BW37: N/A
B38: No | C38: N/A | D38: N/A | E38: N/A | F38: N/A | G38: N/A | H38: N/A | I38: N/A | J38: N/A | K38: N/A | L38: N/A | M38: N/A | N38: N/A | O38: N/A | P38: N/A | Q38: N/A | R38: N/A | S38: N/A | T38: N/A | U38: N/A | V38: N/A | W38: N/A | BB38: No | BC38: N/A | BD38: N/A | BE38: N/A | BF38: N/A | BG38: N/A | BH38: N/A | BI38: N/A | BJ38: N/A | BK38: N/A | BL38: N/A | BM38: N/A | BN38: N/A | BO38: N/A | BP38: N/A | BQ38: N/A | BR38: N/A | BS38: N/A | BT38: N/A | BU38: N/A | BV38: N/A | BW38: N/A
A39: Piped water on premises available when needed | B39: Yes | C39: N/A | D39: N/A | E39: N/A | F39: N/A | G39: N/A | H39: N/A | I39: N/A | J39: N/A | K39: N/A | L39: N/A | M39: N/A | N39: N/A | O39: N/A | P39: N/A | Q39: N/A | R39: N/A | S39: N/A | T39: N/A | U39: N/A | V39: N/A | W39: N/A | BA39: Piped water on premises available when needed | BB39: Yes | BC39: N/A | BD39: N/A | BE39: N/A | BF39: N/A | BG39: N/A | BH39: N/A | BI39: N/A | BJ39: N/A | BK39: N/A | BL39: N/A | BM39: N/A | BN39: N/A | BO39: N/A | BP39: N/A | BQ39: N/A | BR39: N/A | BS39: N/A | BT39: N/A | BU39: N/A | BV39: N/A | BW39: N/A
B40: No | C40: N/A | D40: N/A | E40: N/A | F40: N/A | G40: N/A | H40: N/A | I40: N/A | J40: N/A | K40: N/A | L40: N/A | M40: N/A | N40: N/A | O40: N/A | P40: N/A | Q40: N/A | R40: N/A | S40: N/A | T40: N/A | U40: N/A | V40: N/A | W40: N/A | BB40: No | BC40: N/A | BD40: N/A | BE40: N/A | BF40: N/A | BG40: N/A | BH40: N/A | BI40: N/A | BJ40: N/A | BK40: N/A | BL40: N/A | BM40: N/A | BN40: N/A | BO40: N/A | BP40: N/A | BQ40: N/A | BR40: N/A | BS40: N/A | BT40: N/A | BU40: N/A | BV40: N/A | BW40: N/A
A41: Water point at more than 30 minutes | B41: Yes | C41: N/A | D41: N/A | E41: N/A | F41: N/A | G41: N/A | H41: N/A | I41: N/A | J41: N/A | K41: N/A | L41: N/A | M41: N/A | N41: N/A | O41: N/A | P41: N/A | Q41: N/A | R41: N/A | S41: N/A | T41: N/A | U41: N/A | V41: N/A | W41: N/A | BA41: Water point at more than 30 minutes | BB41: Yes | BC41: N/A | BD41: N/A | BE41: N/A | BF41: N/A | BG41: N/A | BH41: N/A | BI41: N/A | BJ41: N/A | BK41: N/A | BL41: N/A | BM41: N/A | BN41: N/A | BO41: N/A | BP41: N/A | BQ41: N/A | BR41: N/A | BS41: N/A | BT41: N/A | BU41: N/A | BV41: N/A | BW41: N/A
B42: No | C42: N/A | D42: N/A | E42: N/A | F42: N/A | G42: N/A | H42: N/A | I42: N/A | J42: N/A | K42: N/A | L42: N/A | M42: N/A | N42: N/A | O42: N/A | P42: N/A | Q42: N/A | R42: N/A | S42: N/A | T42: N/A | U42: N/A | V42: N/A | W42: N/A | BB42: No | BC42: N/A | BD42: N/A | BE42: N/A | BF42: N/A | BG42: N/A | BH42: N/A | BI42: N/A | BJ42: N/A | BK42: N/A | BL42: N/A | BM42: N/A | BN42: N/A | BO42: N/A | BP42: N/A | BQ42: N/A | BR42: N/A | BS42: N/A | BT42: N/A | BU42: N/A | BV42: N/A | BW42: N/A
